Workbook

Sheet Index
B1: Massachusetts Department of Elementary and Secondary Education
B2: FY22 Charter School End of Year Financial Report Summary
B3: Last Updated: May 2023
B5: Data Context
B6: This data was collected via the FY2022 Charter School End of Year Financial Report (22CSEOYFR) as well as SIMS and EPIMS databases.
B8: Technical Tips
B9: Please be sure to enable macros before using this file. You will receive a Security Warning message at the top of this page that reads "Macros have been disabled". Please click "Enable Content".
B11: Instructions for Viewing Data
B12: Use the drop-down menu to select a charter school that was operating in FY22 or a statewide charter summary total then navigate to any of the first three tabs linked below. There is additional statewide summary data provided in tabs 4 and 5.
C15: =VLOOKUP(E15, CSORDER, 2, FALSE) ->  | D15: =VLOOKUP(E15, CSORDER, 3, FALSE) ->  | E15: 1
B18: 1. Statement of Net Position
B19: 2. Statement of Revenues, Expenses and Change in Net Position
B20: 3. Schedule of Functional Expenses
B22: In addition, statewide summary data is available for the following:
B23: 4. Expenditures Per Pupil
B24: 5. Average Teacher Salaries
B26: For researchers, the following raw data sets are available:
B27: BAL22_raw (Balance Sheet Data)
B28: INC22_raw (Income Statement Data)
B29: FE22_raw (Schedule of Functional Expenses Data)
B30: FTE_raw (Student FTE Enrollment Data)
B31: EPIMS22_raw (Teacher FTE Enrollment Data)

Sheet 1. Statement of Net Position
A1: NAME: | B1: =SCHOOLNAME ->  | F1: LEA | G1: =LEA -> 
C2: Return to Index
A3: Statement of Net Position
A4: For the Year Ended June 30, 2022
F6: =B1 ->  | G6: Charter School Foundation (Component Unit) | H6: 2022 Total (Memorandum Only) | J6: Line | K6: Rec. Acct#
C7: ASSETS
C8: Current Assets
A9: 01 | C9: Cash and Cash Equivalents | D9: Assets that are cash or can be converted into cash immediately. | F9: =VLOOKUP($G$1&$A9, BAL, 6,FALSE) ->  | G9: =VLOOKUP($G$1&$A9, BAL, 7,FALSE) ->  | H9: =VLOOKUP($G$1&$A9, BAL, 8,FALSE) ->  | J9: =A9 -> 01 | K9: 10XX
A10: 02 | C10: Accounts Receivable net of doubtful accounts | D10: A school's claim for money, goods and services from customers and other entities. | J10: 02 | K10: 11XX
A11: 03 | C11: Grants Receivable - State | D11: Claims for goods and services provided under state awarded contracts. | J11: 03 | K11: 11XX
A12: 04 | C12: Grants Receivable - Federal | D12: Claims for goods and services provided under federal awarded contracts. | J12: 04 | K12: 11XX
A13: 05 | C13: Grants Receivable - Private | D13: Claims for goods and services provided from private awards received. | J13: 05 | K13: 11XX
A14: 06 | C14: Contributions Receivable | D14: Unconditional promises to give by private individuals or corporations. | J14: 06 | K14: 11XX
A15: 07 | C15: Due from related parties | D15: Amounts to be received from related parties. | J15: 07 | K15: 12XX
A16: 08 | C16: Prepaid Expenses / Inventory | D16: An expense paid but not incurred as of year end. Also include short-term inventories of supplies such as uniforms. | J16: 08 | K16: 13XX
A17: 09 | C17: Short-Term Investments | D17: Readily marketable security for which the intention of the school is the conversion to cash in the short term. | J17: 09 | K17: 14XX
A18: 10 | C18: Deposit (Security, Other) | D18: Security deposits for leases, or other deposits. | F18: =VLOOKUP($G$1&$A19, BAL, 6,FALSE) ->  | G18: =VLOOKUP($G$1&$A19, BAL, 7,FALSE) ->  | H18: =VLOOKUP($G$1&$A19, BAL, 8,FALSE) ->  | J18: =A19 -> 11 | K18: 15XX
A19: 11 | C19: Restricted Current Assets | D19: Current assets restricted by external sources for future purchases. | J19: 11 | K19: 15XX
A20: 12 | C20: TOTAL CURRENT ASSETS | D20: Calculates automatically. | J20: 12 | K20: NA
C21: Noncurrent Assets
C22: Capital Assets
A23: 13 | C23: - Land and Buildings | D23: Value of land and building inclusive of remodeling, reconditioning, or altering the building purchased to make it available for the purpose for which it was acquired, including construction in progress. | F23: =VLOOKUP($G$1&$A23, BAL, 6,FALSE) ->  | G23: =VLOOKUP($G$1&$A23, BAL, 7,FALSE) ->  | H23: =VLOOKUP($G$1&$A23, BAL, 8,FALSE) ->  | J23: =A23 -> 13 | K23: 15XX
A24: 14 | C24: - Building/Leasehold Improvement | D24: Value of improvements on leased property that revert back to the owners upon termination of the lease. | J24: 14 | K24: 15XX
A25: 15 | C25: - Furniture and Equipment | D25: Value of furniture and equipment that meet the school's capitalization policy. | J25: 15 | K25: 15XX
A26: 16 | C26: - Less Accumulated Depreciation | D26: The aggregate, at a given point in time, of the depreciation charges made during the useful life of the fixed asset. Enter as a negative number. | J26: 16 | K26: 16XX
A27: 17 | C27: Net Capital Assets | D27: Calculates automatically. | J27: 17 | K27: NA
A28: 19 | C28: Restricted Noncurrent Assets | D28: Noncurrent assets restricted by external sources for future purchases. | J28: 19 | K28: 10XX
A29: 19 | C29: Long-Term Investments | D29: Investments that do not meet the criteria of "Short-Term Investments" above. | J29: 19 | K29: 14XX
A30: 20 | C30: Building Acquisition / Financing Costs / Deferred Expenses | D30: Costs related to building acquisition, construction, and/or financing costs which are amortized. Also include long-term pre-paid leases or expenses which are amortized. | J30: 20 | K30: 14XX
A31: 21 | C31: Long-Term Grants / Contributions Receivable | D31: Please enter a brief description in the highlighted green cell, if applicable. | J31: 21 | K31: 14XX
A32: 22 | C32: TOTAL NONCURRENT ASSETS | D32: Calculates automatically. | J32: 22 | K32: NA
A33: 23 | C33: TOTAL ASSETS | D33: Calculates automatically. | J33: 23 | K33: NA
C35: LIABILITIES AND NET ASSETS
C36: Current Liabilities
A37: 24 | C37: Accounts Payable | D37: Obligations for goods or services purchased for which invoices have been received. | F37: =VLOOKUP($G$1&$A37, BAL, 6,FALSE) ->  | G37: =VLOOKUP($G$1&$A37, BAL, 7,FALSE) ->  | H37: =VLOOKUP($G$1&$A37, BAL, 8,FALSE) ->  | J37: =A37 -> 24 | K37: 20XX
A38: 25 | C38: Accrued Expenses / Accrued Payroll | D38: An unpaid expense incurred that has not been paid as of the end of the period, including accrued payroll. | J38: 25 | K38: 21XX
A39: 26 | C39: Deferred Revenue | D39: Cash received for services not performed (i.e., grant funds received that were not expended). | J39: 26 | K39: 22XX
A40: 27 | C40: Due to related parties | D40: Amounts due to related parties such as the school's component unit. | J40: 27 | K40: 23XX
A41: 28 | C41: Current Debt Payable | D41: Debt obligations due within one year of financial statement date. | J41: 28 | K41: 24XX
A42: 29 | C42: Current Lease Obligations Payable | D42: Lease obligations due within one year of financial statement date. | J42: 29 | K42: 24XX
A43: 30 | C43: TOTAL CURRENT LIABILITIES | D43: Calculates automatically. | J43: 30 | K43: NA
C44: Noncurrent Liabilities
A45: 31 | C45: Noncurrent Lease Obligations | D45: Lease obligations due after one year of financial statement date. | F45: =VLOOKUP($G$1&$A45, BAL, 6,FALSE) ->  | G45: =VLOOKUP($G$1&$A45, BAL, 7,FALSE) ->  | H45: =VLOOKUP($G$1&$A45, BAL, 8,FALSE) ->  | J45: =A45 -> 31 | K45: 26XX
A46: 32 | C46: Long-Term Debt | D46: Debt obligations due after one year of financial statement date. | F46: =VLOOKUP($G$1&$A46, BAL, 6,FALSE) ->  | G46: =VLOOKUP($G$1&$A46, BAL, 7,FALSE) ->  | H46: =VLOOKUP($G$1&$A46, BAL, 8,FALSE) ->  | J46: =A46 -> 32 | K46: 26XX
A47: 33 | C47: Deferred Revenue | D47: Cash received for services not performed (i.e., grant funds received that were not expended). | F47: =VLOOKUP($G$1&$A47, BAL, 6,FALSE) ->  | G47: =VLOOKUP($G$1&$A47, BAL, 7,FALSE) ->  | H47: =VLOOKUP($G$1&$A47, BAL, 8,FALSE) ->  | J47: =A47 -> 33 | K47: 2XXX
A48: 34 | C48: TOTAL NONCURRENT LIABILITIES | D48: Calculates automatically. | F48: =VLOOKUP($G$1&$A48, BAL, 6,FALSE) ->  | G48: =VLOOKUP($G$1&$A48, BAL, 7,FALSE) ->  | H48: =VLOOKUP($G$1&$A48, BAL, 8,FALSE) ->  | J48: =A48 -> 34 | K48: NA
A49: 35 | C49: TOTAL LIABILITIES | D49: Calculates automatically. | F49: =VLOOKUP($G$1&$A49, BAL, 6,FALSE) ->  | G49: =VLOOKUP($G$1&$A49, BAL, 7,FALSE) ->  | H49: =VLOOKUP($G$1&$A49, BAL, 8,FALSE) ->  | J49: =A49 -> 35 | K49: NA
C51: NET ASSETS
A52: 36 | C52: Investment in capital assets (net of related debt) | D52: Represents capital assets reduced by accumulated depreciation and any outstanding debt used to acquire, construct or improve those assets. | F52: =VLOOKUP($G$1&$A52, BAL, 6,FALSE) ->  | G52: =VLOOKUP($G$1&$A52, BAL, 7,FALSE) ->  | H52: =VLOOKUP($G$1&$A52, BAL, 8,FALSE) ->  | J52: =A52 -> 36 | K52: 3XXX
A53: 37 | C53: Temporarily Restricted | D53: Net assets that are temporarily restricted by a funder or the school's Board for a specific purpose. | J53: 37 | K53: 32XX
A54: 38 | C54: Permanently Restricted | D54: Net assets that are restricted by an outside agency or person, as contrasted with assets over which the entity has control and discretion. E.g., a donor scholarship fund. | J54: 38 | K54: 33XX
A55: 39 | C55: Unrestricted (non-capital) | D55: Net assets that do not meet the definitions of any of the above categories. | J55: 39 | K55: 30XX
A56: 40 | C56: TOTAL NET ASSETS | D56: Calculates automatically. | J56: 40 | K56: NA
A57: 41 | C57: TOTAL LIABILITIES AND NET ASSETS | D57: Calculates automatically. MUST RECONCILE WITH LINE 23 (TOTAL ASSETS) | J57: 41 | K57: NA

Sheet 2. Stmt Rev, Exp and Change
B1: NAME: | C1: =SCHOOLNAME ->  | F1: LEA | G1: =LEA ->  | M1: =3 -> 3
C2: Return to Index
A3: Statement of Revenues, Expenses and Change in Net Position
A4: =YEAREND -> For the Year Ended June 30, 2022
D6: Restricted – The use of these funds are restricted to a particular purpose or project. Unrestricted – These use of these funds are unrestricted and came be used toward any purpose. | F6: =C1 ->  | G6: Charter School Foundation (Component Unit) | H6: ='1. Statement of Net Position'!H6 -> 2022 Total (Memorandum Only) | J6: Line | K6: Rec. Acct#
C7: REVENUES
A8: 01 | C8: Tuition | D8: Total tuition paid to the charter school by either the Commonwealth or sending school district (Horace Mann), inclusive of local transportation and facilities reimbursement embedded in Commonwealth tuition payments. This should include any reimbursements received for local transportation reimbursement, if applicable. | F8: =VLOOKUP($G$1&$A8, INC, 6,FALSE) ->  | H8: =VLOOKUP($G$1&$A8, INC, 8,FALSE) ->  | J8: =A8 -> 01 | K8: 4000
A9: 02a | B9: ^ | C9: Grants - State - passed through ESE | D9: Grants awarded through the ESE. | G9: =VLOOKUP($G$1&$A9, INC, 7,FALSE) ->  | J9: 02a | K9: 41XX
A10: 02b | B10: ^ | C10: Grants - State - other non-ESE pass-through | D10: Grants awarded directly by the Commonwealth of MA. | J10: 02b | K10: 41XX
A11: 03 | B11: ^ | C11: Grants - Federal - Passed through ESE | D11: Grants from federal sources that pass through ESE such as Title I, IDEA, Charter School Start-Up Assistance, etc. | J11: 03 | K11: 41XX
A12: 04 | B12: ^ | C12: Grants - Federal - Direct or other pass-through | D12: Grants from federal sources awarded directly from federal agencies or passed-through other agencies. | J12: 04 | K12: 41XX
A13: 05a | B13: ^ | C13: Grants - Private (restricted) | D13: Grants awarded by private (non-governmental) foundations, corporations, or individuals that are restricted. | J13: 05a | K13: 41XX
A14: 05b | C14: Grants - Private (unrestricted) | D14: Grants awarded by private (non-governmental) foundations, corporations, or individuals that are unrestricted. | J14: 05b | K14: 41XX
A15: 06 | B15: ^ | C15: Nutrition Funding - State | D15: Funding for nutrition programs is split between the federal and state governments. | J15: 06 | K15: 42XX
A16: 07 | B16: ^ | C16: Nutrition Funding - Federal | D16: Funding for nutrition programs is split between the federal and state governments. | J16: 07 | K16: 42XX
A17: 08 | C17: Nutrition Funding - Fees | D17: Fees collected from students for nutrition programs. | J17: 08 | K17: 42XX
A18: 09 | C18: Other Program / Student Activity Fees | D18: Any fees that the school collects for transportation, uniforms, etc. | F18: =VLOOKUP($G$1&$A19, INC, 6,FALSE) ->  | G18: =VLOOKUP($G$1&$A19, INC, 7,FALSE) ->  | H18: =VLOOKUP($G$1&$A19, INC, 8,FALSE) ->  | J18: =A19 -> 10 | K18: 43XX
A19: 10 | C19: Regional Transportation Aid | D19: Reimbursements from the Commonwealth for regional transportation costs, if applicable. | J19: 10 | K19: 45XX
A20: 11 | C20: Medicaid Reimbursements | D20: Reimbursement from Medicaid | J20: 11 | K20: 45XX
A21: 12 | C21: Circuit Breaker Reimbursements | D21: Reimbursements from the Commonwealth for high-cost special education students, if applicable. | J21: 12 | K21: 45XX
A22: 13a | C22: Contributions, in-kind, host district | D22: Recorded monetary value of in-kind donations for services that would otherwise have been purchased, provided by the school's host district (e.g. transportation, food). | J22: 13a | K22: 44XX
A23: 13b | C23: Contributions, in-kind, other | D23: Recorded monetary value of in-kind donations for services that would otherwise have been purchased, provided by individuals/organizations other than the host district. | G23: =VLOOKUP($G$1&$A23, INC, 7,FALSE) ->  | J23: 13b | K23: 44XX
A24: 13c | C24: Contributions, on-behalf, pension | D24: In accordance with GASB 68, recorded retirement payments to former retired School’s employees. | J24: 13c | K24: 44XX
A25: 14 | C25: Contributions, from Component Unit (restricted) | D25: Restricted contributions made to the School by the Component Unit | J25: 14 | K25: 44XX
A26: 14b | C26: Contributions, from Component Unit (unrestricted) | D26: Unrestricted contributions made to the School by the Component Unit | J26: 14b | K26: 44XX
A27: 15 | C27: Contributions / Fundraising (restricted) | D27: Restricted donations from individuals, businesses, or corporations. | J27: 15 | K27: 44XX
A28: 15b | C28: Contributions / Fundraising (unrestricted) | D28: Unrestricted donations from individuals, businesses, or corporations. | J28: 15b | K28: 44XX
A29: 16 | C29: Interest / Investment Income (restricted) | D29: Restricted income generated from interest/investments. | J29: 16 | K29: 47XX
A30: 16a | C30: Interest / Investment Income (unrestricted) | D30: Unrestricted income generated from interest/investments. | J30: 16b | K30: 47XX
A31: 17 | C31: Rental Income | D31: Income generated from rental of space. | J31: =A31 -> 17 | K31: 46XX
A32: 19 | C32: Loan Forgiveness or Other Reimbursement | D32: Revenue recorded for loan forgiveness or other credit. | J32: =A32 -> 19 | K32: 4XXX
A33: 19 | C33: Miscellaneous Income | D33: Miscellaneous Income. | J33: =A33 -> 19 | K33: 4XXX
A34: 20 | C34: TOTAL REVENUES | D34: Calculates automatically. | J34: =A34 -> 20 | K34: NA
B35: ^ | C35: Non-"General Fund" revenue sources
C37: EXPENSES
A38: 21 | C38: Administration | D38: Charter School figures will be populated from the Sch_FuncExp sheet. | F38: =VLOOKUP($G$1&$A38, INC, 6,FALSE) ->  | H38: =VLOOKUP($G$1&$A38, INC, 8,FALSE) ->  | J38: =A38 -> 21 | K38: NA
A39: 22 | C39: Instructional Services | D39: Charter School figures will be populated from the Sch_FuncExp sheet. | J39: 22 | K39: NA
A40: 23 | C40: Pupil Services | D40: Charter School figures will be populated from the Sch_FuncExp sheet. | J40: 23 | K40: NA
A41: 24 | C41: Operation & Maintenance of Plant | D41: Charter School figures will be populated from the Sch_FuncExp sheet. | J41: 24 | K41: NA
A42: 25 | C42: Fixed Charges | D42: Charter School figures will be populated from the Sch_FuncExp sheet. | J42: 25 | K42: NA
A43: 26 | C43: Community Services | D43: Charter School figures will be populated from the Sch_FuncExp sheet. | J43: 26 | K43: NA
A44: 27 | C44: Non-Operating Financing Expenses | D44: Charter School figures will be populated from the Sch_FuncExp sheet. | J44: 27 | K44: NA
A45: 28 | C45: Component Unit Expenses | D45: Aggregate operating expenses for the Component Unit. | G45: =VLOOKUP($G$1&$A45, INC, 7,FALSE) ->  | J45: 28 | K45: NA
A46: 29 | C46: Contributions to School | D46: Contributions made by the Component Unit to the School | G46: =VLOOKUP($G$1&$A46, INC, 7,FALSE) ->  | J46: 29 | K46: NA
A47: 30 | C47: TOTAL EXPENSES | D47: Calculates automatically. | F47: =VLOOKUP($G$1&$A47, INC, 6,FALSE) ->  | G47: =VLOOKUP($G$1&$A47, INC, 7,FALSE) ->  | J47: 30 | K47: NA
A49: 31 | C49: TOTAL GAIN/(LOSS) | D49: Calculates automatically. | F49: =VLOOKUP($G$1&$A49, INC, 6,FALSE) ->  | G49: =VLOOKUP($G$1&$A49, INC, 7,FALSE) ->  | H49: =VLOOKUP($G$1&$A49, INC, 8,FALSE) ->  | J49: =A49 -> 31 | K49: NA
A50: 32 | C50: Gain/Loss on Sale of Asset or Lease Transaction | D50: Gain/Loss recorded on sale of school assets or lease transaction. | F50: =VLOOKUP($G$1&$A50, INC, 6,FALSE) ->  | G50: =VLOOKUP($G$1&$A50, INC, 7,FALSE) ->  | H50: =VLOOKUP($G$1&$A50, INC, 8,FALSE) ->  | J50: =A50 -> 32 | K50: 5XXX
A51: 33 | C51: Other Gain/Loss | D51: Other Gain or Loss that is a non-recurring, unusual occurrence such as a prior-period adjustment | F51: =VLOOKUP($G$1&$A51, INC, 6,FALSE) ->  | G51: =VLOOKUP($G$1&$A51, INC, 7,FALSE) ->  | H51: =VLOOKUP($G$1&$A51, INC, 8,FALSE) ->  | J51: =A51 -> 33 | K51: 5XXX
A52: 34 | C52: TOTAL CHANGES IN NET ASSETS: | D52: Calculates automatically. | F52: =VLOOKUP($G$1&$A52, INC, 6,FALSE) ->  | G52: =VLOOKUP($G$1&$A52, INC, 7,FALSE) ->  | H52: =VLOOKUP($G$1&$A52, INC, 8,FALSE) ->  | J52: =A52 -> 34 | K52: NA
A54: 35 | C54: NET ASSETS AT BEGINNING OF YEAR | D54: Please enter values from previous year's audit. | F54: =VLOOKUP($G$1&$A54, INC, 6,FALSE) ->  | G54: =VLOOKUP($G$1&$A54, INC, 7,FALSE) ->  | H54: =VLOOKUP($G$1&$A54, INC, 8,FALSE) ->  | J54: =A54 -> 35 | K54: NA
A55: 36 | C55: NET ASSETS AT END OF YEAR | D55: Calculates automatically. MUST RECONCILE WITH BALANCE SHEET LINE 40 (TOTAL NET ASSETS) | F55: =VLOOKUP($G$1&$A55, INC, 6,FALSE) ->  | G55: =VLOOKUP($G$1&$A55, INC, 7,FALSE) ->  | H55: =VLOOKUP($G$1&$A55, INC, 8,FALSE) ->  | J55: =A55 -> 36 | K55: NA
F56: 0 | G56: 0 | H56: 0

Sheet 3. Schedule of Func Exp
B1: NAME: | C1: =SCHOOLNAME ->  | H1: LEA: | I1: =LEA -> 
C2: Return to Index
A3: Schedule of Functional Expenses
A4: =YEAREND -> For the Year Ended June 30, 2022
F5: 6 | G5: 7 | H5: 8 | I5: 9 | J5: 10 | K5: 11 | L5: 12 | M5: 13 | N5: 14 | O5: 15 | P5: 16 | Q5: 17 | R5: 18 | S5: 19 | T5: 20 | U5: 21
F6: "General" Fund (Charter School Tuition) | I6: State | K6: Federal
F7: 1 | G7: 2 | H7: 3 | I7: 4 | J7: 4a | K7: 5 | L7: 5a | M7: 5b | N7: 5c | O7: 5d | P7: 5e | Q7: 5f | R7: 5g | S7: 5h | T7: 6 | U7: 7
F8: General Education | G8: Special Education | H8: Undistributed (not assigned to a program) | I8: State Grants & Nutrition Reimbursement | J8: State Coronavirus Prevention Fund | K8: Charter School Program FC 532 or 534 | L8: ESSER 1 FC 113 | M8: ESSER II FC115 | N8: ESSER III FC 119 | O8: ESSER SEA Reserve Grants | P8: GEER Funded Grants | Q8: CvRF FC 102 and CvRF School Nutrition | R8: CvRF RLTE FC118 | S8: All Other Federal Grants & Nutrition Reimbursement | T8: Private Grants & Contributions | U8: TOTAL
A9: Line | C9: Functional Category | F9: Expenses | G9: Expenses | H9: Expenses | I9: Expenses | J9: Expenses | K9: Expenses | L9: Expenses | M9: Expenses | N9: Expenses | O9: Expenses | P9: Expenses | Q9: Expenses | R9: Expenses | S9: Expenses | T9: Expenses | U9: Expenses
A11: 100 | C11: Administration | D11: Administration - Calculates automatically. | F11: =VLOOKUP($I$1&$A11, FE, $F$5, FALSE) ->  | G11: =VLOOKUP($I$1&$A11, FE, $G$5, FALSE) ->  | H11: =VLOOKUP($I$1&$A11, FE, $H$5, FALSE) ->  | I11: =VLOOKUP($I$1&$A11, FE, $I$5, FALSE) ->  | J11: =VLOOKUP($I$1&$A11, FE, $J$5, FALSE) ->  | K11: =VLOOKUP($I$1&$A11, FE, $K$5, FALSE) ->  | L11: =VLOOKUP($I$1&$A11, FE, $L$5, FALSE) ->  | M11: =VLOOKUP($I$1&$A11, FE, $M$5, FALSE) ->  | N11: =VLOOKUP($I$1&$A11, FE, $N$5, FALSE) ->  | O11: =VLOOKUP($I$1&$A11, FE, $O$5, FALSE) ->  | P11: =VLOOKUP($I$1&$A11, FE, $P$5, FALSE) ->  | Q11: =VLOOKUP($I$1&$A11, FE, $Q$5, FALSE) ->  | R11: =VLOOKUP($I$1&$A11, FE, $R$5, FALSE) ->  | S11: =VLOOKUP($I$1&$A11, FE, $S$5, FALSE) ->  | T11: =VLOOKUP($I$1&$A11, FE, $T$5, FALSE) ->  | U11: =VLOOKUP($I$1&$A11, FE, $U$5, FALSE) -> 
A12: 110 | C12: Subtotal - Board of Trustees | D12: Calculates automatically
A13: 111 | C13: Contracted Services | D13: Contracted professional services, including all related expenses covered by the contract. (Ex: board training consultant, facilitator for board retreat, board attorney) Do not include auditor see Non-Instructional Administration-Contracted Services.
A14: 112 | C14: Travel and other expenses | D14: Travel and other expenses for board members such as dues, subscriptions and memberships. (Ex: board member travels to charter school conference, dues for board-specific professional association).
A15: 120 | C15: Subtotal - School Leaders | D15: Calculates automatically
A16: 121 | C16: Salaries - Professional | D16: Salaries for non-instructional school-wide administrative personnel (Ex: executive director). Principals and Instructional Leaders should be noted in Instructional Services. If role is instructional and administrative, split accordingly.
A17: 122 | C17: Contracted Services | D17: Contracted professional services, including all related expenses covered by the contract. (Ex: interim school leader)
A18: 120a | C18: Subtotal - Non-Instructional Administration and Support Staff | D18: Calculates automatically
A19: 121a | C19: Salaries - Professional and Support Staff | D19: Salaries for non-instructional school-wide administrative personnel, excluding school leaders, legal, and development staff. (Ex: Business and Finance, Human Resources, Information Technology, Student Recruitment and Enrollment/Registrar, Enrollment Director, SIMS administrator, and respective Support Staff). Principals and Instructional Leaders should be noted in Instructional Services. If role is instructional and administrative, split accordingly.
A20: 122a | C20: Contracted Services - Professional and Support Staff | D20: Contracted professional services, including all related expenses covered by the contract, excluding school leaders, legal, and development staff. (Ex: auditor, licensing for district wide software - Microsoft, Anti virus).
A21: 123 | C21: Recruitment/Advertising | D21: Recruiting/advertising for students, staff, and board members. (Ex: brochures, newspaper advertising, web based staff recruitment such as School Spring, radio, advertising for bids).
A22: 124 | C22: Travel, Dues, and other expenses | D22: Travel and other expenses for all non-instructional administrative and support staff, dues such as charter school association dues, professional dues, subscriptions, memberships, professional development and conferences.
A23: 125 | C23: Supplies and Materials | D23: Materials and items of an expendable nature. Unit price of less than $5000. (Ex: office furniture, office supplies, non-instructional computers and software).
A24: 126 | C24: Depreciation - non instructional | D24: Annual depreciation expense for capitalized costs (Ex: district wide information management, computers, furniture).
A25: 130 | C25: Legal
A26: 131 | C26: Salaries - Professional | D26: Salaries for non-instructional legal personnel such as in-house attorney, paralegal, or other staff working on legal matters.
A27: 132 | C27: Contracted Services | D27: Contracted legal professional services, including all related expenses covered by the contract. (Ex: attorney fees, expert witness and consultation fees, filing and copy fees, travel etc.)
A28: 133 | C28: Legal Settlements | D28: Funds paid toward legal settlements only. (Due to employee/landlord/contractor/tenant etc issues or lawsuits)
A29: 170 | C29: Subtotal - Development (Private) | D29: Calculates automatically
A30: 170a | C30: Salaries - Professional - Private | D30: Salaries apportioned to private development personnel (this could be % of a salary). (Ex: grant writer and fundraiser).
A31: 170b | C31: Contracted Services - Private | D31: Contracts apportioned to professional services for private development (including all related expenses covered by the contract). (Ex: contracted fundraiser, contracted grant writer).
A32: 170c | C32: Fundraising - Private | D32: Expenses related to private fundraising. (Ex: invitations to fundraiser, fundraising software, space rental for fundraising event).
A33: 171 | C33: Subtotal - Development (Public) | D33: Calculates automatically
A34: 171a | C34: Salaries - Professional - Public | D34: Salaries apportioned to public development personnel (this could be a % of a salary). (Ex: grant writer and fundraiser).
A35: 171b | C35: Contracted Services - Public | D35: Contracts apportioned to professional services for public development (including all related expenses covered by the contract). (Ex: contracted grant writer).
A37: 200 | C37: Instructional Services | D37: Calculates automatically | F37: =VLOOKUP($I$1&$A37, FE, $F$5, FALSE) ->  | G37: =VLOOKUP($I$1&$A37, FE, $G$5, FALSE) ->  | H37: =VLOOKUP($I$1&$A37, FE, $H$5, FALSE) ->  | I37: =VLOOKUP($I$1&$A37, FE, $I$5, FALSE) ->  | J37: =VLOOKUP($I$1&$A37, FE, $J$5, FALSE) ->  | K37: =VLOOKUP($I$1&$A37, FE, $K$5, FALSE) ->  | L37: =VLOOKUP($I$1&$A37, FE, $L$5, FALSE) ->  | M37: =VLOOKUP($I$1&$A37, FE, $M$5, FALSE) ->  | N37: =VLOOKUP($I$1&$A37, FE, $N$5, FALSE) ->  | O37: =VLOOKUP($I$1&$A37, FE, $O$5, FALSE) ->  | P37: =VLOOKUP($I$1&$A37, FE, $P$5, FALSE) ->  | Q37: =VLOOKUP($I$1&$A37, FE, $Q$5, FALSE) ->  | R37: =VLOOKUP($I$1&$A37, FE, $R$5, FALSE) ->  | S37: =VLOOKUP($I$1&$A37, FE, $S$5, FALSE) ->  | T37: =VLOOKUP($I$1&$A37, FE, $T$5, FALSE) ->  | U37: =VLOOKUP($I$1&$A37, FE, $U$5, FALSE) -> 
A38: 210 | C38: Instructional Subtotal - Instructional Leadership | D38: Calculates automatically
A39: 211 | C39: Salaries - Professional | D39: Salaries for instructional personnel in leadership roles. (Ex: principal/asst. principals (undistributed), curriculum directors (including SPED), department heads, technology/tnstructional coordinators, team leaders, network school administrators).
A40: 212 | C40: Salaries - Clerical | D40: Salaries for administrative support personnel who prepare, transcribe, systematize or preserve communications, records and transactions. (Ex: instructional school secretary and respective clerical support staff to the various instructional personnel in leadership roles).
A41: 213 | C41: Contracted Services | D41: Contracted professional services, including all related expenses covered by the contract. (Ex: contracted instructional consultant such as a reading specialist).
A42: 214 | C42: Supplies and Materials | D42: Materials and items of an expendable nature. Unit price of less than $5000. (Ex: white boards and computers for instructional leaders).
A43: 215 | C43: Travel and other expenses | D43: Travel and other expenses for all instructional leadership and their support staff, professional dues, subscriptions, memberships, teaching seminars and conferences.
A44: 220 | C44: Instructional Subtotal - Classroom and Specialist Teachers | D44: Calculates automatically
A45: 221 | C45: Salaries - Teachers, Classroom | D45: Salaries for teachers with primary responsibility for teaching designated curriculum to established "classes" of students in a group instruction setting. Also includes itinerant music, art, health, physical education teachers who travel from classroom-to-classroom. Teacher EPIMS codes: 2305 - Teacher, 2306 - Co Teacher, 2307 - Virtual Teacher, 2308 - Virtual Teacher – Co Teacher
A46: 222 | C46: Salaries - Teachers, Specialists | D46: Salaries for teachers/specialists who provide individualized instruction to students (1-on-1 or small groups) to supplement the services delivered by the students' classroom teachers, e.g. reading recovery, Title I reading specialists, special education, academic support, and language acquisitions services. NOT paraprofessionals. Teacher EPIMS codes: 2310 - Teacher - specialized content instruction
A47: 230 | C47: Instructional Subtotal - Other Teaching Services | D47: Calculates automatically
A48: 231 | C48: Salaries - Professional | D48: Salaries for Medical/Therapeutic service and other professionals. (Ex: OT, PT, Speech, Vision and other therapeutic services that are provided by licensed practitioners, librarians, media center directors, substitute teachers on payroll, extended-day teachers, MCAS administrator).
A49: 232 | C49: Salaries - Non-clerical Paraprofessionals | D49: Salaries for paraprofessionals hired to assist teachers/specialists with classroom instruction in the preparation or reproduction of instructional materials or classroom instruction. (Ex: American Sign Language Specialists, general teacher's assistant, after-school employees).
A50: 233 | C50: Salaries - Clerical | D50: Salaries for administrative support personnel who prepare, transcribe, systematize or preserve communications, records and transactions. (Ex: secretary, after-school employees).
A51: 234 | C51: Contracted Services | D51: Contracted professional services, including all related expenses covered by the contract, for other teaching services (Ex: non-payroll substitute teachers should be included here, contracted OT, PT, after-school contracted workers).
A52: 240 | C52: Instructional Subtotal - Professional Development | D52: Calculates automatically
A53: 241 | C53: Salaries - Professional | D53: Salaries for full-time or prorated salary of director/staff for professional development, including training for new teachers, new curriculum or instructional practices, master and mentor teachers, and coaches.
A54: 242 | C54: Contracted Services | D54: Contracted professional services, including all related expenses covered by the contract, for professional development (Ex: non-payroll substitute teachers, speakers and trainers).
A55: 243 | C55: Supplies and Materials | D55: Materials and items of an expendable nature. Unit price of less than $5000. (Ex: professional development handouts).
A56: 244 | C56: Travel and other expenses | D56: Travel and other expenses for staff such as dues, subscriptions and memberships. (Ex: professional development seminar, tuition reimbursements for teacher higher education coursework).
A57: 250 | C57: Instructional Subtotal - Guidance, Psychological & Testing | D57: Calculates automatically
A58: 251 | C58: Salaries - Professional | D58: Salaries for Guidance, Pyschological & Testing Professionals (Ex: director of guidance, school social workers, and counselors for guidance, truancy officer, school adjustment, higher education, career planning, and workplace learning placement; psychological evaluators and other licensed mental health professionals).
A59: 252 | C59: Salaries - Clerical | D59: Salaries for administrative support personnel who prepare, transcribe, systematize or preserve communications, records and transactions. (Ex: secretary).
A60: 253 | C60: Contracted Services | D60: Contracted professional services, including all related expenses covered by the contract, for guidance, truancy, psychological, and testing. (Ex: contracted guidance counselor).
A61: 254 | C61: Supplies and Materials | D61: Materials and items of an expendable nature. Unit price of less than $5000. (Ex: pyschological (not academic related) testing materials).
A62: 260 | C62: Instructional Subtotal - Materials, Equipment & Technology | D62: Calculates automatically
A63: 261 | C63: Textbooks & Related Media/Materials | D63: Expenditures for all textbooks and related media/materials (Ex: hard copy and online text books).
A64: 262 | C64: Other Instructional Materials | D64: Books, furniture and other materials, excluding textbooks but including online materials, for use in school libraries or classroom libraries (Ex: trade books, subscription to online magazine, periodicals, reference materials, student desks etc.).
A65: 263 | C65: Instructional Equipment | D65: Non-capitalized expenditures for purchase of science laboratory, physical education, equipment, irrespective of unit cost. Also includes lease/purchase of copy equipment primarily used to produce instructional materials. Does not include classroom technology equipment.
A66: 264 | C66: General Supplies | D66: Papers, pens, pencils, crayons, chalk, paint, toner printer cartridges, calculators, etc.
A67: 265 | C67: Other Instructional Services | D67: Cost for field trips, including admissions and transportation costs. Also, distance learning services.
A68: 266 | C68: Classroom Instructional Technology Hardware | D68: Computers, servers, networks, scanners, digital cameras, etc. used in the classroom or in computer laboratories.
A69: 267 | C69: Other Instructional Technology Hardware | D69: Computers, servers, networks, scanners, digital cameras, etc. for school libraries and media centers.
A70: 268a | C70: Classroom Instructional Software | D70: Software licenses used in the classroom or in computer laboratories. (Ex: Online textbook guide, student data communication software such as Edline, Powerschool, School Brains).
A71: 268b | C71: Other Instructional Software | D71: Software licenses used for school libraries and media centers.
A72: 269 | C72: Depreciation for Furniture, Equipment & Technology | D72: Annual depreciation expense for capitalized Instructional Materials, Equipment, & Technology.
A74: 300 | C74: Pupil Services | D74: Calculates automatically | F74: =VLOOKUP($I$1&$A74, FE, $F$5, FALSE) ->  | G74: =VLOOKUP($I$1&$A74, FE, $G$5, FALSE) ->  | H74: =VLOOKUP($I$1&$A74, FE, $H$5, FALSE) ->  | I74: =VLOOKUP($I$1&$A74, FE, $I$5, FALSE) ->  | J74: =VLOOKUP($I$1&$A74, FE, $J$5, FALSE) ->  | K74: =VLOOKUP($I$1&$A74, FE, $K$5, FALSE) ->  | L74: =VLOOKUP($I$1&$A74, FE, $L$5, FALSE) ->  | M74: =VLOOKUP($I$1&$A74, FE, $M$5, FALSE) ->  | N74: =VLOOKUP($I$1&$A74, FE, $N$5, FALSE) ->  | O74: =VLOOKUP($I$1&$A74, FE, $O$5, FALSE) ->  | P74: =VLOOKUP($I$1&$A74, FE, $P$5, FALSE) ->  | Q74: =VLOOKUP($I$1&$A74, FE, $Q$5, FALSE) ->  | R74: =VLOOKUP($I$1&$A74, FE, $R$5, FALSE) ->  | S74: =VLOOKUP($I$1&$A74, FE, $S$5, FALSE) ->  | T74: =VLOOKUP($I$1&$A74, FE, $T$5, FALSE) ->  | U74: =VLOOKUP($I$1&$A74, FE, $U$5, FALSE) -> 
A75: 310 | C75: Health Services | D75: Salaries for school physicians, school nurses, and clerical support staff. Expenses for school medical supplies, dues and subscriptions, and travel.
A76: 315 | C76: Health Services - Contracted | D76: Contracted services for school physicians, school nurses, clerical support staff and associated contracted expenses.
A77: 320 | C77: Athletic Services (including Transportation) | D77: Salaries for coaches, trainers and assistants. Expenses for athletic supplies, uniforms, travel expenses and transportation to and from athletic events.
A78: 325 | C78: Athletic Services (including Transportation) - Contracted | D78: Contracted services for coaches, trainers and assistants. Expenses for vendors providing athletic supplies, uniforms, and transportation to and from athletic events.
A79: 330 | C79: Food Services | D79: Salaries for cafeteria workers, food directors, and other food-related services for personell on payroll. Expenses for food, supplies, dues and subscriptions, and travel.
A80: 335 | C80: Food Services - Contracted | D80: Contracted services for cafeteria workers, food directors, and other food-related services for personell on payroll. Expenses for food, supplies, dues and subscriptions, and travel.
A81: 340 | C81: Student Transportation (to and from school) | D81: Salaries and related costs incurred by the school; Or, monetary fair market value of services provided by sending district. (Please note: More detail is required in the Schedule 7C worksheet for those seeking reimbursement).
A82: 345 | C82: Student Transportation (to and from school) - Contracted | D82: Contracted professional services and related costs incurred by the school; Or, monetary fair market value of services provided by sending district. (Please note: More detail is required in the Schedule 7C worksheet for those seeking reimbursement).
A83: 350 | C83: Depreciation of Transportation Vehicles | D83: Annual depreciation expense for capitalized transportation vehicles. (Please note: More detail is required in the Schedule 7C worksheet for those seeking state or district reimbursement for transportation costs).
A84: 360 | C84: Other Student Activities | D84: Salaries and contracted services for other student activities such as musical directors, drama coaches and other extra-curricular personnel. Expenses for supplies and materials, travel expenses and transportation to and from related events. Includes expenses related to extended-day programs.
A86: 400 | C86: Operation & Maintenance of Plant | D86: Calculates automatically | F86: =VLOOKUP($I$1&$A86, FE, $F$5, FALSE) ->  | G86: =VLOOKUP($I$1&$A86, FE, $G$5, FALSE) ->  | H86: =VLOOKUP($I$1&$A86, FE, $H$5, FALSE) ->  | I86: =VLOOKUP($I$1&$A86, FE, $I$5, FALSE) ->  | J86: =VLOOKUP($I$1&$A86, FE, $J$5, FALSE) ->  | K86: =VLOOKUP($I$1&$A86, FE, $K$5, FALSE) ->  | L86: =VLOOKUP($I$1&$A86, FE, $L$5, FALSE) ->  | M86: =VLOOKUP($I$1&$A86, FE, $M$5, FALSE) ->  | N86: =VLOOKUP($I$1&$A86, FE, $N$5, FALSE) ->  | O86: =VLOOKUP($I$1&$A86, FE, $O$5, FALSE) ->  | P86: =VLOOKUP($I$1&$A86, FE, $P$5, FALSE) ->  | Q86: =VLOOKUP($I$1&$A86, FE, $Q$5, FALSE) ->  | R86: =VLOOKUP($I$1&$A86, FE, $R$5, FALSE) ->  | S86: =VLOOKUP($I$1&$A86, FE, $S$5, FALSE) ->  | T86: =VLOOKUP($I$1&$A86, FE, $T$5, FALSE) ->  | U86: =VLOOKUP($I$1&$A86, FE, $U$5, FALSE) -> 
A87: 410 | C87: Operation & Maintenance of Buildings and Grounds | D87: Salaries and contracted services for plant managers, custodians, security officers, maintenance, etc. Expenses for supplies, travel expenses and professional development. | F87: =VLOOKUP($I$1&$A87, FE, $F$5, FALSE) ->  | G87: =VLOOKUP($I$1&$A87, FE, $G$5, FALSE) ->  | H87: =VLOOKUP($I$1&$A87, FE, $H$5, FALSE) ->  | I87: =VLOOKUP($I$1&$A87, FE, $I$5, FALSE) ->  | J87: =VLOOKUP($I$1&$A87, FE, $J$5, FALSE) ->  | K87: =VLOOKUP($I$1&$A87, FE, $K$5, FALSE) ->  | L87: =VLOOKUP($I$1&$A87, FE, $L$5, FALSE) ->  | M87: =VLOOKUP($I$1&$A87, FE, $M$5, FALSE) ->  | N87: =VLOOKUP($I$1&$A87, FE, $N$5, FALSE) ->  | O87: =VLOOKUP($I$1&$A87, FE, $O$5, FALSE) ->  | P87: =VLOOKUP($I$1&$A87, FE, $P$5, FALSE) ->  | Q87: =VLOOKUP($I$1&$A87, FE, $Q$5, FALSE) ->  | R87: =VLOOKUP($I$1&$A87, FE, $R$5, FALSE) ->  | S87: =VLOOKUP($I$1&$A87, FE, $S$5, FALSE) ->  | T87: =VLOOKUP($I$1&$A87, FE, $T$5, FALSE) ->  | U87: =VLOOKUP($I$1&$A87, FE, $U$5, FALSE) -> 
A88: 420 | C88: Utilities | D88: Cost of fuel, oil, electricity, gas, water, trash, waste disposal, telephone services, etc. | F88: =VLOOKUP($I$1&$A88, FE, $F$5, FALSE) ->  | G88: =VLOOKUP($I$1&$A88, FE, $G$5, FALSE) ->  | H88: =VLOOKUP($I$1&$A88, FE, $H$5, FALSE) ->  | I88: =VLOOKUP($I$1&$A88, FE, $I$5, FALSE) ->  | J88: =VLOOKUP($I$1&$A88, FE, $J$5, FALSE) ->  | K88: =VLOOKUP($I$1&$A88, FE, $K$5, FALSE) ->  | L88: =VLOOKUP($I$1&$A88, FE, $L$5, FALSE) ->  | M88: =VLOOKUP($I$1&$A88, FE, $M$5, FALSE) ->  | N88: =VLOOKUP($I$1&$A88, FE, $N$5, FALSE) ->  | O88: =VLOOKUP($I$1&$A88, FE, $O$5, FALSE) ->  | P88: =VLOOKUP($I$1&$A88, FE, $P$5, FALSE) ->  | Q88: =VLOOKUP($I$1&$A88, FE, $Q$5, FALSE) ->  | R88: =VLOOKUP($I$1&$A88, FE, $R$5, FALSE) ->  | S88: =VLOOKUP($I$1&$A88, FE, $S$5, FALSE) ->  | T88: =VLOOKUP($I$1&$A88, FE, $T$5, FALSE) ->  | U88: =VLOOKUP($I$1&$A88, FE, $U$5, FALSE) -> 
A89: 430 | C89: Maintenance of Equipment | D89: Equipment parts and repair, materials, and tools, contracted services, including vehicles. | F89: =VLOOKUP($I$1&$A89, FE, $F$5, FALSE) ->  | G89: =VLOOKUP($I$1&$A89, FE, $G$5, FALSE) ->  | H89: =VLOOKUP($I$1&$A89, FE, $H$5, FALSE) ->  | I89: =VLOOKUP($I$1&$A89, FE, $I$5, FALSE) ->  | J89: =VLOOKUP($I$1&$A89, FE, $J$5, FALSE) ->  | K89: =VLOOKUP($I$1&$A89, FE, $K$5, FALSE) ->  | L89: =VLOOKUP($I$1&$A89, FE, $L$5, FALSE) ->  | M89: =VLOOKUP($I$1&$A89, FE, $M$5, FALSE) ->  | N89: =VLOOKUP($I$1&$A89, FE, $N$5, FALSE) ->  | O89: =VLOOKUP($I$1&$A89, FE, $O$5, FALSE) ->  | P89: =VLOOKUP($I$1&$A89, FE, $P$5, FALSE) ->  | Q89: =VLOOKUP($I$1&$A89, FE, $Q$5, FALSE) ->  | R89: =VLOOKUP($I$1&$A89, FE, $R$5, FALSE) ->  | S89: =VLOOKUP($I$1&$A89, FE, $S$5, FALSE) ->  | T89: =VLOOKUP($I$1&$A89, FE, $T$5, FALSE) ->  | U89: =VLOOKUP($I$1&$A89, FE, $U$5, FALSE) -> 
A90: 440 | C90: Networking and Telecommunications | D90: Costs for installing and maintaining school technology infrastructure, including wiring, file servers, security systems, etc. | F90: =VLOOKUP($I$1&$A90, FE, $F$5, FALSE) ->  | G90: =VLOOKUP($I$1&$A90, FE, $G$5, FALSE) ->  | H90: =VLOOKUP($I$1&$A90, FE, $H$5, FALSE) ->  | I90: =VLOOKUP($I$1&$A90, FE, $I$5, FALSE) ->  | J90: =VLOOKUP($I$1&$A90, FE, $J$5, FALSE) ->  | K90: =VLOOKUP($I$1&$A90, FE, $K$5, FALSE) ->  | L90: =VLOOKUP($I$1&$A90, FE, $L$5, FALSE) ->  | M90: =VLOOKUP($I$1&$A90, FE, $M$5, FALSE) ->  | N90: =VLOOKUP($I$1&$A90, FE, $N$5, FALSE) ->  | O90: =VLOOKUP($I$1&$A90, FE, $O$5, FALSE) ->  | P90: =VLOOKUP($I$1&$A90, FE, $P$5, FALSE) ->  | Q90: =VLOOKUP($I$1&$A90, FE, $Q$5, FALSE) ->  | R90: =VLOOKUP($I$1&$A90, FE, $R$5, FALSE) ->  | S90: =VLOOKUP($I$1&$A90, FE, $S$5, FALSE) ->  | T90: =VLOOKUP($I$1&$A90, FE, $T$5, FALSE) ->  | U90: =VLOOKUP($I$1&$A90, FE, $U$5, FALSE) -> 
A92: 500 | C92: Fixed Charges | D92: Calculates automatically | F92: =VLOOKUP($I$1&$A92, FE, $F$5, FALSE) ->  | G92: =VLOOKUP($I$1&$A92, FE, $G$5, FALSE) ->  | H92: =VLOOKUP($I$1&$A92, FE, $H$5, FALSE) ->  | I92: =VLOOKUP($I$1&$A92, FE, $I$5, FALSE) ->  | J92: =VLOOKUP($I$1&$A92, FE, $J$5, FALSE) ->  | K92: =VLOOKUP($I$1&$A92, FE, $K$5, FALSE) ->  | L92: =VLOOKUP($I$1&$A92, FE, $L$5, FALSE) ->  | M92: =VLOOKUP($I$1&$A92, FE, $M$5, FALSE) ->  | N92: =VLOOKUP($I$1&$A92, FE, $N$5, FALSE) ->  | O92: =VLOOKUP($I$1&$A92, FE, $O$5, FALSE) ->  | P92: =VLOOKUP($I$1&$A92, FE, $P$5, FALSE) ->  | Q92: =VLOOKUP($I$1&$A92, FE, $Q$5, FALSE) ->  | R92: =VLOOKUP($I$1&$A92, FE, $R$5, FALSE) ->  | S92: =VLOOKUP($I$1&$A92, FE, $S$5, FALSE) ->  | T92: =VLOOKUP($I$1&$A92, FE, $T$5, FALSE) ->  | U92: =VLOOKUP($I$1&$A92, FE, $U$5, FALSE) -> 
A93: 510 | C93: Employee Retirement & Taxes | D93: Payroll taxes including contributions to Medicaid, social security, pension plans, and other employee retirement systems, school's portion, for non-MTRS employees; and Federal grant MTRS surcharge. Include MTRS on-behalf pension recorded expense according to GASB 68.
A94: 520 | C94: Fringe Benefits | D94: Employee unemployment, health, and life insurance premiums or payments, and worker's compensation or other benefits, paid by the school for the benefit of the employee.
A95: 530 | C95: Insurance (non-employee) | D95: Insurance premiums for property, fire, liability, fidelity bonds; self-insurance costs.
A96: 550 | C96: Rental/Lease of Equipment | D96: Annual operating lease/rental costs of equipment.
A97: 560 | C97: Short-Term Interest | D97: Interest costs for short-term (less than one year) lines of credit that are needed to sustain cash flow for ongoing operations.
A99: 600 | C99: Community Services | D99: Calculates automatically | F99: =VLOOKUP($I$1&$A99, FE, $F$5, FALSE) ->  | G99: =VLOOKUP($I$1&$A99, FE, $G$5, FALSE) ->  | H99: =VLOOKUP($I$1&$A99, FE, $H$5, FALSE) ->  | I99: =VLOOKUP($I$1&$A99, FE, $I$5, FALSE) ->  | J99: =VLOOKUP($I$1&$A99, FE, $J$5, FALSE) ->  | K99: =VLOOKUP($I$1&$A99, FE, $K$5, FALSE) ->  | L99: =VLOOKUP($I$1&$A99, FE, $L$5, FALSE) ->  | M99: =VLOOKUP($I$1&$A99, FE, $M$5, FALSE) ->  | N99: =VLOOKUP($I$1&$A99, FE, $N$5, FALSE) ->  | O99: =VLOOKUP($I$1&$A99, FE, $O$5, FALSE) ->  | P99: =VLOOKUP($I$1&$A99, FE, $P$5, FALSE) ->  | Q99: =VLOOKUP($I$1&$A99, FE, $Q$5, FALSE) ->  | R99: =VLOOKUP($I$1&$A99, FE, $R$5, FALSE) ->  | S99: =VLOOKUP($I$1&$A99, FE, $S$5, FALSE) ->  | T99: =VLOOKUP($I$1&$A99, FE, $T$5, FALSE) ->  | U99: =VLOOKUP($I$1&$A99, FE, $U$5, FALSE) -> 
A100: 610 | C100: Dissemination Activities | D100: Activities designed to disseminate the school's best practices to external groups, including presentations at or hosting of conferences, etc. | F100: =VLOOKUP($I$1&$A100, FE, $F$5, FALSE) ->  | G100: =VLOOKUP($I$1&$A100, FE, $G$5, FALSE) ->  | H100: =VLOOKUP($I$1&$A100, FE, $H$5, FALSE) ->  | I100: =VLOOKUP($I$1&$A100, FE, $I$5, FALSE) ->  | J100: =VLOOKUP($I$1&$A100, FE, $J$5, FALSE) ->  | K100: =VLOOKUP($I$1&$A100, FE, $K$5, FALSE) ->  | L100: =VLOOKUP($I$1&$A100, FE, $L$5, FALSE) ->  | M100: =VLOOKUP($I$1&$A100, FE, $M$5, FALSE) ->  | N100: =VLOOKUP($I$1&$A100, FE, $N$5, FALSE) ->  | O100: =VLOOKUP($I$1&$A100, FE, $O$5, FALSE) ->  | P100: =VLOOKUP($I$1&$A100, FE, $P$5, FALSE) ->  | Q100: =VLOOKUP($I$1&$A100, FE, $Q$5, FALSE) ->  | R100: =VLOOKUP($I$1&$A100, FE, $R$5, FALSE) ->  | S100: =VLOOKUP($I$1&$A100, FE, $S$5, FALSE) ->  | T100: =VLOOKUP($I$1&$A100, FE, $T$5, FALSE) ->  | U100: =VLOOKUP($I$1&$A100, FE, $U$5, FALSE) -> 
A101: 620 | C101: Civic Activities | D101: Expenses associated with civic activities (Ex: fundraising activities for a charitable agency, community service). | F101: =VLOOKUP($I$1&$A101, FE, $F$5, FALSE) ->  | G101: =VLOOKUP($I$1&$A101, FE, $G$5, FALSE) ->  | H101: =VLOOKUP($I$1&$A101, FE, $H$5, FALSE) ->  | I101: =VLOOKUP($I$1&$A101, FE, $I$5, FALSE) ->  | J101: =VLOOKUP($I$1&$A101, FE, $J$5, FALSE) ->  | K101: =VLOOKUP($I$1&$A101, FE, $K$5, FALSE) ->  | L101: =VLOOKUP($I$1&$A101, FE, $L$5, FALSE) ->  | M101: =VLOOKUP($I$1&$A101, FE, $M$5, FALSE) ->  | N101: =VLOOKUP($I$1&$A101, FE, $N$5, FALSE) ->  | O101: =VLOOKUP($I$1&$A101, FE, $O$5, FALSE) ->  | P101: =VLOOKUP($I$1&$A101, FE, $P$5, FALSE) ->  | Q101: =VLOOKUP($I$1&$A101, FE, $Q$5, FALSE) ->  | R101: =VLOOKUP($I$1&$A101, FE, $R$5, FALSE) ->  | S101: =VLOOKUP($I$1&$A101, FE, $S$5, FALSE) ->  | T101: =VLOOKUP($I$1&$A101, FE, $T$5, FALSE) ->  | U101: =VLOOKUP($I$1&$A101, FE, $U$5, FALSE) -> 
A103: 700 | C103: Non-Operating / Capital Facilities Costs | D103: Calculates automatically | F103: =VLOOKUP($I$1&$A103, FE, $F$5, FALSE) ->  | G103: =VLOOKUP($I$1&$A103, FE, $G$5, FALSE) ->  | H103: =VLOOKUP($I$1&$A103, FE, $H$5, FALSE) ->  | I103: =VLOOKUP($I$1&$A103, FE, $I$5, FALSE) ->  | J103: =VLOOKUP($I$1&$A103, FE, $J$5, FALSE) ->  | K103: =VLOOKUP($I$1&$A103, FE, $K$5, FALSE) ->  | L103: =VLOOKUP($I$1&$A103, FE, $L$5, FALSE) ->  | M103: =VLOOKUP($I$1&$A103, FE, $M$5, FALSE) ->  | N103: =VLOOKUP($I$1&$A103, FE, $N$5, FALSE) ->  | O103: =VLOOKUP($I$1&$A103, FE, $O$5, FALSE) ->  | P103: =VLOOKUP($I$1&$A103, FE, $P$5, FALSE) ->  | Q103: =VLOOKUP($I$1&$A103, FE, $Q$5, FALSE) ->  | R103: =VLOOKUP($I$1&$A103, FE, $R$5, FALSE) ->  | S103: =VLOOKUP($I$1&$A103, FE, $S$5, FALSE) ->  | T103: =VLOOKUP($I$1&$A103, FE, $T$5, FALSE) ->  | U103: =VLOOKUP($I$1&$A103, FE, $U$5, FALSE) -> 
A104: 720 | C104: Long-Term Interest, facilities related | D104: Annual debt service costs for long-term financing (greater than one year) related to capital facilities costs.
A105: 725 | C105: Long-Term Interest, non-facilities related | D105: Annual debt service costs for long-term financing (greater than one year) not related to capital facilities costs.
A106: 730 | C106: Other costs related to capital facilities acquisition | D106: Expenses (Ex: architectural design, closing costs, site exploration, etc.) related to capital facilities acquisition or lease.
A107: 740 | C107: Rental/Lease of Buildings & Grounds | D107: Annual operating lease/rental costs of Building & Grounds.
A108: 750 | C108: Depreciation of Equipment, Building, & Grounds | D108: Annual depreciation expense for capitalized Equipment, Networking and Telecommunications, Building, & Grounds.
A109: 760 | C109: Bad debt / loss on disposal of assets | D109: Write-off costs for bad debt or loss on disposal of assets.
A110: 770 | C110: Other non-operating | D110: Other non-operating expenses.
A112: 800 | C112: TOTALS | D112: Calculates automatically | F112: =VLOOKUP($I$1&$A112, FE, $F$5, FALSE) ->  | G112: =VLOOKUP($I$1&$A112, FE, $G$5, FALSE) ->  | H112: =VLOOKUP($I$1&$A112, FE, $H$5, FALSE) ->  | I112: =VLOOKUP($I$1&$A112, FE, $I$5, FALSE) ->  | J112: =VLOOKUP($I$1&$A112, FE, $J$5, FALSE) ->  | K112: =VLOOKUP($I$1&$A112, FE, $K$5, FALSE) ->  | L112: =VLOOKUP($I$1&$A112, FE, $L$5, FALSE) ->  | M112: =VLOOKUP($I$1&$A112, FE, $M$5, FALSE) ->  | N112: =VLOOKUP($I$1&$A112, FE, $N$5, FALSE) ->  | O112: =VLOOKUP($I$1&$A112, FE, $O$5, FALSE) ->  | P112: =VLOOKUP($I$1&$A112, FE, $P$5, FALSE) ->  | Q112: =VLOOKUP($I$1&$A112, FE, $Q$5, FALSE) ->  | R112: =VLOOKUP($I$1&$A112, FE, $R$5, FALSE) ->  | S112: =VLOOKUP($I$1&$A112, FE, $S$5, FALSE) ->  | T112: =VLOOKUP($I$1&$A112, FE, $T$5, FALSE) ->  | U112: =VLOOKUP($I$1&$A112, FE, $U$5, FALSE) -> 
A114: 910 | C114: Reference: Capitalized Expenditures | D114: Reference line for cash expenditures that are not expensed in the fiscal year | F114: =VLOOKUP($I$1&$A114, FE, $F$5, FALSE) ->  | G114: =VLOOKUP($I$1&$A114, FE, $G$5, FALSE) ->  | H114: =VLOOKUP($I$1&$A114, FE, $H$5, FALSE) ->  | I114: =VLOOKUP($I$1&$A114, FE, $I$5, FALSE) ->  | J114: =VLOOKUP($I$1&$A114, FE, $J$5, FALSE) ->  | K114: =VLOOKUP($I$1&$A114, FE, $K$5, FALSE) ->  | L114: =VLOOKUP($I$1&$A114, FE, $L$5, FALSE) ->  | M114: =VLOOKUP($I$1&$A114, FE, $M$5, FALSE) ->  | N114: =VLOOKUP($I$1&$A114, FE, $N$5, FALSE) ->  | O114: =VLOOKUP($I$1&$A114, FE, $O$5, FALSE) ->  | P114: =VLOOKUP($I$1&$A114, FE, $P$5, FALSE) ->  | Q114: =VLOOKUP($I$1&$A114, FE, $Q$5, FALSE) ->  | R114: =VLOOKUP($I$1&$A114, FE, $R$5, FALSE) ->  | S114: =VLOOKUP($I$1&$A114, FE, $S$5, FALSE) ->  | T114: =VLOOKUP($I$1&$A114, FE, $T$5, FALSE) ->  | U114: =VLOOKUP($I$1&$A114, FE, $U$5, FALSE) -> 
A115: 920 | C115: Reference: Deferrals/Carryovers | D115: Reference line for cash expenditures that are not expensed in the fiscal year | F115: =VLOOKUP($I$1&$A115, FE, $F$5, FALSE) ->  | G115: =VLOOKUP($I$1&$A115, FE, $G$5, FALSE) ->  | H115: =VLOOKUP($I$1&$A115, FE, $H$5, FALSE) ->  | I115: =VLOOKUP($I$1&$A115, FE, $I$5, FALSE) ->  | J115: =VLOOKUP($I$1&$A115, FE, $J$5, FALSE) ->  | K115: =VLOOKUP($I$1&$A115, FE, $K$5, FALSE) ->  | L115: =VLOOKUP($I$1&$A115, FE, $L$5, FALSE) ->  | M115: =VLOOKUP($I$1&$A115, FE, $M$5, FALSE) ->  | N115: =VLOOKUP($I$1&$A115, FE, $N$5, FALSE) ->  | O115: =VLOOKUP($I$1&$A115, FE, $O$5, FALSE) ->  | P115: =VLOOKUP($I$1&$A115, FE, $P$5, FALSE) ->  | Q115: =VLOOKUP($I$1&$A115, FE, $Q$5, FALSE) ->  | R115: =VLOOKUP($I$1&$A115, FE, $R$5, FALSE) ->  | S115: =VLOOKUP($I$1&$A115, FE, $S$5, FALSE) ->  | T115: =VLOOKUP($I$1&$A115, FE, $T$5, FALSE) ->  | U115: =VLOOKUP($I$1&$A115, FE, $U$5, FALSE) -> 
A116: 900 | C116: Reference: Totals | H116: =SUM(H112,H114,H115) ->  | I116: =SUM(I112,I114,I115) -> 

Sheet 4. EXPPP
A1: Massachusetts Department of Elementary and Secondary Education
A2: FY22 Charter School Expenditures Per Pupil, All Funds, Summary By Function
A3: =Index!B3 -> Last Updated: May 2023
B4: Return to Index | F4: ----------------------------- Operating Expenditures Per Pupil In The Charter School ------------------------------------------- | S4: --- Exp pp Facilities Costs2 ---
E5: fte pupils | G5: instruc- | H5: classroom & | I5: other | J5: profes- | K5: instructn'l | L5: guidance, | N5: operations | O5: insurance, | P5: total operating | Q5: total operating | S5: Rental/Lease of | T5: Capital
D6: location | E6: at the | F6: admini- | G6: tional | H6: specialist | I6: teaching | J6: sional dev- | K6: materials, | L6: counseling | M6: pupil | N6: and | O6: retirement | P6: expenditures | Q6: expenditures | S6: Building & | T6: Facilities
A7: LEA | B7: Charter School | C7: type | D7: in FY14 | E7: charter | F7: stration | G7: leadership | H7: teachers | I7: services | J7: elopment | K7: equip & tech | L7: & testing | M7: services | N7: maintenance | O7: & other | P7: aggregate | Q7: per pupil | S7: Grounds | T7: Expenses3
F8: 100 | G8: 210 | H8: 220 | I8: 230 | J8: 240 | K8: 260 | L8: 250 | M8: 300 | N8: 400 | O8: 500 | S8: 540 | T8: 720
A9: 445 | B9: Abby Kelley Foster Charter Public School | C9: =VLOOKUP(A9, TYPE, 3, FALSE) -> C | D9: =VLOOKUP(A9, FACTS, 6, FALSE) -> Worcester | E9: =VLOOKUP(A9, FTE, 2, FALSE) -> 1422.95 | F9: =VLOOKUP($A9&100, FE, 21, FALSE)/$E9 -> 1507.731825 | G9: =VLOOKUP($A9&210, FE, 21, FALSE)/$E9 -> 1006.289047 | H9: =VLOOKUP($A9&220, FE, 21, FALSE)/$E9 -> 5738.355529 | I9: =VLOOKUP($A9&230, FE, 21, FALSE)/$E9 -> 912.4579219 | J9: =VLOOKUP($A9&240, FE, 21, FALSE)/$E9 -> 57.10390386 | K9: =VLOOKUP($A9&260, FE, 21, FALSE)/$E9 -> 637.9718191 | L9: =VLOOKUP($A9&250, FE, 21, FALSE)/$E9 -> 478.6106328 | M9: =VLOOKUP($A9&300, FE, 21, FALSE)/$E9 -> 1968.499245 | N9: =VLOOKUP($A9&400, FE, 21, FALSE)/$E9 -> 1562.71408 | O9: =VLOOKUP($A9&500, FE, 21, FALSE)/$E9 -> 3559.077972 | P9: =VLOOKUP($A9&800,FE, 21,FALSE)-VLOOKUP($A9&700,FE, 21,FALSE)-VLOOKUP($A9&600,FE, 21,FALSE) -> 24800328 | Q9: =SUM(F9:O9) -> 17428.81198 | S9: =VLOOKUP($A9&740, FE, 21, FALSE)/$E9 -> 0 | T9: =(VLOOKUP($A9&700, FE, 21, FALSE)-VLOOKUP($A9&740, FE, 21, FALSE)-VLOOKUP($A9&725, FE, 21, FALSE))/$E9 -> 1777.22478
A10: 412 | B10: Academy of the Pacific Rim Charter Public School | C10: C | D10: Boston | E10: 504.26 | F10: 2300.059473 | G10: 2410.756989 | H10: 8577.358178 | I10: 1016.775239 | J10: 282.932277 | K10: 1619.600484 | L10: 1244.852525 | M10: 2737.498734 | N10: 1329.825472 | O10: 4363.020109 | P10: 13051599.95 | Q10: =SUM(F10:O10) -> 25882.67948 | S10: 230.2702376 | T10: 2125.216753
A11: 430 | B11: Advanced Math and Science Academy Charter School | C11: C | D11: Marlborough | E11: 965.27 | F11: 2079.189646 | G11: 1001.165477 | H11: 5748.284936 | I11: 298.6055715 | J11: 659.6703513 | K11: 953.6305904 | L11: 420.9837662 | M11: 1810.952376 | N11: 908.467061 | O11: 3628.722098 | P11: 16901560.97 | Q11: 17509.67187 | S11: 416.1913247 | T11: 850.455313
A12: 409 | B12: Alma del Mar Charter School | C12: C | D12: New Bedford | E12: 936.09 | F12: 1068.869446 | G12: 994.4139987 | H12: 5405.387303 | I12: 2196.758859 | J12: 1457.904689 | K12: 1116.966317 | L12: 318.9030969 | M12: 3728.597678 | N12: 1298.164706 | O12: 2693.188689 | P12: 18983114 | Q12: 20279.15478 | S12: 2115.711096 | T12: 487.7511778
A13: 3509 | B13: Argosy Collegiate Charter School | C13: C | D13: Fall River | E13: 545.11 | F13: 2306.954816 | G13: 1588.451505 | H13: 6641.151294 | I13: 757.658546 | J13: 145.4795546 | K13: 915.8103685 | L13: 781.6181138 | M13: 2067.628772 | N13: 1387.408927 | O13: 2921.492139 | P13: 10637087.95 | Q13: 19513.65404 | S13: 2044.209205 | T13: 200.6081341
A14: 491 | B14: Atlantis Charter School | C14: C | D14: Fall River | E14: 1285.95 | F14: 1483.599673 | G14: 768.5570979 | H14: 4173.41654 | I14: 1382.333683 | J14: 76.97111085 | K14: 615.5044908 | L14: 1118.807885 | M14: 1638.940861 | N14: 1035.76111 | O14: 3351.689412 | P14: 20119436 | Q14: 15645.58187 | S14: 91.65130837 | T14: 1679.123605
A15: 3502 | B15: Baystate Academy Charter Public School | C15: C | D15: Springfield | E15: 442.2 | F15: 1557.450249 | G15: 1198.860063 | H15: 5443.251289 | I15: 1387.897512 | J15: 731.9552465 | K15: 740.8986884 | L15: 1713.175825 | M15: 3470.756174 | N15: 1224.903211 | O15: 3271.612867 | P15: 9171564.57 | Q15: 20740.76113 | S15: 892.3834464 | T15: 283.1470149
A16: 420 | B16: Benjamin Banneker Charter Public School | C16: C | D16: Cambridge | E16: 329.03 | F16: 4503.063915 | G16: 2017.929672 | H16: 6251.460019 | I16: 2960.613409 | J16: 253.3808467 | K16: 1255.259338 | L16: 258.7068049 | M16: 3755.036927 | N16: 1075.425432 | O16: 4315.243686 | P16: 8767372.88 | Q16: 26646.12005 | S16: 113.5051515 | T16: 2077.059113
A17: 447 | B17: Benjamin Franklin Classical Charter Public School | C17: C | D17: Franklin | E17: 819.16 | F17: 1342.775697 | G17: 824.0062991 | H17: 5521.771083 | I17: 1615.974901 | J17: 107.5832926 | K17: 390.5171029 | L17: 291.2385859 | M17: 1292.509314 | N17: 1159.665694 | O17: 3094.331742 | P17: 12811968.53 | Q17: 15640.37371 | S17: 0 | T17: 2983.415926
A18: 414 | B18: Berkshire Arts and Technology Charter Public School | C18: C | D18: Adams | E18: 361.9 | F18: 2819.543493 | G18: 2022.981376 | H18: 6180.638436 | I18: 1057.12509 | J18: 629.0382702 | K18: 1025.701382 | L18: 851.6779773 | M18: 2618.332689 | N18: 1342.521249 | O18: 3583.618652 | P18: 8009273.54 | Q18: 22131.17861 | S18: 0 | T18: -822.6840287
A19: 449 | B19: Boston Collegiate Charter School | C19: C | D19: Boston | E19: 702.12 | F19: 2982.165485 | G19: 2001.113599 | H19: 7588.897838 | I19: 788.4493819 | J19: 199.4841195 | K19: 1036.152723 | L19: 1717.390745 | M19: 2123.341808 | N19: 1560.017048 | O19: 4789.93128 | P19: 17403409.14 | Q19: 24786.94403 | S19: 545.8024412 | T19: 171.4635248
A20: 424 | B20: Boston Day and Evening Academy Charter School | C20: HM | D20: Boston | E20: 340.6864841 | F20: 3226.448072 | G20: 1968.741765 | H20: 9299.715626 | I20: 1805.863363 | J20: 371.464252 | K20: 484.7121846 | L20: 997.6353505 | M20: 1631.683486 | N20: 1800.341688 | O20: 3781.908793 | P20: 8642710.04 | Q20: 25368.51458 | S20: 0 | T20: 0
A21: 411 | B21: Boston Green Academy Horace Mann Charter School | C21: HM | D21: Boston | E21: 464.9055556 | F21: 2096.554985 | G21: 1804.337533 | H21: 9276.31681 | I21: 2268.909739 | J21: 244.2926066 | K21: 468.4005115 | L21: 625.6888405 | M21: 1443.496388 | N21: 1538.866231 | O21: 3407.44502 | P21: 10773864.84 | Q21: 23174.30866 | S21: 0 | T21: 0
A22: 416 | B22: Boston Preparatory Charter Public School | C22: C | D22: Boston | E22: 682.04 | F22: 2270.154375 | G22: 2847.040775 | H22: 6888.660592 | I22: 479.2935312 | J22: 266.6088792 | K22: 1663.970236 | L22: 1258.996437 | M22: 4599.944563 | N22: 2315.470148 | O22: 5028.699197 | P22: 18837152.77 | Q22: 27618.83873 | S22: 3672.255293 | T22: 39.72934139
A23: 481 | B23: Boston Renaissance Charter Public School | C23: C | D23: Boston | E23: 935.81 | F23: 2963.186972 | G23: 851.0413439 | H23: 6961.590494 | I23: 2502.481273 | J23: 596.1755057 | K23: 557.8098118 | L23: 566.1181223 | M23: 2544.185251 | N23: 1257.430461 | O23: 5121.465896 | P23: 22385965 | Q23: 23921.48513 | S23: 0 | T23: 1625.747748
A24: 417 | B24: Bridge Boston Charter School | C24: C | D24: Boston | E24: 332.35 | F24: 6618.804273 | G24: 1768.364856 | H24: 8159.608124 | I24: 5276.190071 | J24: 292.4724236 | K24: 1401.112291 | L24: 829.6506996 | M24: 2985.154777 | N24: 1461.897578 | O24: 4844.18983 | P24: 11179404.82 | Q24: 33637.44492 | S24: 95.657289 | T24: 3438.852234
A25: 428 | B25: Brooke Charter School | C25: C | D25: Boston | E25: 2149.97 | F25: 1135.735415 | G25: 2287.327605 | H25: 7027.175728 | I25: 960.863626 | J25: 39.64534389 | K25: 1787.55545 | L25: 586.4852626 | M25: 2379.564161 | N25: 2211.503049 | O25: 3346.942218 | P25: 46789362.51 | Q25: 21762.79786 | S25: 101.8861426 | T25: 2207.019247
A26: 432 | B26: Cape Cod Lighthouse Charter School | C26: C | D26: Harwich | E26: 249.25 | F26: 1468.930792 | G26: 850.0581745 | H26: 8388.489468 | I26: 2496.099659 | J26: 32.49749248 | K26: 99.92778335 | L26: 602.4252758 | M26: 955.9277834 | N26: 426.7199599 | O26: 4292.300903 | P26: 4888634.29 | Q26: 19613.37729 | S26: 0 | T26: 928.8184554
A27: 418 | B27: Christa McAuliffe Charter School | C27: C | D27: Framingham | E27: 383.83 | F27: 2827.269885 | G27: 1289.260871 | H27: 6928.49178 | I27: 518.6332491 | J27: 128.1947737 | K27: 505.7238882 | L27: 447.9300732 | M27: 2449.495871 | N27: 875.0957455 | O27: 3826.798322 | P27: 7598642 | Q27: 19796.89446 | S27: 1431.584295 | T27: 221.4027043
A28: 437 | B28: City on a Hill Charter Public School | C28: C | D28: Boston | E28: 217.96 | F28: 3988.242246 | G28: 3581.383511 | H28: 6625.772435 | I28: 2683.855662 | J28: 420.001147 | K28: 802.8802074 | L28: 616.2616535 | M28: 2898.444852 | N28: 2509.143834 | O28: 6139.035924 | P28: 6596564.08 | Q28: 30265.02147 | S28: 1818.271426 | T28: 338.512984
A29: 438 | B29: Codman Academy Charter Public School | C29: C | D29: Boston | E29: 341.28 | F29: 2710.501699 | G29: 3681.453105 | H29: 10390.85546 | I29: 2007.779419 | J29: 595.9429794 | K29: 1816.645775 | L29: 1087.619755 | M29: 3033.515852 | N29: 1181.217417 | O29: 5338.974244 | P29: 10867892.91 | Q29: 31844.5057 | S29: 917.995429 | T29: 1156.877051
A30: 3503 | B30: Collegiate Charter School of Lowell | C30: C | D30: Lowell | E30: 1093.75 | F30: 1012.127296 | G30: 2311.538761 | H30: 2758.013751 | I30: 1081.749056 | J30: 38.25992229 | K30: 2431.24939 | L30: 90.45314743 | M30: 1393.039067 | N30: 853.8678217 | O30: 1601.457911 | P30: 14844108.26 | Q30: 13571.75612 | S30: 0 | T30: 2221.577143
A31: 436 | B31: Community Charter School of Cambridge | C31: C | D31: =VLOOKUP(A31, FACTS, 6, FALSE) -> Cambridge | E31: 288.1 | F31: 4502.281847 | G31: 1850.558834 | H31: 9684.744255 | I31: 553.7016661 | J31: 518.4846928 | K31: 920.6484901 | L31: 1268.590767 | M31: 1286.78327 | N31: 1845.779243 | O31: 5053.144741 | P31: 7918347.2 | Q31: 27484.71781 | S31: 5359.239847 | T31: 1142.238806
A32: 426 | B32: Community Day Charter Public School - Gateway | C32: C | D32: Lawrence | E32: 398.59 | F32: 1878.943275 | G32: 1844.719035 | H32: 5599.395369 | I32: 1260.664166 | J32: 17.2508091 | K32: 407.559146 | L32: 644.1330691 | M32: 2052.693244 | N32: 785.9304047 | O32: 3235.595474 | P32: 7065758.69 | Q32: 17726.88399 | S32: 1006.427657 | T32: 196.6030257
A33: 440 | B33: Community Day Charter Public School - Prospect | C33: C | D33: Lawrence | E33: 398.53 | F33: 1886.071312 | G33: 1882.779214 | H33: 6221.965724 | I33: 1299.70893 | J33: 171.2669059 | K33: 510.3831581 | L33: 581.1135172 | M33: 2574.393396 | N33: 985.8153715 | O33: 3817.777834 | P33: 7943211.17 | Q33: 19931.27536 | S33: 1108.99054 | T33: 240.6293127
A34: 431 | B34: Community Day Charter Public School - R. Kingman Webster | C34: C | D34: Lawrence | E34: 394.77 | F34: 1894.498062 | G34: 1737.282975 | H34: 4977.136054 | I34: 969.3568407 | J34: 14.88461636 | K34: 337.0696861 | L34: 809.9424982 | M34: 2810.193277 | N34: 541.2696 | O34: 3082.858373 | P34: 6779974.2 | Q34: 17174.49198 | S34: 1087.268536 | T34: 206.3074702
A35: 439 | B35: Conservatory Lab Charter School | C35: C | D35: Boston | E35: 444.35 | F35: 2118.426803 | G35: 1172.583617 | H35: 6691.598312 | I35: 2964.796467 | J35: 23.09735569 | K35: 788.3991448 | L35: 341.8622707 | M35: 4680.934106 | N35: 1539.97493 | O35: 3665.273613 | P35: 10658599.73 | Q35: 23986.94662 | S35: 3173.229256 | T35: 481.0252279
A36: 407 | B36: Dudley Street Neighborhood Charter School | C36: HM | D36: Boston | E36: 284.5164835 | F36: 5198.533251 | G36: 1045.702964 | H36: 6749.844214 | I36: 2117.057587 | J36: 125.0421401 | K36: 456.7262269 | L36: 0 | M36: 2387.014565 | N36: 1202.034047 | O36: 3750.270412 | P36: 6553047.78 | Q36: 23032.22541 | S36: 0 | T36: 0
A37: 452 | B37: Edward M. Kennedy Academy for Health Careers: A Horace Mann Charter Public School | C37: HM | D37: Boston | E37: 371.0555556 | F37: 2374.517742 | G37: 2351.628986 | H37: 10288.50786 | I37: 2171.941608 | J37: 1157.64875 | K37: 426.3970654 | L37: 3818.468633 | M37: 3951.979638 | N37: 0 | O37: 4030.533912 | P37: 11343771 | Q37: 30571.6242 | S37: 121.2325198 | T37: 30.39976044
A38: 410 | B38: Excel Academy Charter School | C38: C | D38: =VLOOKUP(A38, FACTS, 6, FALSE) -> Boston/Chelsea | E38: 1374.36 | F38: 1752.934651 | G38: 3029.679388 | H38: 6873.838014 | I38: 1459.482676 | J38: 323.1737412 | K38: 985.1648622 | L38: 1097.850638 | M38: 1825.299463 | N38: 976.7433715 | O38: 3470.181757 | P38: 29953280.89 | Q38: 21794.34856 | S38: 135.6616898 | T38: 1997.35295
A39: 413 | B39: Four Rivers Charter Public School | C39: C | D39: Greenfield | E39: 218.69 | F39: 1770.606795 | G39: 1795.377018 | H39: 7012.291371 | I39: 1331.181124 | J39: 374.48443 | K39: 1118.729709 | L39: 825.6481778 | M39: 1221.907723 | N39: 1727.161736 | O39: 4129.310897 | P39: 4659562 | Q39: 21306.69898 | S39: 1709.488317 | T39: 91.98865975
A40: 446 | B40: Foxborough Regional Charter School | C40: =VLOOKUP(A40, TYPE, 3, FALSE) -> C | D40: Foxborough | E40: 1665.01 | F40: 1288.617191 | G40: 836.8745833 | H40: 4826.931015 | I40: 899.1865995 | J40: 330.3525624 | K40: 505.4207843 | L40: 982.5769815 | M40: 2167.373631 | N40: 1247.763257 | O40: 2778.429103 | P40: 26412928.94 | Q40: 15863.52571 | S40: 0 | T40: 2440.37413
A41: 478 | B41: Francis W. Parker Charter Essential School | C41: C | D41: Devens | E41: =VLOOKUP(A41, FTE, 2, FALSE) -> 382.24 | F41: =VLOOKUP($A41&100, FE, 21, FALSE)/$E41 -> 1589.453155 | G41: =VLOOKUP($A41&210, FE, 21, FALSE)/$E41 -> 1902.81092 | H41: =VLOOKUP($A41&220, FE, 21, FALSE)/$E41 -> 6552.709763 | I41: =VLOOKUP($A41&230, FE, 21, FALSE)/$E41 -> 450.6963374 | J41: =VLOOKUP($A41&240, FE, 21, FALSE)/$E41 -> 346.1895929 | K41: =VLOOKUP($A41&260, FE, 21, FALSE)/$E41 -> 507.3147551 | L41: =VLOOKUP($A41&250, FE, 21, FALSE)/$E41 -> 596.5155923 | M41: =VLOOKUP($A41&300, FE, 21, FALSE)/$E41 -> 1392.38175 | N41: =VLOOKUP($A41&400, FE, 21, FALSE)/$E41 -> 875.5825398 | O41: =VLOOKUP($A41&500, FE, 21, FALSE)/$E41 -> 4056.673556 | P41: =VLOOKUP($A41&800,FE, 21,FALSE)-VLOOKUP($A41&700,FE, 21,FALSE)-VLOOKUP($A41&600,FE, 21,FALSE) -> 6983650.16 | Q41: 18270.32796 | S41: =VLOOKUP($A41&740, FE, 21, FALSE)/$E41 -> 739.2228181 | T41: =(VLOOKUP($A41&700, FE, 21, FALSE)-VLOOKUP($A41&740, FE, 21, FALSE)-VLOOKUP($A41&725, FE, 21, FALSE))/$E41 -> 47.14430724
A42: 496 | B42: Global Learning Charter Public School | C42: C | D42: New Bedford | E42: 501.76 | F42: 1698.4375 | G42: 1239.600606 | H42: 5294.698661 | I42: 930.0960619 | J42: 75.54807079 | K42: 789.6663744 | L42: 802.1384726 | M42: 1893.8636 | N42: 761.0052615 | O42: 3519.272162 | P42: 8532091 | Q42: 17004.32677 | S42: 0 | T42: 688.2692921
A43: 499 | B43: Hampden Charter School of Science East | C43: C | D43: Chicopee | E43: 544.55 | F43: 1561.71885 | G43: 1447.841337 | H43: 5474.720411 | I43: 741.9685979 | J43: 68.06537508 | K43: 1059.489487 | L43: 615.4880176 | M43: 1538.156276 | N43: 1337.811037 | O43: 4212.661831 | P43: 9833441 | Q43: 18057.92122 | S43: 0 | T43: 850.6216142
A44: 3516 | B44: Hampden Charter School of Science West | C44: C | D44: Westfield | E44: 356.04 | F44: 1612.605325 | G44: 1597.045276 | H44: 5496.222335 | I44: 509.8472082 | J44: 79.99101225 | K44: 1742.423576 | L44: 678.5529716 | M44: 2636.70655 | N44: 1309.625323 | O44: 3154.016403 | P44: 6699617.49 | Q44: 18817.03598 | S44: 0 | T44: 1220.337603
A45: 419 | B45: Helen Y Davis Leadership Academy Charter Public School | C45: C | D45: Boston | E45: 129.98 | F45: 3957.124173 | G45: 2458.047392 | H45: 10630.16618 | I45: 456.9779966 | J45: 319.449146 | K45: 1071.072473 | L45: 1450.746269 | M45: 3112.886598 | N45: 1117.118018 | O45: 6164.925373 | P45: 3995392 | Q45: 30738.51362 | S45: 2835.905524 | T45: 549.561471
A46: 455 | B46: Hill View Montessori Charter Public School | C46: C | D46: Haverhill | E46: 304.37 | F46: 1521.434734 | G46: 313.8044814 | H46: 5377.052075 | I46: 2462.769491 | J46: 756.4196866 | K46: 678.7461314 | L46: 362.6775635 | M46: 1153.051648 | N46: 904.5961166 | O46: 2996.928541 | P46: 5030469.23 | Q46: 16527.48047 | S46: 184.5615534 | T46: 564.240891
A47: 450 | B47: Hilltown Cooperative Charter Public School | C47: C | D47: East Hampton | E47: 217.32 | F47: 1004.951178 | G47: 1683.909488 | H47: 6566.454491 | I47: 2143.532625 | J47: 103.9189674 | K47: 482.0496503 | L47: 513.4649825 | M47: 783.5376403 | N47: 553.1139794 | O47: 4100.116234 | P47: 3897644.9 | Q47: 17935.04924 | S47: 0 | T47: 895.7905853
A48: 453 | B48: Holyoke Community Charter School | C48: C | D48: Holyoke | E48: 647.84 | F48: 963.7858113 | G48: 3258.083786 | H48: 4531.120601 | I48: 1272.678439 | J48: 89.60237096 | K48: 774.0059274 | L48: 295.5930477 | M48: 3314.59774 | N48: 1618.553964 | O48: 3343.864226 | P48: 12608188.17 | Q48: 19461.88591 | S48: 0 | T48: 1147.520993
A49: 435 | B49: Innovation Academy Charter School | C49: C | D49: Tyngsborough | E49: 768.19 | F49: 1332.951483 | G49: 1209.34925 | H49: 5748.667647 | I49: 1223.140109 | J49: 213.2115753 | K49: 225.1461227 | L49: 529.7803929 | M49: 2032.01031 | N49: 1183.010713 | O49: 4175.873156 | P49: 13729968 | Q49: 17873.14076 | S49: 0 | T49: 1105.775915
A50: 463 | B50: KIPP Academy Boston Charter School | C50: C | D50: Boston | E50: 600.63 | F50: 1283.629755 | G50: 1786.872101 | H50: 6562.621248 | I50: 1655.797746 | J50: 40.8978406 | K50: 1233.331419 | L50: 1159.806203 | M50: 2941.423722 | N50: 1356.440204 | O50: 3702.835473 | P50: 13047879.33 | Q50: 21723.65571 | S50: 11.23819989 | T50: 2999.70183
A51: 429 | B51: KIPP Academy Lynn Charter School | C51: C | D51: Lynn | E51: 1606.6 | F51: 2382.215772 | G51: 3373.961428 | H51: 5623.445294 | I51: 1310.122277 | J51: 192.6474169 | K51: 805.2637807 | L51: 741.2890576 | M51: 1928.016905 | N51: 1269.82265 | O51: 3375.393471 | P51: 33742099.26 | Q51: 21002.17805 | S51: 6.846757127 | T51: 2191.991996
A52: 454 | B52: Lawrence Family Development Charter School | C52: C | D52: Lawrence | E52: 795.01 | F52: 1740.960491 | G52: 1172.989019 | H52: 4499.484283 | I52: 1785.498296 | J52: 31.1845134 | K52: 1211.216211 | L52: 462.3853788 | M52: 1653.082351 | N52: 910.0841499 | O52: 3096.949724 | P52: 13168414 | Q52: 16563.83442 | S52: 1999.483025 | T52: 175.167608
A53: 486 | B53: Learning First Charter Public School | C53: C | D53: Worcester | E53: 667.05 | F53: 1363.184169 | G53: 942.8018889 | H53: 5125.399895 | I53: 1234.679559 | J53: 377.0212128 | K53: 411.6632936 | L53: 1247.308298 | M53: 2700.490218 | N53: 997.9986508 | O53: 3850.777303 | P53: 12174546 | Q53: 18251.32449 | S53: 694.144367 | T53: 651.6093246
A54: 3514 | B54: Libertas Academy Charter School | C54: C | D54: Springfield | E54: 323.31 | F54: 3593.744518 | G54: 2534.527234 | H54: 8416.040333 | I54: 782.6551607 | J54: 220.0711392 | K54: 1225.355943 | L54: 1343.110328 | M54: 2416.20983 | N54: 806.8324518 | O54: 3986.082274 | P54: 8187705.87 | Q54: 25324.62921 | S54: 844.2021589 | T54: 2120.463332
A55: 456 | B55: Lowell Community Charter Public School | C55: C | D55: Lowell | E55: 817.38 | F55: 1588.212178 | G55: 901.6351024 | H55: 5634.560877 | I55: 1519.629034 | J55: 98.99736964 | K55: 1158.549426 | L55: 475.9103232 | M55: 2713.837358 | N55: 1399.599317 | O55: 3930.694402 | P55: 15874848.16 | Q55: 19421.62539 | S55: 0 | T55: 824.5975311
A56: 458 | B56: Lowell Middlesex Academy Charter School | C56: C | D56: Lowell | E56: 90.93 | F56: 3438.430771 | G56: 2633.747168 | H56: 7103.079182 | I56: 0 | J56: 241.6474211 | K56: 420.7463983 | L56: 229.3667656 | M56: 1079.286704 | N56: 911.1184428 | O56: 3117.788959 | P56: 1743602.01 | Q56: 19175.21181 | S56: 0 | T56: 867.9643682
A57: 3517 | B57: Map Academy Charter School | C57: C | D57: Plymouth | E57: 223.7 | F57: 3155.189584 | G57: 664.2439875 | H57: 7769.643987 | I57: 644.0286097 | J57: 411.3472061 | K57: 518.4668306 | L57: 2151.732275 | M57: 2090.429549 | N57: 680.0005811 | O57: 2991.579258 | P57: 4714849.26 | Q57: 21076.66187 | S57: 395.3148413 | T57: 3427.407778
A58: 464 | B58: Marblehead Community Charter Public School | C58: C | D58: Marblehead | E58: 227.03 | F58: 1742.769678 | G58: 814.8702815 | H58: 6258.688279 | I58: 1155.406774 | J58: 213.0114963 | K58: 686.3366075 | L58: 542.0429018 | M58: 1096.029159 | N58: 1079.848478 | O58: 3759.467912 | P58: 3938623.5 | Q58: 17348.47157 | S58: 0 | T58: 973.2326124
A59: 466 | B59: Martha's Vineyard Public Charter School | C59: C | D59: West Tisbury | E59: 174.58 | F59: 2751.566617 | G59: 1699.040669 | H59: 13529.25158 | I59: 866.1067133 | J59: 186.0614618 | K59: 1020.706954 | L59: 1363.461565 | M59: 3439.517642 | N59: 1608.644862 | O59: 7104.1369 | P59: 5860387.85 | Q59: 33568.49496 | S59: 1546.28812 | T59: 110.0985222
A60: 492 | B60: Martin Luther King, Jr. Charter School of Excellence | C60: C | D60: Springfield | E60: 357.07 | F60: 2107.357185 | G60: 897.0516705 | H60: 6620.811185 | I60: 1833.793626 | J60: 375.8312656 | K60: 1050.368051 | L60: 315.0658484 | M60: 2129.08665 | N60: 1298.966533 | O60: 3932.652337 | P60: 7341710.683 | Q60: 20560.98435 | S60: 1011.006245 | T60: 164.6679923
A61: 469 | B61: Match Charter Public School | C61: C | D61: Boston | E61: 1208.87 | F61: 2267.4994 | G61: 3149.453622 | H61: 7262.212645 | I61: 1932.840587 | J61: 403.8895828 | K61: 982.4356631 | L61: 1429.178489 | M61: 3273.874776 | N61: 1607.492121 | O61: 4564.408084 | P61: 32486308 | Q61: 26873.28497 | S61: 0 | T61: 2196.748203
A62: 470 | B62: Mystic Valley Regional Charter School | C62: C | D62: Malden | E62: 1586.94 | F62: 1390.496175 | G62: 817.3005911 | H62: 4309.660731 | I62: 1465.579669 | J62: 262.4541571 | K62: 575.4659912 | L62: 151.8645948 | M62: 1906.661247 | N62: 2247.447288 | O62: 2320.906272 | P62: 24514790 | Q62: 15447.83672 | S62: 240.7677669 | T62: 890.0122248
A63: 444 | B63: Neighborhood House Charter School | C63: C | D63: =VLOOKUP(A63, FACTS, 6, FALSE) -> Boston | E63: 793.19 | F63: 2744.198742 | G63: 1214.802254 | H63: 8090.862215 | I63: 1575.0602 | J63: 524.7721227 | K63: 1443.596112 | L63: 1797.850452 | M63: 2080.931429 | N63: 2445.137987 | O63: 4259.23171 | P63: 20762893 | Q63: 26176.44322 | S63: 0 | T63: 0
A64: 3513 | B64: New Heights Charter School of Brockton | C64: C | D64: Brockton | E64: 732.34 | F64: 1549.274872 | G64: 3159.395581 | H64: 5692.288828 | I64: 716.3510664 | J64: 427.4573968 | K64: 1270.319264 | L64: 1017.56385 | M64: 1960.15882 | N64: 1335.533236 | O64: 3691.096554 | P64: 15246908.3 | Q64: 20819.43947 | S64: 8.1840402 | T64: 2335.532676
A65: 3515 | B65: Old Sturbridge Academy Charter Public School | C65: C | D65: =VLOOKUP(A65, FACTS, 6, FALSE) -> Sturbridge | E65: 322.75 | F65: 2184.359287 | G65: 1276.364059 | H65: 4519.202448 | I65: 1969.811061 | J65: 51.91358637 | K65: 353.2708598 | L65: 469.838017 | M65: 2374.292053 | N65: 869.935275 | O65: 2246.252517 | P65: 5265743.44 | Q65: 16315.23916 | S65: 1568.170411 | T65: 3.965917893
A66: 3501 | B66: Paulo Freire Social Justice Charter School | C66: C | D66: Holyoke | E66: 244.03 | F66: 2477.634225 | G66: 3138.509855 | H66: 6342.011228 | I66: 303.2086219 | J66: 932.2548047 | K66: 1698.303487 | L66: 1058.994058 | M66: 3188.844568 | N66: 1467.544031 | O66: 4377.404417 | P66: 6097018.61 | Q66: 24984.7093 | S66: 2360.902348 | T66: 831.4059747
A67: 493 | B67: Phoenix Academy Charter Public High School, Chelsea | C67: C | D67: Chelsea | E67: 185.57 | F67: 6350.201056 | G67: 4225.39764 | H67: 4957.373282 | I67: 848.3110417 | J67: 561.143396 | K67: 805.1446893 | L67: 57.59955812 | M67: 914.1886081 | N67: 1752.893409 | O67: 4400.219109 | P67: 4615584.59 | Q67: 24872.47179 | S67: 1749.399149 | T67: 416.5508972
A68: 3518 | B68: Phoenix Academy Public Charter High School, Lawrence | C68: C | D68: Lawrence | E68: 121.3 | F68: 4999.28681 | G68: 4189.263067 | H68: 4508.642209 | I68: 2617.247156 | J68: 339.424155 | K68: 402.6125309 | L68: 123.9076669 | M68: 995.9321517 | N68: 757.101319 | O68: 3216.186645 | P68: 2686746.93 | Q68: 22149.60371 | S68: 173.1244847 | T68: 4072.391838
A69: 3508 | B69: Phoenix Academy Public Charter High School, Springfield | C69: C | D69: Springfield | E69: 169.61 | F69: 3247.467838 | G69: 5068.990449 | H69: 4540.075703 | I69: 1106.917045 | J69: 337.165969 | K69: 519.5640587 | L69: 123.5039208 | M69: 539.1475738 | N69: 1183.463003 | O69: 3254.201757 | P69: 3378715.55 | Q69: 19920.49732 | S69: 621.4609988 | T69: 3846.748423
A70: 494 | B70: Pioneer Charter School of Science | C70: C | D70: Everett | E70: 777.23 | F70: 1513.836805 | G70: 1764.140152 | H70: 5652.38403 | I70: 1602.163658 | J70: 80.86493059 | K70: 565.0108205 | L70: 511.5203994 | M70: 1622.435289 | N70: 1226.137553 | O70: 3493.388276 | P70: 14014919.58 | Q70: 18031.88191 | S70: 397.4951044 | T70: 2040.136124
A71: 3506 | B71: Pioneer Charter School of Science II | C71: C | D71: Saugus | E71: 369.34 | F71: 1800.710375 | G71: 1627.738669 | H71: 7191.745194 | I71: 795.2911951 | J71: 54.83811664 | K71: 393.4734662 | L71: 601.8254183 | M71: 1400.908648 | N71: 1027.746683 | O71: 3121.477879 | P71: 6653939.19 | Q71: 18015.75565 | S71: 192.9294417 | T71: 2736.410895
A72: 497 | B72: Pioneer Valley Chinese Immersion Charter School | C72: =VLOOKUP(A72, TYPE, 3, FALSE) -> C | D72: Hadley | E72: 563.61 | F72: 1267.882915 | G72: 651.3461081 | H72: 7954.518231 | I72: 872.4526179 | J72: 35.38006778 | K72: 372.4228278 | L72: 530.6480368 | M72: 1482.168645 | N72: 780.7086993 | O72: 3656.919732 | P72: 9922042.87 | Q72: 17604.44788 | S72: 1329.570235 | T72: 153.2484874
A73: 479 | B73: Pioneer Valley Performing Arts Charter Public School | C73: C | D73: South Hadley | E73: =VLOOKUP(A73, FTE, 2, FALSE) -> 393.88 | F73: =VLOOKUP($A73&100, FE, 21, FALSE)/$E73 -> 1615.445059 | G73: =VLOOKUP($A73&210, FE, 21, FALSE)/$E73 -> 1245.840231 | H73: =VLOOKUP($A73&220, FE, 21, FALSE)/$E73 -> 5868.14182 | I73: =VLOOKUP($A73&230, FE, 21, FALSE)/$E73 -> 1404.101274 | J73: =VLOOKUP($A73&240, FE, 21, FALSE)/$E73 -> 290.4120544 | K73: =VLOOKUP($A73&260, FE, 21, FALSE)/$E73 -> 390.6272723 | L73: =VLOOKUP($A73&250, FE, 21, FALSE)/$E73 -> 779.6706865 | M73: =VLOOKUP($A73&300, FE, 21, FALSE)/$E73 -> 1127.843861 | N73: =VLOOKUP($A73&400, FE, 21, FALSE)/$E73 -> 1291.987534 | O73: =VLOOKUP($A73&500, FE, 21, FALSE)/$E73 -> 4063.83952 | P73: =VLOOKUP($A73&800,FE, 21,FALSE)-VLOOKUP($A73&700,FE, 21,FALSE)-VLOOKUP($A73&600,FE, 21,FALSE) -> 7120526.92 | Q73: 18077.90931 | S73: =VLOOKUP($A73&740, FE, 21, FALSE)/$E73 -> 763.4940591 | T73: =(VLOOKUP($A73&700, FE, 21, FALSE)-VLOOKUP($A73&740, FE, 21, FALSE)-VLOOKUP($A73&725, FE, 21, FALSE))/$E73 -> 288.52582
A74: 487 | B74: Prospect Hill Academy Charter School | C74: C | D74: Somerville (K-6); Cambridge (7-12) | E74: 1094.14 | F74: 3161.663955 | G74: 2104.136582 | H74: 7489.121136 | I74: 2095.984975 | J74: 86.88316852 | K74: 1401.836876 | L74: 504.959146 | M74: 1041.925165 | N74: 1408.676221 | O74: 4631.692471 | P74: 26179356.15 | Q74: =SUM(F74:O74) -> 23926.8797 | S74: 2170.883982 | T74: 918.8019815
A75: 483 | B75: Rising Tide Charter Public School | C75: C | D75: Plymouth | E75: 650.32 | F75: 1336.219092 | G75: 1362.561508 | H75: 5565.712265 | I75: 1693.346353 | J75: 61.29597736 | K75: 381.4614344 | L75: 563.5118096 | M75: 2897.896928 | N75: 1084.178558 | O75: 4325.738098 | P75: 12532916.33 | Q75: 19271.92202 | S75: 0 | T75: 1775.705806
A76: 482 | B76: River Valley Charter School | C76: C | D76: Newburyport | E76: 286.96 | F76: 1621.250348 | G76: 975.2718149 | H76: 6564.824366 | I76: 2081.645526 | J76: 152.5055757 | K76: 566.3785894 | L76: 358.3077781 | M76: 699.5225815 | N76: 700.9304433 | O76: 3520.065514 | P76: 4947392 | Q76: 17240.70254 | S76: 0 | T76: 1107.833844
A77: 484 | B77: Roxbury Preparatory Charter School | C77: C | D77: Boston | E77: 1501.55 | F77: 6561.881822 | G77: 1878.915074 | H77: 6516.803177 | I77: 631.0644268 | J77: 126.8891679 | K77: 1396.080763 | L77: 277.8537644 | M77: 1635.491625 | N77: 2263.402258 | O77: 1695.61645 | P77: 34511622.99 | Q77: 22983.99853 | S77: 2034.115607 | T77: 1097.825993
A78: 441 | B78: Springfield International Charter School | C78: C | D78: Springfield | E78: 1524.3 | F78: 1167.440655 | G78: 1056.576507 | H78: 4594.279328 | I78: 1101.226438 | J78: 55.78397297 | K78: 1355.806259 | L78: 558.505432 | M78: 2651.929686 | N78: 989.7440268 | O78: 2718.948796 | P78: 24770242.51 | Q78: 16250.2411 | S78: 34.1960244 | T78: 1763.051414
A79: 485 | B79: Salem Academy Charter School | C79: C | D79: Salem | E79: 490.2 | F79: 2305.170971 | G79: 1578.939678 | H79: 6138.847532 | I79: 1051.848817 | J79: 306.8047532 | K79: 305.9285598 | L79: 1366.128193 | M79: 1192.59529 | N79: 1361.381191 | O79: 3747.290106 | P79: 9487789.181 | Q79: 19354.93509 | S79: 2927.467013 | T79: 453.0084455
A80: 474 | B80: Sizer School, A North Central Charter Essential School | C80: C | D80: =VLOOKUP(A80, FACTS, 6, FALSE) -> Fitchburg | E80: 353.18 | F80: 1798.816184 | G80: 1309.105329 | H80: 5952.764879 | I80: 958.1872983 | J80: 114.6095475 | K80: 384.3964268 | L80: 1157.093833 | M80: 1714.137182 | N80: 1729.117759 | O80: 3295.091172 | P80: 6503216.22 | Q80: 18413.31961 | S80: 0.002831417408 | T80: 21.59873153
A81: 488 | B81: South Shore Charter Public School | C81: C | D81: Norwell | E81: 1043.74 | F81: 989.0272673 | G81: 1042.042079 | H81: 7788.337134 | I81: 1412.617127 | J81: 184.3984134 | K81: 591.3838695 | L81: 607.7739667 | M81: 825.1988043 | N81: 864.4557074 | O81: 3944.235154 | P81: 19047701.32 | Q81: 18249.46952 | S81: 0 | T81: 1769.883304
A82: 3510 | B82: Springfield Preparatory Charter School | C82: C | D82: Springfield | E82: 433.1 | F82: 2437.990164 | G82: 1129.920365 | H82: 7768.681182 | I82: 396.0604248 | J82: 208.7508428 | K82: 874.2201801 | L82: 229.2143385 | M82: 2914.575918 | N82: 1061.285038 | O82: 2657.188386 | P82: 8522492.79 | Q82: 19677.88684 | S82: 92.22886169 | T82: 3035.668414
A83: 489 | B83: Sturgis Charter Public School | C83: C | D83: Hyannis | E83: 843.08 | F83: 1071.52702 | G83: 1152.846705 | H83: 8484.127248 | I83: 1650.287043 | J83: 46.63732979 | K83: 717.6211036 | L83: 1141.659155 | M83: 773.2658822 | N83: 1003.177634 | O83: 1682.378896 | P83: 14942352 | Q83: 17723.52802 | S83: 2125.776913 | T83: 62.84338378
A84: 480 | B84: UP Academy Charter School of Boston | C84: HM | D84: Boston | E84: 303.2444444 | F84: 2601.844533 | G84: 4658.454928 | H84: 11028.56344 | I84: 1699.519048 | J84: 349.4432691 | K84: 1240.597666 | L84: 879.1128111 | M84: 2892.411175 | N84: 1600.191492 | O84: 4034.495676 | P84: 9395918.134 | Q84: 30984.63404 | S84: 0 | T84: 0
A85: 3505 | B85: UP Academy Charter School of Dorchester | C85: HM | D85: Boston | E85: 630.2237923 | F85: 2090.110159 | G85: 2335.907943 | H85: 7622.077317 | I85: 1243.187463 | J85: 153.0136773 | K85: 861.3169586 | L85: 509.8089059 | M85: 1812.721118 | N85: 1423.394485 | O85: 2823.671483 | P85: 13156053.7 | Q85: 20875.20951 | S85: 0 | T85: 0
A86: 498 | B86: Veritas Preparatory Charter School | C86: =VLOOKUP(A86, TYPE, 3, FALSE) -> C | D86: =VLOOKUP(A86, FACTS, 6, FALSE) -> Springfield | E86: 367.79 | F86: 2871.1335 | G86: 3507.408793 | H86: 8169.016015 | I86: 577.1834471 | J86: 542.8544278 | K86: 1860.997852 | L86: 1357.170777 | M86: 2970.250578 | N86: 1517.676174 | O86: 4435.096849 | P86: 10227794.29 | Q86: 27808.78841 | S86: 1028.84415 | T86: 184.8554882
A87: C | B87: Commonwealth Charter Statewide Totals | C87: C | E87: =SUMIF(C9:C86,"C",E9:E86) -> 45675.28 | F87: =VLOOKUP($A87&100, FE, 21, FALSE)/$E87 -> 2050.779901 | G87: 1706.437448 | H87: 6177.351945 | I87: 1314.899553 | J87: 245.3882457 | K87: 948.9318229 | L87: 732.680384 | M87: 2136.584096 | N87: 1344.375337 | O87: 3519.354982 | P87: =VLOOKUP($A87&800,FE,21,FALSE)-VLOOKUP($A87&700,FE,21,FALSE)-VLOOKUP($A87&600,FE,21,FALSE) -> 921580245.6 | Q87: =SUM(F87:O87) -> 20176.78371 | S87: 647.9638172 | T87: 1325.062068
A88: HM | B88: Horace Mann Charter Statewide Totals | C88: HM | E88: =SUMIF(C9:C86,"HM",E9:E86) -> 2394.632315 | F88: 2731.227554 | G88: 2323.726397 | H88: 8922.836924 | I88: 1827.907676 | J88: 379.0368877 | K88: 664.021282 | L88: 1100.591042 | M88: 2251.727145 | N88: 1274.969969 | O88: 3523.770382 | P88: =VLOOKUP($A88&800,FE,21,FALSE)-VLOOKUP($A88&700,FE,21,FALSE)-VLOOKUP($A88&600,FE,21,FALSE) -> 59865365.5 | Q88: =SUM(F88:O88) -> 24999.81526 | S88: 18.78534742 | T88: 4.710535278
A89: ALL | B89: All Charter Schools Statewide Totals | C89: ALL | E89: =SUM(E87:E88) -> 48069.91232 | F89: 2084.67682 | G89: 1737.188077 | H89: 6314.119972 | I89: 1340.455369 | J89: 252.0460352 | K89: 934.7388287 | L89: 751.0080803 | M89: 2142.320018 | N89: 1340.917866 | O89: 3519.574938 | P89: =VLOOKUP($A89&800,FE,21,FALSE)-VLOOKUP($A89&700,FE,21,FALSE)-VLOOKUP($A89&600,FE,21,FALSE) -> 981445611.1 | Q89: 20417.046 | S89: 616.6209039 | T89: 1259.287943
F90: ----------------------------- Operating Expenditures Per Pupil In The Charter School ------------------------------------------- | S90: -------- Per Pupil --------
A91: Notes: | B91: 1. These figures do not include facilities lease costs -- see data presented at right.
B92: 2. The majority of charter schools lease their facilities. In many cases, Horace Mann charter schools are provided their facilities in kind by their host districts; some report a monetary figure for these in-kind revenues and expenditures, some do not.
B93: 3. Capital facilities costs include facilities-related long-term interest; depreciation of equipment, buildings, and grounds; bad debt or loss on disposal of assets; and other costs related to capital facilities acquisition.
B94: Charter schools that report significant costs in this category either own their buildings or have invested heavily in leasehold improvements.

Sheet 5. AVGTCHSAL
A1: Massachusetts Department of Elementary and Secondary Education
A2: FY22 Average Teacher Salaries
A5: Return to Index
A6: Average teacher salaries are calculated from data submitted on the Charter School End of Year Financial Report. The calculation includes professional teachers paid from all funding sources, including tuition revenue, federal and state grants, and private grants/contributions. Beginning in FY08, the Educator Personnel Management Information System (EPIMS) was the source for the total number of teachers, which is shown in full-time equivalents (e.g., a teacher who worked half-time would count as .5 FTE's).
A8: LEA | B8: Charter School | C8: Type | D8: Location | E8: Total Salaries | F8: Total Teachers | G8: Average Salaries
A9: 445 | B9: Abby Kelley Foster Charter Public School | C9: =VLOOKUP(A9, TYPE, 3, FALSE) -> C | D9: =VLOOKUP(A9, FACTS, 6, FALSE) -> Worcester | E9: =VLOOKUP($A9&220, FE, 21, FALSE) -> 8165393 | F9: =VLOOKUP(A9, TEACHEREPIMS, 2, FALSE) -> 120.35 | G9: =E9/F9 -> 67847.05442
A10: 412 | B10: Academy of the Pacific Rim Charter Public School | C10: C | D10: Boston | E10: 4325218.635 | F10: 54.372 | G10: =E10/F10 -> 79548.63965
A11: 430 | B11: Advanced Math and Science Academy Charter School | C11: C | D11: Marlborough | E11: 5548647 | F11: 76.866 | G11: 72185.97299
A12: 409 | B12: Alma del Mar Charter School | C12: C | D12: New Bedford | E12: 5059929 | F12: 73.995 | G12: 68382.03933
A13: 3509 | B13: Argosy Collegiate Charter School | C13: C | D13: Fall River | E13: 3620157.982 | F13: 46 | G13: 78699.08656
A14: 491 | B14: Atlantis Charter School | C14: C | D14: Fall River | E14: 5366805 | F14: 99.829 | G14: 53759.97957
A15: 3502 | B15: Baystate Academy Charter Public School | C15: C | D15: Springfield | E15: 2407005.72 | F15: 56.567 | G15: 42551.41195
A16: 420 | B16: Benjamin Banneker Charter Public School | C16: C | D16: Cambridge | E16: 2056917.89 | F16: 20 | G16: 102845.8945
A17: 447 | B17: Benjamin Franklin Classical Charter Public School | C17: C | D17: Franklin | E17: 4523214 | F17: 52.305 | G17: 86477.65988
A18: 414 | B18: Berkshire Arts and Technology Charter Public School | C18: C | D18: Adams | E18: 2236773.05 | F18: 38.739 | G18: 57739.56607
A19: 449 | B19: Boston Collegiate Charter School | C19: C | D19: Boston | E19: 5328316.95 | F19: 69.828 | G19: 76306.30907
A20: 424 | B20: Boston Day and Evening Academy Charter School | C20: HM | D20: Boston | E20: 3168287.42 | F20: 31.291 | G20: 101252.3544
A21: 411 | B21: Boston Green Academy Horace Mann Charter School | C21: HM | D21: Boston | E21: 4312611.22 | F21: 46.919 | G21: 91916.09412
A22: 416 | B22: Boston Preparatory Charter Public School | C22: C | D22: Boston | E22: 4698342.07 | F22: 62.798 | G22: 74816.74687
A23: 481 | B23: Boston Renaissance Charter Public School | C23: C | D23: Boston | E23: 6514726 | F23: 77.219 | G23: 84366.87862
A24: 417 | B24: Bridge Boston Charter School | C24: C | D24: Boston | E24: 2711845.76 | F24: 38.5 | G24: 70437.55221
A25: 428 | B25: Brooke Charter School | C25: C | D25: Boston | E25: 15108217 | F25: 174.798 | G25: 86432.4363
A26: 432 | B26: Cape Cod Lighthouse Charter School | C26: C | D26: Harwich | E26: 2090831 | F26: 22.194 | G26: 94207.03794
A27: 418 | B27: Christa McAuliffe Charter School | C27: C | D27: Framingham | E27: 2659363 | F27: 36.5 | G27: 72859.26027
A28: 437 | B28: City on a Hill Charter Public School Circuit Street | C28: C | D28: Boston | E28: 1444153.36 | F28: 20.797 | G28: 69440.46545
A29: 438 | B29: Codman Academy Charter Public School | C29: C | D29: Boston | E29: 3546191.151 | F29: 43.926 | G29: 80731.02834
A30: 3503 | B30: Collegiate Charter School of Lowell | C30: C | D30: Lowell | E30: 3016577.54 | F30: 54.199 | G30: 55657.43907
A31: 436 | B31: Community Charter School of Cambridge | C31: C | D31: Cambridge | E31: 2790174.82 | F31: 30.33 | G31: 91993.89449
A32: 426 | B32: Community Day Charter Public School - Gateway | C32: C | D32: Lawrence | E32: 2231863 | F32: 39.198 | G32: 56938.18562
A33: 440 | B33: Community Day Charter Public School - Prospect | C33: C | D33: Lawrence | E33: 2479640 | F33: 38.892 | G33: 63757.07086
A34: 431 | B34: Community Day Charter Public School - R. Kingman Webster | C34: C | D34: Lawrence | E34: 1964824 | F34: 38.5 | G34: 51034.38961
A35: 439 | B35: Conservatory Lab Charter School | C35: C | D35: Boston | E35: 2973411.71 | F35: 29.25 | G35: 101655.1012
A36: 407 | B36: Dudley Street Neighborhood Charter School | C36: HM | D36: Boston | E36: 1920441.94 | F36: 19.5 | G36: 98484.20205
A37: 452 | B37: Edward M. Kennedy Academy for Health Careers: A Horace Mann Charter Public School | C37: HM | D37: Boston | E37: 3817608 | F37: 36.434 | G37: 104781.4679
A38: 410 | B38: Excel Academy Charter School | C38: C | D38: Boston/Chelsea | E38: 9447128.014 | F38: 128.078 | G38: 73760.73966
A39: 413 | B39: Four Rivers Charter Public School | C39: C | D39: Greenfield | E39: 1533518 | F39: 21.716 | G39: 70616.96445
A40: 446 | B40: Foxborough Regional Charter School | C40: C | D40: Foxborough | E40: 8036888.41 | F40: 130.141 | G40: 61755.23786
A41: 478 | B41: Francis W. Parker Charter Essential School | C41: C | D41: Devens | E41: =VLOOKUP($A41&220, FE, 21, FALSE) -> 2504707.78 | F41: =VLOOKUP(A41, TEACHEREPIMS, 2, FALSE) -> 45.781 | G41: 54710.63935
A42: 496 | B42: Global Learning Charter Public School | C42: C | D42: New Bedford | E42: 2656668 | F42: 43.554 | G42: 60997.10704
A43: 499 | B43: Hampden Charter School of Science | C43: C | D43: Chicopee | E43: 2981259 | F43: 47.752 | G43: 62432.1285
A44: 3516 | B44: Hampden Charter School of Science West | C44: C | D44: Westfield | E44: 1956875 | F44: 34.898 | G44: 56074.13032
A45: 419 | B45: Helen Y Davis Leadership Academy Charter Public School | C45: C | D45: Boston | E45: 1381709 | F45: 18.25 | G45: 75710.08219
A46: 455 | B46: Hill View Montessori Charter Public School | C46: C | D46: Haverhill | E46: 1636613.34 | F46: 21 | G46: 77933.96857
A47: 450 | B47: Hilltown Cooperative Charter Public School | C47: C | D47: East Hampton | E47: 1427021.89 | F47: 21.25 | G47: 67153.97129
A48: 453 | B48: Holyoke Community Charter School | C48: C | D48: Holyoke | E48: 2935441.17 | F48: 42.18 | G48: 69593.19986
A49: 435 | B49: Innovation Academy Charter School | C49: C | D49: Tyngsborough | E49: 4416069 | F49: 66.499 | G49: 66408.05125
A50: 463 | B50: KIPP Academy Boston Charter School | C50: C | D50: Boston | E50: 3941707.2 | F50: 44.974 | G50: 87644.13217
A51: 429 | B51: KIPP Academy Lynn Charter School | C51: C | D51: Lynn | E51: 9034627.21 | F51: 114.773 | G51: 78717.35696
A52: 454 | B52: Lawrence Family Development Charter School | C52: C | D52: Lawrence | E52: 3577135 | F52: 56 | G52: 63877.41071
A53: 3514 | B53: Libertas Academy Charter School (New school opening FY18) | C53: C | D53: Springfield | E53: 2720990 | F53: 43.144 | G53: 63067.63397
A54: 456 | B54: Lowell Community Charter Public School | C54: C | D54: Lowell | E54: 4605577.37 | F54: 55.503 | G54: 82978.89069
A55: 458 | B55: Lowell Middlesex Academy Charter School | C55: C | D55: Lowell | E55: 645882.99 | F55: 5.5 | G55: 117433.2709
A56: 3517 | B56: Map Academy Charter School | C56: C | D56: Plymouth | E56: 1738069.36 | F56: 25.39 | G56: 68454.8783
A57: 464 | B57: Marblehead Community Charter Public School | C57: C | D57: Marblehead | E57: 1420910 | F57: 21 | G57: 67662.38095
A58: 466 | B58: Martha's Vineyard Public Charter School | C58: C | D58: West Tisbury | E58: 2361936.74 | F58: 30 | G58: 78731.22467
A59: 492 | B59: Martin Luther King, Jr. Charter School of Excellence | C59: C | D59: Springfield | E59: 2364093.05 | F59: 39.75 | G59: 59474.03899
A60: 469 | B60: Match Charter Public School | C60: C | D60: Boston | E60: 8779071 | F60: 118.546 | G60: 74056.23977
A61: 470 | B61: Mystic Valley Regional Charter School | C61: C | D61: Malden | E61: 6839173 | F61: 99.835 | G61: 68504.76286
A62: 444 | B62: Neighborhood House Charter School | C62: C | D62: Boston | E62: 6417591 | F62: 71.842 | G62: 89329.23638
A63: 3513 | B63: New Heights Charter School of Brockton | C63: C | D63: Brockton | E63: 4168690.8 | F63: 54.159 | G63: 76971.33994
A64: 3515 | B64: Old Sturbridge Academy Charter Public School | C64: C | D64: Sturbridge | E64: 1458572.59 | F64: 22 | G64: 66298.75409
A65: 3501 | B65: Paulo Freire Social Justice Charter School | C65: C | D65: Holyoke | E65: 1547641 | F65: 17.2 | G65: 89979.12791
A66: 493 | B66: Phoenix Academy Charter Public High School, Chelsea | C66: C | D66: Chelsea | E66: 919939.76 | F66: 12.099 | G66: 76034.36317
A67: 3518 | B67: Phoenix Academy Public Charter High School, Lawrence | C67: C | D67: Lawrence | E67: 546898.3 | F67: 11.373 | G67: 48087.42636
A68: 3508 | B68: Phoenix Academy Public Charter High School, Springfield | C68: C | D68: Springfield | E68: 770042.24 | F68: 11.002 | G68: 69991.11434
A69: 494 | B69: Pioneer Charter School of Science | C69: C | D69: Everett | E69: 4393202.44 | F69: 73.701 | G69: 59608.4509
A70: 3506 | B70: Pioneer Charter School of Science II | C70: C | D70: Saugus | E70: 2656199.17 | F70: 32.25 | G70: 82362.76496
A71: 497 | B71: Pioneer Valley Chinese Immersion Charter School | C71: C | D71: Hadley | E71: 4483246.02 | F71: 71.376 | G71: 62811.67367
A72: 479 | B72: Pioneer Valley Performing Arts Charter Public School | C72: C | D72: South Hadley | E72: 2311343.7 | F72: 37.631 | G72: 61421.26704
A73: 487 | B73: Prospect Hill Academy Charter School | C73: =VLOOKUP(A73, TYPE, 3, FALSE) -> C | D73: =VLOOKUP(A73, FACTS, 6, FALSE) -> Somerville (K-6); Cambridge (7-12) | E73: =VLOOKUP($A73&220, FE, 21, FALSE) -> 8194147 | F73: =VLOOKUP(A73, TEACHEREPIMS, 2, FALSE) -> 105.048 | G73: 78003.83634
A74: 483 | B74: Rising Tide Charter Public School | C74: C | D74: Plymouth | E74: 3619494 | F74: 54.893 | G74: =E74/F74 -> 65937.25976
A75: 482 | B75: River Valley Charter School | C75: C | D75: Newburyport | E75: 1883842 | F75: 20.32 | G75: 92708.75984
A76: 484 | B76: Roxbury Preparatory Charter School | C76: C | D76: Boston | E76: 9785305.81 | F76: 106.475 | G76: 91902.37906
A77: 441 | B77: Springfield International Charter School | C77: C | D77: Springfield | E77: 7003059.98 | F77: 99 | G77: 70737.9796
A78: 485 | B78: Salem Academy Charter School | C78: C | D78: Salem | E78: 3009263.06 | F78: 47.298 | G78: 63623.47372
A79: 486 | B79: Seven Hills Charter Public School | C79: C | D79: Worcester | E79: 3418898 | F79: 34.329 | G79: 99592.12328
A80: 474 | B80: Sizer School, A North Central Charter Essential School | C80: C | D80: Fitchburg | E80: 2102397.5 | F80: 36.582 | G80: 57470.81898
A81: 488 | B81: South Shore Charter Public School | C81: C | D81: Norwell | E81: 8128999 | F81: 94.138 | G81: 86351.94077
A82: 3510 | B82: Springfield Preparatory Charter School | C82: C | D82: Springfield | E82: 3364615.82 | F82: 43 | G82: 78246.87953
A83: 489 | B83: Sturgis Charter Public School | C83: C | D83: Hyannis | E83: 7152798 | F83: 90.035 | G83: 79444.6382
A84: 480 | B84: UP Academy Charter School of Boston | C84: HM | D84: Boston | E84: 3344350.592 | F84: 32 | G84: 104510.956
A85: 3505 | B85: UP Academy Charter School of Dorchester | C85: HM | D85: Boston | E85: 4803614.472 | F85: 50.173 | G85: 95741.02549
A86: 498 | B86: Veritas Preparatory Charter School | C86: C | D86: Springfield | E86: 3004482.4 | F86: 41.867 | G86: 71762.54329
A87: C | B87: Commonwealth Charter Statewide Totals | C87: C | E87: =SUMIF(C9:C86,C87, E9:E86) -> 282152279.8 | F87: =SUMIF($C9:$C86,C87,F9:F86) -> 3879.084 | G87: =E87/F87 -> 72736.83162
A88: HM | B88: Horace Mann Charter Statewide Totals | C88: HM | E88: =SUMIF(C9:C86,C88, E9:E86) -> 21366913.64 | F88: =SUMIF($C9:$C86,C88,F9:F86) -> 216.317 | G88: =E88/F88 -> 98775.93367
A89: ALL | B89: All Charter Schools Statewide Totals | C89: ALL | E89: =SUM(E87:E88) -> 303519193.4 | F89: =SUM(F87:F88) -> 4095.401 | G89: =E89/F89 -> 74112.20376

Sheet CSLIST (hidden)
B1: Select a Charter School | C1: LEA
A2: 2 | B2: Abby Kelley Foster Charter Public School | C2: 445 | D2: Abby Kelley Foster Charter Public School
A3: 3 | B3: Academy of the Pacific Rim Charter Public School | C3: 412 | D3: Academy of the Pacific Rim Charter Public School
A4: 4 | B4: Advanced Math and Science Academy Charter School | C4: 430 | D4: Advanced Math and Science Academy Charter School
A5: 5 | B5: Alma del Mar Charter School | C5: 409 | D5: Alma del Mar Charter School
A6: 6 | B6: Argosy Collegiate Charter School | C6: 3509 | D6: Argosy Collegiate Charter School
A7: 7 | B7: Atlantis Charter School | C7: 491 | D7: Atlantis Charter School
A8: 8 | B8: Baystate Academy Charter Public School | C8: 3502 | D8: Baystate Academy Charter Public School
A9: 9 | B9: Benjamin Banneker Charter Public School | C9: 420 | D9: Benjamin Banneker Charter Public School
A10: 10 | B10: Benjamin Franklin Classical Charter Public School | C10: 447 | D10: Benjamin Franklin Classical Charter Public School
A11: 11 | B11: Berkshire Arts and Technology Charter Public School | C11: 414 | D11: Berkshire Arts and Technology Charter Public School
A12: 12 | B12: Boston Collegiate Charter School | C12: 449 | D12: Boston Collegiate Charter School
A13: 13 | B13: Boston Day and Evening Academy Charter School | C13: 424 | D13: Boston Day and Evening Academy Charter School
A14: 14 | B14: Boston Green Academy Horace Mann Charter School | C14: 411 | D14: Boston Green Academy Horace Mann Charter School
A15: 15 | B15: Boston Preparatory Charter Public School | C15: 416 | D15: Boston Preparatory Charter Public School
A16: 16 | B16: Boston Renaissance Charter Public School | C16: 481 | D16: Boston Renaissance Charter Public School
A17: 17 | B17: Bridge Boston Charter School | C17: 417 | D17: Bridge Boston Charter School
A18: 18 | B18: Brooke Charter School | C18: 428 | D18: Brooke Charter School
A19: 19 | B19: Cape Cod Lighthouse Charter School | C19: 432 | D19: Cape Cod Lighthouse Charter School
A20: 20 | B20: Christa McAuliffe Charter School | C20: 418 | D20: Christa McAuliffe Charter School
A21: 21 | B21: City on a Hill Charter Public School | C21: 437 | D21: City on a Hill Charter Public School
A22: 22 | B22: Codman Academy Charter Public School | C22: 438 | D22: Codman Academy Charter Public School
A23: 23 | B23: Collegiate Charter School of Lowell | C23: 3503 | D23: Collegiate Charter School of Lowell
A24: 24 | B24: Community Charter School of Cambridge | C24: 436 | D24: Community Charter School of Cambridge
A25: 25 | B25: Community Day Charter Public School - Gateway | C25: 426 | D25: Community Day Charter Public School - Gateway
A26: 26 | B26: Community Day Charter Public School - Prospect | C26: 440 | D26: Community Day Charter Public School - Prospect
A27: 27 | B27: Community Day Charter Public School - R. Kingman Webster | C27: 431 | D27: Community Day Charter Public School - R. Kingman Webster
A28: 28 | B28: Conservatory Lab Charter School | C28: 439 | D28: Conservatory Lab Charter School
A29: 29 | B29: Dudley Street Neighborhood Charter School | C29: 407 | D29: Dudley Street Neighborhood Charter School
A30: 30 | B30: Edward M. Kennedy Academy for Health Careers: A Horace Mann Charter Public School | C30: 452 | D30: Edward M. Kennedy Academy for Health Careers: A Horace Mann Charter Public School
A31: 31 | B31: Excel Academy Charter School | C31: 410 | D31: Excel Academy Charter School
A32: 32 | B32: Four Rivers Charter Public School | C32: 413 | D32: Four Rivers Charter Public School
A33: 33 | B33: Foxborough Regional Charter School | C33: 446 | D33: Foxborough Regional Charter School
A34: 34 | B34: Francis W. Parker Charter Essential School | C34: 478 | D34: Francis W. Parker Charter Essential School
A35: 35 | B35: Global Learning Charter Public School | C35: 496 | D35: Global Learning Charter Public School
A36: 36 | B36: Hampden Charter School of Science East | C36: 499 | D36: Hampden Charter School of Science East
A37: 37 | B37: Hampden Charter School of Science West | C37: 3516 | D37: Hampden Charter School of Science West
A38: 38 | B38: Helen Y Davis Leadership Academy Charter Public School | C38: 419 | D38: Helen Y Davis Leadership Academy Charter Public School
A39: 39 | B39: Hill View Montessori Charter Public School | C39: 455 | D39: Hill View Montessori Charter Public School
A40: 40 | B40: Hilltown Cooperative Charter Public School | C40: 450 | D40: Hilltown Cooperative Charter Public School
A41: 41 | B41: Holyoke Community Charter School | C41: 453 | D41: Holyoke Community Charter School
A42: 42 | B42: Innovation Academy Charter School | C42: 435 | D42: Innovation Academy Charter School
A43: 43 | B43: KIPP Academy Boston Charter School | C43: 463 | D43: KIPP Academy Boston Charter School
A44: 44 | B44: KIPP Academy Lynn Charter School | C44: 429 | D44: KIPP Academy Lynn Charter School
A45: 45 | B45: Lawrence Family Development Charter School | C45: 454 | D45: Lawrence Family Development Charter School
A46: 46 | B46: Learning First Charter Public School | C46: 486 | D46: Learning First Charter Public School
A47: 47 | B47: Libertas Academy Charter School | C47: 3514 | D47: Libertas Academy Charter School
A48: 48 | B48: Lowell Community Charter Public School | C48: 456 | D48: Lowell Community Charter Public School
A49: 49 | B49: Lowell Middlesex Academy Charter School | C49: 458 | D49: Lowell Middlesex Academy Charter School
A50: 50 | B50: Map Academy Charter School | C50: 3517 | D50: Map Academy Charter School
A51: 51 | B51: Marblehead Community Charter Public School | C51: 464 | D51: Marblehead Community Charter Public School
A52: 52 | B52: Martha's Vineyard Public Charter School | C52: 466 | D52: Martha's Vineyard Public Charter School
A53: 53 | B53: Martin Luther King, Jr. Charter School of Excellence | C53: 492 | D53: Martin Luther King, Jr. Charter School of Excellence
A54: 54 | B54: Match Charter Public School | C54: 469 | D54: Match Charter Public School
A55: 55 | B55: Mystic Valley Regional Charter School | C55: 470 | D55: Mystic Valley Regional Charter School
A56: 56 | B56: Neighborhood House Charter School | C56: 444 | D56: Neighborhood House Charter School
A57: 57 | B57: New Heights Charter School of Brockton | C57: 3513 | D57: New Heights Charter School of Brockton
A58: 58 | B58: Old Sturbridge Academy Charter Public School | C58: 3515 | D58: Old Sturbridge Academy Charter Public School
A59: 59 | B59: Paulo Freire Social Justice Charter School | C59: 3501 | D59: Paulo Freire Social Justice Charter School
A60: 60 | B60: Phoenix Academy Charter Public High School, Chelsea | C60: 493 | D60: Phoenix Academy Charter Public High School, Chelsea
A61: 61 | B61: Phoenix Academy Public Charter High School, Lawrence | C61: 3518 | D61: Phoenix Academy Public Charter High School, Lawrence
A62: 62 | B62: Phoenix Academy Public Charter High School, Springfield | C62: 3508 | D62: Phoenix Academy Public Charter High School, Springfield
A63: 63 | B63: Pioneer Charter School of Science | C63: 494 | D63: Pioneer Charter School of Science
A64: 64 | B64: Pioneer Charter School of Science II | C64: 3506 | D64: Pioneer Charter School of Science II
A65: 65 | B65: Pioneer Valley Chinese Immersion Charter School | C65: 497 | D65: Pioneer Valley Chinese Immersion Charter School
A66: 66 | B66: Pioneer Valley Performing Arts Charter Public School | C66: 479 | D66: Pioneer Valley Performing Arts Charter Public School
A67: 67 | B67: Prospect Hill Academy Charter School | C67: 487 | D67: Prospect Hill Academy Charter School
A68: 68 | B68: Rising Tide Charter Public School | C68: 483 | D68: Rising Tide Charter Public School
A69: 69 | B69: River Valley Charter School | C69: 482 | D69: River Valley Charter School
A70: 70 | B70: Roxbury Preparatory Charter School | C70: 484 | D70: Roxbury Preparatory Charter School
A71: 71 | B71: Springfield International Charter School | C71: 441 | D71: Springfield International Charter School
A72: 72 | B72: Salem Academy Charter School | C72: 485 | D72: Salem Academy Charter School
A73: 73 | B73: Sizer School, A North Central Charter Essential School | C73: 474 | D73: Sizer School, A North Central Charter Essential School
A74: 74 | B74: South Shore Charter Public School | C74: 488 | D74: South Shore Charter Public School
A75: 75 | B75: Springfield Preparatory Charter School | C75: 3510 | D75: Springfield Preparatory Charter School
A76: 76 | B76: Sturgis Charter Public School | C76: 489 | D76: Sturgis Charter Public School
A77: 77 | B77: UP Academy Charter School of Boston | C77: 480 | D77: UP Academy Charter School of Boston
A78: 78 | B78: UP Academy Charter School of Dorchester | C78: 3505 | D78: UP Academy Charter School of Dorchester
A79: 79 | B79: Veritas Preparatory Charter School | C79: 498 | D79: Veritas Preparatory Charter School
A80: 80 | B80: Commonwealth Charter Statewide Totals | C80: C
A81: 81 | B81: Horace Mann Charter Statewide Totals | C81: HM
A82: 82 | B82: All Charter Schools Statewide Totals | C82: ALL
A83: 83
A84: 84
A85: 85
A86: 86

Sheet BAL22 (hidden)
B1: 1 | C1: 2 | D1: 3 | E1: 4 | F1: 5 | G1: 6 | H1: 7 | I1: 8
A2: FY | B2: vlookup | C2: cha_code | D2: cha_type | E2: balance_id | F2: Line_Desc | G2: balance_sch | H2: balance_found | I2: balance_total
A3: 2022 | B3: =C3&E3 -> 40701 | C3: 407 | D3: =VLOOKUP(C3, TYPE, 3, FALSE) -> HM | E3: 01 | F3: Cash and Cash Equivalents | G3: 881027 | H3: 0 | I3: 881027 | J3: =D3&E3 -> HM01
A4: 2022 | B4: =C4&E4 -> 40702 | C4: 407 | D4: HM | E4: 02 | F4: Accounts Receivable net of doubtful accounts | G4: 0 | H4: 0 | I4: 0 | J4: =D4&E4 -> HM02
A5: 2022 | B5: 40703 | C5: 407 | D5: HM | E5: 03 | F5: Grants Receivable - State | G5: 0 | H5: 0 | I5: 0 | J5: HM03
A6: 2022 | B6: 40704 | C6: 407 | D6: HM | E6: 04 | F6: Grants Receivable - Federal | G6: 31453 | H6: 0 | I6: 31453 | J6: HM04
A7: 2022 | B7: 40705 | C7: 407 | D7: HM | E7: 05 | F7: Grants Receivable - Private | G7: 0 | H7: 0 | I7: 0 | J7: HM05
A8: 2022 | B8: 40706 | C8: 407 | D8: HM | E8: 06 | F8: Contributions Receivable | G8: 0 | H8: 0 | I8: 0 | J8: HM06
A9: 2022 | B9: 40707 | C9: 407 | D9: HM | E9: 07 | F9: Due from related parties | G9: 0 | H9: 0 | I9: 0 | J9: HM07
A10: 2022 | B10: 40708 | C10: 407 | D10: HM | E10: 08 | F10: Prepaid Expenses / Inventory | G10: 6562 | H10: 0 | I10: 6562 | J10: HM08
A11: 2022 | B11: 40709 | C11: 407 | D11: HM | E11: 09 | F11: Short-Term Investments | G11: 0 | H11: 0 | I11: 0 | J11: HM09
A12: 2022 | B12: 40710 | C12: 407 | D12: HM | E12: 10 | F12: Deposit (Security, Other) | G12: 0 | H12: 0 | I12: 0 | J12: HM10
A13: 2022 | B13: 40711 | C13: 407 | D13: HM | E13: 11 | F13: Restricted Current Assets | G13: 0 | H13: 0 | I13: 0 | J13: HM11
A14: 2022 | B14: 40712 | C14: 407 | D14: HM | E14: 12 | F14: TOTAL CURRENT ASSETS | G14: 919042 | H14: 0 | I14: 919042 | J14: HM12
A15: 2022 | B15: 40713 | C15: 407 | D15: HM | E15: 13 | F15: - Land and Buildings | G15: 0 | H15: 0 | I15: 0 | J15: HM13
A16: 2022 | B16: 40714 | C16: 407 | D16: HM | E16: 14 | F16: - Building/Leasehold Improvement | G16: 0 | H16: 0 | I16: 0 | J16: HM14
A17: 2022 | B17: 40715 | C17: 407 | D17: HM | E17: 15 | F17: - Furniture and Equipment | G17: 0 | H17: 0 | I17: 0 | J17: HM15
A18: 2022 | B18: 40716 | C18: 407 | D18: HM | E18: 16 | F18: - Less Accumulated Depreciation | G18: 0 | H18: 0 | I18: 0 | J18: HM16
A19: 2022 | B19: 40717 | C19: 407 | D19: HM | E19: 17 | F19: Net Capital Assets | G19: 0 | H19: 0 | I19: 0 | J19: HM17
A20: 2022 | B20: 40718 | C20: 407 | D20: HM | E20: 18 | F20: Restricted Noncurrent Assets | G20: 0 | H20: 0 | I20: 0 | J20: HM18
A21: 2022 | B21: 40719 | C21: 407 | D21: HM | E21: 19 | F21: Long-Term Investments | G21: 0 | H21: 0 | I21: 0 | J21: HM19
A22: 2022 | B22: 40720 | C22: 407 | D22: HM | E22: 20 | F22: Building Acquisition / Financing Costs / Deferred Expenses | G22: 0 | H22: 0 | I22: 0 | J22: HM20
A23: 2022 | B23: 40721 | C23: 407 | D23: HM | E23: 21 | F23: Long-Term Grants / Contributions Receivable | G23: 0 | H23: 0 | I23: 0 | J23: HM21
A24: 2022 | B24: 40722 | C24: 407 | D24: HM | E24: 22 | F24: TOTAL NONCURRENT ASSETS | G24: 0 | H24: 0 | I24: 0 | J24: HM22
A25: 2022 | B25: 40723 | C25: 407 | D25: HM | E25: 23 | F25: TOTAL ASSETS | G25: 919042 | H25: 0 | I25: 919042 | J25: HM23
A26: 2022 | B26: 40724 | C26: 407 | D26: HM | E26: 24 | F26: Accounts Payable | G26: 109672 | H26: 0 | I26: 109672 | J26: HM24
A27: 2022 | B27: 40725 | C27: 407 | D27: HM | E27: 25 | F27: Accrued Expenses / Accrued Payroll | G27: 0 | H27: 0 | I27: 0 | J27: HM25
A28: 2022 | B28: 40726 | C28: 407 | D28: HM | E28: 26 | F28: Deferred Revenue | G28: 155389 | H28: 0 | I28: 155389 | J28: HM26
A29: 2022 | B29: 40727 | C29: 407 | D29: HM | E29: 27 | F29: Due to related parties | G29: 0 | H29: 0 | I29: 0 | J29: HM27
A30: 2022 | B30: 40728 | C30: 407 | D30: HM | E30: 28 | F30: Current Debt Payable | G30: 0 | H30: 0 | I30: 0 | J30: HM28
A31: 2022 | B31: 40729 | C31: 407 | D31: HM | E31: 29 | F31: Current Lease Obligations Payable | G31: 0 | H31: 0 | I31: 0 | J31: HM29
A32: 2022 | B32: 40730 | C32: 407 | D32: HM | E32: 30 | F32: TOTAL CURRENT LIABILITIES | G32: 265061 | H32: 0 | I32: 265061 | J32: HM30
A33: 2022 | B33: 40731 | C33: 407 | D33: HM | E33: 31 | F33: Noncurrent Lease Obligations | G33: 0 | H33: 0 | I33: 0 | J33: HM31
A34: 2022 | B34: 40732 | C34: 407 | D34: HM | E34: 32 | F34: Long-Term Debt | G34: 0 | H34: 0 | I34: 0 | J34: HM32
A35: 2022 | B35: 40733 | C35: 407 | D35: HM | E35: 33 | F35: Deferred Revenue | G35: 0 | H35: 0 | I35: 0 | J35: HM33
A36: 2022 | B36: 40734 | C36: 407 | D36: HM | E36: 34 | F36: TOTAL NONCURRENT LIABILITIES | G36: 0 | H36: 0 | I36: 0 | J36: HM34
A37: 2022 | B37: 40735 | C37: 407 | D37: HM | E37: 35 | F37: TOTAL LIABILITIES | G37: 265061 | H37: 0 | I37: 265061 | J37: HM35
A38: 2022 | B38: 40736 | C38: 407 | D38: HM | E38: 36 | F38: Investment in capital assets (net of related debt) | G38: 0 | H38: 0 | I38: 0 | J38: HM36
A39: 2022 | B39: 40737 | C39: 407 | D39: HM | E39: 37 | F39: Temporarily Restricted | G39: 0 | H39: 0 | I39: 0 | J39: HM37
A40: 2022 | B40: 40738 | C40: 407 | D40: HM | E40: 38 | F40: Permanently Restricted | G40: 0 | H40: 0 | I40: 0 | J40: HM38
A41: 2022 | B41: 40739 | C41: 407 | D41: HM | E41: 39 | F41: Unrestricted (non-capital) | G41: 653981 | H41: 0 | I41: 653981 | J41: HM39
A42: 2022 | B42: 40740 | C42: 407 | D42: HM | E42: 40 | F42: TOTAL NET ASSETS | G42: 653981 | H42: 0 | I42: 653981 | J42: HM40
A43: 2022 | B43: 40741 | C43: 407 | D43: HM | E43: 41 | F43: TOTAL LIABILITIES AND NET ASSETS | G43: 919042 | H43: 0 | I43: 919042 | J43: HM41
A44: 2022 | B44: 40901 | C44: 409 | D44: C | E44: 01 | F44: Cash and Cash Equivalents | G44: 3527956 | H44: 890915 | I44: 4418871 | J44: C01
A45: 2022 | B45: 40902 | C45: 409 | D45: C | E45: 02 | F45: Accounts Receivable net of doubtful accounts | G45: 0 | H45: 0 | I45: 0 | J45: C02
A46: 2022 | B46: 40903 | C46: 409 | D46: C | E46: 03 | F46: Grants Receivable - State | G46: 7273 | H46: 0 | I46: 7273 | J46: C03
A47: 2022 | B47: 40904 | C47: 409 | D47: C | E47: 04 | F47: Grants Receivable - Federal | G47: 2701224 | H47: 0 | I47: 2701224 | J47: C04
A48: 2022 | B48: 40905 | C48: 409 | D48: C | E48: 05 | F48: Grants Receivable - Private | G48: 0 | H48: 0 | I48: 0 | J48: C05
A49: 2022 | B49: 40906 | C49: 409 | D49: C | E49: 06 | F49: Contributions Receivable | G49: 0 | H49: 98200 | I49: 98200 | J49: C06
A50: 2022 | B50: 40907 | C50: 409 | D50: C | E50: 07 | F50: Due from related parties | G50: -280522 | H50: 280522 | I50: 0 | J50: C07
A51: 2022 | B51: 40908 | C51: 409 | D51: C | E51: 08 | F51: Prepaid Expenses / Inventory | G51: 31045 | H51: 0 | I51: 31045 | J51: C08
A52: 2022 | B52: 40909 | C52: 409 | D52: C | E52: 09 | F52: Short-Term Investments | G52: 0 | H52: 0 | I52: 0 | J52: C09
A53: 2022 | B53: 40910 | C53: 409 | D53: C | E53: 10 | F53: Deposit (Security, Other) | G53: 0 | H53: 5000 | I53: 5000 | J53: C10
A54: 2022 | B54: 40911 | C54: 409 | D54: C | E54: 11 | F54: Restricted Current Assets | G54: 0 | H54: 250687 | I54: 250687 | J54: C11
A55: 2022 | B55: 40912 | C55: 409 | D55: C | E55: 12 | F55: TOTAL CURRENT ASSETS | G55: 5986976 | H55: 1525324 | I55: 7512300 | J55: C12
A56: 2022 | B56: 40913 | C56: 409 | D56: C | E56: 13 | F56: - Land and Buildings | G56: 0 | H56: 37087367 | I56: 37087367 | J56: C13
A57: 2022 | B57: 40914 | C57: 409 | D57: C | E57: 14 | F57: - Building/Leasehold Improvement | G57: 111525 | H57: 732239 | I57: 843764 | J57: C14
A58: 2022 | B58: 40915 | C58: 409 | D58: C | E58: 15 | F58: - Furniture and Equipment | G58: 1165127 | H58: 857030 | I58: 2022157 | J58: C15
A59: 2022 | B59: 40916 | C59: 409 | D59: C | E59: 16 | F59: - Less Accumulated Depreciation | G59: -514303 | H59: -3048220 | I59: -3562523 | J59: C16
A60: 2022 | B60: 40917 | C60: 409 | D60: C | E60: 17 | F60: Net Capital Assets | G60: 762349 | H60: 35628416 | I60: 36390765 | J60: C17
A61: 2022 | B61: 40918 | C61: 409 | D61: C | E61: 18 | F61: Restricted Noncurrent Assets | G61: 0 | H61: 1693432 | I61: 1693432 | J61: C18
A62: 2022 | B62: 40919 | C62: 409 | D62: C | E62: 19 | F62: Long-Term Investments | G62: 0 | H62: 9792163 | I62: 9792163 | J62: C19
A63: 2022 | B63: 40920 | C63: 409 | D63: C | E63: 20 | F63: Building Acquisition / Financing Costs / Deferred Expenses | G63: 0 | H63: 0 | I63: 0 | J63: C20
A64: 2022 | B64: 40921 | C64: 409 | D64: C | E64: 21 | F64: Long-Term Grants / Contributions Receivable | G64: 0 | H64: 0 | I64: 0 | J64: C21
A65: 2022 | B65: 40922 | C65: 409 | D65: C | E65: 22 | F65: TOTAL NONCURRENT ASSETS | G65: 762349 | H65: 47114011 | I65: 47876360 | J65: C22
A66: 2022 | B66: 40923 | C66: 409 | D66: C | E66: 23 | F66: TOTAL ASSETS | G66: 6749325 | H66: 48639335 | I66: 55388660 | J66: C23
A67: 2022 | B67: 40924 | C67: 409 | D67: =VLOOKUP(C67, TYPE, 3, FALSE) -> C | E67: 24 | F67: Accounts Payable | G67: 488487 | H67: 270758 | I67: 759245 | J67: C24
A68: 2022 | B68: =C68&E68 -> 40925 | C68: 409 | D68: C | E68: 25 | F68: Accrued Expenses / Accrued Payroll | G68: 848953 | H68: 13479 | I68: 862432 | J68: =D68&E68 -> C25
A69: 2022 | B69: 40926 | C69: 409 | D69: C | E69: 26 | F69: Deferred Revenue | G69: 0 | H69: 0 | I69: 0 | J69: C26
A70: 2022 | B70: 40927 | C70: 409 | D70: C | E70: 27 | F70: Due to related parties | G70: 0 | H70: 0 | I70: 0 | J70: C27
A71: 2022 | B71: 40928 | C71: 409 | D71: C | E71: 28 | F71: Current Debt Payable | G71: 0 | H71: 647304 | I71: 647304 | J71: C28
A72: 2022 | B72: 40929 | C72: 409 | D72: C | E72: 29 | F72: Current Lease Obligations Payable | G72: 22383 | H72: 0 | I72: 22383 | J72: C29
A73: 2022 | B73: 40930 | C73: 409 | D73: C | E73: 30 | F73: TOTAL CURRENT LIABILITIES | G73: 1359823 | H73: 931541 | I73: 2291364 | J73: C30
A74: 2022 | B74: 40931 | C74: 409 | D74: C | E74: 31 | F74: Noncurrent Lease Obligations | G74: 2773127 | H74: -2675411 | I74: 97716 | J74: C31
A75: 2022 | B75: 40932 | C75: 409 | D75: C | E75: 32 | F75: Long-Term Debt | G75: 0 | H75: 43732989 | I75: 43732989 | J75: C32
A76: 2022 | B76: 40933 | C76: 409 | D76: C | E76: 33 | F76: Deferred Revenue | G76: 0 | H76: 0 | I76: 0 | J76: C33
A77: 2022 | B77: 40934 | C77: 409 | D77: C | E77: 34 | F77: TOTAL NONCURRENT LIABILITIES | G77: 2773127 | H77: 41057578 | I77: 43830705 | J77: C34
A78: 2022 | B78: 40935 | C78: 409 | D78: C | E78: 35 | F78: TOTAL LIABILITIES | G78: 4132950 | H78: 41989119 | I78: 46122069 | J78: C35
A79: 2022 | B79: 40936 | C79: 409 | D79: C | E79: 36 | F79: Investment in capital assets (net of related debt) | G79: 642250 | H79: -6932951 | I79: -6290701 | J79: C36
A80: 2022 | B80: 40937 | C80: 409 | D80: C | E80: 37 | F80: Temporarily Restricted | G80: 0 | H80: 859465 | I80: 859465 | J80: C37
A81: 2022 | B81: 40938 | C81: 409 | D81: C | E81: 38 | F81: Permanently Restricted | G81: 0 | H81: 0 | I81: 0 | J81: C38
A82: 2022 | B82: 40939 | C82: 409 | D82: C | E82: 39 | F82: Unrestricted (non-capital) | G82: 1974125 | H82: 12723702 | I82: 14697827 | J82: C39
A83: 2022 | B83: 40940 | C83: 409 | D83: C | E83: 40 | F83: TOTAL NET ASSETS | G83: 2616375 | H83: 6650216 | I83: 9266591 | J83: C40
A84: 2022 | B84: 40941 | C84: 409 | D84: C | E84: 41 | F84: TOTAL LIABILITIES AND NET ASSETS | G84: 6749325 | H84: 48639335 | I84: 55388660 | J84: C41
A85: 2022 | B85: 41001 | C85: 410 | D85: C | E85: 01 | F85: Cash and Cash Equivalents | G85: 6000232 | H85: 7528650 | I85: 13528882 | J85: C01
A86: 2022 | B86: 41002 | C86: 410 | D86: C | E86: 02 | F86: Accounts Receivable net of doubtful accounts | G86: 14440 | H86: 79676 | I86: 94116 | J86: C02
A87: 2022 | B87: 41003 | C87: 410 | D87: C | E87: 03 | F87: Grants Receivable - State | G87: 307317 | H87: 0 | I87: 307317 | J87: C03
A88: 2022 | B88: 41004 | C88: 410 | D88: C | E88: 04 | F88: Grants Receivable - Federal | G88: 766102 | H88: 0 | I88: 766102 | J88: C04
A89: 2022 | B89: 41005 | C89: 410 | D89: C | E89: 05 | F89: Grants Receivable - Private | G89: 0 | H89: 768389 | I89: 768389 | J89: C05
A90: 2022 | B90: 41006 | C90: 410 | D90: C | E90: 06 | F90: Contributions Receivable | G90: 0 | H90: 0 | I90: 0 | J90: C06
A91: 2022 | B91: 41007 | C91: 410 | D91: C | E91: 07 | F91: Due from related parties | G91: -65589 | H91: 65589 | I91: 0 | J91: C07
A92: 2022 | B92: 41008 | C92: 410 | D92: C | E92: 08 | F92: Prepaid Expenses / Inventory | G92: 277773 | H92: 90237 | I92: 368010 | J92: C08
A93: 2022 | B93: 41009 | C93: 410 | D93: C | E93: 09 | F93: Short-Term Investments | G93: 0 | H93: 0 | I93: 0 | J93: C09
A94: 2022 | B94: 41010 | C94: 410 | D94: C | E94: 10 | F94: Deposit (Security, Other) | G94: 26000 | H94: 4635 | I94: 30635 | J94: C10
A95: 2022 | B95: 41011 | C95: 410 | D95: C | E95: 11 | F95: Restricted Current Assets | G95: 0 | H95: 0 | I95: 0 | J95: C11
A96: 2022 | B96: 41012 | C96: 410 | D96: C | E96: 12 | F96: TOTAL CURRENT ASSETS | G96: 7326275 | H96: 8537176 | I96: 15863451 | J96: C12
A97: 2022 | B97: 41013 | C97: 410 | D97: C | E97: 13 | F97: - Land and Buildings | G97: 0 | H97: 47247414 | I97: 47247414 | J97: C13
A98: 2022 | B98: 41014 | C98: 410 | D98: C | E98: 14 | F98: - Building/Leasehold Improvement | G98: 963389 | H98: 0 | I98: 963389 | J98: C14
A99: 2022 | B99: 41015 | C99: 410 | D99: C | E99: 15 | F99: - Furniture and Equipment | G99: 427696 | H99: 1060417 | I99: 1488113 | J99: C15
A100: 2022 | B100: 41016 | C100: 410 | D100: C | E100: 16 | F100: - Less Accumulated Depreciation | G100: -352971 | H100: -6081324 | I100: -6434295 | J100: C16
A101: 2022 | B101: 41017 | C101: 410 | D101: C | E101: 17 | F101: Net Capital Assets | G101: 1038114 | H101: 42226507 | I101: 43264621 | J101: C17
A102: 2022 | B102: 41018 | C102: 410 | D102: C | E102: 18 | F102: Restricted Noncurrent Assets | G102: 228762 | H102: 0 | I102: 228762 | J102: C18
A103: 2022 | B103: 41019 | C103: 410 | D103: C | E103: 19 | F103: Long-Term Investments | G103: 0 | H103: 0 | I103: 0 | J103: C19
A104: 2022 | B104: 41020 | C104: 410 | D104: C | E104: 20 | F104: Building Acquisition / Financing Costs / Deferred Expenses | G104: 2939641 | H104: 31051873 | I104: 33991514 | J104: C20
A105: 2022 | B105: 41021 | C105: 410 | D105: C | E105: 21 | F105: Long-Term Grants / Contributions Receivable | G105: 0 | H105: 85738 | I105: 85738 | J105: C21
A106: 2022 | B106: 41022 | C106: 410 | D106: C | E106: 22 | F106: TOTAL NONCURRENT ASSETS | G106: 4206517 | H106: 73364118 | I106: 77570635 | J106: C22
A107: 2022 | B107: 41023 | C107: 410 | D107: C | E107: 23 | F107: TOTAL ASSETS | G107: 11532792 | H107: 81901294 | I107: 93434086 | J107: C23
A108: 2022 | B108: 41024 | C108: 410 | D108: C | E108: 24 | F108: Accounts Payable | G108: 219655 | H108: 4786 | I108: 224441 | J108: C24
A109: 2022 | B109: 41025 | C109: 410 | D109: C | E109: 25 | F109: Accrued Expenses / Accrued Payroll | G109: 1753504 | H109: 610832 | I109: 2364336 | J109: C25
A110: 2022 | B110: 41026 | C110: 410 | D110: C | E110: 26 | F110: Deferred Revenue | G110: 41119 | H110: 110000 | I110: 151119 | J110: C26
A111: 2022 | B111: 41027 | C111: 410 | D111: C | E111: 27 | F111: Due to related parties | G111: 0 | H111: 0 | I111: 0 | J111: C27
A112: 2022 | B112: 41028 | C112: 410 | D112: C | E112: 28 | F112: Current Debt Payable | G112: 0 | H112: 940301 | I112: 940301 | J112: C28
A113: 2022 | B113: 41029 | C113: 410 | D113: C | E113: 29 | F113: Current Lease Obligations Payable | G113: 170322 | H113: 0 | I113: 170322 | J113: C29
A114: 2022 | B114: 41030 | C114: 410 | D114: C | E114: 30 | F114: TOTAL CURRENT LIABILITIES | G114: 2184600 | H114: 1665919 | I114: 3850519 | J114: C30
A115: 2022 | B115: 41031 | C115: 410 | D115: C | E115: 31 | F115: Noncurrent Lease Obligations | G115: 1645944 | H115: 0 | I115: 1645944 | J115: C31
A116: 2022 | B116: 41032 | C116: 410 | D116: C | E116: 32 | F116: Long-Term Debt | G116: 0 | H116: 27672820 | I116: 27672820 | J116: C32
A117: 2022 | B117: 41033 | C117: 410 | D117: C | E117: 33 | F117: Deferred Revenue | G117: 0 | H117: 32259290 | I117: 32259290 | J117: C33
A118: 2022 | B118: 41034 | C118: 410 | D118: C | E118: 34 | F118: TOTAL NONCURRENT LIABILITIES | G118: 1645944 | H118: 59932110 | I118: 61578054 | J118: C34
A119: 2022 | B119: 41035 | C119: 410 | D119: C | E119: 35 | F119: TOTAL LIABILITIES | G119: 3830544 | H119: 61598029 | I119: 65428573 | J119: C35
A120: 2022 | B120: 41036 | C120: 410 | D120: C | E120: 36 | F120: Investment in capital assets (net of related debt) | G120: 1284721 | H120: 12749585 | I120: 14034306 | J120: C36
A121: 2022 | B121: 41037 | C121: 410 | D121: C | E121: 37 | F121: Temporarily Restricted | G121: 0 | H121: 2987300 | I121: 2987300 | J121: C37
A122: 2022 | B122: 41038 | C122: 410 | D122: C | E122: 38 | F122: Permanently Restricted | G122: 0 | H122: 0 | I122: 0 | J122: C38
A123: 2022 | B123: 41039 | C123: 410 | D123: C | E123: 39 | F123: Unrestricted (non-capital) | G123: 6417527 | H123: 4566380 | I123: 10983907 | J123: C39
A124: 2022 | B124: 41040 | C124: 410 | D124: C | E124: 40 | F124: TOTAL NET ASSETS | G124: 7702248 | H124: 20303265 | I124: 28005513 | J124: C40
A125: 2022 | B125: 41041 | C125: 410 | D125: C | E125: 41 | F125: TOTAL LIABILITIES AND NET ASSETS | G125: 11532792 | H125: 81901294 | I125: 93434086 | J125: C41
A126: 2022 | B126: 41101 | C126: 411 | D126: HM | E126: 01 | F126: Cash and Cash Equivalents | G126: 1052667 | H126: 570542 | I126: 1623209 | J126: HM01
A127: 2022 | B127: 41102 | C127: 411 | D127: HM | E127: 02 | F127: Accounts Receivable net of doubtful accounts | G127: 7702.5 | H127: 0 | I127: 7702.5 | J127: HM02
A128: 2022 | B128: 41103 | C128: 411 | D128: HM | E128: 03 | F128: Grants Receivable - State | G128: 0 | H128: 0 | I128: 0 | J128: HM03
A129: 2022 | B129: 41104 | C129: 411 | D129: HM | E129: 04 | F129: Grants Receivable - Federal | G129: 182122.5 | H129: 0 | I129: 182122.5 | J129: HM04
A130: 2022 | B130: 41105 | C130: 411 | D130: HM | E130: 05 | F130: Grants Receivable - Private | G130: 0 | H130: 0 | I130: 0 | J130: HM05
A131: 2022 | B131: 41106 | C131: 411 | D131: =VLOOKUP(C131, TYPE, 3, FALSE) -> HM | E131: 06 | F131: Contributions Receivable | G131: 0 | H131: 0 | I131: 0 | J131: HM06
A132: 2022 | B132: =C132&E132 -> 41107 | C132: 411 | D132: HM | E132: 07 | F132: Due from related parties | G132: 30264 | H132: -30264 | I132: 0 | J132: =D132&E132 -> HM07
A133: 2022 | B133: 41108 | C133: 411 | D133: HM | E133: 08 | F133: Prepaid Expenses / Inventory | G133: 29330 | H133: 0 | I133: 29330 | J133: HM08
A134: 2022 | B134: 41109 | C134: 411 | D134: HM | E134: 09 | F134: Short-Term Investments | G134: 0 | H134: 0 | I134: 0 | J134: HM09
A135: 2022 | B135: 41110 | C135: 411 | D135: HM | E135: 10 | F135: Deposit (Security, Other) | G135: 0 | H135: 0 | I135: 0 | J135: HM10
A136: 2022 | B136: 41111 | C136: 411 | D136: HM | E136: 11 | F136: Restricted Current Assets | G136: 0 | H136: 0 | I136: 0 | J136: HM11
A137: 2022 | B137: 41112 | C137: 411 | D137: HM | E137: 12 | F137: TOTAL CURRENT ASSETS | G137: 1302086 | H137: 540278 | I137: 1842364 | J137: HM12
A138: 2022 | B138: 41113 | C138: 411 | D138: HM | E138: 13 | F138: - Land and Buildings | G138: 0 | H138: 0 | I138: 0 | J138: HM13
A139: 2022 | B139: 41114 | C139: 411 | D139: HM | E139: 14 | F139: - Building/Leasehold Improvement | G139: 0 | H139: 0 | I139: 0 | J139: HM14
A140: 2022 | B140: 41115 | C140: 411 | D140: HM | E140: 15 | F140: - Furniture and Equipment | G140: 412982 | H140: 0 | I140: 412982 | J140: HM15
A141: 2022 | B141: 41116 | C141: 411 | D141: HM | E141: 16 | F141: - Less Accumulated Depreciation | G141: -243980 | H141: 0 | I141: -243980 | J141: HM16
A142: 2022 | B142: 41117 | C142: 411 | D142: HM | E142: 17 | F142: Net Capital Assets | G142: 169002 | H142: 0 | I142: 169002 | J142: HM17
A143: 2022 | B143: 41118 | C143: 411 | D143: HM | E143: 18 | F143: Restricted Noncurrent Assets | G143: 0 | H143: 0 | I143: 0 | J143: HM18
A144: 2022 | B144: 41119 | C144: 411 | D144: HM | E144: 19 | F144: Long-Term Investments | G144: 0 | H144: 0 | I144: 0 | J144: HM19
A145: 2022 | B145: 41120 | C145: 411 | D145: HM | E145: 20 | F145: Building Acquisition / Financing Costs / Deferred Expenses | G145: 0 | H145: 0 | I145: 0 | J145: HM20
A146: 2022 | B146: 41121 | C146: 411 | D146: HM | E146: 21 | F146: Long-Term Grants / Contributions Receivable | G146: 0 | H146: 0 | I146: 0 | J146: HM21
A147: 2022 | B147: 41122 | C147: 411 | D147: HM | E147: 22 | F147: TOTAL NONCURRENT ASSETS | G147: 169002 | H147: 0 | I147: 169002 | J147: HM22
A148: 2022 | B148: 41123 | C148: 411 | D148: HM | E148: 23 | F148: TOTAL ASSETS | G148: 1471088 | H148: 540278 | I148: 2011366 | J148: HM23
A149: 2022 | B149: 41124 | C149: 411 | D149: HM | E149: 24 | F149: Accounts Payable | G149: 668732 | H149: 0 | I149: 668732 | J149: HM24
A150: 2022 | B150: 41125 | C150: 411 | D150: HM | E150: 25 | F150: Accrued Expenses / Accrued Payroll | G150: 0 | H150: 0 | I150: 0 | J150: HM25
A151: 2022 | B151: 41126 | C151: 411 | D151: HM | E151: 26 | F151: Deferred Revenue | G151: 392030 | H151: 0 | I151: 392030 | J151: HM26
A152: 2022 | B152: 41127 | C152: 411 | D152: HM | E152: 27 | F152: Due to related parties | G152: 0 | H152: 0 | I152: 0 | J152: HM27
A153: 2022 | B153: 41128 | C153: 411 | D153: HM | E153: 28 | F153: Current Debt Payable | G153: 0 | H153: 0 | I153: 0 | J153: HM28
A154: 2022 | B154: 41129 | C154: 411 | D154: HM | E154: 29 | F154: Current Lease Obligations Payable | G154: 0 | H154: 0 | I154: 0 | J154: HM29
A155: 2022 | B155: 41130 | C155: 411 | D155: HM | E155: 30 | F155: TOTAL CURRENT LIABILITIES | G155: 1060762 | H155: 0 | I155: 1060762 | J155: HM30
A156: 2022 | B156: 41131 | C156: 411 | D156: HM | E156: 31 | F156: Noncurrent Lease Obligations | G156: 0 | H156: 0 | I156: 0 | J156: HM31
A157: 2022 | B157: 41132 | C157: 411 | D157: HM | E157: 32 | F157: Long-Term Debt | G157: 0 | H157: 0 | I157: 0 | J157: HM32
A158: 2022 | B158: 41133 | C158: 411 | D158: HM | E158: 33 | F158: Deferred Revenue | G158: 0 | H158: 0 | I158: 0 | J158: HM33
A159: 2022 | B159: 41134 | C159: 411 | D159: HM | E159: 34 | F159: TOTAL NONCURRENT LIABILITIES | G159: 0 | H159: 0 | I159: 0 | J159: HM34
A160: 2022 | B160: 41135 | C160: 411 | D160: HM | E160: 35 | F160: TOTAL LIABILITIES | G160: 1060762 | H160: 0 | I160: 1060762 | J160: HM35
A161: 2022 | B161: 41136 | C161: 411 | D161: HM | E161: 36 | F161: Investment in capital assets (net of related debt) | G161: 169002 | H161: 0 | I161: 169002 | J161: HM36
A162: 2022 | B162: 41137 | C162: 411 | D162: HM | E162: 37 | F162: Temporarily Restricted | G162: 0 | H162: 42154 | I162: 42154 | J162: HM37
A163: 2022 | B163: 41138 | C163: 411 | D163: HM | E163: 38 | F163: Permanently Restricted | G163: 0 | H163: 0 | I163: 0 | J163: HM38
A164: 2022 | B164: 41139 | C164: 411 | D164: HM | E164: 39 | F164: Unrestricted (non-capital) | G164: 241324 | H164: 498124 | I164: 739448 | J164: HM39
A165: 2022 | B165: 41140 | C165: 411 | D165: HM | E165: 40 | F165: TOTAL NET ASSETS | G165: 410326 | H165: 540278 | I165: 950604 | J165: HM40
A166: 2022 | B166: 41141 | C166: 411 | D166: HM | E166: 41 | F166: TOTAL LIABILITIES AND NET ASSETS | G166: 1471088 | H166: 540278 | I166: 2011366 | J166: HM41
A167: 2022 | B167: 41201 | C167: 412 | D167: C | E167: 01 | F167: Cash and Cash Equivalents | G167: 6310345 | H167: 630872 | I167: 6941217 | J167: C01
A168: 2022 | B168: 41202 | C168: 412 | D168: C | E168: 02 | F168: Accounts Receivable net of doubtful accounts | G168: 0 | H168: 0 | I168: 0 | J168: C02
A169: 2022 | B169: 41203 | C169: 412 | D169: C | E169: 03 | F169: Grants Receivable - State | G169: 0 | H169: 0 | I169: 0 | J169: C03
A170: 2022 | B170: 41204 | C170: 412 | D170: C | E170: 04 | F170: Grants Receivable - Federal | G170: 1062488 | H170: 0 | I170: 1062488 | J170: C04
A171: 2022 | B171: 41205 | C171: 412 | D171: C | E171: 05 | F171: Grants Receivable - Private | G171: 0 | H171: 0 | I171: 0 | J171: C05
A172: 2022 | B172: 41206 | C172: 412 | D172: C | E172: 06 | F172: Contributions Receivable | G172: 0 | H172: 0 | I172: 0 | J172: C06
A173: 2022 | B173: 41207 | C173: 412 | D173: C | E173: 07 | F173: Due from related parties | G173: 12216 | H173: -12216 | I173: 0 | J173: C07
A174: 2022 | B174: 41208 | C174: 412 | D174: C | E174: 08 | F174: Prepaid Expenses / Inventory | G174: 100807 | H174: 0 | I174: 100807 | J174: C08
A175: 2022 | B175: 41209 | C175: 412 | D175: C | E175: 09 | F175: Short-Term Investments | G175: 0 | H175: 0 | I175: 0 | J175: C09
A176: 2022 | B176: 41210 | C176: 412 | D176: C | E176: 10 | F176: Deposit (Security, Other) | G176: 0 | H176: 0 | I176: 0 | J176: C10
A177: 2022 | B177: 41211 | C177: 412 | D177: C | E177: 11 | F177: Restricted Current Assets | G177: 0 | H177: 0 | I177: 0 | J177: C11
A178: 2022 | B178: 41212 | C178: 412 | D178: C | E178: 12 | F178: TOTAL CURRENT ASSETS | G178: 7485856 | H178: 618656 | I178: 8104512 | J178: C12
A179: 2022 | B179: 41213 | C179: 412 | D179: C | E179: 13 | F179: - Land and Buildings | G179: 5000000 | H179: 0 | I179: 5000000 | J179: C13
A180: 2022 | B180: 41214 | C180: 412 | D180: C | E180: 14 | F180: - Building/Leasehold Improvement | G180: 12148669 | H180: 0 | I180: 12148669 | J180: C14
A181: 2022 | B181: 41215 | C181: 412 | D181: C | E181: 15 | F181: - Furniture and Equipment | G181: 1347773 | H181: 0 | I181: 1347773 | J181: C15
A182: 2022 | B182: 41216 | C182: 412 | D182: C | E182: 16 | F182: - Less Accumulated Depreciation | G182: -8716592 | H182: 0 | I182: -8716592 | J182: C16
A183: 2022 | B183: 41217 | C183: 412 | D183: C | E183: 17 | F183: Net Capital Assets | G183: 9779850 | H183: 0 | I183: 9779850 | J183: C17
A184: 2022 | B184: 41218 | C184: 412 | D184: C | E184: 18 | F184: Restricted Noncurrent Assets | G184: 302700 | H184: 0 | I184: 302700 | J184: C18
A185: 2022 | B185: 41219 | C185: 412 | D185: C | E185: 19 | F185: Long-Term Investments | G185: 0 | H185: 0 | I185: 0 | J185: C19
A186: 2022 | B186: 41220 | C186: 412 | D186: C | E186: 20 | F186: Building Acquisition / Financing Costs / Deferred Expenses | G186: 0 | H186: 0 | I186: 0 | J186: C20
A187: 2022 | B187: 41221 | C187: 412 | D187: C | E187: 21 | F187: Long-Term Grants / Contributions Receivable | G187: 0 | H187: 0 | I187: 0 | J187: C21
A188: 2022 | B188: 41222 | C188: 412 | D188: C | E188: 22 | F188: TOTAL NONCURRENT ASSETS | G188: 10082550 | H188: 0 | I188: 10082550 | J188: C22
A189: 2022 | B189: 41223 | C189: 412 | D189: C | E189: 23 | F189: TOTAL ASSETS | G189: 17568406 | H189: 618656 | I189: 18187062 | J189: C23
A190: 2022 | B190: 41224 | C190: 412 | D190: C | E190: 24 | F190: Accounts Payable | G190: 297755 | H190: 0 | I190: 297755 | J190: C24
A191: 2022 | B191: 41225 | C191: 412 | D191: C | E191: 25 | F191: Accrued Expenses / Accrued Payroll | G191: 482708 | H191: 0 | I191: 482708 | J191: C25
A192: 2022 | B192: 41226 | C192: 412 | D192: C | E192: 26 | F192: Deferred Revenue | G192: 187740 | H192: 0 | I192: 187740 | J192: C26
A193: 2022 | B193: 41227 | C193: 412 | D193: C | E193: 27 | F193: Due to related parties | G193: 0 | H193: 0 | I193: 0 | J193: C27
A194: 2022 | B194: 41228 | C194: 412 | D194: C | E194: 28 | F194: Current Debt Payable | G194: 198185 | H194: 0 | I194: 198185 | J194: C28
A195: 2022 | B195: 41229 | C195: 412 | D195: =VLOOKUP(C195, TYPE, 3, FALSE) -> C | E195: 29 | F195: Current Lease Obligations Payable | G195: 0 | H195: 0 | I195: 0 | J195: C29
A196: 2022 | B196: =C196&E196 -> 41230 | C196: 412 | D196: C | E196: 30 | F196: TOTAL CURRENT LIABILITIES | G196: 1166388 | H196: 0 | I196: 1166388 | J196: =D196&E196 -> C30
A197: 2022 | B197: 41231 | C197: 412 | D197: C | E197: 31 | F197: Noncurrent Lease Obligations | G197: 0 | H197: 0 | I197: 0 | J197: C31
A198: 2022 | B198: 41232 | C198: 412 | D198: C | E198: 32 | F198: Long-Term Debt | G198: 8592365 | H198: 0 | I198: 8592365 | J198: C32
A199: 2022 | B199: 41233 | C199: 412 | D199: C | E199: 33 | F199: Deferred Revenue | G199: 0 | H199: 0 | I199: 0 | J199: C33
A200: 2022 | B200: 41234 | C200: 412 | D200: C | E200: 34 | F200: TOTAL NONCURRENT LIABILITIES | G200: 8592365 | H200: 0 | I200: 8592365 | J200: C34
... 3123 more rows

Sheet INC22 (hidden)
B1: 1 | C1: 2 | D1: 3 | E1: 4 | F1: 5 | G1: 6 | H1: 7 | I1: 8
A2: FY | B2: vlookup | C2: cha_code | D2: cha_type | E2: income_id | F2: Line_Desc | G2: income_sch | H2: income_found | I2: income_total
A3: 2022 | B3: =C3&E3 -> 40701 | C3: 407 | D3: =VLOOKUP(C3, TYPE, 3, FALSE) -> HM | E3: 01 | F3: Tuition | G3: 4789998 | H3: 0 | I3: 4789998 | J3: =D3&E3 -> HM01
A4: 2022 | B4: =C4&E4 -> 40702a | C4: 407 | D4: HM | E4: 02a | F4: Grants - State - passed through ESE | G4: 0 | H4: 0 | I4: 0 | J4: =D4&E4 -> HM02a
A5: 2022 | B5: 40702b | C5: 407 | D5: HM | E5: 02b | F5: Grants - State - other non-ESE pass-through | G5: 0 | H5: 0 | I5: 0 | J5: HM02b
A6: 2022 | B6: 40703 | C6: 407 | D6: HM | E6: 03 | F6: Grants - Federal - Passed through ESE | G6: 957183 | H6: 0 | I6: 957183 | J6: HM03
A7: 2022 | B7: 40704 | C7: 407 | D7: HM | E7: 04 | F7: Grants - Federal - Direct or other pass-through | G7: 0 | H7: 0 | I7: 0 | J7: HM04
A8: 2022 | B8: 40705a | C8: 407 | D8: HM | E8: 05a | F8: Grants - Private (restricted) | G8: 4483 | H8: 0 | I8: 4483 | J8: HM05a
A9: 2022 | B9: 40705b | C9: 407 | D9: HM | E9: 05b | F9: Grants - Private (unrestricted) | G9: 0 | H9: 0 | I9: 0 | J9: HM05b
A10: 2022 | B10: 40706 | C10: 407 | D10: HM | E10: 06 | F10: Nutrition Funding - State | G10: 0 | H10: 0 | I10: 0 | J10: HM06
A11: 2022 | B11: 40707 | C11: 407 | D11: HM | E11: 07 | F11: Nutrition Funding - Federal | G11: 0 | H11: 0 | I11: 0 | J11: HM07
A12: 2022 | B12: 40708 | C12: 407 | D12: HM | E12: 08 | F12: Nutrition Funding - Fees | G12: 0 | H12: 0 | I12: 0 | J12: HM08
A13: 2022 | B13: 40709 | C13: 407 | D13: HM | E13: 09 | F13: Other Program / Student Activity Fees | G13: 3763 | H13: 0 | I13: 3763 | J13: HM09
A14: 2022 | B14: 40710 | C14: 407 | D14: HM | E14: 10 | F14: Regional Transportation Aid | G14: 0 | H14: 0 | I14: 0 | J14: HM10
A15: 2022 | B15: 40711 | C15: 407 | D15: HM | E15: 11 | F15: Medicaid Reimbursements | G15: 0 | H15: 0 | I15: 0 | J15: HM11
A16: 2022 | B16: 40712 | C16: 407 | D16: HM | E16: 12 | F16: Circuit Breaker Reimbursements | G16: 0 | H16: 0 | I16: 0 | J16: HM12
A17: 2022 | B17: 40713a | C17: 407 | D17: HM | E17: 13a | F17: Contributions, in-kind, host district | G17: 1036233 | H17: 0 | I17: 1036233 | J17: HM13a
A18: 2022 | B18: 40713b | C18: 407 | D18: HM | E18: 13b | F18: Contributions, in-kind, other | G18: 0 | H18: 0 | I18: 0 | J18: HM13b
A19: 2022 | B19: 40713c | C19: 407 | D19: HM | E19: 13c | F19: Contributions, on-behalf, pension | G19: 0 | H19: 0 | I19: 0 | J19: HM13c
A20: 2022 | B20: 40714 | C20: 407 | D20: HM | E20: 14 | F20: Contributions, from Component Unit (restricted) | G20: 0 | H20: 0 | I20: 0 | J20: HM14
A21: 2022 | B21: 40714b | C21: 407 | D21: HM | E21: 14b | F21: Contributions, from Component Unit (unrestricted) | G21: 0 | H21: 0 | I21: 0 | J21: HM14b
A22: 2022 | B22: 40715 | C22: 407 | D22: HM | E22: 15 | F22: Contributions / Fundraising (restricted) | G22: 0 | H22: 0 | I22: 0 | J22: HM15
A23: 2022 | B23: 40715b | C23: 407 | D23: HM | E23: 15b | F23: Contributions / Fundraising (unrestricted) | G23: 0 | H23: 0 | I23: 0 | J23: HM15b
A24: 2022 | B24: 40716 | C24: 407 | D24: HM | E24: 16 | F24: Interest / Investment Income (restricted) | G24: 0 | H24: 0 | I24: 0 | J24: HM16
A25: 2022 | B25: 40716a | C25: 407 | D25: HM | E25: 16a | F25: Interest / Investment Income (unrestricted) | G25: 0 | H25: 0 | I25: 0 | J25: HM16a
A26: 2022 | B26: 40717 | C26: 407 | D26: HM | E26: 17 | F26: Rental Income | G26: 0 | H26: 0 | I26: 0 | J26: HM17
A27: 2022 | B27: 40718 | C27: 407 | D27: HM | E27: 18 | F27: Loan Forgiveness or Other Reimbursement | G27: 0 | H27: 0 | I27: 0 | J27: HM18
A28: 2022 | B28: 40719 | C28: 407 | D28: HM | E28: 19 | F28: Miscellaneous Income | G28: 0 | H28: 0 | I28: 0 | J28: HM19
A29: 2022 | B29: 40720 | C29: 407 | D29: HM | E29: 20 | F29: TOTAL REVENUES | G29: 6791660 | H29: 0 | I29: 6791660 | J29: HM20
A30: 2022 | B30: 40721 | C30: 407 | D30: HM | E30: 21 | F30: Administration | G30: 1479068.4 | H30: 0 | I30: 1479068.4 | J30: HM21
A31: 2022 | B31: 40722 | C31: 407 | D31: HM | E31: 22 | F31: Instructional Services | G31: 2985822.14 | H31: 0 | I31: 2985822.14 | J31: HM22
A32: 2022 | B32: 40723 | C32: 407 | D32: HM | E32: 23 | F32: Pupil Services | G32: 679144.99 | H32: 0 | I32: 679144.99 | J32: HM23
A33: 2022 | B33: 40724 | C33: 407 | D33: HM | E33: 24 | F33: Operation & Maintenance of Plant | G33: 341998.5 | H33: 0 | I33: 341998.5 | J33: HM24
A34: 2022 | B34: 40725 | C34: 407 | D34: HM | E34: 25 | F34: Benefits and Other Fixed Charges | G34: 1067013.75 | H34: 0 | I34: 1067013.75 | J34: HM25
A35: 2022 | B35: 40726 | C35: 407 | D35: HM | E35: 26 | F35: Community Services | G35: 0 | H35: 0 | I35: 0 | J35: HM26
A36: 2022 | B36: 40727 | C36: 407 | D36: HM | E36: 27 | F36: Non-Operating Financing Expenses | G36: 0 | H36: 0 | I36: 0 | J36: HM27
A37: 2022 | B37: 40728 | C37: 407 | D37: HM | E37: 28 | F37: Component Unit Expenses | G37: 0 | H37: 0 | I37: 0 | J37: HM28
A38: 2022 | B38: 40729 | C38: 407 | D38: HM | E38: 29 | F38: Contributions to School | G38: 0 | H38: 0 | I38: 0 | J38: HM29
A39: 2022 | B39: 40730 | C39: 407 | D39: HM | E39: 30 | F39: TOTAL EXPENSES | G39: 6553047.78 | H39: 0 | I39: 6553047.78 | J39: HM30
A40: 2022 | B40: 40731 | C40: 407 | D40: HM | E40: 31 | F40: TOTAL GAIN/(LOSS) | G40: 238612.22 | H40: 0 | I40: 238612.22 | J40: HM31
A41: 2022 | B41: 40732 | C41: 407 | D41: HM | E41: 32 | F41: Gain/Loss on Sale of Asset or Lease Transaction | G41: 0 | H41: 0 | I41: 0 | J41: HM32
A42: 2022 | B42: 40733 | C42: 407 | D42: HM | E42: 33 | F42: Other Gain/Loss | G42: 0 | H42: 0 | I42: 0 | J42: HM33
A43: 2022 | B43: 40734 | C43: 407 | D43: HM | E43: 34 | F43: TOTAL CHANGES IN NET ASSETS: | G43: 238612.22 | H43: 0 | I43: 238612.22 | J43: HM34
A44: 2022 | B44: 40735 | C44: 407 | D44: HM | E44: 35 | F44: NET ASSETS AT BEGINNING OF YEAR | G44: 415369 | H44: 0 | I44: 415369 | J44: HM35
A45: 2022 | B45: 40736 | C45: 407 | D45: HM | E45: 36 | F45: NET ASSETS AT END OF YEAR | G45: 653981 | H45: 0 | I45: 653981 | J45: HM36
A46: 2022 | B46: 40901 | C46: 409 | D46: C | E46: 01 | F46: Tuition | G46: 14674019 | H46: 0 | I46: 14674019 | J46: C01
A47: 2022 | B47: 40902a | C47: 409 | D47: C | E47: 02a | F47: Grants - State - passed through ESE | G47: 14000 | H47: 0 | I47: 14000 | J47: C02a
A48: 2022 | B48: 40902b | C48: 409 | D48: C | E48: 02b | F48: Grants - State - other non-ESE pass-through | G48: 0 | H48: 0 | I48: 0 | J48: C02b
A49: 2022 | B49: 40903 | C49: 409 | D49: C | E49: 03 | F49: Grants - Federal - Passed through ESE | G49: 1297310 | H49: 0 | I49: 1297310 | J49: C03
A50: 2022 | B50: 40904 | C50: 409 | D50: C | E50: 04 | F50: Grants - Federal - Direct or other pass-through | G50: 1559329 | H50: 0 | I50: 1559329 | J50: C04
A51: 2022 | B51: 40905a | C51: 409 | D51: C | E51: 05a | F51: Grants - Private (restricted) | G51: 0 | H51: 0 | I51: 0 | J51: C05a
A52: 2022 | B52: 40905b | C52: 409 | D52: C | E52: 05b | F52: Grants - Private (unrestricted) | G52: 524536 | H52: 0 | I52: 524536 | J52: C05b
A53: 2022 | B53: 40906 | C53: 409 | D53: C | E53: 06 | F53: Nutrition Funding - State | G53: 9852 | H53: 0 | I53: 9852 | J53: C06
A54: 2022 | B54: 40907 | C54: 409 | D54: C | E54: 07 | F54: Nutrition Funding - Federal | G54: 860222 | H54: 0 | I54: 860222 | J54: C07
A55: 2022 | B55: 40908 | C55: 409 | D55: C | E55: 08 | F55: Nutrition Funding - Fees | G55: 0 | H55: 0 | I55: 0 | J55: C08
A56: 2022 | B56: 40909 | C56: 409 | D56: C | E56: 09 | F56: Other Program / Student Activity Fees | G56: 0 | H56: 0 | I56: 0 | J56: C09
A57: 2022 | B57: 40910 | C57: 409 | D57: C | E57: 10 | F57: Regional Transportation Aid | G57: 0 | H57: 0 | I57: 0 | J57: C10
A58: 2022 | B58: 40911 | C58: 409 | D58: C | E58: 11 | F58: Medicaid Reimbursements | G58: 16565 | H58: 0 | I58: 16565 | J58: C11
A59: 2022 | B59: 40912 | C59: 409 | D59: C | E59: 12 | F59: Circuit Breaker Reimbursements | G59: 0 | H59: 0 | I59: 0 | J59: C12
A60: 2022 | B60: 40913a | C60: 409 | D60: C | E60: 13a | F60: Contributions, in-kind, host district | G60: 1853650 | H60: 0 | I60: 1853650 | J60: C13a
A61: 2022 | B61: 40913b | C61: 409 | D61: C | E61: 13b | F61: Contributions, in-kind, other | G61: 0 | H61: 0 | I61: 0 | J61: C13b
A62: 2022 | B62: 40913c | C62: 409 | D62: C | E62: 13c | F62: Contributions, on-behalf, pension | G62: 1185467 | H62: 0 | I62: 1185467 | J62: C13c
A63: 2022 | B63: 40914 | C63: 409 | D63: C | E63: 14 | F63: Contributions, from Component Unit (restricted) | G63: 0 | H63: 0 | I63: 0 | J63: C14
A64: 2022 | B64: 40914b | C64: 409 | D64: C | E64: 14b | F64: Contributions, from Component Unit (unrestricted) | G64: 0 | H64: 0 | I64: 0 | J64: C14b
A65: 2022 | B65: 40915 | C65: 409 | D65: C | E65: 15 | F65: Contributions / Fundraising (restricted) | G65: 0 | H65: 113187 | I65: 113187 | J65: C15
A66: 2022 | B66: 40915b | C66: 409 | D66: C | E66: 15b | F66: Contributions / Fundraising (unrestricted) | G66: 0 | H66: 396738 | I66: 396738 | J66: C15b
A67: 2022 | B67: 40916 | C67: 409 | D67: =VLOOKUP(C67, TYPE, 3, FALSE) -> C | E67: 16 | F67: Interest / Investment Income (restricted) | G67: 0 | H67: 0 | I67: 0 | J67: C16
A68: 2022 | B68: =C68&E68 -> 40916a | C68: 409 | D68: C | E68: 16a | F68: Interest / Investment Income (unrestricted) | G68: 1053 | H68: 112371 | I68: 113424 | J68: =D68&E68 -> C16a
A69: 2022 | B69: 40917 | C69: 409 | D69: C | E69: 17 | F69: Rental Income | G69: 0 | H69: 1811793 | I69: 1811793 | J69: C17
A70: 2022 | B70: 40918 | C70: 409 | D70: C | E70: 18 | F70: Loan Forgiveness or Other Reimbursement | G70: 0 | H70: 0 | I70: 0 | J70: C18
A71: 2022 | B71: 40919 | C71: 409 | D71: C | E71: 19 | F71: Miscellaneous Income | G71: 95002 | H71: 390800 | I71: 485802 | J71: C19
A72: 2022 | B72: 40920 | C72: 409 | D72: C | E72: 20 | F72: TOTAL REVENUES | G72: 22091005 | H72: 2824889 | I72: 24915894 | J72: C20
A73: 2022 | B73: 40921 | C73: 409 | D73: C | E73: 21 | F73: Administration | G73: 1000558 | H73: 0 | I73: 1000558 | J73: C21
A74: 2022 | B74: 40922 | C74: 409 | D74: C | E74: 22 | F74: Instructional Services | G74: 10755987 | H74: 0 | I74: 10755987 | J74: C22
A75: 2022 | B75: 40923 | C75: 409 | D75: C | E75: 23 | F75: Pupil Services | G75: 3490303 | H75: 0 | I75: 3490303 | J75: C23
A76: 2022 | B76: 40924 | C76: 409 | D76: C | E76: 24 | F76: Operation & Maintenance of Plant | G76: 1215199 | H76: 0 | I76: 1215199 | J76: C24
A77: 2022 | B77: 40925 | C77: 409 | D77: C | E77: 25 | F77: Benefits and Other Fixed Charges | G77: 2521067 | H77: 0 | I77: 2521067 | J77: C25
A78: 2022 | B78: 40926 | C78: 409 | D78: C | E78: 26 | F78: Community Services | G78: 0 | H78: 0 | I78: 0 | J78: C26
A79: 2022 | B79: 40927 | C79: 409 | D79: C | E79: 27 | F79: Non-Operating Financing Expenses | G79: 2437075 | H79: 0 | I79: 2437075 | J79: C27
A80: 2022 | B80: 40928 | C80: 409 | D80: C | E80: 28 | F80: Component Unit Expenses | G80: 0 | H80: 2140814 | I80: 2140814 | J80: C28
A81: 2022 | B81: 40929 | C81: 409 | D81: C | E81: 29 | F81: Contributions to School | G81: 0 | H81: 524306 | I81: 524306 | J81: C29
A82: 2022 | B82: 40930 | C82: 409 | D82: C | E82: 30 | F82: TOTAL EXPENSES | G82: 21420189 | H82: 2665120 | I82: 24085309 | J82: C30
A83: 2022 | B83: 40931 | C83: 409 | D83: C | E83: 31 | F83: TOTAL GAIN/(LOSS) | G83: 670816 | H83: 159769 | I83: 830585 | J83: C31
A84: 2022 | B84: 40932 | C84: 409 | D84: C | E84: 32 | F84: Gain/Loss on Sale of Asset or Lease Transaction | G84: 0 | H84: 0 | I84: 0 | J84: C32
A85: 2022 | B85: 40933 | C85: 409 | D85: C | E85: 33 | F85: Other Gain/Loss | G85: 0 | H85: -5000 | I85: -5000 | J85: C33
A86: 2022 | B86: 40934 | C86: 409 | D86: C | E86: 34 | F86: TOTAL CHANGES IN NET ASSETS: | G86: 670816 | H86: 154769 | I86: 825585 | J86: C34
A87: 2022 | B87: 40935 | C87: 409 | D87: C | E87: 35 | F87: NET ASSETS AT BEGINNING OF YEAR | G87: 1945559 | H87: 6495447 | I87: 8441006 | J87: C35
A88: 2022 | B88: 40936 | C88: 409 | D88: C | E88: 36 | F88: NET ASSETS AT END OF YEAR | G88: 2616375 | H88: 6650216 | I88: 9266591 | J88: C36
A89: 2022 | B89: 41001 | C89: 410 | D89: C | E89: 01 | F89: Tuition | G89: 26810572 | H89: 0 | I89: 26810572 | J89: C01
A90: 2022 | B90: 41002a | C90: 410 | D90: C | E90: 02a | F90: Grants - State - passed through ESE | G90: 62980 | H90: 0 | I90: 62980 | J90: C02a
A91: 2022 | B91: 41002b | C91: 410 | D91: C | E91: 02b | F91: Grants - State - other non-ESE pass-through | G91: 0 | H91: 0 | I91: 0 | J91: C02b
A92: 2022 | B92: 41003 | C92: 410 | D92: C | E92: 03 | F92: Grants - Federal - Passed through ESE | G92: 3967207 | H92: 0 | I92: 3967207 | J92: C03
A93: 2022 | B93: 41004 | C93: 410 | D93: C | E93: 04 | F93: Grants - Federal - Direct or other pass-through | G93: 0 | H93: 520389 | I93: 520389 | J93: C04
A94: 2022 | B94: 41005a | C94: 410 | D94: C | E94: 05a | F94: Grants - Private (restricted) | G94: 0 | H94: 0 | I94: 0 | J94: C05a
A95: 2022 | B95: 41005b | C95: 410 | D95: C | E95: 05b | F95: Grants - Private (unrestricted) | G95: 0 | H95: 0 | I95: 0 | J95: C05b
A96: 2022 | B96: 41006 | C96: 410 | D96: C | E96: 06 | F96: Nutrition Funding - State | G96: 8915 | H96: 0 | I96: 8915 | J96: C06
A97: 2022 | B97: 41007 | C97: 410 | D97: C | E97: 07 | F97: Nutrition Funding - Federal | G97: 502195 | H97: 0 | I97: 502195 | J97: C07
A98: 2022 | B98: 41008 | C98: 410 | D98: C | E98: 08 | F98: Nutrition Funding - Fees | G98: 0 | H98: 0 | I98: 0 | J98: C08
A99: 2022 | B99: 41009 | C99: 410 | D99: C | E99: 09 | F99: Other Program / Student Activity Fees | G99: 0 | H99: 0 | I99: 0 | J99: C09
A100: 2022 | B100: 41010 | C100: 410 | D100: C | E100: 10 | F100: Regional Transportation Aid | G100: 321695 | H100: 0 | I100: 321695 | J100: C10
A101: 2022 | B101: 41011 | C101: 410 | D101: C | E101: 11 | F101: Medicaid Reimbursements | G101: 247315 | H101: 0 | I101: 247315 | J101: C11
A102: 2022 | B102: 41012 | C102: 410 | D102: C | E102: 12 | F102: Circuit Breaker Reimbursements | G102: 0 | H102: 0 | I102: 0 | J102: C12
A103: 2022 | B103: 41013a | C103: 410 | D103: C | E103: 13a | F103: Contributions, in-kind, host district | G103: 221800 | H103: 0 | I103: 221800 | J103: C13a
A104: 2022 | B104: 41013b | C104: 410 | D104: C | E104: 13b | F104: Contributions, in-kind, other | G104: 0 | H104: 6962 | I104: 6962 | J104: C13b
A105: 2022 | B105: 41013c | C105: 410 | D105: C | E105: 13c | F105: Contributions, on-behalf, pension | G105: 2852722 | H105: 0 | I105: 2852722 | J105: C13c
A106: 2022 | B106: 41014 | C106: 410 | D106: C | E106: 14 | F106: Contributions, from Component Unit (restricted) | G106: 201263 | H106: 0 | I106: 201263 | J106: C14
A107: 2022 | B107: 41014b | C107: 410 | D107: C | E107: 14b | F107: Contributions, from Component Unit (unrestricted) | G107: 0 | H107: 0 | I107: 0 | J107: C14b
A108: 2022 | B108: 41015 | C108: 410 | D108: C | E108: 15 | F108: Contributions / Fundraising (restricted) | G108: 0 | H108: 3854325 | I108: 3854325 | J108: C15
A109: 2022 | B109: 41015b | C109: 410 | D109: C | E109: 15b | F109: Contributions / Fundraising (unrestricted) | G109: 0 | H109: 879883 | I109: 879883 | J109: C15b
A110: 2022 | B110: 41016 | C110: 410 | D110: C | E110: 16 | F110: Interest / Investment Income (restricted) | G110: 0 | H110: 0 | I110: 0 | J110: C16
A111: 2022 | B111: 41016a | C111: 410 | D111: C | E111: 16a | F111: Interest / Investment Income (unrestricted) | G111: 0 | H111: 1357953 | I111: 1357953 | J111: C16a
A112: 2022 | B112: 41017 | C112: 410 | D112: C | E112: 17 | F112: Rental Income | G112: 0 | H112: 1251850 | I112: 1251850 | J112: C17
A113: 2022 | B113: 41018 | C113: 410 | D113: C | E113: 18 | F113: Loan Forgiveness or Other Reimbursement | G113: 0 | H113: 0 | I113: 0 | J113: C18
A114: 2022 | B114: 41019 | C114: 410 | D114: C | E114: 19 | F114: Miscellaneous Income | G114: 618725 | H114: 17941 | I114: 636666 | J114: C19
A115: 2022 | B115: 41020 | C115: 410 | D115: C | E115: 20 | F115: TOTAL REVENUES | G115: 35815389 | H115: 7889303 | I115: 43704692 | J115: C20
A116: 2022 | B116: 41021 | C116: 410 | D116: C | E116: 21 | F116: Administration | G116: 2409163.267 | H116: 0 | I116: 2409163.267 | J116: C21
A117: 2022 | B117: 41022 | C117: 410 | D117: C | E117: 22 | F117: Instructional Services | G117: 18923823.03 | H117: 0 | I117: 18923823.03 | J117: C22
A118: 2022 | B118: 41023 | C118: 410 | D118: C | E118: 23 | F118: Pupil Services | G118: 2508618.57 | H118: 0 | I118: 2508618.57 | J118: C23
A119: 2022 | B119: 41024 | C119: 410 | D119: C | E119: 24 | F119: Operation & Maintenance of Plant | G119: 1342397.02 | H119: 0 | I119: 1342397.02 | J119: C24
A120: 2022 | B120: 41025 | C120: 410 | D120: C | E120: 25 | F120: Benefits and Other Fixed Charges | G120: 4769279 | H120: 0 | I120: 4769279 | J120: C25
A121: 2022 | B121: 41026 | C121: 410 | D121: C | E121: 26 | F121: Community Services | G121: 0 | H121: 0 | I121: 0 | J121: C26
A122: 2022 | B122: 41027 | C122: 410 | D122: C | E122: 27 | F122: Non-Operating Financing Expenses | G122: 2931530 | H122: 0 | I122: 2931530 | J122: C27
A123: 2022 | B123: 41028 | C123: 410 | D123: C | E123: 28 | F123: Component Unit Expenses | G123: 0 | H123: 4104733 | I123: 4104733 | J123: C28
A124: 2022 | B124: 41029 | C124: 410 | D124: C | E124: 29 | F124: Contributions to School | G124: 0 | H124: 201263 | I124: 201263 | J124: C29
A125: 2022 | B125: 41030 | C125: 410 | D125: C | E125: 30 | F125: TOTAL EXPENSES | G125: 32884810.89 | H125: 4305996 | I125: 37190806.89 | J125: C30
A126: 2022 | B126: 41031 | C126: 410 | D126: C | E126: 31 | F126: TOTAL GAIN/(LOSS) | G126: 2930578.11 | H126: 3583307 | I126: 6513885.11 | J126: C31
A127: 2022 | B127: 41032 | C127: 410 | D127: C | E127: 32 | F127: Gain/Loss on Sale of Asset or Lease Transaction | G127: 0 | H127: 0 | I127: 0 | J127: C32
A128: 2022 | B128: 41033 | C128: 410 | D128: C | E128: 33 | F128: Other Gain/Loss | G128: 0 | H128: 0 | I128: 0 | J128: C33
A129: 2022 | B129: 41034 | C129: 410 | D129: C | E129: 34 | F129: TOTAL CHANGES IN NET ASSETS: | G129: 2930578.11 | H129: 3583307 | I129: 6513885.11 | J129: C34
A130: 2022 | B130: 41035 | C130: 410 | D130: C | E130: 35 | F130: NET ASSETS AT BEGINNING OF YEAR | G130: 4771670 | H130: 16719958 | I130: 21491628 | J130: C35
A131: 2022 | B131: 41036 | C131: 410 | D131: =VLOOKUP(C131, TYPE, 3, FALSE) -> C | E131: 36 | F131: NET ASSETS AT END OF YEAR | G131: 7702248 | H131: 20303265 | I131: 28005513 | J131: C36
A132: 2022 | B132: =C132&E132 -> 41101 | C132: 411 | D132: HM | E132: 01 | F132: Tuition | G132: 6421198 | H132: 0 | I132: 6421198 | J132: =D132&E132 -> HM01
A133: 2022 | B133: 41102a | C133: 411 | D133: HM | E133: 02a | F133: Grants - State - passed through ESE | G133: 0 | H133: 0 | I133: 0 | J133: HM02a
A134: 2022 | B134: 41102b | C134: 411 | D134: HM | E134: 02b | F134: Grants - State - other non-ESE pass-through | G134: 0 | H134: 0 | I134: 0 | J134: HM02b
A135: 2022 | B135: 41103 | C135: 411 | D135: HM | E135: 03 | F135: Grants - Federal - Passed through ESE | G135: 1510381.56 | H135: 0 | I135: 1510381.56 | J135: HM03
A136: 2022 | B136: 41104 | C136: 411 | D136: HM | E136: 04 | F136: Grants - Federal - Direct or other pass-through | G136: 0 | H136: 0 | I136: 0 | J136: HM04
A137: 2022 | B137: 41105a | C137: 411 | D137: HM | E137: 05a | F137: Grants - Private (restricted) | G137: 0 | H137: 178985 | I137: 178985 | J137: HM05a
A138: 2022 | B138: 41105b | C138: 411 | D138: HM | E138: 05b | F138: Grants - Private (unrestricted) | G138: 5635 | H138: 0 | I138: 5635 | J138: HM05b
A139: 2022 | B139: 41106 | C139: 411 | D139: HM | E139: 06 | F139: Nutrition Funding - State | G139: 0 | H139: 0 | I139: 0 | J139: HM06
A140: 2022 | B140: 41107 | C140: 411 | D140: HM | E140: 07 | F140: Nutrition Funding - Federal | G140: 0 | H140: 0 | I140: 0 | J140: HM07
A141: 2022 | B141: 41108 | C141: 411 | D141: HM | E141: 08 | F141: Nutrition Funding - Fees | G141: 0 | H141: 0 | I141: 0 | J141: HM08
A142: 2022 | B142: 41109 | C142: 411 | D142: HM | E142: 09 | F142: Other Program / Student Activity Fees | G142: 7553 | H142: 0 | I142: 7553 | J142: HM09
A143: 2022 | B143: 41110 | C143: 411 | D143: HM | E143: 10 | F143: Regional Transportation Aid | G143: 0 | H143: 0 | I143: 0 | J143: HM10
A144: 2022 | B144: 41111 | C144: 411 | D144: HM | E144: 11 | F144: Medicaid Reimbursements | G144: 0 | H144: 0 | I144: 0 | J144: HM11
A145: 2022 | B145: 41112 | C145: 411 | D145: HM | E145: 12 | F145: Circuit Breaker Reimbursements | G145: 0 | H145: 0 | I145: 0 | J145: HM12
A146: 2022 | B146: 41113a | C146: 411 | D146: HM | E146: 13a | F146: Contributions, in-kind, host district | G146: 2699124.667 | H146: 0 | I146: 2699124.667 | J146: HM13a
A147: 2022 | B147: 41113b | C147: 411 | D147: HM | E147: 13b | F147: Contributions, in-kind, other | G147: 0 | H147: 0 | I147: 0 | J147: HM13b
A148: 2022 | B148: 41113c | C148: 411 | D148: HM | E148: 13c | F148: Contributions, on-behalf, pension | G148: 0 | H148: 0 | I148: 0 | J148: HM13c
A149: 2022 | B149: 41114 | C149: 411 | D149: HM | E149: 14 | F149: Contributions, from Component Unit (restricted) | G149: 136831 | H149: 0 | I149: 136831 | J149: HM14
A150: 2022 | B150: 41114b | C150: 411 | D150: HM | E150: 14b | F150: Contributions, from Component Unit (unrestricted) | G150: 0 | H150: 0 | I150: 0 | J150: HM14b
A151: 2022 | B151: 41115 | C151: 411 | D151: HM | E151: 15 | F151: Contributions / Fundraising (restricted) | G151: 0 | H151: 0 | I151: 0 | J151: HM15
A152: 2022 | B152: 41115b | C152: 411 | D152: HM | E152: 15b | F152: Contributions / Fundraising (unrestricted) | G152: 0 | H152: 39016 | I152: 39016 | J152: HM15b
A153: 2022 | B153: 41116 | C153: 411 | D153: HM | E153: 16 | F153: Interest / Investment Income (restricted) | G153: 0 | H153: 0 | I153: 0 | J153: HM16
A154: 2022 | B154: 41116a | C154: 411 | D154: HM | E154: 16a | F154: Interest / Investment Income (unrestricted) | G154: 0 | H154: 0 | I154: 0 | J154: HM16a
A155: 2022 | B155: 41117 | C155: 411 | D155: HM | E155: 17 | F155: Rental Income | G155: 0 | H155: 0 | I155: 0 | J155: HM17
A156: 2022 | B156: 41118 | C156: 411 | D156: HM | E156: 18 | F156: Loan Forgiveness or Other Reimbursement | G156: 0 | H156: 0 | I156: 0 | J156: HM18
A157: 2022 | B157: 41119 | C157: 411 | D157: HM | E157: 19 | F157: Miscellaneous Income | G157: 734 | H157: 565 | I157: 1299 | J157: HM19
A158: 2022 | B158: 41120 | C158: 411 | D158: HM | E158: 20 | F158: TOTAL REVENUES | G158: 10781457.23 | H158: 218566 | I158: 11000023.23 | J158: HM20
A159: 2022 | B159: 41121 | C159: 411 | D159: HM | E159: 21 | F159: Administration | G159: 974700.06 | H159: 0 | I159: 974700.06 | J159: HM21
A160: 2022 | B160: 41122 | C160: 411 | D160: HM | E160: 22 | F160: Instructional Services | G160: 6828507.714 | H160: 0 | I160: 6828507.714 | J160: HM22
A161: 2022 | B161: 41123 | C161: 411 | D161: HM | E161: 23 | F161: Pupil Services | G161: 671089.49 | H161: 0 | I161: 671089.49 | J161: HM23
A162: 2022 | B162: 41124 | C162: 411 | D162: HM | E162: 24 | F162: Operation & Maintenance of Plant | G162: 715427.46 | H162: 0 | I162: 715427.46 | J162: HM24
A163: 2022 | B163: 41125 | C163: 411 | D163: HM | E163: 25 | F163: Benefits and Other Fixed Charges | G163: 1584140.12 | H163: 0 | I163: 1584140.12 | J163: HM25
A164: 2022 | B164: 41126 | C164: 411 | D164: HM | E164: 26 | F164: Community Services | G164: 0 | H164: 0 | I164: 0 | J164: HM26
A165: 2022 | B165: 41127 | C165: 411 | D165: HM | E165: 27 | F165: Non-Operating Financing Expenses | G165: 0 | H165: 0 | I165: 0 | J165: HM27
A166: 2022 | B166: 41128 | C166: 411 | D166: HM | E166: 28 | F166: Component Unit Expenses | G166: 0 | H166: 249 | I166: 249 | J166: HM28
A167: 2022 | B167: 41129 | C167: 411 | D167: HM | E167: 29 | F167: Contributions to School | G167: 0 | H167: 136831 | I167: 136831 | J167: HM29
A168: 2022 | B168: 41130 | C168: 411 | D168: HM | E168: 30 | F168: TOTAL EXPENSES | G168: 10773864.84 | H168: 137080 | I168: 10910944.84 | J168: HM30
A169: 2022 | B169: 41131 | C169: 411 | D169: HM | E169: 31 | F169: TOTAL GAIN/(LOSS) | G169: 7592.382787 | H169: 81486 | I169: 89078.38279 | J169: HM31
A170: 2022 | B170: 41132 | C170: 411 | D170: HM | E170: 32 | F170: Gain/Loss on Sale of Asset or Lease Transaction | G170: 0 | H170: 0 | I170: 0 | J170: HM32
A171: 2022 | B171: 41133 | C171: 411 | D171: HM | E171: 33 | F171: Other Gain/Loss | G171: 0 | H171: 0 | I171: 0 | J171: HM33
A172: 2022 | B172: 41134 | C172: 411 | D172: HM | E172: 34 | F172: TOTAL CHANGES IN NET ASSETS: | G172: 7592.382787 | H172: 81486 | I172: 89078.38279 | J172: HM34
A173: 2022 | B173: 41135 | C173: 411 | D173: HM | E173: 35 | F173: NET ASSETS AT BEGINNING OF YEAR | G173: 402734 | H173: 458792 | I173: 861526 | J173: HM35
A174: 2022 | B174: 41136 | C174: 411 | D174: HM | E174: 36 | F174: NET ASSETS AT END OF YEAR | G174: 410326 | H174: 540278 | I174: 950604 | J174: HM36
A175: 2022 | B175: 41201 | C175: 412 | D175: C | E175: 01 | F175: Tuition | G175: 10381146 | H175: 0 | I175: 10381146 | J175: C01
A176: 2022 | B176: 41202a | C176: 412 | D176: C | E176: 02a | F176: Grants - State - passed through ESE | G176: 4764 | H176: 0 | I176: 4764 | J176: C02a
A177: 2022 | B177: 41202b | C177: 412 | D177: C | E177: 02b | F177: Grants - State - other non-ESE pass-through | G177: 0 | H177: 0 | I177: 0 | J177: C02b
A178: 2022 | B178: 41203 | C178: 412 | D178: C | E178: 03 | F178: Grants - Federal - Passed through ESE | G178: 1583233 | H178: 0 | I178: 1583233 | J178: C03
A179: 2022 | B179: 41204 | C179: 412 | D179: C | E179: 04 | F179: Grants - Federal - Direct or other pass-through | G179: 0 | H179: 0 | I179: 0 | J179: C04
A180: 2022 | B180: 41205a | C180: 412 | D180: C | E180: 05a | F180: Grants - Private (restricted) | G180: 0 | H180: 9200 | I180: 9200 | J180: C05a
A181: 2022 | B181: 41205b | C181: 412 | D181: C | E181: 05b | F181: Grants - Private (unrestricted) | G181: 4255 | H181: 0 | I181: 4255 | J181: C05b
A182: 2022 | B182: 41206 | C182: 412 | D182: C | E182: 06 | F182: Nutrition Funding - State | G182: 17286 | H182: 0 | I182: 17286 | J182: C06
A183: 2022 | B183: 41207 | C183: 412 | D183: C | E183: 07 | F183: Nutrition Funding - Federal | G183: 180926 | H183: 0 | I183: 180926 | J183: C07
A184: 2022 | B184: 41208 | C184: 412 | D184: C | E184: 08 | F184: Nutrition Funding - Fees | G184: 0 | H184: 0 | I184: 0 | J184: C08
A185: 2022 | B185: 41209 | C185: 412 | D185: C | E185: 09 | F185: Other Program / Student Activity Fees | G185: 18390 | H185: 0 | I185: 18390 | J185: C09
A186: 2022 | B186: 41210 | C186: 412 | D186: C | E186: 10 | F186: Regional Transportation Aid | G186: 0 | H186: 0 | I186: 0 | J186: C10
A187: 2022 | B187: 41211 | C187: 412 | D187: C | E187: 11 | F187: Medicaid Reimbursements | G187: 0 | H187: 0 | I187: 0 | J187: C11
A188: 2022 | B188: 41212 | C188: 412 | D188: C | E188: 12 | F188: Circuit Breaker Reimbursements | G188: 0 | H188: 0 | I188: 0 | J188: C12
A189: 2022 | B189: 41213a | C189: 412 | D189: C | E189: 13a | F189: Contributions, in-kind, host district | G189: 0 | H189: 0 | I189: 0 | J189: C13a
A190: 2022 | B190: 41213b | C190: 412 | D190: C | E190: 13b | F190: Contributions, in-kind, other | G190: 363600 | H190: 0 | I190: 363600 | J190: C13b
A191: 2022 | B191: 41213c | C191: 412 | D191: C | E191: 13c | F191: Contributions, on-behalf, pension | G191: 1185528 | H191: 0 | I191: 1185528 | J191: C13c
A192: 2022 | B192: 41214 | C192: 412 | D192: C | E192: 14 | F192: Contributions, from Component Unit (restricted) | G192: 0 | H192: 0 | I192: 0 | J192: C14
A193: 2022 | B193: 41214b | C193: 412 | D193: C | E193: 14b | F193: Contributions, from Component Unit (unrestricted) | G193: 12216 | H193: 0 | I193: 12216 | J193: C14b
A194: 2022 | B194: 41215 | C194: 412 | D194: C | E194: 15 | F194: Contributions / Fundraising (restricted) | G194: 0 | H194: 0 | I194: 0 | J194: C15
A195: 2022 | B195: 41215b | C195: 412 | D195: =VLOOKUP(C195, TYPE, 3, FALSE) -> C | E195: 15b | F195: Contributions / Fundraising (unrestricted) | G195: 0 | H195: 154773 | I195: 154773 | J195: C15b
A196: 2022 | B196: =C196&E196 -> 41216 | C196: 412 | D196: C | E196: 16 | F196: Interest / Investment Income (restricted) | G196: 0 | H196: 0 | I196: 0 | J196: =D196&E196 -> C16
A197: 2022 | B197: 41216a | C197: 412 | D197: C | E197: 16a | F197: Interest / Investment Income (unrestricted) | G197: 435 | H197: 13 | I197: 448 | J197: C16a
A198: 2022 | B198: 41217 | C198: 412 | D198: C | E198: 17 | F198: Rental Income | G198: 0 | H198: 0 | I198: 0 | J198: C17
A199: 2022 | B199: 41218 | C199: 412 | D199: C | E199: 18 | F199: Loan Forgiveness or Other Reimbursement | G199: 0 | H199: 0 | I199: 0 | J199: C18
A200: 2022 | B200: 41219 | C200: 412 | D200: C | E200: 19 | F200: Miscellaneous Income | G200: 22412 | H200: 0 | I200: 22412 | J200: C19
... 3285 more rows

Sheet FE22 (hidden)
B1: 1 | C1: 2 | D1: 3 | E1: 4 | F1: 5 | G1: 6 | H1: 7 | I1: 8 | J1: 9 | K1: 10 | L1: 11 | M1: 12 | N1: 13 | O1: 14 | P1: 15 | Q1: 16 | R1: 17 | S1: 18 | T1: 19 | U1: 20 | V1: 21
A2: FY | B2: vlookup | C2: cha_code | D2: cha_type | E2: FuncExp_id | F2: Line_Desc | G2: General Education | H2: Special Education | I2: Undistributed (not assigned to a program) | J2: State Grants & Nutrition Reimbursement | K2: State Coronavirus Prevention Fund | L2: Charter School Program FC 532 or 534 | M2: ESSER 1 FC 113 | N2: ESSER II FC115 | O2: ESSER III FC 119 | P2: ESSER SEA Reserve Grants | Q2: GEER Funded Grants | R2: CvRF FC 102 and CvRF School Nutrition | S2: CvRF RLTE FC118 | T2: All Other Federal Grants & Nutrition Reimbursement | U2: Private Grants & Contributions | V2: TOTAL
A3: 2022 | B3: =C3&E3 -> 407100 | C3: 407 | D3: =VLOOKUP(C3, TYPE, 3, FALSE) -> HM | E3: 100 | G3: 0 | H3: 0 | I3: 1429085.85 | J3: 0 | K3: 0 | L3: 0 | M3: 0 | N3: 20258.1 | O3: 0 | P3: 0 | Q3: 0 | R3: 0 | S3: 0 | T3: 25241 | U3: 4483.45 | V3: 1479068.4 | W3: =D3&E3 -> HM100
A4: 2022 | B4: 407110 | C4: 407 | D4: HM | E4: 110 | G4: 0 | H4: 0 | I4: 0 | J4: 0 | K4: 0 | L4: 0 | M4: 0 | N4: 0 | O4: 0 | P4: 0 | Q4: 0 | R4: 0 | S4: 0 | T4: 0 | U4: 0 | V4: 0 | W4: =D4&E4 -> HM110
A5: 2022 | B5: 407111 | C5: 407 | D5: HM | E5: 111 | G5: 0 | H5: 0 | I5: 0 | J5: 0 | K5: 0 | L5: 0 | M5: 0 | N5: 0 | O5: 0 | P5: 0 | Q5: 0 | R5: 0 | S5: 0 | T5: 0 | U5: 0 | V5: 0 | W5: HM111
A6: 2022 | B6: 407112 | C6: 407 | D6: HM | E6: 112 | G6: 0 | H6: 0 | I6: 0 | J6: 0 | K6: 0 | L6: 0 | M6: 0 | N6: 0 | O6: 0 | P6: 0 | Q6: 0 | R6: 0 | S6: 0 | T6: 0 | U6: 0 | V6: 0 | W6: HM112
A7: 2022 | B7: 407120 | C7: 407 | D7: =VLOOKUP(C7, TYPE, 3, FALSE) -> HM | E7: 120 | G7: 0 | H7: 0 | I7: 0 | J7: 0 | K7: 0 | L7: 0 | M7: 0 | N7: 0 | O7: 0 | P7: 0 | Q7: 0 | R7: 0 | S7: 0 | T7: 0 | U7: 0 | V7: 0 | W7: HM120
A8: 2022 | B8: 407121 | C8: 407 | D8: HM | E8: 121 | G8: 0 | H8: 0 | I8: 0 | J8: 0 | K8: 0 | L8: 0 | M8: 0 | N8: 0 | O8: 0 | P8: 0 | Q8: 0 | R8: 0 | S8: 0 | T8: 0 | U8: 0 | V8: 0 | W8: HM121
A9: 2022 | B9: 407122 | C9: 407 | D9: HM | E9: 122 | G9: 0 | H9: 0 | I9: 0 | J9: 0 | K9: 0 | L9: 0 | M9: 0 | N9: 0 | O9: 0 | P9: 0 | Q9: 0 | R9: 0 | S9: 0 | T9: 0 | U9: 0 | V9: 0 | W9: HM122
A10: 2022 | B10: 407120a | C10: 407 | D10: HM | E10: 120a | G10: 0 | H10: 0 | I10: 1427419.1 | J10: 0 | K10: 0 | L10: 0 | M10: 0 | N10: 20258.1 | O10: 0 | P10: 0 | Q10: 0 | R10: 0 | S10: 0 | T10: 25241 | U10: 4483.45 | V10: 1477401.65 | W10: HM120a
A11: 2022 | B11: 407121a | C11: 407 | D11: HM | E11: 121a | G11: 0 | H11: 0 | I11: 378135.83 | J11: 0 | K11: 0 | L11: 0 | M11: 0 | N11: 0 | O11: 0 | P11: 0 | Q11: 0 | R11: 0 | S11: 0 | T11: 25241 | U11: 0 | V11: 403376.83 | W11: HM121a
A12: 2022 | B12: 407122a | C12: 407 | D12: HM | E12: 122a | G12: 0 | H12: 0 | I12: 1011119.39 | J12: 0 | K12: 0 | L12: 0 | M12: 0 | N12: 7738.1 | O12: 0 | P12: 0 | Q12: 0 | R12: 0 | S12: 0 | T12: 0 | U12: 0 | V12: 1018857.49 | W12: HM122a
A13: 2022 | B13: 407123 | C13: 407 | D13: HM | E13: 123 | G13: 0 | H13: 0 | I13: 6340.04 | J13: 0 | K13: 0 | L13: 0 | M13: 0 | N13: 0 | O13: 0 | P13: 0 | Q13: 0 | R13: 0 | S13: 0 | T13: 0 | U13: 0 | V13: 6340.04 | W13: HM123
A14: 2022 | B14: 407124 | C14: 407 | D14: HM | E14: 124 | G14: 0 | H14: 0 | I14: 10147.51 | J14: 0 | K14: 0 | L14: 0 | M14: 0 | N14: 0 | O14: 0 | P14: 0 | Q14: 0 | R14: 0 | S14: 0 | T14: 0 | U14: 0 | V14: 10147.51 | W14: HM124
A15: 2022 | B15: 407125 | C15: 407 | D15: HM | E15: 125 | G15: 0 | H15: 0 | I15: 21676.33 | J15: 0 | K15: 0 | L15: 0 | M15: 0 | N15: 12520 | O15: 0 | P15: 0 | Q15: 0 | R15: 0 | S15: 0 | T15: 0 | U15: 4483.45 | V15: 38679.78 | W15: HM125
A16: 2022 | B16: 407126 | C16: 407 | D16: HM | E16: 126 | G16: 0 | H16: 0 | I16: 0 | J16: 0 | K16: 0 | L16: 0 | M16: 0 | N16: 0 | O16: 0 | P16: 0 | Q16: 0 | R16: 0 | S16: 0 | T16: 0 | U16: 0 | V16: 0 | W16: HM126
A17: 2022 | B17: 407130 | C17: 407 | D17: HM | E17: 130 | G17: 0 | H17: 0 | I17: 1666.75 | J17: 0 | K17: 0 | L17: 0 | M17: 0 | N17: 0 | O17: 0 | P17: 0 | Q17: 0 | R17: 0 | S17: 0 | T17: 0 | U17: 0 | V17: 1666.75 | W17: HM130
A18: 2022 | B18: 407131 | C18: 407 | D18: HM | E18: 131 | G18: 0 | H18: 0 | I18: 0 | J18: 0 | K18: 0 | L18: 0 | M18: 0 | N18: 0 | O18: 0 | P18: 0 | Q18: 0 | R18: 0 | S18: 0 | T18: 0 | U18: 0 | V18: 0 | W18: HM131
A19: 2022 | B19: 407132 | C19: 407 | D19: HM | E19: 132 | G19: 0 | H19: 0 | I19: 1666.75 | J19: 0 | K19: 0 | L19: 0 | M19: 0 | N19: 0 | O19: 0 | P19: 0 | Q19: 0 | R19: 0 | S19: 0 | T19: 0 | U19: 0 | V19: 1666.75 | W19: HM132
A20: 2022 | B20: 407133 | C20: 407 | D20: HM | E20: 133 | G20: 0 | H20: 0 | I20: 0 | J20: 0 | K20: 0 | L20: 0 | M20: 0 | N20: 0 | O20: 0 | P20: 0 | Q20: 0 | R20: 0 | S20: 0 | T20: 0 | U20: 0 | V20: 0 | W20: HM133
A21: 2022 | B21: 407170 | C21: 407 | D21: HM | E21: 170 | G21: 0 | H21: 0 | I21: 0 | J21: 0 | K21: 0 | L21: 0 | M21: 0 | N21: 0 | O21: 0 | P21: 0 | Q21: 0 | R21: 0 | S21: 0 | T21: 0 | U21: 0 | V21: 0 | W21: HM170
A22: 2022 | B22: 407170a | C22: 407 | D22: HM | E22: 170a | G22: 0 | H22: 0 | I22: 0 | J22: 0 | K22: 0 | L22: 0 | M22: 0 | N22: 0 | O22: 0 | P22: 0 | Q22: 0 | R22: 0 | S22: 0 | T22: 0 | U22: 0 | V22: 0 | W22: HM170a
A23: 2022 | B23: 407170b | C23: 407 | D23: HM | E23: 170b | G23: 0 | H23: 0 | I23: 0 | J23: 0 | K23: 0 | L23: 0 | M23: 0 | N23: 0 | O23: 0 | P23: 0 | Q23: 0 | R23: 0 | S23: 0 | T23: 0 | U23: 0 | V23: 0 | W23: HM170b
A24: 2022 | B24: 407170c | C24: 407 | D24: HM | E24: 170c | G24: 0 | H24: 0 | I24: 0 | J24: 0 | K24: 0 | L24: 0 | M24: 0 | N24: 0 | O24: 0 | P24: 0 | Q24: 0 | R24: 0 | S24: 0 | T24: 0 | U24: 0 | V24: 0 | W24: HM170c
A25: 2022 | B25: 407171 | C25: 407 | D25: HM | E25: 171 | G25: 0 | H25: 0 | I25: 0 | J25: 0 | K25: 0 | L25: 0 | M25: 0 | N25: 0 | O25: 0 | P25: 0 | Q25: 0 | R25: 0 | S25: 0 | T25: 0 | U25: 0 | V25: 0 | W25: HM171
A26: 2022 | B26: 407171a | C26: 407 | D26: HM | E26: 171a | G26: 0 | H26: 0 | I26: 0 | J26: 0 | K26: 0 | L26: 0 | M26: 0 | N26: 0 | O26: 0 | P26: 0 | Q26: 0 | R26: 0 | S26: 0 | T26: 0 | U26: 0 | V26: 0 | W26: HM171a
A27: 2022 | B27: 407171b | C27: 407 | D27: HM | E27: 171b | G27: 0 | H27: 0 | I27: 0 | J27: 0 | K27: 0 | L27: 0 | M27: 0 | N27: 0 | O27: 0 | P27: 0 | Q27: 0 | R27: 0 | S27: 0 | T27: 0 | U27: 0 | V27: 0 | W27: HM171b
A28: 2022 | B28: 407200 | C28: 407 | D28: HM | E28: 200 | G28: 1786495.54 | H28: 289572.56 | I28: 585.43 | J28: 0 | K28: 0 | L28: 0 | M28: 0 | N28: 485718.61 | O28: 0 | P28: 0 | Q28: 0 | R28: 0 | S28: 0 | T28: 423450 | U28: 0 | V28: 2985822.14 | W28: HM200
A29: 2022 | B29: 407210 | C29: 407 | D29: HM | E29: 210 | G29: 241784.47 | H29: 39360.26 | I29: 0 | J29: 0 | K29: 0 | L29: 0 | M29: 0 | N29: 15808.86 | O29: 0 | P29: 0 | Q29: 0 | R29: 0 | S29: 0 | T29: 566.14 | U29: 0 | V29: 297519.73 | W29: HM210
A30: 2022 | B30: 407211 | C30: 407 | D30: HM | E30: 211 | G30: 181683.8 | H30: 29576.43 | I30: 0 | J30: 0 | K30: 0 | L30: 0 | M30: 0 | N30: 0 | O30: 0 | P30: 0 | Q30: 0 | R30: 0 | S30: 0 | T30: 0 | U30: 0 | V30: 211260.23 | W30: HM211
A31: 2022 | B31: 407212 | C31: 407 | D31: HM | E31: 212 | G31: 59885.67 | H31: 9748.83 | I31: 0 | J31: 0 | K31: 0 | L31: 0 | M31: 0 | N31: 0 | O31: 0 | P31: 0 | Q31: 0 | R31: 0 | S31: 0 | T31: 0 | U31: 0 | V31: 69634.5 | W31: HM212
A32: 2022 | B32: 407213 | C32: 407 | D32: HM | E32: 213 | G32: 215 | H32: 35 | I32: 0 | J32: 0 | K32: 0 | L32: 0 | M32: 0 | N32: 15808.86 | O32: 0 | P32: 0 | Q32: 0 | R32: 0 | S32: 0 | T32: 566.14 | U32: 0 | V32: 16625 | W32: HM213
A33: 2022 | B33: 407214 | C33: 407 | D33: HM | E33: 214 | G33: 0 | H33: 0 | I33: 0 | J33: 0 | K33: 0 | L33: 0 | M33: 0 | N33: 0 | O33: 0 | P33: 0 | Q33: 0 | R33: 0 | S33: 0 | T33: 0 | U33: 0 | V33: 0 | W33: HM214
A34: 2022 | B34: 407215 | C34: 407 | D34: HM | E34: 215 | G34: 0 | H34: 0 | I34: 0 | J34: 0 | K34: 0 | L34: 0 | M34: 0 | N34: 0 | O34: 0 | P34: 0 | Q34: 0 | R34: 0 | S34: 0 | T34: 0 | U34: 0 | V34: 0 | W34: HM215
A35: 2022 | B35: 407220 | C35: 407 | D35: HM | E35: 220 | G35: 1344462.02 | H35: 218865.92 | I35: 0 | J35: 0 | K35: 0 | L35: 0 | M35: 0 | N35: 0 | O35: 0 | P35: 0 | Q35: 0 | R35: 0 | S35: 0 | T35: 357114 | U35: 0 | V35: 1920441.94 | W35: HM220
A36: 2022 | B36: 407221 | C36: 407 | D36: HM | E36: 221 | G36: 729620.75 | H36: 118775.47 | I36: 0 | J36: 0 | K36: 0 | L36: 0 | M36: 0 | N36: 0 | O36: 0 | P36: 0 | Q36: 0 | R36: 0 | S36: 0 | T36: 313255.83 | U36: 0 | V36: 1161652.05 | W36: HM221
A37: 2022 | B37: 407222 | C37: 407 | D37: HM | E37: 222 | G37: 614841.27 | H37: 100090.45 | I37: 0 | J37: 0 | K37: 0 | L37: 0 | M37: 0 | N37: 0 | O37: 0 | P37: 0 | Q37: 0 | R37: 0 | S37: 0 | T37: 43858.17 | U37: 0 | V37: 758789.89 | W37: HM222
A38: 2022 | B38: 407230 | C38: 407 | D38: HM | E38: 230 | G38: 190131.02 | H38: 29717.88 | I38: 1156.96 | J38: 0 | K38: 0 | L38: 0 | M38: 0 | N38: 334398.06 | O38: 0 | P38: 0 | Q38: 0 | R38: 0 | S38: 0 | T38: 46933.86 | U38: 0 | V38: 602337.78 | W38: HM230
A39: 2022 | B39: 407231 | C39: 407 | D39: HM | E39: 231 | G39: 6497.83 | H39: 1057.79 | I39: 0 | J39: 0 | K39: 0 | L39: 0 | M39: 0 | N39: 0 | O39: 0 | P39: 0 | Q39: 0 | R39: 0 | S39: 0 | T39: 0 | U39: 0 | V39: 7555.62 | W39: HM231
A40: 2022 | B40: 407232 | C40: 407 | D40: HM | E40: 232 | G40: 145244.63 | H40: 23644.49 | I40: 0 | J40: 0 | K40: 0 | L40: 0 | M40: 0 | N40: 0 | O40: 0 | P40: 0 | Q40: 0 | R40: 0 | S40: 0 | T40: 0 | U40: 0 | V40: 168889.12 | W40: HM232
A41: 2022 | B41: 407233 | C41: 407 | D41: HM | E41: 233 | G41: 28671.52 | H41: 4625.6 | I41: 0 | J41: 0 | K41: 0 | L41: 0 | M41: 0 | N41: 159172.06 | O41: 0 | P41: 0 | Q41: 0 | R41: 0 | S41: 0 | T41: 0 | U41: 0 | V41: 192469.18 | W41: HM233
A42: 2022 | B42: 407234 | C42: 407 | D42: HM | E42: 234 | G42: 9717.04 | H42: 390 | I42: 1156.96 | J42: 0 | K42: 0 | L42: 0 | M42: 0 | N42: 175226 | O42: 0 | P42: 0 | Q42: 0 | R42: 0 | S42: 0 | T42: 46933.86 | U42: 0 | V42: 233423.86 | W42: HM234
A43: 2022 | B43: 407240 | C43: 407 | D43: HM | E43: 240 | G43: 712.94 | H43: 116.06 | I43: -571.53 | J43: 0 | K43: 0 | L43: 0 | M43: 0 | N43: 35319.08 | O43: 0 | P43: 0 | Q43: 0 | R43: 0 | S43: 0 | T43: 0 | U43: 0 | V43: 35576.55 | W43: HM240
A44: 2022 | B44: 407241 | C44: 407 | D44: HM | E44: 241 | G44: 0 | H44: 0 | I44: 0 | J44: 0 | K44: 0 | L44: 0 | M44: 0 | N44: 0 | O44: 0 | P44: 0 | Q44: 0 | R44: 0 | S44: 0 | T44: 0 | U44: 0 | V44: 0 | W44: HM241
A45: 2022 | B45: 407242 | C45: 407 | D45: HM | E45: 242 | G45: 0 | H45: 0 | I45: 0 | J45: 0 | K45: 0 | L45: 0 | M45: 0 | N45: 0 | O45: 0 | P45: 0 | Q45: 0 | R45: 0 | S45: 0 | T45: 0 | U45: 0 | V45: 0 | W45: HM242
A46: 2022 | B46: 407243 | C46: 407 | D46: HM | E46: 243 | G46: 0 | H46: 0 | I46: 0 | J46: 0 | K46: 0 | L46: 0 | M46: 0 | N46: 0 | O46: 0 | P46: 0 | Q46: 0 | R46: 0 | S46: 0 | T46: 0 | U46: 0 | V46: 0 | W46: HM243
A47: 2022 | B47: 407244 | C47: 407 | D47: HM | E47: 244 | G47: 712.94 | H47: 116.06 | I47: -571.53 | J47: 0 | K47: 0 | L47: 0 | M47: 0 | N47: 35319.08 | O47: 0 | P47: 0 | Q47: 0 | R47: 0 | S47: 0 | T47: 0 | U47: 0 | V47: 35576.55 | W47: HM244
A48: 2022 | B48: 407250 | C48: 407 | D48: HM | E48: 250 | G48: 0 | H48: 0 | I48: 0 | J48: 0 | K48: 0 | L48: 0 | M48: 0 | N48: 0 | O48: 0 | P48: 0 | Q48: 0 | R48: 0 | S48: 0 | T48: 0 | U48: 0 | V48: 0 | W48: HM250
A49: 2022 | B49: 407251 | C49: 407 | D49: HM | E49: 251 | G49: 0 | H49: 0 | I49: 0 | J49: 0 | K49: 0 | L49: 0 | M49: 0 | N49: 0 | O49: 0 | P49: 0 | Q49: 0 | R49: 0 | S49: 0 | T49: 0 | U49: 0 | V49: 0 | W49: HM251
A50: 2022 | B50: 407252 | C50: 407 | D50: HM | E50: 252 | G50: 0 | H50: 0 | I50: 0 | J50: 0 | K50: 0 | L50: 0 | M50: 0 | N50: 0 | O50: 0 | P50: 0 | Q50: 0 | R50: 0 | S50: 0 | T50: 0 | U50: 0 | V50: 0 | W50: HM252
A51: 2022 | B51: 407253 | C51: 407 | D51: HM | E51: 253 | G51: 0 | H51: 0 | I51: 0 | J51: 0 | K51: 0 | L51: 0 | M51: 0 | N51: 0 | O51: 0 | P51: 0 | Q51: 0 | R51: 0 | S51: 0 | T51: 0 | U51: 0 | V51: 0 | W51: HM253
A52: 2022 | B52: 407254 | C52: 407 | D52: HM | E52: 254 | G52: 0 | H52: 0 | I52: 0 | J52: 0 | K52: 0 | L52: 0 | M52: 0 | N52: 0 | O52: 0 | P52: 0 | Q52: 0 | R52: 0 | S52: 0 | T52: 0 | U52: 0 | V52: 0 | W52: HM254
A53: 2022 | B53: 407260 | C53: 407 | D53: HM | E53: 260 | G53: 9405.09 | H53: 1512.44 | I53: 0 | J53: 0 | K53: 0 | L53: 0 | M53: 0 | N53: 100192.61 | O53: 0 | P53: 0 | Q53: 0 | R53: 0 | S53: 0 | T53: 18836 | U53: 0 | V53: 129946.14 | W53: HM260
A54: 2022 | B54: 407261 | C54: 407 | D54: HM | E54: 261 | G54: 3618.09 | H54: 588.99 | I54: 0 | J54: 0 | K54: 0 | L54: 0 | M54: 0 | N54: 26591 | O54: 0 | P54: 0 | Q54: 0 | R54: 0 | S54: 0 | T54: 2077.41 | U54: 0 | V54: 32875.49 | W54: HM261
A55: 2022 | B55: 407262 | C55: 407 | D55: HM | E55: 262 | G55: 0 | H55: 0 | I55: 0 | J55: 0 | K55: 0 | L55: 0 | M55: 0 | N55: 0 | O55: 0 | P55: 0 | Q55: 0 | R55: 0 | S55: 0 | T55: 0 | U55: 0 | V55: 0 | W55: HM262
A56: 2022 | B56: 407263 | C56: 407 | D56: HM | E56: 263 | G56: 0 | H56: 0 | I56: 0 | J56: 0 | K56: 0 | L56: 0 | M56: 0 | N56: 0 | O56: 0 | P56: 0 | Q56: 0 | R56: 0 | S56: 0 | T56: 0 | U56: 0 | V56: 0 | W56: HM263
A57: 2022 | B57: 407264 | C57: 407 | D57: HM | E57: 264 | G57: 159.93 | H57: 26.03 | I57: 0 | J57: 0 | K57: 0 | L57: 0 | M57: 0 | N57: 11460.31 | O57: 0 | P57: 0 | Q57: 0 | R57: 0 | S57: 0 | T57: 16758.59 | U57: 0 | V57: 28404.86 | W57: HM264
A58: 2022 | B58: 407265 | C58: 407 | D58: HM | E58: 265 | G58: 14.62 | H58: 2.38 | I58: 0 | J58: 0 | K58: 0 | L58: 0 | M58: 0 | N58: 9138.12 | O58: 0 | P58: 0 | Q58: 0 | R58: 0 | S58: 0 | T58: 0 | U58: 0 | V58: 9155.12 | W58: HM265
A59: 2022 | B59: 407266 | C59: 407 | D59: HM | E59: 266 | G59: 27.51 | H59: 4.48 | I59: 0 | J59: 0 | K59: 0 | L59: 0 | M59: 0 | N59: 25342.45 | O59: 0 | P59: 0 | Q59: 0 | R59: 0 | S59: 0 | T59: 0 | U59: 0 | V59: 25374.44 | W59: HM266
A60: 2022 | B60: 407267 | C60: 407 | D60: HM | E60: 267 | G60: 0 | H60: 0 | I60: 0 | J60: 0 | K60: 0 | L60: 0 | M60: 0 | N60: 6074 | O60: 0 | P60: 0 | Q60: 0 | R60: 0 | S60: 0 | T60: 0 | U60: 0 | V60: 6074 | W60: HM267
A61: 2022 | B61: 407268a | C61: 407 | D61: HM | E61: 268a | G61: 5584.94 | H61: 890.56 | I61: 0 | J61: 0 | K61: 0 | L61: 0 | M61: 0 | N61: 21586.73 | O61: 0 | P61: 0 | Q61: 0 | R61: 0 | S61: 0 | T61: 0 | U61: 0 | V61: 28062.23 | W61: HM268a
A62: 2022 | B62: 407268b | C62: 407 | D62: HM | E62: 268b | G62: 0 | H62: 0 | I62: 0 | J62: 0 | K62: 0 | L62: 0 | M62: 0 | N62: 0 | O62: 0 | P62: 0 | Q62: 0 | R62: 0 | S62: 0 | T62: 0 | U62: 0 | V62: 0 | W62: HM268b
A63: 2022 | B63: 407269 | C63: 407 | D63: HM | E63: 269 | G63: 0 | H63: 0 | I63: 0 | J63: 0 | K63: 0 | L63: 0 | M63: 0 | N63: 0 | O63: 0 | P63: 0 | Q63: 0 | R63: 0 | S63: 0 | T63: 0 | U63: 0 | V63: 0 | W63: HM269
A64: 2022 | B64: 407300 | C64: 407 | D64: HM | E64: 300 | G64: 309221.61 | H64: 50338.4 | I64: 317069.98 | J64: 0 | K64: 0 | L64: 0 | M64: 0 | N64: 2515 | O64: 0 | P64: 0 | Q64: 0 | R64: 0 | S64: 0 | T64: 0 | U64: 0 | V64: 679144.99 | W64: HM300
A65: 2022 | B65: 407310 | C65: 407 | D65: HM | E65: 310 | G65: 0 | H65: 0 | I65: 90004.6 | J65: 0 | K65: 0 | L65: 0 | M65: 0 | N65: 0 | O65: 0 | P65: 0 | Q65: 0 | R65: 0 | S65: 0 | T65: 0 | U65: 0 | V65: 90004.6 | W65: HM310
A66: 2022 | B66: 407315 | C66: 407 | D66: HM | E66: 315 | G66: 0 | H66: 0 | I66: 0 | J66: 0 | K66: 0 | L66: 0 | M66: 0 | N66: 0 | O66: 0 | P66: 0 | Q66: 0 | R66: 0 | S66: 0 | T66: 0 | U66: 0 | V66: 0 | W66: HM315
A67: 2022 | B67: =C67&E67 -> 407320 | C67: 407 | D67: =VLOOKUP(C67, TYPE, 3, FALSE) -> HM | E67: 320 | G67: 0 | H67: 0 | I67: 99924.84 | J67: 0 | K67: 0 | L67: 0 | M67: 0 | N67: 0 | O67: 0 | P67: 0 | Q67: 0 | R67: 0 | S67: 0 | T67: 0 | U67: 0 | V67: 99924.84 | W67: HM320
A68: 2022 | B68: 407325 | C68: 407 | D68: HM | E68: 325 | G68: 0 | H68: 0 | I68: 0 | J68: 0 | K68: 0 | L68: 0 | M68: 0 | N68: 0 | O68: 0 | P68: 0 | Q68: 0 | R68: 0 | S68: 0 | T68: 0 | U68: 0 | V68: 0 | W68: =D68&E68 -> HM325
A69: 2022 | B69: 407330 | C69: 407 | D69: HM | E69: 330 | G69: 0 | H69: 0 | I69: 77126.85 | J69: 0 | K69: 0 | L69: 0 | M69: 0 | N69: 0 | O69: 0 | P69: 0 | Q69: 0 | R69: 0 | S69: 0 | T69: 0 | U69: 0 | V69: 77126.85 | W69: HM330
A70: 2022 | B70: 407335 | C70: 407 | D70: HM | E70: 335 | G70: 0 | H70: 0 | I70: 50013.69 | J70: 0 | K70: 0 | L70: 0 | M70: 0 | N70: 0 | O70: 0 | P70: 0 | Q70: 0 | R70: 0 | S70: 0 | T70: 0 | U70: 0 | V70: 50013.69 | W70: HM335
A71: 2022 | B71: 407340 | C71: 407 | D71: HM | E71: 340 | G71: 309221.61 | H71: 50338.4 | I71: 0 | J71: 0 | K71: 0 | L71: 0 | M71: 0 | N71: 0 | O71: 0 | P71: 0 | Q71: 0 | R71: 0 | S71: 0 | T71: 0 | U71: 0 | V71: 359560.01 | W71: HM340
A72: 2022 | B72: 407345 | C72: 407 | D72: HM | E72: 345 | G72: 0 | H72: 0 | I72: 0 | J72: 0 | K72: 0 | L72: 0 | M72: 0 | N72: 2515 | O72: 0 | P72: 0 | Q72: 0 | R72: 0 | S72: 0 | T72: 0 | U72: 0 | V72: 2515 | W72: HM345
A73: 2022 | B73: 407350 | C73: 407 | D73: HM | E73: 350 | G73: 0 | H73: 0 | I73: 0 | J73: 0 | K73: 0 | L73: 0 | M73: 0 | N73: 0 | O73: 0 | P73: 0 | Q73: 0 | R73: 0 | S73: 0 | T73: 0 | U73: 0 | V73: 0 | W73: HM350
A74: 2022 | B74: 407360 | C74: 407 | D74: HM | E74: 360 | G74: 0 | H74: 0 | I74: 0 | J74: 0 | K74: 0 | L74: 0 | M74: 0 | N74: 0 | O74: 0 | P74: 0 | Q74: 0 | R74: 0 | S74: 0 | T74: 0 | U74: 0 | V74: 0 | W74: HM360
A75: 2022 | B75: 407400 | C75: 407 | D75: HM | E75: 400 | G75: 0 | H75: 0 | I75: 341998.5 | J75: 0 | K75: 0 | L75: 0 | M75: 0 | N75: 0 | O75: 0 | P75: 0 | Q75: 0 | R75: 0 | S75: 0 | T75: 0 | U75: 0 | V75: 341998.5 | W75: HM400
A76: 2022 | B76: 407410 | C76: 407 | D76: HM | E76: 410 | G76: 0 | H76: 0 | I76: 236127.8 | J76: 0 | K76: 0 | L76: 0 | M76: 0 | N76: 0 | O76: 0 | P76: 0 | Q76: 0 | R76: 0 | S76: 0 | T76: 0 | U76: 0 | V76: 236127.8 | W76: HM410
A77: 2022 | B77: 407420 | C77: 407 | D77: HM | E77: 420 | G77: 0 | H77: 0 | I77: 105870.7 | J77: 0 | K77: 0 | L77: 0 | M77: 0 | N77: 0 | O77: 0 | P77: 0 | Q77: 0 | R77: 0 | S77: 0 | T77: 0 | U77: 0 | V77: 105870.7 | W77: HM420
A78: 2022 | B78: 407430 | C78: 407 | D78: HM | E78: 430 | G78: 0 | H78: 0 | I78: 0 | J78: 0 | K78: 0 | L78: 0 | M78: 0 | N78: 0 | O78: 0 | P78: 0 | Q78: 0 | R78: 0 | S78: 0 | T78: 0 | U78: 0 | V78: 0 | W78: HM430
A79: 2022 | B79: 407440 | C79: 407 | D79: HM | E79: 440 | G79: 0 | H79: 0 | I79: 0 | J79: 0 | K79: 0 | L79: 0 | M79: 0 | N79: 0 | O79: 0 | P79: 0 | Q79: 0 | R79: 0 | S79: 0 | T79: 0 | U79: 0 | V79: 0 | W79: HM440
A80: 2022 | B80: 407500 | C80: 407 | D80: HM | E80: 500 | G80: 0 | H80: 0 | I80: 1067013.75 | J80: 0 | K80: 0 | L80: 0 | M80: 0 | N80: 0 | O80: 0 | P80: 0 | Q80: 0 | R80: 0 | S80: 0 | T80: 0 | U80: 0 | V80: 1067013.75 | W80: HM500
A81: 2022 | B81: 407510 | C81: 407 | D81: HM | E81: 510 | G81: 0 | H81: 0 | I81: 722373.7 | J81: 0 | K81: 0 | L81: 0 | M81: 0 | N81: 0 | O81: 0 | P81: 0 | Q81: 0 | R81: 0 | S81: 0 | T81: 0 | U81: 0 | V81: 722373.7 | W81: HM510
A82: 2022 | B82: 407520 | C82: 407 | D82: HM | E82: 520 | G82: 0 | H82: 0 | I82: 336077.14 | J82: 0 | K82: 0 | L82: 0 | M82: 0 | N82: 0 | O82: 0 | P82: 0 | Q82: 0 | R82: 0 | S82: 0 | T82: 0 | U82: 0 | V82: 336077.14 | W82: HM520
A83: 2022 | B83: 407530 | C83: 407 | D83: HM | E83: 530 | G83: 0 | H83: 0 | I83: 8562.91 | J83: 0 | K83: 0 | L83: 0 | M83: 0 | N83: 0 | O83: 0 | P83: 0 | Q83: 0 | R83: 0 | S83: 0 | T83: 0 | U83: 0 | V83: 8562.91 | W83: HM530
A84: 2022 | B84: 407550 | C84: 407 | D84: HM | E84: 550 | G84: 0 | H84: 0 | I84: 0 | J84: 0 | K84: 0 | L84: 0 | M84: 0 | N84: 0 | O84: 0 | P84: 0 | Q84: 0 | R84: 0 | S84: 0 | T84: 0 | U84: 0 | V84: 0 | W84: HM550
A85: 2022 | B85: 407560 | C85: 407 | D85: HM | E85: 560 | G85: 0 | H85: 0 | I85: 0 | J85: 0 | K85: 0 | L85: 0 | M85: 0 | N85: 0 | O85: 0 | P85: 0 | Q85: 0 | R85: 0 | S85: 0 | T85: 0 | U85: 0 | V85: 0 | W85: HM560
A86: 2022 | B86: 407600 | C86: 407 | D86: HM | E86: 600 | G86: 0 | H86: 0 | I86: 0 | J86: 0 | K86: 0 | L86: 0 | M86: 0 | N86: 0 | O86: 0 | P86: 0 | Q86: 0 | R86: 0 | S86: 0 | T86: 0 | U86: 0 | V86: 0 | W86: HM600
A87: 2022 | B87: 407610 | C87: 407 | D87: HM | E87: 610 | G87: 0 | H87: 0 | I87: 0 | J87: 0 | K87: 0 | L87: 0 | M87: 0 | N87: 0 | O87: 0 | P87: 0 | Q87: 0 | R87: 0 | S87: 0 | T87: 0 | U87: 0 | V87: 0 | W87: HM610
A88: 2022 | B88: 407620 | C88: 407 | D88: HM | E88: 620 | G88: 0 | H88: 0 | I88: 0 | J88: 0 | K88: 0 | L88: 0 | M88: 0 | N88: 0 | O88: 0 | P88: 0 | Q88: 0 | R88: 0 | S88: 0 | T88: 0 | U88: 0 | V88: 0 | W88: HM620
A89: 2022 | B89: 407700 | C89: 407 | D89: HM | E89: 700 | G89: 0 | H89: 0 | I89: 0 | J89: 0 | K89: 0 | L89: 0 | M89: 0 | N89: 0 | O89: 0 | P89: 0 | Q89: 0 | R89: 0 | S89: 0 | T89: 0 | U89: 0 | V89: 0 | W89: HM700
A90: 2022 | B90: 407720 | C90: 407 | D90: HM | E90: 720 | G90: 0 | H90: 0 | I90: 0 | J90: 0 | K90: 0 | L90: 0 | M90: 0 | N90: 0 | O90: 0 | P90: 0 | Q90: 0 | R90: 0 | S90: 0 | T90: 0 | U90: 0 | V90: 0 | W90: HM720
A91: 2022 | B91: 407725 | C91: 407 | D91: HM | E91: 725 | G91: 0 | H91: 0 | I91: 0 | J91: 0 | K91: 0 | L91: 0 | M91: 0 | N91: 0 | O91: 0 | P91: 0 | Q91: 0 | R91: 0 | S91: 0 | T91: 0 | U91: 0 | V91: 0 | W91: HM725
A92: 2022 | B92: 407730 | C92: 407 | D92: HM | E92: 730 | G92: 0 | H92: 0 | I92: 0 | J92: 0 | K92: 0 | L92: 0 | M92: 0 | N92: 0 | O92: 0 | P92: 0 | Q92: 0 | R92: 0 | S92: 0 | T92: 0 | U92: 0 | V92: 0 | W92: HM730
A93: 2022 | B93: 407740 | C93: 407 | D93: HM | E93: 740 | G93: 0 | H93: 0 | I93: 0 | J93: 0 | K93: 0 | L93: 0 | M93: 0 | N93: 0 | O93: 0 | P93: 0 | Q93: 0 | R93: 0 | S93: 0 | T93: 0 | U93: 0 | V93: 0 | W93: HM740
A94: 2022 | B94: 407750 | C94: 407 | D94: HM | E94: 750 | G94: 0 | H94: 0 | I94: 0 | J94: 0 | K94: 0 | L94: 0 | M94: 0 | N94: 0 | O94: 0 | P94: 0 | Q94: 0 | R94: 0 | S94: 0 | T94: 0 | U94: 0 | V94: 0 | W94: HM750
A95: 2022 | B95: 407760 | C95: 407 | D95: HM | E95: 760 | G95: 0 | H95: 0 | I95: 0 | J95: 0 | K95: 0 | L95: 0 | M95: 0 | N95: 0 | O95: 0 | P95: 0 | Q95: 0 | R95: 0 | S95: 0 | T95: 0 | U95: 0 | V95: 0 | W95: HM760
A96: 2022 | B96: 407770 | C96: 407 | D96: HM | E96: 770 | G96: 0 | H96: 0 | I96: 0 | J96: 0 | K96: 0 | L96: 0 | M96: 0 | N96: 0 | O96: 0 | P96: 0 | Q96: 0 | R96: 0 | S96: 0 | T96: 0 | U96: 0 | V96: 0 | W96: HM770
A97: 2022 | B97: 407800 | C97: 407 | D97: HM | E97: 800 | G97: 2095717.15 | H97: 339910.96 | I97: 3155753.51 | J97: 0 | K97: 0 | L97: 0 | M97: 0 | N97: 508491.71 | O97: 0 | P97: 0 | Q97: 0 | R97: 0 | S97: 0 | T97: 448691 | U97: 4483.45 | V97: 6553047.78 | W97: HM800
A98: 2022 | B98: 407910 | C98: 407 | D98: HM | E98: 910 | G98: 0 | H98: 0 | I98: 0 | J98: 0 | K98: 0 | L98: 0 | M98: 0 | N98: 0 | O98: 0 | P98: 0 | Q98: 0 | R98: 0 | S98: 0 | T98: 0 | U98: 0 | V98: 0 | W98: HM910
A99: 2022 | B99: 407920 | C99: 407 | D99: HM | E99: 920 | G99: 0 | H99: 0 | I99: 0 | J99: 0 | K99: 0 | L99: 0 | M99: 0 | N99: 0 | O99: 0 | P99: 0 | Q99: 0 | R99: 0 | S99: 0 | T99: 0 | U99: 0 | V99: 0 | W99: HM920
A100: 2022 | B100: 409100 | C100: 409 | D100: C | E100: 100 | G100: 0 | H100: 0 | I100: 944337 | J100: 0 | K100: 0 | L100: 0 | M100: 0 | N100: 0 | O100: 0 | P100: 0 | Q100: 0 | R100: 0 | S100: 0 | T100: 56221 | U100: 0 | V100: 1000558 | W100: C100
A101: 2022 | B101: 409110 | C101: 409 | D101: C | E101: 110 | G101: 0 | H101: 0 | I101: 16363 | J101: 0 | K101: 0 | L101: 0 | M101: 0 | N101: 0 | O101: 0 | P101: 0 | Q101: 0 | R101: 0 | S101: 0 | T101: 0 | U101: 0 | V101: 16363 | W101: C110
A102: 2022 | B102: 409111 | C102: 409 | D102: C | E102: 111 | G102: 0 | H102: 0 | I102: 11995 | J102: 0 | K102: 0 | L102: 0 | M102: 0 | N102: 0 | O102: 0 | P102: 0 | Q102: 0 | R102: 0 | S102: 0 | T102: 0 | U102: 0 | V102: 11995 | W102: C111
A103: 2022 | B103: 409112 | C103: 409 | D103: C | E103: 112 | G103: 0 | H103: 0 | I103: 4368 | J103: 0 | K103: 0 | L103: 0 | M103: 0 | N103: 0 | O103: 0 | P103: 0 | Q103: 0 | R103: 0 | S103: 0 | T103: 0 | U103: 0 | V103: 4368 | W103: C112
A104: 2022 | B104: 409120 | C104: 409 | D104: C | E104: 120 | G104: 0 | H104: 0 | I104: 129839 | J104: 0 | K104: 0 | L104: 0 | M104: 0 | N104: 0 | O104: 0 | P104: 0 | Q104: 0 | R104: 0 | S104: 0 | T104: 0 | U104: 0 | V104: 129839 | W104: C120
A105: 2022 | B105: 409121 | C105: 409 | D105: C | E105: 121 | G105: 0 | H105: 0 | I105: 129839 | J105: 0 | K105: 0 | L105: 0 | M105: 0 | N105: 0 | O105: 0 | P105: 0 | Q105: 0 | R105: 0 | S105: 0 | T105: 0 | U105: 0 | V105: 129839 | W105: C121
A106: 2022 | B106: 409122 | C106: 409 | D106: C | E106: 122 | G106: 0 | H106: 0 | I106: 0 | J106: 0 | K106: 0 | L106: 0 | M106: 0 | N106: 0 | O106: 0 | P106: 0 | Q106: 0 | R106: 0 | S106: 0 | T106: 0 | U106: 0 | V106: 0 | W106: C122
A107: 2022 | B107: 409120a | C107: 409 | D107: C | E107: 120a | G107: 0 | H107: 0 | I107: 640968 | J107: 0 | K107: 0 | L107: 0 | M107: 0 | N107: 0 | O107: 0 | P107: 0 | Q107: 0 | R107: 0 | S107: 0 | T107: 56221 | U107: 0 | V107: 697189 | W107: C120a
A108: 2022 | B108: 409121a | C108: 409 | D108: C | E108: 121a | G108: 0 | H108: 0 | I108: 290898 | J108: 0 | K108: 0 | L108: 0 | M108: 0 | N108: 0 | O108: 0 | P108: 0 | Q108: 0 | R108: 0 | S108: 0 | T108: 38792 | U108: 0 | V108: 329690 | W108: C121a
A109: 2022 | B109: 409122a | C109: 409 | D109: C | E109: 122a | G109: 0 | H109: 0 | I109: 245609 | J109: 0 | K109: 0 | L109: 0 | M109: 0 | N109: 0 | O109: 0 | P109: 0 | Q109: 0 | R109: 0 | S109: 0 | T109: 0 | U109: 0 | V109: 245609 | W109: C122a
A110: 2022 | B110: 409123 | C110: 409 | D110: C | E110: 123 | G110: 0 | H110: 0 | I110: 59549 | J110: 0 | K110: 0 | L110: 0 | M110: 0 | N110: 0 | O110: 0 | P110: 0 | Q110: 0 | R110: 0 | S110: 0 | T110: 17429 | U110: 0 | V110: 76978 | W110: C123
A111: 2022 | B111: 409124 | C111: 409 | D111: C | E111: 124 | G111: 0 | H111: 0 | I111: 30092 | J111: 0 | K111: 0 | L111: 0 | M111: 0 | N111: 0 | O111: 0 | P111: 0 | Q111: 0 | R111: 0 | S111: 0 | T111: 0 | U111: 0 | V111: 30092 | W111: C124
A112: 2022 | B112: 409125 | C112: 409 | D112: C | E112: 125 | G112: 0 | H112: 0 | I112: 14820 | J112: 0 | K112: 0 | L112: 0 | M112: 0 | N112: 0 | O112: 0 | P112: 0 | Q112: 0 | R112: 0 | S112: 0 | T112: 0 | U112: 0 | V112: 14820 | W112: C125
A113: 2022 | B113: 409126 | C113: 409 | D113: C | E113: 126 | G113: 0 | H113: 0 | I113: 0 | J113: 0 | K113: 0 | L113: 0 | M113: 0 | N113: 0 | O113: 0 | P113: 0 | Q113: 0 | R113: 0 | S113: 0 | T113: 0 | U113: 0 | V113: 0 | W113: C126
A114: 2022 | B114: 409130 | C114: 409 | D114: C | E114: 130 | G114: 0 | H114: 0 | I114: 34758 | J114: 0 | K114: 0 | L114: 0 | M114: 0 | N114: 0 | O114: 0 | P114: 0 | Q114: 0 | R114: 0 | S114: 0 | T114: 0 | U114: 0 | V114: 34758 | W114: C130
A115: 2022 | B115: 409131 | C115: 409 | D115: C | E115: 131 | G115: 0 | H115: 0 | I115: 0 | J115: 0 | K115: 0 | L115: 0 | M115: 0 | N115: 0 | O115: 0 | P115: 0 | Q115: 0 | R115: 0 | S115: 0 | T115: 0 | U115: 0 | V115: 0 | W115: C131
A116: 2022 | B116: 409132 | C116: 409 | D116: C | E116: 132 | G116: 0 | H116: 0 | I116: 34758 | J116: 0 | K116: 0 | L116: 0 | M116: 0 | N116: 0 | O116: 0 | P116: 0 | Q116: 0 | R116: 0 | S116: 0 | T116: 0 | U116: 0 | V116: 34758 | W116: C132
A117: 2022 | B117: 409133 | C117: 409 | D117: C | E117: 133 | G117: 0 | H117: 0 | I117: 0 | J117: 0 | K117: 0 | L117: 0 | M117: 0 | N117: 0 | O117: 0 | P117: 0 | Q117: 0 | R117: 0 | S117: 0 | T117: 0 | U117: 0 | V117: 0 | W117: C133
A118: 2022 | B118: 409170 | C118: 409 | D118: C | E118: 170 | G118: 0 | H118: 0 | I118: 122409 | J118: 0 | K118: 0 | L118: 0 | M118: 0 | N118: 0 | O118: 0 | P118: 0 | Q118: 0 | R118: 0 | S118: 0 | T118: 0 | U118: 0 | V118: 122409 | W118: C170
A119: 2022 | B119: 409170a | C119: 409 | D119: C | E119: 170a | G119: 0 | H119: 0 | I119: 80976 | J119: 0 | K119: 0 | L119: 0 | M119: 0 | N119: 0 | O119: 0 | P119: 0 | Q119: 0 | R119: 0 | S119: 0 | T119: 0 | U119: 0 | V119: 80976 | W119: C170a
A120: 2022 | B120: 409170b | C120: 409 | D120: C | E120: 170b | G120: 0 | H120: 0 | I120: 9164 | J120: 0 | K120: 0 | L120: 0 | M120: 0 | N120: 0 | O120: 0 | P120: 0 | Q120: 0 | R120: 0 | S120: 0 | T120: 0 | U120: 0 | V120: 9164 | W120: C170b
A121: 2022 | B121: 409170c | C121: 409 | D121: C | E121: 170c | G121: 0 | H121: 0 | I121: 32269 | J121: 0 | K121: 0 | L121: 0 | M121: 0 | N121: 0 | O121: 0 | P121: 0 | Q121: 0 | R121: 0 | S121: 0 | T121: 0 | U121: 0 | V121: 32269 | W121: C170c
A122: 2022 | B122: 409171 | C122: 409 | D122: C | E122: 171 | G122: 0 | H122: 0 | I122: 0 | J122: 0 | K122: 0 | L122: 0 | M122: 0 | N122: 0 | O122: 0 | P122: 0 | Q122: 0 | R122: 0 | S122: 0 | T122: 0 | U122: 0 | V122: 0 | W122: C171
A123: 2022 | B123: 409171a | C123: 409 | D123: C | E123: 171a | G123: 0 | H123: 0 | I123: 0 | J123: 0 | K123: 0 | L123: 0 | M123: 0 | N123: 0 | O123: 0 | P123: 0 | Q123: 0 | R123: 0 | S123: 0 | T123: 0 | U123: 0 | V123: 0 | W123: C171a
A124: 2022 | B124: 409171b | C124: 409 | D124: C | E124: 171b | G124: 0 | H124: 0 | I124: 0 | J124: 0 | K124: 0 | L124: 0 | M124: 0 | N124: 0 | O124: 0 | P124: 0 | Q124: 0 | R124: 0 | S124: 0 | T124: 0 | U124: 0 | V124: 0 | W124: C171b
A125: 2022 | B125: 409200 | C125: 409 | D125: C | E125: 200 | G125: 6416634 | H125: 1943014 | I125: 107356 | J125: 0 | K125: 0 | L125: 0 | M125: 242459 | N125: 875456 | O125: 0 | P125: 0 | Q125: 0 | R125: 0 | S125: 0 | T125: 1171068 | U125: 0 | V125: 10755987 | W125: C200
A126: 2022 | B126: 409210 | C126: 409 | D126: C | E126: 210 | G126: 730711 | H126: 156500 | I126: 0 | J126: 0 | K126: 0 | L126: 0 | M126: 0 | N126: 0 | O126: 0 | P126: 0 | Q126: 0 | R126: 0 | S126: 0 | T126: 43650 | U126: 0 | V126: 930861 | W126: C210
A127: 2022 | B127: 409211 | C127: 409 | D127: C | E127: 211 | G127: 363322 | H127: 156500 | I127: 0 | J127: 0 | K127: 0 | L127: 0 | M127: 0 | N127: 0 | O127: 0 | P127: 0 | Q127: 0 | R127: 0 | S127: 0 | T127: 0 | U127: 0 | V127: 519822 | W127: C211
A128: 2022 | B128: 409212 | C128: 409 | D128: C | E128: 212 | G128: 367389 | H128: 0 | I128: 0 | J128: 0 | K128: 0 | L128: 0 | M128: 0 | N128: 0 | O128: 0 | P128: 0 | Q128: 0 | R128: 0 | S128: 0 | T128: 43650 | U128: 0 | V128: 411039 | W128: C212
A129: 2022 | B129: 409213 | C129: 409 | D129: C | E129: 213 | G129: 0 | H129: 0 | I129: 0 | J129: 0 | K129: 0 | L129: 0 | M129: 0 | N129: 0 | O129: 0 | P129: 0 | Q129: 0 | R129: 0 | S129: 0 | T129: 0 | U129: 0 | V129: 0 | W129: C213
A130: 2022 | B130: 409214 | C130: 409 | D130: C | E130: 214 | G130: 0 | H130: 0 | I130: 0 | J130: 0 | K130: 0 | L130: 0 | M130: 0 | N130: 0 | O130: 0 | P130: 0 | Q130: 0 | R130: 0 | S130: 0 | T130: 0 | U130: 0 | V130: 0 | W130: C214
A131: 2022 | B131: =C131&E131 -> 409215 | C131: 409 | D131: =VLOOKUP(C131, TYPE, 3, FALSE) -> C | E131: 215 | G131: 0 | H131: 0 | I131: 0 | J131: 0 | K131: 0 | L131: 0 | M131: 0 | N131: 0 | O131: 0 | P131: 0 | Q131: 0 | R131: 0 | S131: 0 | T131: 0 | U131: 0 | V131: 0 | W131: C215
A132: 2022 | B132: 409220 | C132: 409 | D132: C | E132: 220 | G132: 4188475 | H132: 719954 | I132: 0 | J132: 0 | K132: 0 | L132: 0 | M132: 0 | N132: 0 | O132: 0 | P132: 0 | Q132: 0 | R132: 0 | S132: 0 | T132: 151500 | U132: 0 | V132: 5059929 | W132: =D132&E132 -> C220
A133: 2022 | B133: 409221 | C133: 409 | D133: C | E133: 221 | G133: 4072513 | H133: 0 | I133: 0 | J133: 0 | K133: 0 | L133: 0 | M133: 0 | N133: 0 | O133: 0 | P133: 0 | Q133: 0 | R133: 0 | S133: 0 | T133: 116500 | U133: 0 | V133: 4189013 | W133: C221
A134: 2022 | B134: 409222 | C134: 409 | D134: C | E134: 222 | G134: 115962 | H134: 719954 | I134: 0 | J134: 0 | K134: 0 | L134: 0 | M134: 0 | N134: 0 | O134: 0 | P134: 0 | Q134: 0 | R134: 0 | S134: 0 | T134: 35000 | U134: 0 | V134: 870916 | W134: C222
A135: 2022 | B135: 409230 | C135: 409 | D135: C | E135: 230 | G135: 124452 | H135: 657442 | I135: 0 | J135: 0 | K135: 0 | L135: 0 | M135: 224470 | N135: 525461 | O135: 0 | P135: 0 | Q135: 0 | R135: 0 | S135: 0 | T135: 524539 | U135: 0 | V135: 2056364 | W135: C230
A136: 2022 | B136: 409231 | C136: 409 | D136: C | E136: 231 | G136: 41242 | H136: 216154 | I136: 0 | J136: 0 | K136: 0 | L136: 0 | M136: 0 | N136: 0 | O136: 0 | P136: 0 | Q136: 0 | R136: 0 | S136: 0 | T136: 25349 | U136: 0 | V136: 282745 | W136: C231
A137: 2022 | B137: 409232 | C137: 409 | D137: C | E137: 232 | G137: 83210 | H137: 194157 | I137: 0 | J137: 0 | K137: 0 | L137: 0 | M137: 0 | N137: 40461 | O137: 0 | P137: 0 | Q137: 0 | R137: 0 | S137: 0 | T137: 127156 | U137: 0 | V137: 444984 | W137: C232
A138: 2022 | B138: 409233 | C138: 409 | D138: C | E138: 233 | G138: 0 | H138: 0 | I138: 0 | J138: 0 | K138: 0 | L138: 0 | M138: 0 | N138: 0 | O138: 0 | P138: 0 | Q138: 0 | R138: 0 | S138: 0 | T138: 0 | U138: 0 | V138: 0 | W138: C233
A139: 2022 | B139: 409234 | C139: 409 | D139: C | E139: 234 | G139: 0 | H139: 247131 | I139: 0 | J139: 0 | K139: 0 | L139: 0 | M139: 224470 | N139: 485000 | O139: 0 | P139: 0 | Q139: 0 | R139: 0 | S139: 0 | T139: 372034 | U139: 0 | V139: 1328635 | W139: C234
A140: 2022 | B140: 409240 | C140: 409 | D140: C | E140: 240 | G140: 829589 | H140: 176586 | I140: 0 | J140: 0 | K140: 0 | L140: 0 | M140: 0 | N140: 84005 | O140: 0 | P140: 0 | Q140: 0 | R140: 0 | S140: 0 | T140: 274550 | U140: 0 | V140: 1364730 | W140: C240
A141: 2022 | B141: 409241 | C141: 409 | D141: C | E141: 241 | G141: 412034 | H141: 176586 | I141: 0 | J141: 0 | K141: 0 | L141: 0 | M141: 0 | N141: 0 | O141: 0 | P141: 0 | Q141: 0 | R141: 0 | S141: 0 | T141: 0 | U141: 0 | V141: 588620 | W141: C241
A142: 2022 | B142: 409242 | C142: 409 | D142: C | E142: 242 | G142: 151912 | H142: 0 | I142: 0 | J142: 0 | K142: 0 | L142: 0 | M142: 0 | N142: 84005 | O142: 0 | P142: 0 | Q142: 0 | R142: 0 | S142: 0 | T142: 274550 | U142: 0 | V142: 510467 | W142: C242
A143: 2022 | B143: 409243 | C143: 409 | D143: C | E143: 243 | G143: 7423 | H143: 0 | I143: 0 | J143: 0 | K143: 0 | L143: 0 | M143: 0 | N143: 0 | O143: 0 | P143: 0 | Q143: 0 | R143: 0 | S143: 0 | T143: 0 | U143: 0 | V143: 7423 | W143: C243
A144: 2022 | B144: 409244 | C144: 409 | D144: C | E144: 244 | G144: 258220 | H144: 0 | I144: 0 | J144: 0 | K144: 0 | L144: 0 | M144: 0 | N144: 0 | O144: 0 | P144: 0 | Q144: 0 | R144: 0 | S144: 0 | T144: 0 | U144: 0 | V144: 258220 | W144: C244
A145: 2022 | B145: 409250 | C145: 409 | D145: C | E145: 250 | G145: 0 | H145: 149068 | I145: 0 | J145: 0 | K145: 0 | L145: 0 | M145: 0 | N145: 114539 | O145: 0 | P145: 0 | Q145: 0 | R145: 0 | S145: 0 | T145: 34915 | U145: 0 | V145: 298522 | W145: C250
A146: 2022 | B146: 409251 | C146: 409 | D146: C | E146: 251 | G146: 0 | H146: 81421 | I146: 0 | J146: 0 | K146: 0 | L146: 0 | M146: 0 | N146: 99539 | O146: 0 | P146: 0 | Q146: 0 | R146: 0 | S146: 0 | T146: 0 | U146: 0 | V146: 180960 | W146: C251
A147: 2022 | B147: 409252 | C147: 409 | D147: C | E147: 252 | G147: 0 | H147: 0 | I147: 0 | J147: 0 | K147: 0 | L147: 0 | M147: 0 | N147: 0 | O147: 0 | P147: 0 | Q147: 0 | R147: 0 | S147: 0 | T147: 0 | U147: 0 | V147: 0 | W147: C252
A148: 2022 | B148: 409253 | C148: 409 | D148: C | E148: 253 | G148: 0 | H148: 60034 | I148: 0 | J148: 0 | K148: 0 | L148: 0 | M148: 0 | N148: 15000 | O148: 0 | P148: 0 | Q148: 0 | R148: 0 | S148: 0 | T148: 34915 | U148: 0 | V148: 109949 | W148: C253
A149: 2022 | B149: 409254 | C149: 409 | D149: C | E149: 254 | G149: 0 | H149: 7613 | I149: 0 | J149: 0 | K149: 0 | L149: 0 | M149: 0 | N149: 0 | O149: 0 | P149: 0 | Q149: 0 | R149: 0 | S149: 0 | T149: 0 | U149: 0 | V149: 7613 | W149: C254
A150: 2022 | B150: 409260 | C150: 409 | D150: C | E150: 260 | G150: 543407 | H150: 83464 | I150: 107356 | J150: 0 | K150: 0 | L150: 0 | M150: 17989 | N150: 151451 | O150: 0 | P150: 0 | Q150: 0 | R150: 0 | S150: 0 | T150: 141914 | U150: 0 | V150: 1045581 | W150: C260
A151: 2022 | B151: 409261 | C151: 409 | D151: C | E151: 261 | G151: 3694 | H151: 0 | I151: 0 | J151: 0 | K151: 0 | L151: 0 | M151: 0 | N151: 23691 | O151: 0 | P151: 0 | Q151: 0 | R151: 0 | S151: 0 | T151: 31000 | U151: 0 | V151: 58385 | W151: C261
A152: 2022 | B152: 409262 | C152: 409 | D152: C | E152: 262 | G152: 0 | H152: 0 | I152: 156252 | J152: 0 | K152: 0 | L152: 0 | M152: 0 | N152: 18202 | O152: 0 | P152: 0 | Q152: 0 | R152: 0 | S152: 0 | T152: 66941 | U152: 0 | V152: 241395 | W152: C262
A153: 2022 | B153: 409263 | C153: 409 | D153: C | E153: 263 | G153: 4394 | H153: 0 | I153: 0 | J153: 0 | K153: 0 | L153: 0 | M153: 0 | N153: 0 | O153: 0 | P153: 0 | Q153: 0 | R153: 0 | S153: 0 | T153: 32503 | U153: 0 | V153: 36897 | W153: C263
A154: 2022 | B154: 409264 | C154: 409 | D154: C | E154: 264 | G154: 194752 | H154: 83464 | I154: 0 | J154: 0 | K154: 0 | L154: 0 | M154: 0 | N154: 2058 | O154: 0 | P154: 0 | Q154: 0 | R154: 0 | S154: 0 | T154: 614 | U154: 0 | V154: 280888 | W154: C264
A155: 2022 | B155: 409265 | C155: 409 | D155: C | E155: 265 | G155: 27285 | H155: 0 | I155: 0 | J155: 0 | K155: 0 | L155: 0 | M155: 0 | N155: 0 | O155: 0 | P155: 0 | Q155: 0 | R155: 0 | S155: 0 | T155: 0 | U155: 0 | V155: 27285 | W155: C265
A156: 2022 | B156: 409266 | C156: 409 | D156: C | E156: 266 | G156: 9806 | H156: 0 | I156: 0 | J156: 0 | K156: 0 | L156: 0 | M156: 0 | N156: 0 | O156: 0 | P156: 0 | Q156: 0 | R156: 0 | S156: 0 | T156: 1025 | U156: 0 | V156: 10831 | W156: C266
A157: 2022 | B157: 409267 | C157: 409 | D157: C | E157: 267 | G157: 0 | H157: 0 | I157: -69562 | J157: 0 | K157: 0 | L157: 0 | M157: 17989 | N157: 100000 | O157: 0 | P157: 0 | Q157: 0 | R157: 0 | S157: 0 | T157: 0 | U157: 0 | V157: 48427 | W157: C267
A158: 2022 | B158: 409268a | C158: 409 | D158: C | E158: 268a | G158: 103476 | H158: 0 | I158: 0 | J158: 0 | K158: 0 | L158: 0 | M158: 0 | N158: 7500 | O158: 0 | P158: 0 | Q158: 0 | R158: 0 | S158: 0 | T158: 9831 | U158: 0 | V158: 120807 | W158: C268a
A159: 2022 | B159: 409268b | C159: 409 | D159: C | E159: 268b | G159: 0 | H159: 0 | I159: 0 | J159: 0 | K159: 0 | L159: 0 | M159: 0 | N159: 0 | O159: 0 | P159: 0 | Q159: 0 | R159: 0 | S159: 0 | T159: 0 | U159: 0 | V159: 0 | W159: C268b
A160: 2022 | B160: 409269 | C160: 409 | D160: C | E160: 269 | G160: 200000 | H160: 0 | I160: 20666 | J160: 0 | K160: 0 | L160: 0 | M160: 0 | N160: 0 | O160: 0 | P160: 0 | Q160: 0 | R160: 0 | S160: 0 | T160: 0 | U160: 0 | V160: 220666 | W160: C269
A161: 2022 | B161: 409300 | C161: 409 | D161: C | E161: 300 | G161: 1929148 | H161: 0 | I161: 550281 | J161: 23852 | K161: 0 | L161: 0 | M161: 0 | N161: 119800 | O161: 0 | P161: 0 | Q161: 0 | R161: 0 | S161: 0 | T161: 867222 | U161: 0 | V161: 3490303 | W161: C300
A162: 2022 | B162: 409310 | C162: 409 | D162: C | E162: 310 | G162: 0 | H162: 0 | I162: 219252 | J162: 14000 | K162: 0 | L162: 0 | M162: 0 | N162: 115000 | O162: 0 | P162: 0 | Q162: 0 | R162: 0 | S162: 0 | T162: 0 | U162: 0 | V162: 348252 | W162: C310
A163: 2022 | B163: 409315 | C163: 409 | D163: C | E163: 315 | G163: 0 | H163: 0 | I163: 0 | J163: 0 | K163: 0 | L163: 0 | M163: 0 | N163: 0 | O163: 0 | P163: 0 | Q163: 0 | R163: 0 | S163: 0 | T163: 0 | U163: 0 | V163: 0 | W163: C315
A164: 2022 | B164: 409320 | C164: 409 | D164: C | E164: 320 | G164: 0 | H164: 0 | I164: 4128 | J164: 0 | K164: 0 | L164: 0 | M164: 0 | N164: 0 | O164: 0 | P164: 0 | Q164: 0 | R164: 0 | S164: 0 | T164: 0 | U164: 0 | V164: 4128 | W164: C320
A165: 2022 | B165: 409325 | C165: 409 | D165: C | E165: 325 | G165: 0 | H165: 0 | I165: 0 | J165: 0 | K165: 0 | L165: 0 | M165: 0 | N165: 0 | O165: 0 | P165: 0 | Q165: 0 | R165: 0 | S165: 0 | T165: 0 | U165: 0 | V165: 0 | W165: C325
A166: 2022 | B166: 409330 | C166: 409 | D166: C | E166: 330 | G166: 0 | H166: 0 | I166: 90301 | J166: 0 | K166: 0 | L166: 0 | M166: 0 | N166: 0 | O166: 0 | P166: 0 | Q166: 0 | R166: 0 | S166: 0 | T166: 60949 | U166: 0 | V166: 151250 | W166: C330
A167: 2022 | B167: 409335 | C167: 409 | D167: C | E167: 335 | G167: 0 | H167: 0 | I167: 0 | J167: 9852 | K167: 0 | L167: 0 | M167: 0 | N167: 0 | O167: 0 | P167: 0 | Q167: 0 | R167: 0 | S167: 0 | T167: 799273 | U167: 0 | V167: 809125 | W167: C335
A168: 2022 | B168: 409340 | C168: 409 | D168: C | E168: 340 | G168: 1853650 | H168: 0 | I168: 0 | J168: 0 | K168: 0 | L168: 0 | M168: 0 | N168: 0 | O168: 0 | P168: 0 | Q168: 0 | R168: 0 | S168: 0 | T168: 0 | U168: 0 | V168: 1853650 | W168: C340
A169: 2022 | B169: 409345 | C169: 409 | D169: C | E169: 345 | G169: 75498 | H169: 0 | I169: 0 | J169: 0 | K169: 0 | L169: 0 | M169: 0 | N169: 4800 | O169: 0 | P169: 0 | Q169: 0 | R169: 0 | S169: 0 | T169: 0 | U169: 0 | V169: 80298 | W169: C345
A170: 2022 | B170: 409350 | C170: 409 | D170: C | E170: 350 | G170: 0 | H170: 0 | I170: 0 | J170: 0 | K170: 0 | L170: 0 | M170: 0 | N170: 0 | O170: 0 | P170: 0 | Q170: 0 | R170: 0 | S170: 0 | T170: 0 | U170: 0 | V170: 0 | W170: C350
A171: 2022 | B171: 409360 | C171: 409 | D171: C | E171: 360 | G171: 0 | H171: 0 | I171: 236600 | J171: 0 | K171: 0 | L171: 0 | M171: 0 | N171: 0 | O171: 0 | P171: 0 | Q171: 0 | R171: 0 | S171: 0 | T171: 7000 | U171: 0 | V171: 243600 | W171: C360
A172: 2022 | B172: 409400 | C172: 409 | D172: C | E172: 400 | G172: 0 | H172: 0 | I172: 864199 | J172: 0 | K172: 0 | L172: 0 | M172: 96000 | N172: 225000 | O172: 0 | P172: 0 | Q172: 0 | R172: 0 | S172: 0 | T172: 30000 | U172: 0 | V172: 1215199 | W172: C400
A173: 2022 | B173: 409410 | C173: 409 | D173: C | E173: 410 | G173: 0 | H173: 0 | I173: 564357 | J173: 0 | K173: 0 | L173: 0 | M173: 96000 | N173: 150000 | O173: 0 | P173: 0 | Q173: 0 | R173: 0 | S173: 0 | T173: 0 | U173: 0 | V173: 810357 | W173: C410
A174: 2022 | B174: 409420 | C174: 409 | D174: C | E174: 420 | G174: 0 | H174: 0 | I174: 244035 | J174: 0 | K174: 0 | L174: 0 | M174: 0 | N174: 0 | O174: 0 | P174: 0 | Q174: 0 | R174: 0 | S174: 0 | T174: 0 | U174: 0 | V174: 244035 | W174: C420
A175: 2022 | B175: 409430 | C175: 409 | D175: C | E175: 430 | G175: 0 | H175: 0 | I175: 2849 | J175: 0 | K175: 0 | L175: 0 | M175: 0 | N175: 0 | O175: 0 | P175: 0 | Q175: 0 | R175: 0 | S175: 0 | T175: 30000 | U175: 0 | V175: 32849 | W175: C430
A176: 2022 | B176: 409440 | C176: 409 | D176: C | E176: 440 | G176: 0 | H176: 0 | I176: 52958 | J176: 0 | K176: 0 | L176: 0 | M176: 0 | N176: 75000 | O176: 0 | P176: 0 | Q176: 0 | R176: 0 | S176: 0 | T176: 0 | U176: 0 | V176: 127958 | W176: C440
A177: 2022 | B177: 409500 | C177: 409 | D177: C | E177: 500 | G177: 0 | H177: 0 | I177: 2487432 | J177: 0 | K177: 0 | L177: 0 | M177: 0 | N177: 0 | O177: 0 | P177: 0 | Q177: 0 | R177: 0 | S177: 0 | T177: 33635 | U177: 0 | V177: 2521067 | W177: C500
A178: 2022 | B178: 409510 | C178: 409 | D178: C | E178: 510 | G178: 0 | H178: 0 | I178: 1326178 | J178: 0 | K178: 0 | L178: 0 | M178: 0 | N178: 0 | O178: 0 | P178: 0 | Q178: 0 | R178: 0 | S178: 0 | T178: 13635 | U178: 0 | V178: 1339813 | W178: C510
A179: 2022 | B179: 409520 | C179: 409 | D179: C | E179: 520 | G179: 0 | H179: 0 | I179: 1010610 | J179: 0 | K179: 0 | L179: 0 | M179: 0 | N179: 0 | O179: 0 | P179: 0 | Q179: 0 | R179: 0 | S179: 0 | T179: 0 | U179: 0 | V179: 1010610 | W179: C520
A180: 2022 | B180: 409530 | C180: 409 | D180: C | E180: 530 | G180: 0 | H180: 0 | I180: 77190 | J180: 0 | K180: 0 | L180: 0 | M180: 0 | N180: 0 | O180: 0 | P180: 0 | Q180: 0 | R180: 0 | S180: 0 | T180: 0 | U180: 0 | V180: 77190 | W180: C530
A181: 2022 | B181: 409550 | C181: 409 | D181: C | E181: 550 | G181: 0 | H181: 0 | I181: 72613 | J181: 0 | K181: 0 | L181: 0 | M181: 0 | N181: 0 | O181: 0 | P181: 0 | Q181: 0 | R181: 0 | S181: 0 | T181: 20000 | U181: 0 | V181: 92613 | W181: C550
A182: 2022 | B182: 409560 | C182: 409 | D182: C | E182: 560 | G182: 0 | H182: 0 | I182: 841 | J182: 0 | K182: 0 | L182: 0 | M182: 0 | N182: 0 | O182: 0 | P182: 0 | Q182: 0 | R182: 0 | S182: 0 | T182: 0 | U182: 0 | V182: 841 | W182: C560
A183: 2022 | B183: 409600 | C183: 409 | D183: C | E183: 600 | G183: 0 | H183: 0 | I183: 0 | J183: 0 | K183: 0 | L183: 0 | M183: 0 | N183: 0 | O183: 0 | P183: 0 | Q183: 0 | R183: 0 | S183: 0 | T183: 0 | U183: 0 | V183: 0 | W183: C600
A184: 2022 | B184: 409610 | C184: 409 | D184: C | E184: 610 | G184: 0 | H184: 0 | I184: 0 | J184: 0 | K184: 0 | L184: 0 | M184: 0 | N184: 0 | O184: 0 | P184: 0 | Q184: 0 | R184: 0 | S184: 0 | T184: 0 | U184: 0 | V184: 0 | W184: C610
A185: 2022 | B185: 409620 | C185: 409 | D185: C | E185: 620 | G185: 0 | H185: 0 | I185: 0 | J185: 0 | K185: 0 | L185: 0 | M185: 0 | N185: 0 | O185: 0 | P185: 0 | Q185: 0 | R185: 0 | S185: 0 | T185: 0 | U185: 0 | V185: 0 | W185: C620
A186: 2022 | B186: 409700 | C186: 409 | D186: C | E186: 700 | G186: 0 | H186: 0 | I186: 2437075 | J186: 0 | K186: 0 | L186: 0 | M186: 0 | N186: 0 | O186: 0 | P186: 0 | Q186: 0 | R186: 0 | S186: 0 | T186: 0 | U186: 0 | V186: 2437075 | W186: C700
A187: 2022 | B187: 409720 | C187: 409 | D187: C | E187: 720 | G187: 0 | H187: 0 | I187: 0 | J187: 0 | K187: 0 | L187: 0 | M187: 0 | N187: 0 | O187: 0 | P187: 0 | Q187: 0 | R187: 0 | S187: 0 | T187: 0 | U187: 0 | V187: 0 | W187: C720
A188: 2022 | B188: 409725 | C188: 409 | D188: C | E188: 725 | G188: 0 | H188: 0 | I188: 0 | J188: 0 | K188: 0 | L188: 0 | M188: 0 | N188: 0 | O188: 0 | P188: 0 | Q188: 0 | R188: 0 | S188: 0 | T188: 0 | U188: 0 | V188: 0 | W188: C725
A189: 2022 | B189: 409730 | C189: 409 | D189: C | E189: 730 | G189: 0 | H189: 0 | I189: 0 | J189: 0 | K189: 0 | L189: 0 | M189: 0 | N189: 0 | O189: 0 | P189: 0 | Q189: 0 | R189: 0 | S189: 0 | T189: 0 | U189: 0 | V189: 0 | W189: C730
A190: 2022 | B190: 409740 | C190: 409 | D190: C | E190: 740 | G190: 0 | H190: 0 | I190: 1980496 | J190: 0 | K190: 0 | L190: 0 | M190: 0 | N190: 0 | O190: 0 | P190: 0 | Q190: 0 | R190: 0 | S190: 0 | T190: 0 | U190: 0 | V190: 1980496 | W190: C740
A191: 2022 | B191: 409750 | C191: 409 | D191: C | E191: 750 | G191: 0 | H191: 0 | I191: 59772 | J191: 0 | K191: 0 | L191: 0 | M191: 0 | N191: 0 | O191: 0 | P191: 0 | Q191: 0 | R191: 0 | S191: 0 | T191: 0 | U191: 0 | V191: 59772 | W191: C750
A192: 2022 | B192: 409760 | C192: 409 | D192: C | E192: 760 | G192: 0 | H192: 0 | I192: 0 | J192: 0 | K192: 0 | L192: 0 | M192: 0 | N192: 0 | O192: 0 | P192: 0 | Q192: 0 | R192: 0 | S192: 0 | T192: 0 | U192: 0 | V192: 0 | W192: C760
A193: 2022 | B193: 409770 | C193: 409 | D193: C | E193: 770 | G193: 0 | H193: 0 | I193: 396807 | J193: 0 | K193: 0 | L193: 0 | M193: 0 | N193: 0 | O193: 0 | P193: 0 | Q193: 0 | R193: 0 | S193: 0 | T193: 0 | U193: 0 | V193: 396807 | W193: C770
A194: 2022 | B194: 409800 | C194: 409 | D194: C | E194: 800 | G194: 8345782 | H194: 1943014 | I194: 7390680 | J194: 23852 | K194: 0 | L194: 0 | M194: 338459 | N194: 1220256 | O194: 0 | P194: 0 | Q194: 0 | R194: 0 | S194: 0 | T194: 2158146 | U194: 0 | V194: 21420189 | W194: C800
A195: 2022 | B195: =C195&E195 -> 409910 | C195: 409 | D195: =VLOOKUP(C195, TYPE, 3, FALSE) -> C | E195: 910 | G195: 0 | H195: 0 | I195: 0 | J195: 0 | K195: 0 | L195: 0 | M195: 0 | N195: 0 | O195: 0 | P195: 0 | Q195: 0 | R195: 0 | S195: 0 | T195: 0 | U195: 0 | V195: 0 | W195: C910
A196: 2022 | B196: 409920 | C196: 409 | D196: C | E196: 920 | G196: 0 | H196: 0 | I196: 0 | J196: 0 | K196: 0 | L196: 0 | M196: 0 | N196: 0 | O196: 0 | P196: 0 | Q196: 0 | R196: 0 | S196: 0 | T196: 0 | U196: 0 | V196: 0 | W196: =D196&E196 -> C920
A197: 2022 | B197: 410100 | C197: 410 | D197: C | E197: 100 | G197: 0 | H197: 0 | I197: 2147296.854 | J197: 0 | K197: 0 | L197: 0 | M197: 3615.384615 | N197: 20439.91 | O197: 95134.03538 | P197: 0 | Q197: 0 | R197: 0 | S197: 0 | T197: 122572.0831 | U197: 20105 | V197: 2409163.267 | W197: C100
A198: 2022 | B198: 410110 | C198: 410 | D198: C | E198: 110 | G198: 0 | H198: 0 | I198: 2500 | J198: 0 | K198: 0 | L198: 0 | M198: 0 | N198: 0 | O198: 0 | P198: 0 | Q198: 0 | R198: 0 | S198: 0 | T198: 0 | U198: 0 | V198: 2500 | W198: C110
A199: 2022 | B199: 410111 | C199: 410 | D199: C | E199: 111 | G199: 0 | H199: 0 | I199: 0 | J199: 0 | K199: 0 | L199: 0 | M199: 0 | N199: 0 | O199: 0 | P199: 0 | Q199: 0 | R199: 0 | S199: 0 | T199: 0 | U199: 0 | V199: 0 | W199: C111
A200: 2022 | B200: 410112 | C200: 410 | D200: C | E200: 112 | G200: 0 | H200: 0 | I200: 2500 | J200: 0 | K200: 0 | L200: 0 | M200: 0 | N200: 0 | O200: 0 | P200: 0 | Q200: 0 | R200: 0 | S200: 0 | T200: 0 | U200: 0 | V200: 2500 | W200: C112
... 2050 more rows

Sheet FACTS (hidden)
A1: LEA | B1: Charter School | C1: Type | D1: Acct. Cohort | E1: Acct. Liaison | F1: Location | G1: Charter Status 7/1/2018 | H1: Charter Granted | I1: Counts Toward Numeric Cap | J1: Year Opened (Fall) | K1: FY19 Years of Operation | L1: 1st Charter Renewal | M1: 2nd Charter Renewal | N1: 3rd Charter Renewal | O1: 4th Charter Renewal Year | P1: 1st Charter Renewal | Q1: 2nd Charter Renewal | R1: 3rd Charter Renewal | S1: 4th Charter Renewal | T1: Last Charter Renewal | U1: Charter Expires | V1: Charter Expires | W1: Regional | X1: EMO | Y1: Max Grade Span | Z1: Max. Enroll # | AA1: Location Type | AB1: School Type | AC1: If Closed: School Year of Closure | AD1: Closure type
A2: 445 | B2: Abby Kelley Foster Charter Public School | C2: C | D2: 2 | F2: Worcester | G2: No Status | H2: 1998 | I2: Yes | J2: 1998 | K2: 21 | L2: 2003 | M2: 2008 | N2: 2013 | O2: 2018 | P2: 2003 | Q2: 2008 | R2: 2013 | S2: 2018 | T2: 2018 | U2: 2023 | V2: 2023 | W2: Yes | X2: Former | Y2: K-12 | Z2: 1426 | AA2: Urban | AB2: K12 | AC2: NA
A3: 412 | B3: Academy of the Pacific Rim Charter Public School | C3: C | D3: 1 | F3: Boston | G3: No Status | H3: 1995 | I3: Yes | J3: 1997 | K3: 22 | L3: 2002 | M3: 2007 | N3: 2012 | O3: 2017 | P3: 2002 | Q3: 2007 | R3: 2012 | S3: 2017 | T3: 2017 | U3: 2022 | V3: 2022 | W3: No | X3: No | Y3: 05-12 | Z3: 545 | AA3: Boston | AB3: MSHS | AC3: NA
A4: 430 | B4: Advanced Math and Science Academy Charter School | C4: C | D4: 4 | F4: Marlborough | G4: No Status | H4: 2004 | I4: Yes | J4: 2005 | K4: 14 | L4: 2010 | M4: 2015 | N4: 2020 | O4: 2025 | P4: 2010 | Q4: 2015 | R4: NA | S4: NA | T4: 2015 | U4: 2020 | V4: 2020 | W4: Yes | X4: No | Y4: 06-12 | Z4: 966 | AA4: Suburb | AB4: MSHS | AC4: NA
A5: 409 | B5: Alma del Mar Charter School | C5: C | D5: 5 | F5: New Bedford | G5: No Status | H5: 2011 | I5: Yes | J5: 2011 | K5: 8 | L5: 2016 | M5: 2021 | N5: 2026 | O5: 2031 | P5: 2016 | Q5: NA | R5: NA | S5: NA | T5: 2016 | U5: 2021 | V5: 2021 | W5: No | X5: No | Y5: K-08 | Z5: 450 | AA5: Urban | AB5: ESMS | AC5: NA
A6: 3509 | B6: Argosy Collegiate Charter School | C6: C | D6: 3 | F6: Fall River | G6: No Status | H6: 2014 | I6: No | J6: 2014 | K6: 5 | L6: 2019 | M6: 2024 | N6: 2029 | O6: 2034 | P6: NA | Q6: NA | R6: NA | S6: NA | T6: 0 | U6: 2019 | V6: 2019 | W6: No | X6: No | Y6: 06-12 | Z6: 644 | AA6: Urban | AB6: MSHS | AC6: NA
A7: 491 | B7: Atlantis Charter School | C7: C | D7: 4 | F7: Fall River | G7: No Status | H7: 1994 | I7: Yes | J7: 1995 | K7: 24 | L7: 2000 | M7: 2005 | N7: 2010 | O7: 2015 | P7: 2000 | Q7: 2005 | R7: 2010 | S7: 2015 | T7: 2015 | U7: 2020 | V7: 2020 | W7: No | X7: No | Y7: K-12 | Z7: 1378 | AA7: Urban | AB7: K12 | AC7: NA
A8: 427 | B8: Barnstable Community Horace Mann Charter Public School | C8: HM | D8: 3 | F8: Barnstable | G8: No Status | H8: 2004 | I8: Yes | J8: 2004 | K8: 15 | L8: 2009 | M8: 2014 | N8: 2019 | O8: 2024 | P8: 2009 | Q8: 2014 | R8: NA | S8: NA | T8: 2014 | U8: 2019 | V8: 2019 | W8: NA | X8: No | Y8: K-03 | Z8: 475 | AA8: Suburb | AB8: ES | AC8: NA
A9: 3502 | B9: Baystate Academy Charter Public School | C9: C | D9: 2 | F9: Springfield | G9: Conditions | H9: 2012 | I9: No | J9: 2013 | K9: 6 | L9: 2018 | M9: 2023 | N9: 2028 | O9: 2033 | P9: 2018 | Q9: NA | R9: NA | S9: NA | T9: 2018 | U9: 2023 | V9: 2023 | W9: No | X9: No | Y9: 06-12 | Z9: 560 | AA9: Urban | AB9: MSHS | AC9: NA
A10: 420 | B10: Benjamin Banneker Charter Public School | C10: C | D10: 5 | F10: Cambridge | G10: No Status | H10: 1995 | I10: Yes | J10: 1996 | K10: 23 | L10: 2001 | M10: 2006 | N10: 2011 | O10: 2016 | P10: 2001 | Q10: 2006 | R10: 2011 | S10: 2016 | T10: 2016 | U10: 2021 | V10: 2021 | W10: No | X10: No | Y10: PK-06 | Z10: 350 | AA10: Urban | AB10: ESMS | AC10: NA
A11: 447 | B11: Benjamin Franklin Classical Charter Public School | C11: C | D11: 4 | F11: Franklin | G11: No Status | H11: 1994 | I11: Yes | J11: 1995 | K11: 24 | L11: 2000 | M11: 2005 | N11: 2010 | O11: 2015 | P11: 2000 | Q11: 2005 | R11: 2010 | S11: 2015 | T11: 2015 | U11: 2020 | V11: 2020 | W11: Yes | X11: No | Y11: K-08 | Z11: 900 | AA11: Suburb | AB11: ESMS | AC11: NA
A12: 3511 | B12: Bentley Academy Charter School | C12: HM | D12: 4 | F12: Salem | G12: No Status | H12: 2015 | I12: Yes | J12: 2015 | K12: 4 | L12: 2020 | M12: 2025 | N12: 2030 | O12: 2035 | P12: NA | Q12: NA | R12: NA | S12: NA | T12: 0 | U12: 2020 | V12: 2020 | W12: No | X12: No | Y12: K-05 | Z12: 350 | AA12: Urban | AB12: ES | AC12: NA
A13: 414 | B13: Berkshire Arts and Technology Charter Public School | C13: C | D13: 3 | F13: Adams | G13: No Status | H13: 2003 | I13: Yes | J13: 2004 | K13: 15 | L13: 2009 | M13: 2014 | N13: 2019 | O13: 2024 | P13: 2009 | Q13: 2014 | R13: NA | S13: NA | T13: 2014 | U13: 2019 | V13: 2019 | W13: Yes | X13: No | Y13: 06-12 | Z13: 363 | AA13: Rural | AB13: MSHS | AC13: NA
A14: 449 | B14: Boston Collegiate Charter School | C14: C | D14: 2 | F14: Boston | G14: No Status | H14: 1998 | I14: Yes | J14: 1998 | K14: 21 | L14: 2003 | M14: 2008 | N14: 2013 | O14: 2018 | P14: 2003 | Q14: 2008 | R14: 2013 | S14: 2018 | T14: 2018 | U14: 2023 | V14: 2023 | W14: No | X14: No | Y14: 05-12 | Z14: 700 | AA14: Boston | AB14: MSHS | AC14: NA
A15: 424 | B15: Boston Day and Evening Academy Charter School | C15: HM | D15: 2 | F15: Boston | G15: No Status | H15: 1998 | I15: Yes | J15: 1998 | K15: 21 | L15: 2003 | M15: 2008 | N15: 2013 | O15: 2018 | P15: 2003 | Q15: 2008 | R15: 2013 | S15: 2018 | T15: 2018 | U15: 2023 | V15: 2023 | W15: NA | X15: No | Y15: 09-12 | Z15: 405 | AA15: Boston | AB15: HS | AC15: NA
A16: 411 | B16: Boston Green Academy Horace Mann Charter School | C16: HM | D16: 5 | F16: Boston | G16: Probation | H16: 2011 | I16: Yes | J16: 2011 | K16: 8 | L16: 2016 | M16: 2021 | N16: 2026 | O16: 2031 | P16: 2016 | Q16: NA | R16: NA | S16: NA | T16: 2016 | U16: 2021 | V16: 2021 | W16: NA | X16: No | Y16: 06-12 | Z16: 595 | AA16: Boston | AB16: MSHS | AC16: NA
A17: 416 | B17: Boston Preparatory Charter Public School | C17: C | D17: 3 | F17: Boston | G17: No Status | H17: 2003 | I17: Yes | J17: 2004 | K17: 15 | L17: 2009 | M17: 2014 | N17: 2019 | O17: 2024 | P17: 2009 | Q17: 2014 | R17: NA | S17: NA | T17: 2014 | U17: 2019 | V17: 2019 | W17: No | X17: No | Y17: 06-12 | Z17: 700 | AA17: Boston | AB17: MSHS | AC17: NA
A18: 481 | B18: Boston Renaissance Charter Public School | C18: C | D18: 4 | F18: Boston | G18: Conditions | H18: 1994 | I18: Yes | J18: 1995 | K18: 24 | L18: 2000 | M18: 2005 | N18: 2010 | O18: 2015 | P18: 2000 | Q18: 2005 | R18: 2010 | S18: 2015 | T18: 2015 | U18: 2020 | V18: 2020 | W18: No | X18: Former | Y18: PK-06 | Z18: 944 | AA18: Boston | AB18: ESMS | AC18: NA
A19: 417 | B19: Bridge Boston Charter School | C19: C | D19: 5 | F19: Boston | G19: No Status | H19: 2011 | I19: No | J19: 2011 | K19: 8 | L19: 2016 | M19: 2021 | N19: 2026 | O19: 2031 | P19: 2016 | Q19: NA | R19: NA | S19: NA | T19: 2016 | U19: 2021 | V19: 2021 | W19: No | X19: No | Y19: PK-8 | Z19: 335 | AA19: Boston | AB19: ESMS | AC19: NA
A20: 428 | B20: Brooke Charter School | C20: C | D20: 1 | F20: Boston | G20: No Status | H20: 2001 | I20: Yes | J20: 2002 | K20: 17 | L20: 2007 | M20: 2012 | N20: 2017 | O20: 2022 | P20: 2007 | Q20: 2012 | R20: 2017 | S20: NA | T20: 2017 | U20: 2022 | V20: 2022 | W20: Yes | X20: No | Y20: K-12 | Z20: 2221 | AA20: Boston | AB20: K12 | AC20: NA
A21: 432 | B21: Cape Cod Lighthouse Charter School | C21: C | D21: 4 | F21: Harwich | G21: No Status | H21: 1994 | I21: Yes | J21: 1995 | K21: 24 | L21: 2000 | M21: 2005 | N21: 2010 | O21: 2015 | P21: 2000 | Q21: 2005 | R21: 2010 | S21: 2015 | T21: 2015 | U21: 2020 | V21: 2020 | W21: Yes | X21: No | Y21: 06-08 | Z21: 260 | AA21: Suburb | AB21: MS | AC21: NA
A22: 418 | B22: Christa McAuliffe Charter School | C22: C | D22: 1 | F22: Framingham | G22: No Status | H22: 2001 | I22: Yes | J22: 2002 | K22: 17 | L22: 2007 | M22: 2012 | N22: 2017 | O22: 2022 | P22: 2007 | Q22: 2012 | R22: 2017 | S22: NA | T22: 2017 | U22: 2022 | V22: 2022 | W22: Yes | X22: Former | Y22: 06-08 | Z22: 396 | AA22: Suburb | AB22: MS | AC22: NA
A23: 437 | B23: City on a Hill Charter Public School Circuit Street | C23: C | D23: 4 | F23: Boston | G23: No Status | H23: 1994 | I23: Yes | J23: 1995 | K23: 24 | L23: 2000 | M23: 2005 | N23: 2010 | O23: 2015 | P23: 2000 | Q23: 2005 | R23: 2010 | S23: 2015 | T23: 2015 | U23: 2020 | V23: 2020 | W23: No | X23: No | Y23: 09-12 | Z23: 280 | AA23: Boston | AB23: HS | AC23: NA
A24: 3504 | B24: City on a Hill Charter Public School Dudley Square | C24: C | D24: 2 | F24: Boston | G24: No Status | H24: 2013 | I24: No | J24: 2013 | K24: 6 | L24: 2018 | M24: 2023 | N24: 2028 | O24: 2033 | P24: 2018 | Q24: NA | R24: NA | S24: NA | T24: 2018 | U24: 2023 | V24: 2023 | W24: No | X24: No | Y24: 09-12 | Z24: 280 | AA24: Boston | AB24: HS | AC24: NA
A25: 3507 | B25: City On A Hill Charter Public School New Bedford | C25: C | D25: 3 | F25: New Bedford | G25: No Status | H25: 2013 | I25: Yes | J25: 2014 | K25: 5 | L25: 2019 | M25: 2024 | N25: 2029 | O25: 2034 | P25: NA | Q25: NA | R25: NA | S25: NA | T25: 0 | U25: 2019 | V25: 2019 | W25: No | X25: No | Y25: 09-12 | Z25: 280 | AA25: Urban | AB25: HS | AC25: NA
A26: 438 | B26: Codman Academy Charter Public School | C26: C | D26: 5 | F26: Boston | G26: Conditions | H26: 2001 | I26: Yes | J26: 2001 | K26: 18 | L26: 2006 | M26: 2011 | N26: 2016 | O26: 2021 | P26: 2006 | Q26: 2011 | R26: 2016 | S26: NA | T26: 2016 | U26: 2021 | V26: 2021 | W26: No | X26: No | Y26: PK-12 | Z26: 345 | AA26: Boston | AB26: K12 | AC26: NA
A27: 3503 | B27: Collegiate Charter School of Lowell | C27: C | D27: 2 | F27: Lowell | G27: No Status | H27: 2012 | I27: No | J27: 2013 | K27: 6 | L27: 2018 | M27: 2023 | N27: 2028 | O27: 2033 | P27: 2018 | Q27: NA | R27: NA | S27: NA | T27: 2018 | U27: 2023 | V27: 2023 | W27: No | X27: Yes | Y27: K-12 | Z27: 1200 | AA27: Urban | AB27: K12 | AC27: NA
A28: 436 | B28: Community Charter School of Cambridge | C28: C | D28: 4 | F28: Cambridge | G28: No Status | H28: 2004 | I28: Yes | J28: 2005 | K28: 14 | L28: 2010 | M28: 2015 | N28: 2020 | O28: 2025 | P28: 2010 | Q28: 2015 | R28: NA | S28: NA | T28: 2015 | U28: 2020 | V28: 2020 | W28: No | X28: No | Y28: 06-12 | Z28: 420 | AA28: Urban | AB28: MSHS | AC28: NA
A29: 426 | B29: Community Day Charter Public School - Gateway | C29: C | D29: 1 | F29: Lawrence | G29: No Status | H29: 2011 | I29: No | J29: 2012 | K29: 7 | L29: 2017 | M29: 2022 | N29: 2027 | O29: 2032 | P29: 2017 | Q29: NA | R29: NA | S29: NA | T29: 2017 | U29: 2022 | V29: 2022 | W29: No | X29: Yes | Y29: PK-08 | Z29: 400 | AA29: Urban | AB29: ESMS | AC29: NA
A30: 440 | B30: Community Day Charter Public School - Prospect | C30: C | D30: 4 | F30: Lawrence | G30: No Status | H30: 1994 | I30: Yes | J30: 1995 | K30: 24 | L30: 2000 | M30: 2005 | N30: 2010 | O30: 2015 | P30: 2000 | Q30: 2005 | R30: 2010 | S30: 2015 | T30: 2015 | U30: 2020 | V30: 2020 | W30: No | X30: Yes | Y30: PK-08 | Z30: 400 | AA30: Urban | AB30: ESMS | AC30: NA
A31: 431 | B31: Community Day Charter Public School - R. Kingman Webster | C31: C | D31: 1 | F31: Lawrence | G31: No Status | H31: 2011 | I31: No | J31: 2012 | K31: 7 | L31: 2017 | M31: 2022 | N31: 2027 | O31: 2032 | P31: 2017 | Q31: NA | R31: NA | S31: NA | T31: 2017 | U31: 2022 | V31: 2022 | W31: No | X31: Yes | Y31: PK-08 | Z31: 400 | AA31: Urban | AB31: ESMS | AC31: NA
A32: 439 | B32: Conservatory Lab Charter School | C32: C | D32: 3 | F32: Boston | G32: No Status | H32: 1998 | I32: Yes | J32: 1999 | K32: 20 | L32: 2004 | M32: 2009 | N32: 2014 | O32: 2019 | P32: 2004 | Q32: 2009 | R32: 2014 | S32: NA | T32: 2014 | U32: 2019 | V32: 2019 | W32: No | X32: No | Y32: PK-08 | Z32: 444 | AA32: Boston | AB32: ESMS | AC32: NA
A33: 407 | B33: Dudley Street Neighborhood Charter School | C33: HM | D33: 1 | F33: Boston | G33: No Status | H33: 2012 | I33: Yes | J33: 2012 | K33: 7 | L33: 2017 | M33: 2022 | N33: 2027 | O33: 2032 | P33: 2017 | Q33: NA | R33: NA | S33: NA | T33: 2017 | U33: 2022 | V33: 2022 | W33: NA | X33: No | Y33: PK-5 | Z33: 325 | AA33: Boston | AB33: ES | AC33: NA
A34: 452 | B34: Edward M. Kennedy Academy for Health Careers: A Horace Mann Charter Public School | C34: HM | D34: 2 | F34: Boston | G34: No Status | H34: 1998 | I34: Yes | J34: 1998 | K34: 21 | L34: 2003 | M34: 2008 | N34: 2013 | O34: 2018 | P34: 2003 | Q34: 2008 | R34: 2013 | S34: 2018 | T34: 2018 | U34: 2023 | V34: 2023 | W34: NA | X34: No | Y34: 09-12 | Z34: 448 | AA34: Boston | AB34: HS | AC34: NA
A35: 410 | B35: Excel Academy Charter School | C35: C | D35: 2 | F35: Boston/Chelsea | G35: No Status | H35: 2003 | I35: Yes | J35: 2003 | K35: 16 | L35: 2008 | M35: 2013 | N35: 2018 | O35: 2023 | P35: 2008 | Q35: 2013 | R35: 2018 | S35: NA | T35: 2018 | U35: 2023 | V35: 2023 | W35: Yes | X35: No | Y35: 05-12 | Z35: 1344 | AA35: Boston | AB35: MSHS | AC35: NA
A36: 413 | B36: Four Rivers Charter Public School | C36: C | D36: 2 | F36: Greenfield | G36: No Status | H36: 2002 | I36: Yes | J36: 2003 | K36: 16 | L36: 2008 | M36: 2013 | N36: 2018 | O36: 2023 | P36: 2008 | Q36: 2013 | R36: 2018 | S36: NA | T36: 2018 | U36: 2023 | V36: 2023 | W36: Yes | X36: No | Y36: 07-12 | Z36: 220 | AA36: Urban | AB36: MSHS | AC36: NA
A37: 446 | B37: Foxborough Regional Charter School | C37: C | D37: 2 | F37: Foxborough | G37: No Status | H37: 1998 | I37: Yes | J37: 1998 | K37: 21 | L37: 2003 | M37: 2008 | N37: 2013 | O37: 2018 | P37: 2003 | Q37: 2008 | R37: 2013 | S37: 2018 | T37: 2018 | U37: 2023 | V37: 2023 | W37: Yes | X37: Former | Y37: K-12 | Z37: 1700 | AA37: Suburb | AB37: K12 | AC37: NA
A38: 478 | B38: Francis W. Parker Charter Essential School | C38: C | D38: 4 | F38: Devens | G38: No Status | H38: 1994 | I38: Yes | J38: 1995 | K38: 24 | L38: 2000 | M38: 2005 | N38: 2010 | O38: 2015 | P38: 2000 | Q38: 2005 | R38: 2010 | S38: 2015 | T38: 2015 | U38: 2020 | V38: 2020 | W38: Yes | X38: No | Y38: 07-12 | Z38: 400 | AA38: Suburb | AB38: MSHS | AC38: NA
A39: 496 | B39: Global Learning Charter Public School | C39: C | D39: 1 | F39: New Bedford | G39: No Status | H39: 2006 | I39: Yes | J39: 2007 | K39: 12 | L39: 2012 | M39: 2017 | N39: 2022 | O39: 2027 | P39: 2012 | Q39: 2017 | R39: NA | S39: NA | T39: 2017 | U39: 2022 | V39: 2022 | W39: No | X39: No | Y39: 05-12 | Z39: 500 | AA39: Urban | AB39: MSHS | AC39: NA
A40: 499 | B40: Hampden Charter School of Science | C40: C | D40: 3 | F40: Chicopee | G40: No Status | H40: 2008 | I40: Yes | J40: 2009 | K40: 10 | L40: 2014 | M40: 2019 | N40: 2024 | O40: 2029 | P40: 2014 | Q40: NA | R40: NA | S40: NA | T40: 2014 | U40: 2019 | V40: 2019 | W40: Yes | X40: No | Y40: 06-12 | Z40: 560 | AA40: Urban | AB40: MSHS | AC40: NA
A41: 3516 | B41: Hampden Charter School of Science West | C41: C | F41: Westfield | G41: No Status | H41: 2017 | I41: No | J41: 2018 | K41: 1 | L41: 2023 | M41: 2028 | N41: 2033 | O41: 2038 | P41: NA | Q41: NA | R41: NA | S41: NA | T41: 0 | U41: 2023 | V41: 2023 | W41: Yes | X41: No | Y41: 06-12 | Z41: 588 | AA41: Rural | AB41: MSHS | AC41: NA
A42: 419 | B42: Helen Y Davis Leadership Academy Charter Public School | C42: C | D42: 2 | F42: Boston | G42: Probation | H42: 2002 | I42: Yes | J42: 2003 | K42: 16 | L42: 2008 | M42: 2013 | N42: 2018 | O42: 2023 | P42: 2008 | Q42: 2013 | R42: 2018 | S42: NA | T42: 2018 | U42: 2023 | V42: 2023 | W42: No | X42: No | Y42: 06-08 | Z42: 216 | AA42: Boston | AB42: MS | AC42: NA
A43: 455 | B43: Hill View Montessori Charter Public School | C43: C | D43: 3 | F43: Haverhill | G43: No Status | H43: 2003 | I43: Yes | J43: 2004 | K43: 15 | L43: 2009 | M43: 2014 | N43: 2019 | O43: 2024 | P43: 2009 | Q43: 2014 | R43: NA | S43: NA | T43: 2014 | U43: 2019 | V43: 2019 | W43: No | X43: No | Y43: K-08 | Z43: 306 | AA43: Urban | AB43: ESMS | AC43: NA
A44: 450 | B44: Hilltown Cooperative Charter Public School | C44: C | D44: 4 | F44: East Hampton | G44: No Status | H44: 1994 | I44: Yes | J44: 1995 | K44: 24 | L44: 2000 | M44: 2005 | N44: 2010 | O44: 2015 | P44: 2000 | Q44: 2005 | R44: 2010 | S44: 2015 | T44: 2015 | U44: 2020 | V44: 2020 | W44: Yes | X44: No | Y44: K-08 | Z44: 218 | AA44: Rural | AB44: ESMS | AC44: NA
A45: 453 | B45: Holyoke Community Charter School | C45: C | D45: 4 | F45: Holyoke | G45: No Status | H45: 2001 | I45: Yes | J45: 2005 | K45: 14 | L45: 2010 | M45: 2015 | N45: 2020 | O45: 2025 | P45: 2010 | Q45: 2015 | R45: NA | S45: NA | T45: 2015 | U45: 2020 | V45: 2020 | W45: No | X45: Yes | Y45: K-08 | Z45: 702 | AA45: Urban | AB45: ESMS | AC45: NA
A46: 435 | B46: Innovation Academy Charter School | C46: C | D46: 5 | F46: Tyngsborough | G46: No Status | H46: 1995 | I46: Yes | J46: 1996 | K46: 23 | L46: 2001 | M46: 2006 | N46: 2011 | O46: 2016 | P46: 2001 | Q46: 2006 | R46: 2011 | S46: 2016 | T46: 2016 | U46: 2021 | V46: 2021 | W46: Yes | X46: Former | Y46: 05-12 | Z46: 800 | AA46: Suburb | AB46: MSHS | AC46: NA
A47: 463 | B47: KIPP Academy Boston Charter School | C47: C | D47: 1 | F47: Boston | G47: No Status | H47: 2011 | I47: No | J47: 2012 | K47: 7 | L47: 2017 | M47: 2022 | N47: 2027 | O47: 2032 | P47: 2017 | Q47: NA | R47: NA | S47: NA | T47: 2017 | U47: 2022 | V47: 2022 | W47: No | X47: No | Y47: K-08 | Z47: 588 | AA47: Boston | AB47: ESMS | AC47: NA
A48: 429 | B48: KIPP Academy Lynn Charter School | C48: C | D48: 3 | F48: Lynn | G48: No Status | H48: 2004 | I48: Yes | J48: 2004 | K48: 15 | L48: 2009 | M48: 2014 | N48: 2019 | O48: 2024 | P48: 2009 | Q48: 2014 | R48: NA | S48: NA | T48: 2014 | U48: 2019 | V48: 2019 | W48: No | X48: No | Y48: K-12 | Z48: 1586 | AA48: Urban | AB48: MSHS | AC48: NA
A49: 454 | B49: Lawrence Family Development Charter School | C49: C | D49: 4 | F49: Lawrence | G49: No Status | H49: 1995 | I49: Yes | J49: 1995 | K49: 24 | L49: 2000 | M49: 2005 | N49: 2010 | O49: 2015 | P49: 2000 | Q49: 2005 | R49: 2010 | S49: 2015 | T49: 2015 | U49: 2020 | V49: 2020 | W49: No | X49: No | Y49: PK-08 | Z49: 800 | AA49: Urban | AB49: ESMS | AC49: NA
A50: 3514 | B50: Libertas Academy Charter School (New school opening FY18) | C50: C | D50: Springfield | E50: No | F50: Springfield | G50: No Status | H50: 2016 | I50: No | J50: 2017 | K50: 2 | L50: 2022 | M50: 2027 | N50: 2032 | O50: 2037 | P50: NA | Q50: NA | R50: NA | S50: NA | T50: 0 | U50: 2022 | V50: 2022 | W50: No | X50: No | Y50: 06-12 | Z50: 630 | AA50: Urban | AB50: ESMS | AC50: NA
A51: 456 | B51: Lowell Community Charter Public School | C51: C | D51: 4 | F51: Lowell | G51: No Status | H51: 1999 | I51: Yes | J51: 2000 | K51: 19 | L51: 2005 | M51: 2010 | N51: 2015 | O51: 2020 | P51: 2005 | Q51: 2010 | R51: 2015 | S51: NA | T51: 2015 | U51: 2020 | V51: 2020 | W51: No | X51: Former | Y51: PK-08 | Z51: 800 | AA51: Urban | AB51: ESMS | AC51: NA
A52: 458 | B52: Lowell Middlesex Academy Charter School | C52: C | D52: 4 | F52: Lowell | G52: No Status | H52: 1994 | I52: Yes | J52: 1995 | K52: 24 | L52: 2000 | M52: 2005 | N52: 2010 | O52: 2015 | P52: 2000 | Q52: 2005 | R52: 2010 | S52: 2015 | T52: 2015 | U52: 2020 | V52: 2020 | W52: No | X52: No | Y52: 09-12 | Z52: 150 | AA52: Urban | AB52: HS | AC52: NA
A53: 3517 | B53: Map Academy Charter School | C53: C | F53: Plymouth | G53: No Status | H53: 2017 | I53: Yes | J53: 2018 | K53: 1 | L53: 2023 | M53: 2028 | N53: 2033 | O53: 2038 | P53: NA | Q53: NA | R53: NA | S53: NA | T53: 0 | U53: 2023 | V53: 2023 | W53: Yes | X53: No | Y53: 09-12 | Z53: 300 | AA53: Suburb | AB53: HS | AC53: NA
A54: 464 | B54: Marblehead Community Charter Public School | C54: C | D54: 4 | F54: Marblehead | G54: No Status | H54: 1994 | I54: Yes | J54: 1995 | K54: 24 | L54: 2000 | M54: 2005 | N54: 2010 | O54: 2015 | P54: 2000 | Q54: 2005 | R54: 2010 | S54: 2015 | T54: 2015 | U54: 2020 | V54: 2020 | W54: No | X54: No | Y54: 04-08 | Z54: 230 | AA54: Suburb | AB54: ESMS | AC54: NA
A55: 466 | B55: Martha's Vineyard Public Charter School | C55: C | D55: 5 | F55: West Tisbury | G55: No Status | H55: 1995 | I55: Yes | J55: 1996 | K55: 23 | L55: 2001 | M55: 2006 | N55: 2011 | O55: 2016 | P55: 2001 | Q55: 2006 | R55: 2011 | S55: 2016 | T55: 2016 | U55: 2021 | V55: 2021 | W55: Yes | X55: No | Y55: K-12 | Z55: 180 | AA55: Suburb | AB55: K12 | AC55: NA
A56: 492 | B56: Martin Luther King, Jr. Charter School of Excellence | C56: C | D56: 5 | F56: Springfield | G56: Conditions | H56: 2005 | I56: Yes | J56: 2006 | K56: 13 | L56: 2011 | M56: 2016 | N56: 2021 | O56: 2026 | P56: 2011 | Q56: 2016 | R56: NA | S56: NA | T56: 2016 | U56: 2021 | V56: 2021 | W56: No | X56: No | Y56: K-05 | Z56: 360 | AA56: Urban | AB56: ES | AC56: NA
A57: 469 | B57: Match Charter Public School | C57: C | D57: 4 | F57: Boston | G57: No Status | H57: 1999 | I57: Yes | J57: 2000 | K57: 19 | L57: 2005 | M57: 2010 | N57: 2015 | O57: 2020 | P57: 2005 | Q57: 2010 | R57: 2015 | S57: NA | T57: 2015 | U57: 2020 | V57: 2020 | W57: No | X57: No | Y57: PK-12 | Z57: 1250 | AA57: Boston | AB57: K12 | AC57: NA
A58: 470 | B58: Mystic Valley Regional Charter School | C58: C | D58: 2 | F58: Malden | G58: No Status | H58: 1998 | I58: Yes | J58: 1998 | K58: 21 | L58: 2003 | M58: 2008 | N58: 2013 | O58: 2018 | P58: 2003 | Q58: 2008 | R58: 2013 | S58: 2018 | T58: 2018 | U58: 2023 | V58: 2023 | W58: Yes | X58: Former | Y58: K-12 | Z58: 1900 | AA58: Urban | AB58: K12 | AC58: NA
A59: 444 | B59: Neighborhood House Charter School | C59: C | D59: 4 | F59: Boston | G59: No Status | H59: 1994 | I59: Yes | J59: 1995 | K59: 24 | L59: 2000 | M59: 2005 | N59: 2010 | O59: 2015 | P59: 2000 | Q59: 2005 | R59: 2010 | S59: 2015 | T59: 2015 | U59: 2020 | V59: 2020 | W59: No | X59: No | Y59: PK-12 | Z59: 828 | AA59: Boston | AB59: K12 | AC59: NA
A60: 3513 | B60: New Heights Charter School of Brockton | C60: C | D60: 315 | E60: 315 | F60: Brockton | G60: No Status | H60: 2016 | I60: No | J60: 2016 | K60: 3 | L60: 2021 | M60: 2026 | N60: 2031 | O60: 2036 | P60: NA | Q60: NA | R60: NA | S60: NA | T60: 0 | U60: 2021 | V60: 2021 | W60: Yes | X60: No | Y60: 06-12 | Z60: 735 | AA60: Urban | AB60: ESMS | AC60: NA
A61: 3515 | B61: Old Sturbridge Academy Charter Public School | C61: C | F61: Sturbridge | G61: No Status | H61: 2017 | I61: Yes | J61: 2017 | K61: 2 | L61: 2022 | M61: 2027 | N61: 2032 | O61: 2037 | P61: NA | Q61: NA | R61: NA | S61: NA | T61: 0 | U61: 2022 | V61: 2022 | W61: Yes | X61: Yes | Y61: K-08 | Z61: 360 | AA61: Rural | AB61: ESMS | AC61: NA
A62: 3501 | B62: Paulo Freire Social Justice Charter School | C62: C | D62: 2 | F62: Holyoke | G62: Probation | H62: 2012 | I62: No | J62: 2013 | K62: 6 | L62: 2018 | M62: 2023 | N62: 2028 | O62: 2033 | P62: 2018 | Q62: NA | R62: NA | S62: NA | T62: 2018 | U62: 2023 | V62: 2023 | W62: Yes | X62: No | Y62: 09-12 | Z62: 500 | AA62: Urban | AB62: HS | AC62: NA
A63: 493 | B63: Phoenix Academy Charter Public High School, Chelsea | C63: C | D63: 5 | F63: Chelsea | G63: No Status | H63: 2005 | I63: Yes | J63: 2006 | K63: 13 | L63: 2011 | M63: 2016 | N63: 2021 | O63: 2026 | P63: 2011 | Q63: 2016 | R63: NA | S63: NA | T63: 2016 | U63: 2021 | V63: 2021 | W63: Yes | X63: No | Y63: 09-12 | Z63: 225 | AA63: Urban | AB63: HS | AC63: NA
A64: 3518 | B64: Phoenix Academy Public Charter High School, Lawrence | C64: C | F64: Lawrence | G64: No Status | H64: 2018 | I64: No | J64: 2018 | K64: 1 | L64: 2023 | M64: 2028 | N64: 2033 | O64: 2038 | P64: NA | Q64: NA | R64: NA | S64: NA | T64: 0 | U64: 2023 | V64: 2023 | W64: Yes | X64: No | Y64: 09-12 | Z64: 250 | AA64: Urban | AB64: HS | AC64: NA
A65: 3508 | B65: Phoenix Academy Public Charter High School, Springfield | C65: C | D65: 3 | F65: Springfield | G65: No Status | H65: 2013 | I65: No | J65: 2014 | K65: 5 | L65: 2019 | M65: 2024 | N65: 2029 | O65: 2034 | P65: NA | Q65: NA | R65: NA | S65: NA | T65: 0 | U65: 2019 | V65: 2019 | W65: Yes | X65: No | Y65: 09-12 | Z65: 250 | AA65: Urban | AB65: HS | AC65: NA
A66: 494 | B66: Pioneer Charter School of Science | C66: C | D66: 1 | F66: Everett | G66: No Status | H66: 2006 | I66: Yes | J66: 2007 | K66: 12 | L66: 2012 | M66: 2017 | N66: 2022 | O66: 2027 | P66: 2012 | Q66: 2017 | R66: NA | S66: NA | T66: 2017 | U66: 2022 | V66: 2022 | W66: Yes | X66: No | Y66: K-12 | Z66: 780 | AA66: Urban | AB66: K12 | AC66: NA
A67: 3506 | B67: Pioneer Charter School of Science II | C67: C | D67: 3 | F67: Saugus | G67: No Status | H67: 2013 | I67: No | J67: 2013 | K67: 6 | L67: 2018 | M67: 2023 | N67: 2028 | O67: 2033 | P67: 2018 | Q67: NA | R67: NA | S67: NA | T67: 2018 | U67: 2023 | V67: 2023 | W67: Yes | X67: No | Y67: 07-12 | Z67: 360 | AA67: Urban | AB67: MSHS | AC67: NA
A68: 497 | B68: Pioneer Valley Chinese Immersion Charter School | C68: C | D68: 1 | F68: Hadley | G68: No Status | H68: 2007 | I68: Yes | J68: 2007 | K68: 12 | L68: 2012 | M68: 2017 | N68: 2022 | O68: 2027 | P68: 2012 | Q68: 2017 | R68: NA | S68: NA | T68: 2017 | U68: 2022 | V68: 2022 | W68: Yes | X68: No | Y68: K-12 | Z68: 584 | AA68: Suburb | AB68: K12 | AC68: NA
A69: 479 | B69: Pioneer Valley Performing Arts Charter Public School | C69: C | D69: 5 | F69: South Hadley | G69: No Status | H69: 1996 | I69: Yes | J69: 1996 | K69: 23 | L69: 2001 | M69: 2006 | N69: 2011 | O69: 2016 | P69: 2001 | Q69: 2006 | R69: 2011 | S69: 2016 | T69: 2016 | U69: 2021 | V69: 2021 | W69: Yes | X69: No | Y69: 07-12 | Z69: 400 | AA69: Suburb | AB69: MSHS | AC69: NA
A70: 487 | B70: Prospect Hill Academy Charter School | C70: C | D70: 5 | F70: Somerville (K-6); Cambridge (7-12) | G70: No Status | H70: 1996 | I70: Yes | J70: 1996 | K70: 23 | L70: 2001 | M70: 2006 | N70: 2011 | O70: 2016 | P70: 2001 | Q70: 2006 | R70: 2011 | S70: 2016 | T70: 2016 | U70: 2021 | V70: 2021 | W70: Yes | X70: Former | Y70: PK-12 | Z70: 1200 | AA70: Urban | AB70: K12 | AC70: NA
A71: 483 | B71: Rising Tide Charter Public School | C71: C | D71: 2 | F71: Plymouth | G71: No Status | H71: 1998 | I71: Yes | J71: 1998 | K71: 21 | L71: 2003 | M71: 2008 | N71: 2013 | O71: 2018 | P71: 2003 | Q71: 2008 | R71: 2013 | S71: 2018 | T71: 2018 | U71: 2023 | V71: 2023 | W71: Yes | X71: Former | Y71: 05-12 | Z71: 700 | AA71: Suburb | AB71: MSHS | AC71: NA
A72: 482 | B72: River Valley Charter School | C72: C | D72: 3 | F72: Newburyport | G72: No Status | H72: 1999 | I72: Yes | J72: 1999 | K72: 20 | L72: 2004 | M72: 2009 | N72: 2014 | O72: 2019 | P72: 2004 | Q72: 2009 | R72: 2014 | S72: NA | T72: 2014 | U72: 2019 | V72: 2019 | W72: Yes | X72: No | Y72: K-08 | Z72: 288 | AA72: Rural | AB72: ESMS | AC72: NA
A73: 484 | B73: Roxbury Preparatory Charter School | C73: C | D73: 3 | F73: Boston | G73: No Status | H73: 1998 | I73: Yes | J73: 1999 | K73: 20 | L73: 2004 | M73: 2009 | N73: 2014 | O73: 2019 | P73: 2004 | Q73: 2009 | R73: 2014 | S73: NA | T73: 2014 | U73: 2019 | V73: 2019 | W73: No | X73: Yes | Y73: 05-12 | Z73: 1800 | AA73: Boston | AB73: MSHS | AC73: NA
A74: 441 | B74: Sabis International Charter School | C74: C | D74: 4 | F74: Springfield | G74: Conditions | H74: 1995 | I74: Yes | J74: 1995 | K74: 24 | L74: 2000 | M74: 2005 | N74: 2010 | O74: 2015 | P74: 2000 | Q74: 2005 | R74: 2010 | S74: 2015 | T74: 2015 | U74: 2020 | V74: 2020 | W74: No | X74: Yes | Y74: K-12 | Z74: 1574 | AA74: Urban | AB74: K12 | AC74: NA
A75: 485 | B75: Salem Academy Charter School | C75: C | D75: 3 | F75: Salem | G75: No Status | H75: 2003 | I75: Yes | J75: 2004 | K75: 15 | L75: 2009 | M75: 2014 | N75: 2019 | O75: 2024 | P75: 2009 | Q75: 2014 | R75: NA | S75: NA | T75: 2014 | U75: 2019 | V75: 2019 | W75: No | X75: No | Y75: 06-12 | Z75: 480 | AA75: Urban | AB75: MSHS | AC75: NA
A76: 486 | B76: Seven Hills Charter Public School | C76: C | D76: 5 | F76: Worcester | G76: No Status | H76: 1994 | I76: Yes | J76: 1996 | K76: 23 | L76: 2001 | M76: 2006 | N76: 2011 | O76: 2016 | P76: 2001 | Q76: 2006 | R76: 2011 | S76: 2016 | T76: 2016 | U76: 2021 | V76: 2021 | W76: No | X76: Former | Y76: K-08 | Z76: 666 | AA76: Urban | AB76: ESMS | AC76: NA
A77: 474 | B77: Sizer School, A North Central Charter Essential School | C77: C | D77: 1 | F77: Fitchburg | G77: Conditions | H77: 2001 | I77: Yes | J77: 2002 | K77: 17 | L77: 2007 | M77: 2012 | N77: 2017 | O77: 2022 | P77: 2007 | Q77: 2012 | R77: 2017 | S77: NA | T77: 2017 | U77: 2022 | V77: 2022 | W77: Yes | X77: No | Y77: 07-12 | Z77: 400 | AA77: Urban | AB77: MSHS | AC77: NA
A78: 488 | B78: South Shore Charter Public School | C78: C | D78: 4 | F78: Norwell | G78: No Status | H78: 1994 | I78: Yes | J78: 1995 | K78: 24 | L78: 2000 | M78: 2005 | N78: 2010 | O78: 2015 | P78: 2000 | Q78: 2005 | R78: 2010 | S78: 2015 | T78: 2015 | U78: 2020 | V78: 2020 | W78: Yes | X78: No | Y78: K-12 | Z78: 1075 | AA78: Rural | AB78: K12 | AC78: NA
A79: 3510 | B79: Springfield Preparatory Charter School | C79: C | D79: 4 | F79: Springfield | G79: No Status | H79: 2014 | I79: No | J79: 2015 | K79: 4 | L79: 2020 | M79: 2025 | N79: 2030 | O79: 2035 | P79: NA | Q79: NA | R79: NA | S79: NA | T79: 0 | U79: 2020 | V79: 2020 | W79: No | X79: No | Y79: K-08 | Z79: 486 | AA79: Urban | AB79: ESMS | AC79: NA
A80: 489 | B80: Sturgis Charter Public School | C80: C | D80: 2 | F80: Hyannis | G80: No Status | H80: 1998 | I80: Yes | J80: 1998 | K80: 21 | L80: 2003 | M80: 2008 | N80: 2013 | O80: 2018 | P80: 2003 | Q80: 2008 | R80: 2013 | S80: 2018 | T80: 2018 | U80: 2023 | V80: 2023 | W80: Yes | X80: No | Y80: 09-12 | Z80: 850 | AA80: Suburb | AB80: HS | AC80: NA
A81: 480 | B81: UP Academy Charter School of Boston | C81: HM | D81: 5 | F81: Boston | G81: No Status | H81: 2011 | I81: Yes | J81: 2011 | K81: 8 | L81: 2016 | M81: 2021 | N81: 2026 | O81: 2031 | P81: 2016 | Q81: NA | R81: NA | S81: NA | T81: 2016 | U81: 2021 | V81: 2021 | W81: NA | X81: Yes | Y81: 06-08 | Z81: 540 | AA81: Boston | AB81: MS | AC81: NA
A82: 3505 | B82: UP Academy Charter School of Dorchester | C82: HM | D82: 2 | F82: Boston | G82: Conditions | H82: 2013 | I82: Yes | J82: 2013 | K82: 6 | L82: 2018 | M82: 2023 | N82: 2028 | O82: 2033 | P82: 2018 | Q82: NA | R82: NA | S82: NA | T82: 2018 | U82: 2023 | V82: 2023 | W82: NA | X82: Yes | Y82: PK-08 | Z82: 820 | AA82: Boston | AB82: ESMS | AC82: NA
A83: 498 | B83: Veritas Preparatory Charter School | C83: C | D83: 1 | F83: Springfield | G83: No Status | H83: 2011 | I83: Yes | J83: 2012 | K83: 7 | L83: 2017 | M83: 2022 | N83: 2027 | O83: 2032 | P83: 2017 | Q83: NA | R83: NA | S83: NA | T83: 2017 | U83: 2022 | V83: 2022 | W83: No | X83: No | Y83: 05-08 | Z83: 432 | AA83: Urban | AB83: MS | AC83: NA
A84: Closed Schools | O84: NA
A85: 415 | B85: Amesbury Academy Charter Public School | C85: HM | D85: 5 | F85: Amesbury | G85: NA | H85: 2001 | I85: NA | J85: 2001 | K85: NA | L85: 2006 | M85: 2011 | N85: Post-Opening Surrender | O85: NA | U85: NA | V85: NA | W85: No | X85: No | Y85: 9-12 | Z85: 50 | AA85: Rural | AB85: HS | AC85: 2015 | AD85: surrender
A86: 423 | B86: Barnstable Horace Mann Charter School | C86: HM | D86: NA | E86: NA | F86: Barnstable | G86: NA | H86: 1998 | I86: NA | J86: 1999 | K86: NA | L86: 2004 | M86: 2009 | N86: Post-Opening Surrender | O86: NA | U86: NA | V86: NA | W86: No | X86: No | Y86: 04-05 | Z86: 1000 | AA86: Suburb | AB86: MS | AC86: 2012 | AD86: surrender
A87: 425 | B87: Boston University Residential Charter School | C87: C | D87: NA | E87: NA | F87: Granby | G87: NA | H87: 1994 | I87: NA | J87: 1997 | K87: NA | L87: Post-Opening Surrender | M87: NA | N87: NA | O87: NA | U87: NA | V87: NA | W87: No | X87: No | Y87: 42594 | Z87: NA | AA87: Rural | AB87: MSHS | AC87: 2000 | AD87: surrender
A88: 457 | B88: Brooke Charter School East Boston (FY17-will merge with 0428 and 0457 as Brooke Charter School LEA, 428 K-12) | C88: C | D88: 1 | E88: VLOOKUP(A22, LIAISONS, 3, FALSE) | F88: Boston | G88: NA | H88: 2011 | I88: No | J88: 2012 | K88: NA | L88: Returned due to merger | M88: NA | N88: NA | O88: NA | U88: NA | V88: NA | W88: Yes | X88: No | Y88: K-08 | Z88: 510 | AA88: Boston | AB88: ESMS | AC88: 2016 | AD88: consolidation
A89: 443 | B89: Brooke Charter School Mattapan (FY17-will merge with 0428 and 0457 as Brooke Charter School LEA 428, K-12) | C89: C | D89: 5 | F89: Boston | G89: NA | H89: 2011 | I89: No | J89: 2011 | K89: NA | L89: Returned due to merger | M89: NA | N89: NA | O89: NA | U89: NA | V89: NA | W89: No | X89: No | Y89: K-08 | Z89: 510 | AA89: Boston | AB89: ESMS | AC89: 2016 | AD89: consolidation
A90: 434 | B90: Champion Charter Public School | C90: HM | D90: NA | E90: NA | F90: Brockton | G90: NA | H90: 1998 | I90: NA | J90: 1998 | K90: NA | L90: Post-Opening Surrender | M90: NA | N90: NA | O90: NA | U90: NA | V90: NA | W90: No | X90: No | Y90: 09-12 | Z90: 125 | AA90: Urban | AB90: HS | AC90: 2008 | AD90: surrender
A91: 433 | B91: Dorchester Prep | C91: C | D91: NA | E91: NA | F91: Boston | G91: NA | H91: 2011 | I91: NA | J91: NA | K91: NA | L91: Returned due to merger | M91: NA | N91: NA | O91: NA | U91: NA | V91: NA | W91: No | X91: Former | Y91: 05-12 | Z91: 600 | AA91: Urban | AB91: MSHS | AC91: NA | AD91: consolidation
A92: 475 | B92: Dorchester Collegiate Academy Charter School | C92: C | D92: 3 | F92: Boston | G92: NA | H92: 2008 | I92: NA | J92: 2009 | K92: NA | L92: 2014 | M92: Revocation | N92: NA | O92: NA | U92: NA | V92: NA | W92: No | X92: No | Y92: 04-08 | Z92: 238 | AA92: Boston | AB92: ESMS | AC92: 2016 | AD92: revocation
A93: 459 | B93: Excel Academy Charter School - Boston II | C93: C | D93: NA | E93: NA | F93: Boston | G93: NA | H93: 2011 | I93: NA | J93: 2012 | K93: NA | L93: Returned due to merger | M93: NA | N93: NA | O93: NA | U93: NA | V93: NA | W93: No | X93: No | Y93: 05-12 | Z93: 448 | AA93: Boston | AB93: MSHS | AC93: 2014 | AD93: consolidation
A94: 461 | B94: Excel Academy Charter School - Chelsea | C94: C | D94: NA | E94: NA | F94: Chelsea | G94: NA | H94: 2011 | I94: NA | J94: 2011 | K94: NA | L94: Returned due to merger | M94: NA | N94: NA | O94: NA | U94: NA | V94: NA | W94: No | X94: No | Y94: 05-12 | Z94: 448 | AA94: Urban | AB94: MSHS | AC94: 2014 | AD94: consolidation
A95: 495 | B95: Fall River Maritime Charter Public School | C95: C | D95: NA | E95: NA | F95: Fall River | G95: NA | H95: 2006 | I95: NA | J95: NA | K95: NA | L95: Pre-Opening Surrender | M95: NA | N95: NA | O95: NA | U95: NA | V95: NA | W95: No | X95: Former | Y95: 05-08 | Z95: 80 | AA95: Urban | AB95: MS | AC95: NA | AD95: surrender
A96: 442 | B96: Frederick Douglass Charter School | C96: C | D96: NA | E96: NA | F96: Boston | G96: NA | H96: 1999 | I96: NA | J96: 2000 | K96: NA | L96: Non-Renewal | M96: NA | N96: NA | O96: NA | U96: NA | V96: NA | W96: No | X96: No | Y96: 06-12 | Z96: 408 | AA96: Boston | AB96: MSHS | AC96: 2005 | AD96: revocation
A97: 448 | B97: Gloucester Community Arts Charter School | C97: C | D97: NA | E97: NA | F97: Gloucester | G97: NA | H97: 2009 | I97: NA | J97: 2010 | K97: NA | L97: Post-Opening Surrender | M97: NA | N97: NA | O97: NA | U97: NA | V97: NA | W97: No | X97: No | Y97: K-08 | Z97: 240 | AA97: Urban | AB97: ESMS | AC97: 2013 | AD97: surrender
A98: 462 | B98: Grove Hall Prep | C98: C | D98: NA | E98: NA | F98: Boston | G98: NA | H98: 2011 | I98: NA | J98: 2011 | K98: NA | L98: Returned due to merger | M98: NA | N98: NA | O98: NA | U98: NA | V98: NA | W98: No | X98: Former | Y98: 05-12 | Z98: 600 | AA98: Urban | AB98: MS | AC98: 2012 | AD98: consolidation
A99: 448 | B99: Horace Mann Charter School of Essential Studies | C99: HM | D99: NA | E99: NA | F99: Springfield | G99: NA | H99: 1999 | I99: NA | J99: NA | K99: NA | L99: Pre-Opening Surrender | M99: NA | N99: NA | O99: NA | U99: NA | V99: NA | W99: No | X99: No | Y99: 09-12 | Z99: 600 | AA99: Urban | AB99: ESMS | AC99: NA | AD99: surrender
A100: 460 | B100: Lynn Community Charter School | C100: C | D100: NA | E100: NA | F100: Lynn | G100: NA | H100: 1996 | I100: NA | J100: 1997 | K100: NA | L100: Non-Renewal | M100: NA | N100: NA | O100: NA | U100: NA | V100: NA | W100: No | X100: No | Y100: K-08 | Z100: 270 | AA100: Urban | AB100: ESMS | AC100: 2002 | AD100: non-renewal
A101: 465 | B101: MATCH Community Day Charter Public School | C101: C | D101: NA | E101: NA | F101: Boston | G101: NA | H101: 2011 | I101: NA | J101: 2011 | K101: NA | L101: Returned due to merger | M101: NA | N101: NA | O101: NA | U101: NA | V101: NA | W101: No | X101: No | Y101: PK-12 | Z101: 700 | AA101: Boston | AB101: K12 | AC101: 2014 | AD101: consolidation
A102: 472 | B102: New Bedford Global Learning Charter School | C102: HM | D102: NA | E102: NA | F102: New Bedford | G102: NA | H102: 2000 | I102: NA | J102: 2002 | K102: NA | L102: Post-Opening Surrender | M102: NA | N102: NA | O102: NA | U102: NA | V102: NA | W102: No | X102: No | Y102: 05-12 | Z102: 400 | AA102: Urban | AB102: MSHS | AC102: 2007 | AD102: expired
A103: 471 | B103: New Leadership Charter School | C103: HM | D103: NA | E103: NA | F103: Springfield | G103: NA | H103: 1998 | I103: NA | J103: 1998 | K103: NA | L103: 2003 | M103: 2008 | N103: Post-Opening Surrender | O103: NA | U103: NA | V103: NA | W103: No | X103: No | Y103: 06-12 | Z103: 500 | AA103: Urban | AB103: MSHS | AC103: 2013 | AD103: expired
A104: 467 | B104: New Liberty Charter School of Salem | C104: HM | D104: NA | E104: NA | F104: Salem | G104: NA | H104: 2011 | I104: NA | J104: 2011 | K104: NA | L104: Post-Opening Surrender | M104: NA | N104: NA | O104: NA | U104: NA | V104: NA | W104: NA | X104: No | Y104: 09-12 | Z104: 125 | AA104: Urban | AB104: HS | AC104: 2016 | AD104: expired
A105: 473 | B105: North Star Academy Charter School | C105: C | D105: NA | E105: NA | F105: Springfield | G105: NA | H105: 1995 | I105: NA | J105: 1996 | K105: NA | L105: Post-Opening Surrender | M105: NA | N105: NA | O105: NA | U105: NA | V105: NA | W105: No | X105: No | Y105: 09-12 | Z105: 250 | AA105: Urban | AB105: HS | AC105: 2001 | AD105: surrender
A106: 476 | B106: Northern Bristol County Charter School | C106: C | D106: NA | E106: NA | F106: Bristol County | G106: NA | H106: 2001 | I106: NA | J106: NA | K106: NA | L106: Pre-Opening Surrender | M106: NA | N106: NA | O106: NA | U106: NA | V106: NA | W106: Yes | X106: No | Y106: K-08 | Z106: 500 | AA106: Urban | AB106: ESMS | AC106: NA | AD106: surrender
A107: 451 | B107: Robert M. Hughes Academy Charter Public School | C107: C | D107: NA | E107: NA | F107: Springfield | G107: NA | H107: 1999 | I107: NA | J107: 1999 | K107: NA | L107: 2004 | M107: 2009 | N107: Revocation | O107: NA | U107: NA | V107: NA | W107: No | X107: No | Y107: K-08 | Z107: 180 | AA107: Urban | AB107: ESMS | AC107: 2010 | AD107: revocation
A108: 422 | B108: Roxbury Charter High Public School | C108: C | D108: NA | E108: NA | F108: Boston | G108: NA | H108: 2002 | I108: NA | J108: 2003 | K108: NA | L108: Revocation | M108: NA | N108: NA | O108: NA | U108: NA | V108: NA | W108: No | X108: No | Y108: 09-12 | Z108: 400 | AA108: Boston | AB108: HS | AC108: 2005 | AD108: revocation
A109: 477 | B109: Silver Hill Horace Mann Charter School | C109: HM | D109: NA | E109: NA | F109: Haverhill | G109: NA | H109: 2008 | I109: NA | J109: 2008 | K109: NA | L109: 2013 | M109: Post-Opening Surrender | V109: NA | W109: NA | X109: No | Y109: K-05 | Z109: 580 | AA109: Urban | AB109: ES | AC109: 2018 | AD109: surrender
A110: 421 | B110: South End College Preparatory Charter School | C110: C | D110: NA | E110: NA | F110: Boston | G110: NA | H110: 2002 | I110: NA | J110: NA | K110: NA | L110: Pre-Opening Surrender | M110: NA | N110: NA | O110: NA | U110: NA | V110: NA | W110: No | X110: No | Y110: K-08 | Z110: 500 | AA110: Boston | AB110: ESMS | AC110: 2003 | AD110: surrender
A111: 476 | B111: Spirit of Knowledge Charter School | C111: C | D111: NA | E111: NA | F111: Worcester | G111: NA | H111: 2010 | I111: NA | J111: 2010 | K111: NA | L111: Post-Opening Surrender | M111: NA | N111: NA | O111: NA | U111: NA | V111: NA | W111: No | X111: No | Y111: 07-12 | Z111: 275 | AA111: Urban | AB111: MSHS | AC111: 2014 | AD111: surrender
A112: 3512 | B112: UP Academy Charter School of Springfield | C112: HM | D112: NA | E112: NA | F112: Springfield | G112: NA | H112: NA | I112: NA | J112: NA | K112: NA | L112: Pre-Opening Surrender | U112: 5 | V112: NA | W112: NA | X112: Yes | Y112: 06-08 | Z112: 800 | AA112: Urban | AB112: MS | AC112: NA | AD112: surrender
A113: 490 | B113: Uphams Corner Charter School | C113: C | D113: NA | E113: NA | F113: Boston | G113: NA | H113: 2002 | I113: NA | J113: 2002 | K113: NA | L113: 2007 | M113: Revocation | N113: NA | O113: NA | U113: NA | V113: NA | W113: No | X113: No | Y113: 05-08 | Z113: 200 | AA113: Boston | AB113: MS | AC113: 2009 | AD113: revocation
A114: 498 | B114: Youth Build Boston Charter School | C114: C | D114: NA | E114: NA | F114: Boston | G114: NA | H114: 1994 | I114: NA | J114: 1995 | K114: NA | L114: Revocation | M114: NA | N114: NA | O114: NA | U114: NA | V114: NA | W114: No | X114: No | Y114: 09-12 | Z114: 300 | AA114: Boston | AB114: HS | AC114: 1997 | AD114: surrender
B115: Total Currently Operating Commonwealths: | C115: 74
B116: Total Currently Operating Horace Manns (I): | C116: 3
B117: Total Currently Operating Horace Manns (II): | C117: 0
B118: Total Currently Operating Horace Manns (III): | C118: 5
B119: Total Charters Approved but not yet open: | C119: 0
B120: Total Charters Closed or Never Opened Since 1994: | C120: 30
B121: Total Charters Granted by BOE Since 1994: | C121: 112
A122: Updated Augst 2018

Sheet TEACHEREPIMS (hidden)
A6: ORG_CODE | B6: ORG_NAME | D6: FTE_22D | E6: HC_22D | F6: FTE_22A | G6: HC_22A | H6: FTE_21D | I6: HC_21D | J6: FTE_21A | K6: HC_21A | L6: FTE_20D | M6: HC_20D | N6: FTE_20A | O6: HC_20A | P6: FTE_19d | Q6: HC_19d | R6: FTE_19a | S6: HC_19a | T6: FTE_18d | U6: HC_18d | V6: FTE_18a | W6: HC_18a | X6: FTE_17d | Y6: HC_17d | Z6: FTE_17a | AA6: HC_17a | AB6: FTE_16d | AC6: HC_16d | AD6: FTE_16a | AE6: HC_16a | AF6: FTE_15d | AG6: HC_15d | AH6: FTE_15a | AI6: HC_15a | AJ6: FTE_14d | AK6: HC_14d | AL6: FTE_14a | AM6: HC_14a | AN6: FTE_13d | AO6: HC_13d | AP6: FTE_13a | AQ6: HC_13a | AR6: FTE_12d | AS6: HC_12d | AT6: FTE_12a | AU6: HC_12a | AV6: FTE_11d | AW6: HC_11d | AX6: FTE_11a | AY6: HC_11a | AZ6: FTE_10a | BA6: HC_10a
A7: 04070000 | B7: Dudley Street Neighborhood Charter School (District) | C7: 407 | D7: 19.5 | E7: 20 | F7: 19.5 | G7: 20 | H7: 20.5 | I7: 21 | J7: 10.25 | K7: 22 | L7: 20 | M7: 21 | N7: 21 | O7: 21 | P7: 22 | Q7: 22 | R7: 22 | S7: 22 | T7: 19.5 | U7: 20 | V7: 19 | W7: 19 | X7: 20.98 | Y7: 21 | Z7: 20.98 | AA7: 21 | AB7: 18.21 | AC7: 19 | AD7: 18.25 | AE7: 19 | AF7: 15.94 | AG7: 16 | AH7: 14.98 | AI7: 15 | AJ7: 9.999 | AK7: 10 | AL7: 12.998 | AM7: 13 | AN7: 7.994 | AO7: 8 | AP7: 7.994 | AQ7: 8 | AR7: NE | AS7: NE | AT7: NE | AU7: NE | AV7: NE | AW7: NE | AX7: NE | AY7: NE | AZ7: NE | BA7: NE
A8: 04090000 | B8: Alma del Mar Charter School (District) | C8: 409 | D8: 73.995 | E8: 74 | F8: 72.994 | G8: 73 | H8: 63.002 | I8: 63 | J8: 63.002 | K8: 63 | L8: 52 | M8: 52 | N8: 52 | O8: 52 | P8: 34.48 | Q8: 35 | R8: 36.5 | S8: 37 | T8: 36.006 | U8: 36 | V8: 35.008 | W8: 35 | X8: 32.15 | Y8: 32 | Z8: 33.15 | AA8: 33 | AB8: 23.92 | AC8: 24 | AD8: 28.92 | AE8: 29 | AF8: 17.03 | AG8: 17 | AH8: 22.38 | AI8: 23 | AJ8: 18.99 | AK8: 19 | AL8: 18.99 | AM8: 19 | AN8: 15.24 | AO8: 15 | AP8: 16.28 | AQ8: 16 | AR8: 13.88 | AS8: 14 | AT8: 13.88 | AU8: 14 | AV8: NE | AW8: NE | AX8: NE | AY8: NE | AZ8: NE | BA8: NE
A9: 04100000 | B9: Excel Academy Charter (District) | C9: 410 | D9: 128.078 | E9: 139 | F9: 127.177 | G9: 135 | H9: 113.207 | I9: 129 | J9: 115.192 | K9: 123 | L9: 115.906 | M9: 144 | N9: 117.994 | O9: 139 | P9: 105.66 | Q9: 126 | R9: 101.315 | S9: 118 | T9: 88.989 | U9: 108 | V9: 98.44 | W9: 112 | X9: 78.09 | Y9: 88 | Z9: 85.98 | AA9: 92 | AB9: 70.74 | AC9: 85 | AD9: 53.24 | AE9: 89 | AF9: 51.625 | AG9: 65 | AH9: 56.596 | AI9: 68 | AJ9: 19.297 | AK9: 26 | AL9: 22.369 | AM9: 26 | AN9: 19.602 | AO9: 24 | AP9: 18.97 | AQ9: 22 | AR9: 18.887 | AS9: 22 | AT9: 18.97 | AU9: 22 | AV9: 16 | AW9: 19 | AX9: 16 | AY9: 19 | AZ9: 17.8 | BA9: 18
A10: 04110000 | B10: Boston Green Academy Horace Mann Charter School (District) | C10: 411 | D10: 46.919 | E10: 66 | F10: 44.614 | G10: 66 | H10: 43.256 | I10: 62 | J10: 57.53 | K10: 67 | L10: 41.78 | M10: 44 | N10: 39 | O10: 42 | P10: 41.91 | Q10: 41 | R10: 41.504 | S10: 43 | T10: 44.42 | U10: 47 | V10: 40.603 | W10: 47 | X10: 49.43 | Y10: 51 | Z10: 51.57 | AA10: 53 | AB10: 40.59 | AC10: 43 | AD10: 41.02 | AE10: 43 | AF10: 37 | AG10: 39 | AH10: 35.01 | AI10: 38 | AJ10: 27.334 | AK10: 39 | AL10: 33.084 | AM10: 44 | AN10: 27.659 | AO10: 42 | AP10: 30.85 | AQ10: 40 | AR10: 25.36 | AS10: 32 | AT10: 25.3 | AU10: 32 | AV10: NE | AW10: NE | AX10: NE | AY10: NE | AZ10: NE | BA10: NE
A11: 04120000 | B11: Academy Of the Pacific Rim Charter Public (District) | C11: 412 | D11: 54.372 | E11: 58 | F11: 60.497 | G11: 61 | H11: 51.899 | I11: 54 | J11: 54.999 | K11: 56 | L11: 48.099 | M11: 50 | N11: 46.82 | O11: 49 | P11: 48.092 | Q11: 49 | R11: 49.2 | S11: 51 | T11: 43.874 | U11: 53 | V11: 48.099 | W11: 53 | X11: 44.216 | Y11: 48 | Z11: 44.33 | AA11: 48 | AB11: 40.58 | AC11: 44 | AD11: 42.2 | AE11: 46 | AF11: 42.334 | AG11: 45 | AH11: 42.5 | AI11: 45 | AJ11: 36.65 | AK11: 39 | AL11: 38.65 | AM11: 41 | AN11: 36.1 | AO11: 38 | AP11: 35.917 | AQ11: 38 | AR11: 36.8 | AS11: 38 | AT11: 36.8 | AU11: 38 | AV11: 33.997 | AW11: 36 | AX11: 34.8 | AY11: 37 | AZ11: 35.05 | BA11: 36
A12: 04130000 | B12: Four Rivers Charter Public (District) | C12: 413 | D12: 21.716 | E12: 29 | F12: 20.92 | G12: 29 | H12: 19.92 | I12: 27 | J12: 21.314 | K12: 30 | L12: 20.266 | M12: 31 | N12: 20.83 | O12: 31 | P12: 20.49 | Q12: 35 | R12: 21.81 | S12: 35 | T12: 21.127 | U12: 31 | V12: 20.719 | W12: 31 | X12: 22.066 | Y12: 31 | Z12: 22 | AA12: 31 | AB12: 21.75 | AC12: 30 | AD12: 22.82 | AE12: 30 | AF12: 21.955 | AG12: 30 | AH12: 21.11 | AI12: 29 | AJ12: 21.81 | AK12: 28 | AL12: 22.36 | AM12: 30 | AN12: 21.855 | AO12: 28 | AP12: 21.268 | AQ12: 28 | AR12: 21.86 | AS12: 29 | AT12: 21.66 | AU12: 30 | AV12: 20.214 | AW12: 28 | AX12: 21.227 | AY12: 30 | AZ12: 19.064 | BA12: 23
A13: 04140000 | B13: Berkshire Arts and Technology Charter Public (District) | C13: 414 | D13: 38.739 | E13: 43 | F13: 38.596 | G13: 41 | H13: 37.688 | I13: 41 | J13: 37.611 | K13: 43 | L13: 37.328 | M13: 40 | N13: 36.816 | O13: 39 | P13: 35.628 | Q13: 39 | R13: 36.05 | S13: 39 | T13: 31.771 | U13: 38 | V13: 34.01 | W13: 40 | X13: 33.097 | Y13: 40 | Z13: 32.9 | AA13: 40 | AB13: 31.51 | AC13: 37 | AD13: 31.299 | AE13: 37 | AF13: 28.99 | AG13: 37 | AH13: 29.59 | AI13: 34 | AJ13: 30.11 | AK13: 37 | AL13: 30.34 | AM13: 37 | AN13: 27.88 | AO13: 34 | AP13: 27.55 | AQ13: 33 | AR13: 24.057 | AS13: 28 | AT13: 24.866 | AU13: 29 | AV13: 23.2 | AW13: 26 | AX13: 23.416 | AY13: 26 | AZ13: 22.2 | BA13: 23
A14: 04150000 | B14: Amesbury Academy Charter Public (District) | C14: 415 | D14: Closed | E14: Closed | F14: Closed | G14: Closed | H14: Closed | I14: Closed | J14: Closed | K14: Closed | L14: Closed | M14: Closed | N14: Closed | O14: Closed | P14: Closed | Q14: Closed | R14: Closed | S14: Closed | T14: Closed | U14: Closed | V14: Closed | W14: Closed | X14: Closed | Y14: Closed | Z14: Closed | AA14: Closed | AB14: Closed | AC14: Closed | AD14: Closed | AE14: Closed | AF14: 4.37 | AG14: 6 | AH14: 5.3 | AI14: 7 | AJ14: 4.777 | AK14: 8 | AL14: 6.071 | AM14: 8 | AN14: 5.658 | AO14: 7 | AP14: 7.203 | AQ14: 9 | AR14: 4.772 | AS14: 9 | AT14: 5.473 | AU14: 9 | AV14: 5.235 | AW14: 8 | AX14: 5.9 | AY14: 8 | AZ14: 5.36 | BA14: 7
A15: 04160000 | B15: Boston Preparatory Charter Public (District) | C15: 416 | D15: 62.798 | E15: 65 | F15: 68.795 | G15: 69 | H15: 58.549 | I15: 63 | J15: 57.798 | K15: 62 | L15: 55.449 | M15: 61 | N15: 55.55 | O15: 63 | P15: 51.579 | Q15: 59 | R15: 52.2 | S15: 58 | T15: 44.304 | U15: 51 | V15: 44.071 | W15: 52 | X15: 35.46 | Y15: 41 | Z15: 37.2 | AA15: 39 | AB15: 32.32 | AC15: 37 | AD15: 34.55 | AE15: 38 | AF15: 30.433 | AG15: 33 | AH15: 33.05 | AI15: 37 | AJ15: 34 | AK15: 35 | AL15: 34.5 | AM15: 36 | AN15: 32.895 | AO15: 34 | AP15: 32.895 | AQ15: 34 | AR15: 35 | AS15: 35 | AT15: 35 | AU15: 35 | AV15: 33.7 | AW15: 34 | AX15: 33.7 | AY15: 34 | AZ15: 31.2 | BA15: 32
A16: 04170000 | B16: Bridge Boston Charter School (District) | C16: 417 | D16: 38.5 | E16: 39 | F16: 38.5 | G16: 39 | H16: 41.999 | I16: 44 | J16: 36.4 | K16: 39 | L16: 31.8 | M16: 33 | N16: 31 | O16: 32 | P16: 34.76 | Q16: 36 | R16: 34.6 | S16: 36 | T16: 27.84 | U16: 30 | V16: 29.04 | W16: 31 | X16: 27.47 | Y16: 30 | Z16: 26.1 | AA16: 29 | AB16: 16.15 | AC16: 17 | AD16: 19.4 | AE16: 21 | AF16: 14 | AG16: 14 | AH16: 14 | AI16: 14 | AJ16: 11.625 | AK16: 12 | AL16: 11.625 | AM16: 12 | AN16: 6.488 | AO16: 7 | AP16: 7.488 | AQ16: 8 | AR16: 4.87 | AS16: 6 | AT16: 5.15 | AU16: 6 | AV16: NE | AW16: NE | AX16: NE | AY16: NE | AZ16: NE | BA16: NE
A17: 04180000 | B17: Christa McAuliffe Charter Public (District) | C17: 418 | D17: 36.5 | E17: 39 | F17: 36.5 | G17: 39 | H17: 39.3 | I17: 40 | J17: 38.25 | K17: 40 | L17: 36.947 | M17: 40 | N17: 41.25 | O17: 43 | P17: 38.75 | Q17: 40 | R17: 39.74 | S17: 41 | T17: 39.5 | U17: 41 | V17: 41 | W17: 42 | X17: 34.549 | Y17: 39 | Z17: 35.05 | AA17: 40 | AB17: 38.75 | AC17: 41 | AD17: 38.5 | AE17: 41 | AF17: 37.014 | AG17: 40 | AH17: 38.1 | AI17: 39 | AJ17: 32.888 | AK17: 34 | AL17: 30.3 | AM17: 32 | AN17: 30.726 | AO17: 34 | AP17: 27.224 | AQ17: 36 | AR17: 26.293 | AS17: 32 | AT17: 26.45 | AU17: 31 | AV17: 23.444 | AW17: 25 | AX17: 23 | AY17: 24 | AZ17: 22.4 | BA17: 24
A18: 04190000 | B18: Helen Y. Davis Leadership Academy Charter Public (District) | C18: 419 | D18: 18.25 | E18: 19 | F18: 20.2 | G18: 20 | H18: 16.5 | I18: 17 | J18: 19 | K18: 19 | L18: 21 | M18: 21 | N18: 17 | O18: 17 | P18: 14.384 | Q18: 15 | R18: 16 | S18: 16 | T18: 11.852 | U18: 12 | V18: 13.852 | W18: 14 | X18: 15.835 | Y18: 16 | Z18: 17 | AA18: 17 | AB18: 16 | AC18: 16 | AD18: 16 | AE18: 16 | AF18: 15 | AG18: 15 | AH18: 18 | AI18: 18 | AJ18: 17 | AK18: 17 | AL18: 19 | AM18: 19 | AN18: 19.72 | AO18: 20 | AP18: 20.22 | AQ18: 20 | AR18: 15.098 | AS18: 16 | AT18: 18.093 | AU18: 19 | AV18: 27.253 | AW18: 29 | AX18: 17.892 | AY18: 19 | AZ18: 15.273 | BA18: 17
A19: 04200000 | B19: Benjamin Banneker Charter Public (District) | C19: 420 | D19: 20 | E19: 20 | F19: 21 | G19: 21 | H19: 19.967 | I19: 20 | J19: 21.5 | K19: 22 | L19: 19 | M19: 19 | N19: 19 | O19: 19 | P19: 18.8 | Q19: 19 | R19: 17.8 | S19: 18 | T19: 17.8 | U19: 18 | V19: 18.01 | W19: 19 | X19: 21.024 | Y19: 21 | Z19: 20.02 | AA19: 20 | AB19: 20.02 | AC19: 20 | AD19: 21.024 | AE19: 21 | AF19: 19.97 | AG19: 20 | AH19: 19.97 | AI19: 20 | AJ19: 20 | AK19: 20 | AL19: 20 | AM19: 20 | AN19: 21.973 | AO19: 22 | AP19: 22.473 | AQ19: 23 | AR19: 23.473 | AS19: 24 | AT19: 23.473 | AU19: 24 | AV19: 23.06 | AW19: 23 | AX19: 23 | AY19: 23 | AZ19: 22 | BA19: 22
A20: 04230000 | B20: Barnstable Horace Mann Charter (District) | C20: 423 | D20: Closed | E20: Closed | F20: Closed | G20: Closed | H20: Closed | I20: Closed | J20: Closed | K20: Closed | L20: Closed | M20: Closed | N20: Closed | O20: Closed | P20: Closed | Q20: Closed | R20: Closed | S20: Closed | T20: Closed | U20: Closed | V20: Closed | W20: Closed | X20: Closed | Y20: Closed | Z20: Closed | AA20: Closed | AB20: Closed | AC20: Closed | AD20: Closed | AE20: Closed | AF20: Closed | AG20: Closed | AH20: Closed | AI20: Closed | AJ20: Closed | AK20: Closed | AL20: Closed | AM20: Closed | AN20: Closed | AO20: Closed | AP20: Closed | AQ20: Closed | AR20: 57.239 | AS20: 60 | AT20: 57.239 | AU20: 60 | AV20: 49.305 | AW20: 60 | AX20: 48.012 | AY20: 59 | AZ20: 57.067 | BA20: 62
A21: 04240000 | B21: Boston Day and Evening Academy Charter (District) | C21: 424 | D21: 31.291 | E21: 34 | F21: 29.283 | G21: 31 | H21: 26.042 | I21: 29 | J21: 25.997 | K21: 28 | L21: 21.253 | M21: 29 | N21: 26.4 | O21: 27 | P21: 21.845 | Q21: 28 | R21: 26 | S21: 26 | T21: 20.5 | U21: 21 | V21: 23.05 | W21: 23 | X21: 20.55 | Y21: 21 | Z21: 23 | AA21: 24 | AB21: 20.75 | AC21: 21 | AD21: 21.6 | AE21: 22 | AF21: 20.6 | AG21: 21 | AH21: 22.6 | AI21: 23 | AJ21: 24.65 | AK21: 27 | AL21: 26.4 | AM21: 28 | AN21: 26.55 | AO21: 27 | AP21: 27.5 | AQ21: 28 | AR21: 23.3 | AS21: 23 | AT21: 25.55 | AU21: 27 | AV21: 20.7 | AW21: 21 | AX21: 24.6 | AY21: 25 | AZ21: 21.8 | BA21: 22
A22: 04260000 | B22: Community Day Charter Public School - Gateway (District) | C22: 426 | D22: 39.198 | E22: 40 | F22: 43.198 | G22: 44 | H22: 40.996 | I22: 41 | J22: 42.991 | K22: 43 | L22: 44 | M22: 44 | N22: 43.992 | O22: 44 | P22: 40 | Q22: 40 | R22: 40 | S22: 40 | T22: 32.5 | U22: 34 | V22: 33 | W22: 35 | X22: 28.75 | Y22: 32 | Z22: 27.5 | AA22: 31 | AB22: 23.5 | AC22: 26 | AD22: 24 | AE22: 27 | AF22: 21.6 | AG22: 26 | AH22: 22.6 | AI22: 27 | AJ22: 18.09 | AK22: 20 | AL22: 18.09 | AM22: 20 | AN22: 12.836 | AO22: 14 | AP22: 12.836 | AQ22: 14 | AR22: NE | AS22: NE | AT22: NE | AU22: NE | AV22: NE | AW22: NE | AX22: NE | AY22: NE | AZ22: NE | BA22: NE
A23: 04270000 | B23: Barnstable Community Horace Mann Charter Public (District) | C23: 427 | D23: Closed | E23: Closed | F23: Closed | G23: Closed | H23: Closed | I23: Closed | J23: Closed | K23: Closed | L23: Closed | M23: Closed | N23: Closed | O23: Closed | P23: 23.4 | Q23: 25 | R23: 24 | S23: 26 | T23: 23 | U23: 25 | V23: 24 | W23: 26 | X23: 24.8 | Y23: 26 | Z23: 21.99 | AA23: 24 | AB23: 25.61 | AC23: 26 | AD23: 26.008 | AE23: 26 | AF23: 24.392 | AG23: 26 | AH23: 23.608 | AI23: 24 | AJ23: 23.608 | AK23: 24 | AL23: 23.741 | AM23: 24 | AN23: 23.608 | AO23: 24 | AP23: 23.608 | AQ23: 24 | AR23: 22.992 | AS23: 23 | AT23: 22.992 | AU23: 23 | AV23: 22.3 | AW23: 23 | AX23: 22.3 | AY23: 23 | AZ23: 25.4 | BA23: 26
A24: 04280000 | B24: Brooke Charter School (District) | C24: 428 | D24: 174.798 | E24: 188 | F24: 180.443 | G24: 189 | H24: 179.211 | I24: 191 | J24: 170.373 | K24: 176 | L24: 165.265 | M24: 169 | N24: 166.701 | O24: 170 | P24: 152.99 | Q24: 153 | R24: 158 | S24: 158 | T24: 140.41 | U24: 142 | V24: 139.39 | W24: 141 | X24: 109.457 | Y24: 123 | Z24: 110.29 | AA24: 124 | AB24: 39 | AC24: 39 | AD24: 39 | AE24: 39 | AF24: 42 | AG24: 42 | AH24: 41 | AI24: 41 | AJ24: 40 | AK24: 41 | AL24: 41 | AM24: 42 | AN24: 38 | AO24: 38 | AP24: 38 | AQ24: 38 | AR24: 36 | AS24: 36 | AT24: 36 | AU24: 36 | AV24: 33.373 | AW24: 33 | AX24: 34.995 | AY24: 35 | AZ24: 36 | BA24: 36
A25: 04290000 | B25: KIPP Academy Lynn Charter (District) | C25: 429 | D25: 114.773 | E25: 121 | F25: 110.198 | G25: 113 | H25: 106.939 | I25: 116 | J25: 107.028 | K25: 116 | L25: 105.055 | M25: 113 | N25: 106.85 | O25: 115 | P25: 102.347 | Q25: 109 | R25: 100.5 | S25: 106 | T25: 100.503 | U25: 105 | V25: 109.634 | W25: 115 | X25: 95.666 | Y25: 100 | Z25: 99.74 | AA25: 106 | AB25: 88.33 | AC25: 93 | AD25: 87.574 | AE25: 94 | AF25: 76.927 | AG25: 80 | AH25: 76.72 | AI25: 80 | AJ25: 49.04 | AK25: 54 | AL25: 65.63 | AM25: 69 | AN25: 48.69 | AO25: 52 | AP25: 49.24 | AQ25: 53 | AR25: 31.945 | AS25: 34 | AT25: 32.945 | AU25: 35 | AV25: 25.86 | AW25: 26 | AX25: 25.86 | AY25: 26 | AZ25: 26 | BA25: 28
A26: 04300000 | B26: Advanced Math and Science Academy Charter (District) | C26: 430 | D26: 76.866 | E26: 84 | F26: 80.254 | G26: 87 | H26: 73.548 | I26: 81 | J26: 79.43 | K26: 86 | L26: 78.959 | M26: 84 | N26: 79.959 | O26: 85 | P26: 79.23 | Q26: 85 | R26: 81.539 | S26: 86 | T26: 78.48 | U26: 83 | V26: 82.046 | W26: 87 | X26: 74.054 | Y26: 81 | Z26: 78.36 | AA26: 81 | AB26: 75.71 | AC26: 84 | AD26: 76.361 | AE26: 82 | AF26: 80.781 | AG26: 85 | AH26: 81.392 | AI26: 86 | AJ26: 86.35 | AK26: 89 | AL26: 86.96 | AM26: 90 | AN26: 81.544 | AO26: 86 | AP26: 80.463 | AQ26: 87 | AR26: 80.509 | AS26: 83 | AT26: 80.358 | AU26: 83 | AV26: 72.392 | AW26: 74 | AX26: 70.433 | AY26: 72 | AZ26: 61.17 | BA26: 62
A27: 04310000 | B27: Community Day Charter Public School - R. Kingman Webster (District) | C27: 431 | D27: 38.5 | E27: 39 | F27: 44.5 | G27: 45 | H27: 41.496 | I27: 42 | J27: 40.489 | K27: 41 | L27: 39.999 | M27: 40 | N27: 41 | O27: 41 | P27: 39 | Q27: 39 | R27: 39 | S27: 39 | T27: 32.5 | U27: 34 | V27: 33.5 | W27: 35 | X27: 30.5 | Y27: 33 | Z27: 30.5 | AA27: 33 | AB27: 24.52 | AC27: 27 | AD27: 25.02 | AE27: 28 | AF27: 23.6 | AG27: 28 | AH27: 22.6 | AI27: 27 | AJ27: 18.08 | AK27: 20 | AL27: 18.08 | AM27: 20 | AN27: 13.83 | AO27: 15 | AP27: 13.83 | AQ27: 15 | AR27: NE | AS27: NE | AT27: NE | AU27: NE | AV27: NE | AW27: NE | AX27: NE | AY27: NE | AZ27: NE | BA27: NE
A28: 04320000 | B28: Cape Cod Lighthouse Charter (District) | C28: 432 | D28: 22.194 | E28: 32 | F28: 18.219 | G28: 31 | H28: 18.011 | I28: 32 | J28: 23.692 | K28: 34 | L28: 21.207 | M28: 29 | N28: 22.61 | O28: 33 | P28: 20.909 | Q28: 29 | R28: 21.455 | S28: 33 | T28: 21.685 | U28: 32 | V28: 21.969 | W28: 29 | X28: 22.5 | Y28: 33 | Z28: 21.49 | AA28: 28 | AB28: 20.43 | AC28: 31 | AD28: 21.5 | AE28: 28 | AF28: 21.96 | AG28: 29 | AH28: 21.78 | AI28: 27 | AJ28: 18.54 | AK28: 27 | AL28: 17.99 | AM28: 24 | AN28: 18.41 | AO28: 29 | AP28: 18.12 | AQ28: 26 | AR28: 18.18 | AS28: 28 | AT28: 18.14 | AU28: 26 | AV28: 17.86 | AW28: 26 | AX28: 18.99 | AY28: 26 | AZ28: 19.45 | BA28: 26
A29: 04350000 | B29: Innovation Academy Charter (District) | C29: 435 | D29: 66.499 | E29: 75 | F29: 67.248 | G29: 74 | H29: 62.648 | I29: 69 | J29: 65.25 | K29: 71 | L29: 70.613 | M29: 83 | N29: 69.833 | O29: 80 | P29: 67.683 | Q29: 76 | R29: 70.23 | S29: 78 | T29: 74.263 | U29: 82 | V29: 75.366 | W29: 81 | X29: 74.969 | Y29: 85 | Z29: 73.28 | AA29: 79 | AB29: 78.15 | AC29: 87 | AD29: 72.555 | AE29: 80 | AF29: 70.253 | AG29: 79 | AH29: 67.131 | AI29: 73 | AJ29: 58.822 | AK29: 66 | AL29: 62.313 | AM29: 67 | AN29: 58.345 | AO29: 65 | AP29: 59.636 | AQ29: 65 | AR29: 56.005 | AS29: 63 | AT29: 56.945 | AU29: 61 | AV29: 55.085 | AW29: 64 | AX29: 56.181 | AY29: 62 | AZ29: 42.58 | BA29: 45
A30: 04360000 | B30: Community Charter School of Cambridge (District) | C30: 436 | D30: 30.33 | E30: 43 | F30: 31.912 | G30: 39 | H30: 30.106 | I30: 41 | J30: 32.947 | K30: 43 | L30: 34.415 | M30: 38 | N30: 35.144 | O30: 38 | P30: 35.752 | Q30: 43 | R30: 36.69 | S30: 42 | T30: 39.189 | U30: 46 | V30: 34.4 | W30: 43 | X30: 32.228 | Y30: 54 | Z30: 32.37 | AA30: 55 | AB30: 30.51 | AC30: 48 | AD30: 33.46 | AE30: 50 | AF30: 32.18 | AG30: 41 | AH30: 30.939 | AI30: 39 | AJ30: 34.386 | AK30: 42 | AL30: 38.17 | AM30: 42 | AN30: 35.39 | AO30: 38 | AP30: 34.41 | AQ30: 37 | AR30: 30.96 | AS30: 34 | AT30: 31.185 | AU30: 33 | AV30: 30.385 | AW30: 37 | AX30: 28.137 | AY30: 37 | AZ30: 24.63 | BA30: 28
A31: 04370000 | B31: City on a Hill Charter Public School Circuit Street (District) | C31: 437 | D31: 20.797 | E31: 30 | F31: 20.277 | G31: 29 | H31: 21.464 | I31: 29 | J31: 22.998 | K31: 29 | L31: 35.905 | M31: 40 | N31: 12.018 | O31: 23 | P31: 22.79 | Q31: 34 | R31: 23.7 | S31: 34 | T31: 26.7 | U31: 33 | V31: 26.701 | W31: 33 | X31: 25.1 | Y31: 31 | Z31: 25.1 | AA31: 31 | AB31: 24.52 | AC31: 33 | AD31: 25.4 | AE31: 34 | AF31: 22.447 | AG31: 29 | AH31: 26.004 | AI31: 33 | AJ31: 23.8 | AK31: 31 | AL31: 23.8 | AM31: 32 | AN31: 24.77 | AO31: 32 | AP31: 24.9 | AQ31: 32 | AR31: 22 | AS31: 30 | AT31: 21.9 | AU31: 30 | AV31: 16.4 | AW31: 25 | AX31: 19 | AY31: 27 | AZ31: 20.2 | BA31: 27
A32: 04380000 | B32: Codman Academy Charter Public (District) | C32: 438 | D32: 43.926 | E32: 53 | F32: 44.641 | G32: 56 | H32: 47.134 | I32: 53 | J32: 45.489 | K32: 52 | L32: 45.75 | M32: 53 | N32: 43.824 | O32: 51 | P32: 40.398 | Q32: 43 | R32: 39.58 | S32: 43 | T32: 35.393 | U32: 37 | V32: 36.966 | W32: 40 | X32: 36.05 | Y32: 37 | Z32: 35.94 | AA32: 36 | AB32: 29.42 | AC32: 33 | AD32: 30.35 | AE32: 33 | AF32: 20.75 | AG32: 23 | AH32: 25.903 | AI32: 28 | AJ32: 17.41 | AK32: 19 | AL32: 18.71 | AM32: 20 | AN32: 14.05 | AO32: 19 | AP32: 14.98 | AQ32: 18 | AR32: 14.61 | AS32: 16 | AT32: 15.26 | AU32: 16 | AV32: 14.07 | AW32: 17 | AX32: 14.2 | AY32: 18 | AZ32: 15.1 | BA32: 18
A33: 04390000 | B33: Conservatory Lab Charter (District) | C33: 439 | D33: 29.25 | E33: 29 | F33: 29.5 | G33: 31 | H33: 28 | I33: 29 | J33: 29 | K33: 30 | L33: 27.2 | M33: 28 | N33: 26 | O33: 27 | P33: 25 | Q33: 26 | R33: 25 | S33: 26 | T33: 24.25 | U33: 26 | V33: 25.25 | W33: 27 | X33: 20.98 | Y33: 21 | Z33: 21.97 | AA33: 22 | AB33: 13.99 | AC33: 14 | AD33: 26.505 | AE33: 27 | AF33: 18 | AG33: 18 | AH33: 18 | AI33: 18 | AJ33: 14.25 | AK33: 15 | AL33: 14 | AM33: 14 | AN33: 8 | AO33: 8 | AP33: 8 | AQ33: 8 | AR33: 9 | AS33: 9 | AT33: 9 | AU33: 9 | AV33: 10 | AW33: 10 | AX33: 10 | AY33: 10 | AZ33: 14.4 | BA33: 16
A34: 04400000 | B34: Community Day Charter Public School - Prospect (District) | C34: 440 | D34: 38.892 | E34: 40 | F34: 39.392 | G34: 40 | H34: 42.974 | I34: 43 | J34: 42.982 | K34: 43 | L34: 38.799 | M34: 40 | N34: 38.8 | O34: 40 | P34: 42.4 | Q34: 43 | R34: 43.4 | S34: 44 | T34: 45.3 | U34: 46 | V34: 45.3 | W34: 46 | X34: 44 | Y34: 44 | Z34: 45 | AA34: 45 | AB34: 42 | AC34: 42 | AD34: 42 | AE34: 42 | AF34: 43.3 | AG34: 48 | AH34: 43.8 | AI34: 49 | AJ34: 33.83 | AK34: 36 | AL34: 33.83 | AM34: 36 | AN34: 35.75 | AO34: 37 | AP34: 35.75 | AQ34: 37 | AR34: 38.125 | AS34: 39 | AT34: 38.125 | AU34: 39 | AV34: 34.462 | AW34: 37 | AX34: 34.462 | AY34: 37 | AZ34: 34.617 | BA34: 37
A35: 04410000 | B35: Sabis International Charter (District) | C35: 441 | D35: 57.357 | E35: 92 | F35: 59.112 | G35: 93 | H35: 83.523 | I35: 85 | J35: 85.3 | K35: 86 | L35: 85.611 | M35: 88 | N35: 84.4 | O35: 86 | P35: 93.51 | Q35: 94 | R35: 64.16 | S35: 92 | T35: 65.4 | U35: 94 | V35: 66.01 | W35: 94 | X35: 67.81 | Y35: 96 | Z35: 65.78 | AA35: 94 | AB35: 65.98 | AC35: 96 | AD35: 64.16 | AE35: 94 | AF35: 65.45 | AG35: 96 | AH35: 64.59 | AI35: 95 | AJ35: 65.45 | AK35: 96 | AL35: 63.23 | AM35: 94 | AN35: 65.79 | AO35: 96 | AP35: 64.54 | AQ35: 94 | AR35: 66.32 | AS35: 97 | AT35: 65.3 | AU35: 96 | AV35: 63.23 | AW35: 95 | AX35: 63.93 | AY35: 97 | AZ35: 70.1 | BA35: 93
A36: 04430000 | B36: Brooke Charter School Mattapan (District) | C36: 443 | D36: Closed | E36: Closed | F36: Closed | G36: Closed | H36: Closed | I36: Closed | J36: Closed | K36: Closed | L36: Closed | M36: Closed | N36: Closed | O36: Closed | P36: Closed | Q36: Closed | R36: Closed | S36: Closed | T36: Closed | U36: Closed | V36: Closed | W36: Closed | X36: Closed | Y36: Closed | Z36: Closed | AA36: Closed | AB36: 41 | AC36: 41 | AD36: 41 | AE36: 41 | AF36: 42.963 | AG36: 43 | AH36: 41.883 | AI36: 42 | AJ36: 26 | AK36: 26 | AL36: 33 | AM36: 33 | AN36: 24.25 | AO36: 26 | AP36: 24.25 | AQ36: 26 | AR36: 16 | AS36: 16 | AT36: 16 | AU36: 16 | AV36: NE | AW36: NE | AX36: NE | AY36: NE | AZ36: NE | BA36: NE
A37: 04440000 | B37: Neighborhood House Charter (District) | C37: 444 | D37: 71.842 | E37: 75 | F37: 78.991 | G37: 80 | H37: 76.887 | I37: 77 | J37: 71.373 | K37: 72 | L37: 64.551 | M37: 66 | N37: 65.358 | O37: 68 | P37: 66.747 | Q37: 74 | R37: 66.246 | S37: 71 | T37: 57.85 | U37: 60 | V37: 57.848 | W37: 59 | X37: 47.91 | Y37: 50 | Z37: 49.11 | AA37: 52 | AB37: 36.5 | AC37: 38 | AD37: 37.504 | AE37: 39 | AF37: 34.334 | AG37: 36 | AH37: 34.334 | AI37: 36 | AJ37: 34.64 | AK37: 35 | AL37: 32.35 | AM37: 33 | AN37: 34.979 | AO37: 35 | AP37: 34.979 | AQ37: 35 | AR37: 38.554 | AS37: 39 | AT37: 36.69 | AU37: 37 | AV37: 42 | AW37: 42 | AX37: 41.8 | AY37: 42 | AZ37: 40.8 | BA37: 41
A38: 04450000 | B38: Abby Kelley Foster Charter Public (District) | C38: 445 | D38: 120.35 | E38: 122 | F38: 119.599 | G38: 121 | H38: 114.216 | I38: 115 | J38: 115.113 | K38: 116 | L38: 115.921 | M38: 118 | N38: 117.15 | O38: 119 | P38: 116.599 | Q38: 119 | R38: 116.393 | S38: 120 | T38: 112.453 | U38: 116 | V38: 108.972 | W38: 111 | X38: 111.402 | Y38: 111 | Z38: 106.62 | AA38: 109 | AB38: 115.26 | AC38: 118 | AD38: 118.053 | AE38: 120 | AF38: 116.544 | AG38: 118 | AH38: 117.043 | AI38: 119 | AJ38: 116.588 | AK38: 118 | AL38: 111.805 | AM38: 114 | AN38: 113.555 | AO38: 116 | AP38: 116.58 | AQ38: 120 | AR38: 113.06 | AS38: 113 | AT38: 111.898 | AU38: 114 | AV38: 112.98 | AW38: 114 | AX38: 111.701 | AY38: 115 | AZ38: 101.55 | BA38: 103
A39: 04460000 | B39: Foxborough Regional Charter (District) | C39: 446 | D39: 130.141 | E39: 133 | F39: 136.05 | G39: 138 | H39: 128.347 | I39: 132 | J39: 132.85 | K39: 137 | L39: 132.977 | M39: 136 | N39: 134.475 | O39: 137 | P39: 130.379 | Q39: 134 | R39: 129.8 | S39: 134 | T39: 111.694 | U39: 115 | V39: 111.699 | W39: 115 | X39: 94.644 | Y39: 101 | Z39: 92.25 | AA39: 101 | AB39: 80.8 | AC39: 90 | AD39: 82.182 | AE39: 93 | AF39: 84.061 | AG39: 92 | AH39: 86.003 | AI39: 91 | AJ39: 86.643 | AK39: 91 | AL39: 82.119 | AM39: 91 | AN39: 81.048 | AO39: 91 | AP39: 78.242 | AQ39: 89 | AR39: 85.326 | AS39: 94 | AT39: 84.8 | AU39: 94 | AV39: 79.269 | AW39: 89 | AX39: 83 | AY39: 91 | AZ39: 77.4 | BA39: 77
A40: 04470000 | B40: Benjamin Franklin Classical Charter Public (District) | C40: 447 | D40: 52.305 | E40: 53 | F40: 57.5 | G40: 58 | H40: 54.985 | I40: 56 | J40: 59 | K40: 60 | L40: 54 | M40: 55 | N40: 56 | O40: 56 | P40: 29.996 | Q40: 30 | R40: 30 | S40: 30 | T40: 32.8 | U40: 33 | V40: 33 | W40: 33 | X40: 31.802 | Y40: 38 | Z40: 28.22 | AA40: 35 | AB40: 29.73 | AC40: 31 | AD40: 27.201 | AE40: 28 | AF40: 23.144 | AG40: 32 | AH40: 25.109 | AI40: 34 | AJ40: 33.007 | AK40: 33 | AL40: 32.994 | AM40: 33 | AN40: 31.001 | AO40: 31 | AP40: 32.994 | AQ40: 33 | AR40: 28.934 | AS40: 30 | AT40: 36.782 | AU40: 40 | AV40: 30.791 | AW40: 34 | AX40: 30.791 | AY40: 34 | AZ40: 30.74 | BA40: 33
A41: 04480000 | B41: Gloucester Community Arts Charter (District) | C41: 448 | D41: Closed | E41: Closed | F41: Closed | G41: Closed | H41: Closed | I41: Closed | J41: Closed | K41: Closed | L41: Closed | M41: Closed | N41: Closed | O41: Closed | P41: Closed | Q41: Closed | R41: Closed | S41: Closed | T41: Closed | U41: Closed | V41: Closed | W41: Closed | X41: Closed | Y41: Closed | Z41: Closed | AA41: Closed | AB41: Closed | AC41: Closed | AD41: Closed | AE41: Closed | AF41: Closed | AG41: Closed | AH41: Closed | AI41: Closed | AJ41: Closed | AK41: Closed | AL41: Closed | AM41: Closed | AN41: Closed | AO41: Closed | AP41: 12.004 | AQ41: 12 | AR41: 13.207 | AS41: 15 | AT41: 14.228 | AU41: 18 | AV41: 7.8 | AW41: 8 | AX41: 8.8 | AY41: 9 | AZ41: NE | BA41: NE
A42: 04490000 | B42: Boston Collegiate Charter (District) | C42: 449 | D42: 69.828 | E42: 75 | F42: 75.244 | G42: 78 | H42: 69.229 | I42: 73 | J42: 69.288 | K42: 72 | L42: 69.365 | M42: 73 | N42: 72.752 | O42: 78 | P42: 60.781 | Q42: 71 | R42: 61.404 | S42: 68 | T42: 63.508 | U42: 68 | V42: 63.504 | W42: 68 | X42: 60.767 | Y42: 65 | Z42: 65.74 | AA42: 70 | AB42: 59.14 | AC42: 62 | AD42: 63.206 | AE42: 64 | AF42: 59.167 | AG42: 63 | AH42: 58.741 | AI42: 64 | AJ42: 60.177 | AK42: 62 | AL42: 62.11 | AM42: 64 | AN42: 60.939 | AO42: 60 | AP42: 61.147 | AQ42: 63 | AR42: 54.159 | AS42: 59 | AT42: 52.584 | AU42: 58 | AV42: 44.555 | AW42: 56 | AX42: 44.405 | AY42: 55 | AZ42: 39.018 | BA42: 49
A43: 04500000 | B43: Hilltown Cooperative Charter Public (District) | C43: 450 | D43: 21.25 | E43: 24 | F43: 21.075 | G43: 24 | H43: 19.95 | I43: 22 | J43: 19.95 | K43: 22 | L43: 20.45 | M43: 24 | N43: 19.7 | O43: 23 | P43: 20.27 | Q43: 24 | R43: 19.62 | S43: 24 | T43: 19.93 | U43: 23 | V43: 19.93 | W43: 23 | X43: 19.155 | Y43: 22 | Z43: 19.76 | AA43: 23 | AB43: 20.06 | AC43: 23 | AD43: 20.055 | AE43: 23 | AF43: 15.989 | AG43: 19 | AH43: 16.989 | AI43: 20 | AJ43: 14.442 | AK43: 18 | AL43: 14.692 | AM43: 19 | AN43: 14.692 | AO43: 18 | AP43: 14.692 | AQ43: 18 | AR43: 14.391 | AS43: 18 | AT43: 14.391 | AU43: 18 | AV43: 13.69 | AW43: 15 | AX43: 13.69 | AY43: 15 | AZ43: 13.69 | BA43: 15
A44: 04510000 | B44: Robert M. Hughes Academy Charter Public (District) | C44: 451 | D44: Closed | E44: Closed | F44: Closed | G44: Closed | H44: Closed | I44: Closed | J44: Closed | K44: Closed | L44: Closed | M44: Closed | N44: Closed | O44: Closed | P44: Closed | Q44: Closed | R44: Closed | S44: Closed | T44: Closed | U44: Closed | V44: Closed | W44: Closed | X44: Closed | Y44: Closed | Z44: Closed | AA44: Closed | AB44: Closed | AC44: Closed | AD44: Closed | AE44: Closed | AF44: Closed | AG44: Closed | AH44: Closed | AI44: Closed | AJ44: Closed | AK44: Closed | AL44: Closed | AM44: Closed | AN44: Closed | AO44: Closed | AP44: Closed | AQ44: Closed | AR44: Closed | AS44: Closed | AT44: Closed | AU44: Closed | AV44: Closed | AW44: Closed | AX44: Closed | AY44: Closed | AZ44: 8.48 | BA44: 10
A45: 04520000 | B45: Edward M. Kennedy Academy for Health Careers (Horace Mann Charter) (District) | C45: 452 | D45: 36.434 | E45: 41 | F45: 34.183 | G45: 39 | H45: 34.275 | I45: 38 | J45: 36.291 | K45: 39 | L45: 36.151 | M45: 41 | N45: 36.792 | O45: 43 | P45: 37.496 | Q45: 45 | R45: 39.703 | S45: 48 | T45: 30.296 | U45: 34 | V45: 35.295 | W45: 39 | X45: 24.98 | Y45: 28 | Z45: 28.7 | AA45: 32 | AB45: 23.25 | AC45: 26 | AD45: 27.854 | AE45: 30 | AF45: 24.275 | AG45: 27 | AH45: 28.25 | AI45: 31 | AJ45: 23.349 | AK45: 29 | AL45: 25.317 | AM45: 30 | AN45: 23.54 | AO45: 27 | AP45: 23.54 | AQ45: 27 | AR45: 20.1 | AS45: 25 | AT45: 19.7 | AU45: 25 | AV45: 20 | AW45: 24 | AX45: 20 | AY45: 24 | AZ45: 18.9 | BA45: 22
A46: 04530000 | B46: Holyoke Community Charter (District) | C46: 453 | D46: 42.18 | E46: 43 | F46: 43.5 | G46: 44 | H46: 42.5 | I46: 43 | J46: 42.5 | K46: 43 | L46: 43 | M46: 43 | N46: 43 | O46: 43 | P46: 46.2 | Q46: 46 | R46: 52.09 | S46: 52 | T46: 51.92 | U46: 52 | V46: 52.13 | W46: 52 | X46: 52.5 | Y46: 53 | Z46: 52.52 | AA46: 53 | AB46: 53.68 | AC46: 54 | AD46: 52.03 | AE46: 52 | AF46: 50.948 | AG46: 51 | AH46: 50.938 | AI46: 51 | AJ46: 53.118 | AK46: 54 | AL46: 53.618 | AM46: 54 | AN46: 51.115 | AO46: 51 | AP46: 50.145 | AQ46: 50 | AR46: 47.916 | AS46: 48 | AT46: 48.906 | AU46: 49 | AV46: 48.048 | AW46: 48 | AX46: 46.059 | AY46: 46 | AZ46: 45 | BA46: 45
A47: 04540000 | B47: Lawrence Family Development Charter (District) | C47: 454 | D47: 56 | E47: 56 | F47: 58 | G47: 58 | H47: 57 | I47: 57 | J47: 62 | K47: 62 | L47: 61.176 | M47: 62 | N47: 62.976 | O47: 63 | P47: 60.5 | Q47: 61 | R47: 61.5 | S47: 62 | T47: 60.499 | U47: 61 | V47: 60.87 | W47: 60 | X47: 59.543 | Y47: 60 | Z47: 59.54 | AA47: 60 | AB47: 57.47 | AC47: 58 | AD47: 56.466 | AE47: 57 | AF47: 56 | AG47: 56 | AH47: 56 | AI47: 56 | AJ47: 53 | AK47: 53 | AL47: 54 | AM47: 54 | AN47: 54 | AO47: 54 | AP47: 54 | AQ47: 54 | AR47: 52.956 | AS47: 53 | AT47: 51.956 | AU47: 52 | AV47: 49 | AW47: 49 | AX47: 50 | AY47: 50 | AZ47: 51 | BA47: 51
A48: 04550000 | B48: Hill View Montessori Charter Public (District) | C48: 455 | D48: 21 | E48: 21 | F48: 23 | G48: 23 | H48: 24 | I48: 24 | J48: 24 | K48: 24 | L48: 22 | M48: 22 | N48: 20.994 | O48: 21 | P48: 22 | Q48: 22 | R48: 22 | S48: 22 | T48: 24.072 | U48: 24 | V48: 25 | W48: 25 | X48: 18.015 | Y48: 22 | Z48: 20.07 | AA48: 25 | AB48: 17.75 | AC48: 22 | AD48: 19.553 | AE48: 24 | AF48: 21.576 | AG48: 24 | AH48: 22.676 | AI48: 23 | AJ48: 20.653 | AK48: 24 | AL48: 20.153 | AM48: 22 | AN48: 22.352 | AO48: 23 | AP48: 21.477 | AQ48: 23 | AR48: 27.478 | AS48: 30 | AT48: 27.828 | AU48: 29 | AV48: 24.201 | AW48: 27 | AX48: 26.625 | AY48: 29 | AZ48: 23.725 | BA48: 25
A49: 04560000 | B49: Lowell Community Charter Public (District) | C49: 456 | D49: 55.503 | E49: 56 | F49: 64 | G49: 64 | H49: 64.695 | I49: 66 | J49: 64.748 | K49: 66 | L49: 65.46 | M49: 66 | N49: 66.46 | O49: 67 | P49: 65.336 | Q49: 66 | R49: 64.34 | S49: 65 | T49: 64.462 | U49: 65 | V49: 63.467 | W49: 64 | X49: 62.47 | Y49: 63 | Z49: 60.97 | AA49: 62 | AB49: 62.65 | AC49: 63 | AD49: 61.54 | AE49: 62 | AF49: 49.94 | AG49: 50 | AH49: 55.94 | AI49: 56 | AJ49: 48.13 | AK49: 48 | AL49: 48.09 | AM49: 48 | AN49: 45.63 | AO49: 47 | AP49: 47.46 | AQ49: 49 | AR49: 47.69 | AS49: 48 | AT49: 45.94 | AU49: 46 | AV49: 61.293 | AW49: 62 | AX49: 57.857 | AY49: 59 | AZ49: 79 | BA49: 79
A50: 04570000 | B50: Brooke Charter School East Boston (District) | C50: 457 | D50: Closed | E50: Closed | F50: Closed | G50: Closed | H50: Closed | I50: Closed | J50: Closed | K50: Closed | L50: Closed | M50: Closed | N50: Closed | O50: Closed | P50: Closed | Q50: Closed | R50: Closed | S50: Closed | T50: Closed | U50: Closed | V50: Closed | W50: Closed | X50: Closed | Y50: Closed | Z50: Closed | AA50: Closed | AB50: 40 | AC50: 40 | AD50: 40 | AE50: 40 | AF50: 33 | AG50: 33 | AH50: 33 | AI50: 33 | AJ50: 24.5 | AK50: 25 | AL50: 24.5 | AM50: 25 | AN50: 15.5 | AO50: 16 | AP50: 15.5 | AQ50: 16 | AR50: NE | AS50: NE | AT50: NE | AU50: NE | AV50: NE | AW50: NE | AX50: NE | AY50: NE | AZ50: NE | BA50: NE
A51: 04580000 | B51: Lowell Middlesex Academy Charter (District) | C51: 458 | D51: 5.5 | E51: 6 | F51: 5 | G51: 5 | H51: 7.004 | I51: 7 | J51: 7 | K51: 7 | L51: 8.5 | M51: 10 | N51: 8 | O51: 10 | P51: 9 | Q51: 11 | R51: 9 | S51: 11 | T51: 10.5 | U51: 12 | V51: 10.5 | W51: 12 | X51: 11 | Y51: 13 | Z51: 10.48 | AA51: 12 | AB51: 11 | AC51: 12 | AD51: 9.668 | AE51: 10 | AF51: 11.77 | AG51: 13 | AH51: 11.905 | AI51: 14 | AJ51: 11.911 | AK51: 14 | AL51: 12.51 | AM51: 13 | AN51: 13.713 | AO51: 15 | AP51: 12.977 | AQ51: 15 | AR51: 10.4 | AS51: 14 | AT51: 11.4 | AU51: 14 | AV51: 12.8 | AW51: 15 | AX51: 12 | AY51: 15 | AZ51: 9.6 | BA51: 11
A52: 04590000 | B52: Excel Academy Charter School - Boston II | C52: 459 | D52: Closed | E52: Closed | F52: Closed | G52: Closed | H52: Closed | I52: Closed | J52: Closed | K52: Closed | L52: Closed | M52: Closed | N52: Closed | O52: Closed | P52: Closed | Q52: Closed | R52: Closed | S52: Closed | T52: Closed | U52: Closed | V52: Closed | W52: Closed | X52: Closed | Y52: Closed | Z52: Closed | AA52: Closed | AB52: Closed | AC52: Closed | AD52: Closed | AE52: Closed | AF52: Closed | AG52: Closed | AH52: Closed | AI52: Closed | AJ52: 8.625 | AK52: 14 | AL52: 11.099 | AM52: 15 | AN52: 4.17 | AO52: 6 | AP52: 5.298 | AQ52: 6 | AR52: NE | AS52: NE | AT52: NE | AU52: NE | AV52: NE | AW52: NE | AX52: NE | AY52: NE | AZ52: NE | BA52: NE
A53: 04610000 | B53: Excel Academy Charter School - Chelsea | C53: 461 | D53: Closed | E53: Closed | F53: Closed | G53: Closed | H53: Closed | I53: Closed | J53: Closed | K53: Closed | L53: Closed | M53: Closed | N53: Closed | O53: Closed | P53: Closed | Q53: Closed | R53: Closed | S53: Closed | T53: Closed | U53: Closed | V53: Closed | W53: Closed | X53: Closed | Y53: Closed | Z53: Closed | AA53: Closed | AB53: Closed | AC53: Closed | AD53: Closed | AE53: Closed | AF53: Closed | AG53: Closed | AH53: Closed | AI53: Closed | AJ53: 12.734 | AK53: 17 | AL53: 14.896 | AM53: 17 | AN53: 7.806 | AO53: 12 | AP53: 10.002 | AQ53: 12 | AR53: 5.104 | AS53: 6 | AT53: 5.802 | AU53: 6 | AV53: NE | AW53: NE | AX53: NE | AY53: NE | AZ53: NE | BA53: NE
A54: 04620000 | B54: Grove Hall Preparatory Charter School (District) | C54: 462 | D54: Closed | E54: Closed | F54: Closed | G54: Closed | H54: Closed | I54: Closed | J54: Closed | K54: Closed | L54: Closed | M54: Closed | N54: Closed | O54: Closed | P54: Closed | Q54: Closed | R54: Closed | S54: Closed | T54: Closed | U54: Closed | V54: Closed | W54: Closed | X54: Closed | Y54: Closed | Z54: Closed | AA54: Closed | AB54: Closed | AC54: Closed | AD54: Closed | AE54: Closed | AF54: Closed | AG54: Closed | AH54: Closed | AI54: Closed | AJ54: Closed | AK54: Closed | AL54: Closed | AM54: Closed | AN54: Closed | AO54: Closed | AP54: Closed | AQ54: Closed | AR54: 7.94 | AS54: 8 | AT54: 7.99 | AU54: 8 | AV54: NE | AW54: NE | AX54: NE | AY54: NE | AZ54: NE | BA54: NE
A55: 04630000 | B55: KIPP Academy Boston Charter School (District) | C55: 463 | D55: 44.974 | E55: 45 | F55: 48.485 | G55: 49 | H55: 43.504 | I55: 46 | J55: 44.749 | K55: 47 | L55: 40.798 | M55: 42 | N55: 40.01 | O55: 41 | P55: 44.25 | Q55: 45 | R55: 37.333 | S55: 39 | T55: 51.1 | U55: 52 | V55: 55 | W55: 55 | X55: 44.088 | Y55: 45 | Z55: 46.99 | AA55: 47 | AB55: 38.5 | AC55: 39 | AD55: 38.25 | AE55: 39 | AF55: 26.979 | AG55: 27 | AH55: 28.977 | AI55: 29 | AJ55: 12.988 | AK55: 13 | AL55: 14.987 | AM55: 15 | AN55: 6.5 | AO55: 8 | AP55: 8.194 | AQ55: 10 | AR55: NE | AS55: NE | AT55: NE | AU55: NE | AV55: NE | AW55: NE | AX55: NE | AY55: NE | AZ55: NE | BA55: NE
A56: 04640000 | B56: Marblehead Community Charter Public (District) | C56: 464 | D56: 21 | E56: 21 | F56: 21 | G56: 21 | H56: 20.75 | I56: 22 | J56: 21.25 | K56: 22 | L56: 23 | M56: 23 | N56: 22.1 | O56: 23 | P56: 20.9 | Q56: 22 | R56: 23.5 | S56: 25 | T56: 22.3 | U56: 24 | V56: 20.5 | W56: 22 | X56: 22.9 | Y56: 24 | Z56: 21.9 | AA56: 23 | AB56: 20.65 | AC56: 22 | AD56: 19.25 | AE56: 21 | AF56: 20.8 | AG56: 22 | AH56: 20.4 | AI56: 22 | AJ56: 21.35 | AK56: 24 | AL56: 22.15 | AM56: 25 | AN56: 19.75 | AO56: 22 | AP56: 19.55 | AQ56: 22 | AR56: 20.645 | AS56: 23 | AT56: 20.645 | AU56: 23 | AV56: 21.9 | AW56: 25 | AX56: 21.65 | AY56: 25 | AZ56: 20.5 | BA56: 23
A57: 04650000 | B57: MATCH Community Day Charter Public School | C57: 465 | D57: Closed | E57: Closed | F57: Closed | G57: Closed | H57: Closed | I57: Closed | J57: Closed | K57: Closed | L57: Closed | M57: Closed | N57: Closed | O57: Closed | P57: Closed | Q57: Closed | R57: Closed | S57: Closed | T57: Closed | U57: Closed | V57: Closed | W57: Closed | X57: Closed | Y57: Closed | Z57: Closed | AA57: Closed | AB57: Closed | AC57: Closed | AD57: Closed | AE57: Closed | AF57: Closed | AG57: Closed | AH57: Closed | AI57: Closed | AJ57: 20.4 | AK57: 21 | AL57: 18.4 | AM57: 19 | AN57: 12.5 | AO57: 13 | AP57: 12.5 | AQ57: 13 | AR57: 8 | AS57: 8 | AT57: 8 | AU57: 8 | AV57: NE | AW57: NE | AX57: NE | AY57: NE | AZ57: NE | BA57: NE
A58: 04660000 | B58: Martha's Vineyard Charter (District) | C58: 466 | D58: 19.524 | E58: 23 | F58: 20.193 | G58: 23 | H58: 17.99 | I58: 20 | J58: 18.491 | K58: 20 | L58: 18.64 | M58: 19 | N58: 16.52 | O58: 20 | P58: 17.33 | Q58: 21 | R58: 16.71 | S58: 20 | T58: 17.63 | U58: 20 | V58: 16.62 | W58: 21 | X58: 18.76 | Y58: 24 | Z58: 18.87 | AA58: 23 | AB58: 16.93 | AC58: 22 | AD58: 18.2 | AE58: 22 | AF58: 18.07 | AG58: 22 | AH58: 18.04 | AI58: 21 | AJ58: 17.32 | AK58: 21 | AL58: 19.21 | AM58: 23 | AN58: 17.36 | AO58: 21 | AP58: 17.95 | AQ58: 22 | AR58: 19.46 | AS58: 22 | AT58: 19.46 | AU58: 22 | AV58: 19.38 | AW58: 22 | AX58: 19.748 | AY58: 22 | AZ58: 18.764 | BA58: 20
A59: 04670000 | B59: New Liberty Charter School of Salem (District) | C59: 467 | D59: Closed | E59: Closed | F59: Closed | G59: Closed | H59: Closed | I59: Closed | J59: Closed | K59: Closed | L59: Closed | M59: Closed | N59: Closed | O59: Closed | P59: Closed | Q59: Closed | R59: Closed | S59: Closed | T59: Closed | U59: Closed | V59: Closed | W59: Closed | X59: Closed | Y59: Closed | Z59: Closed | AA59: Closed | AB59: 4.66 | AC59: 6 | AD59: 4.49 | AE59: 6 | AF59: 5.6 | AG59: 7 | AH59: 5.43 | AI59: 6 | AJ59: 4.6 | AK59: 6 | AL59: 4.634 | AM59: 6 | AN59: 4.3 | AO59: 6 | AP59: 4.82 | AQ59: 6 | AR59: 5.52 | AS59: 7 | AT59: 5.565 | AU59: 8 | AV59: NE | AW59: NE | AX59: NE | AY59: NE | AZ59: NE | BA59: NE
A60: 04690000 | B60: MATCH Charter Public School (District) | C60: 469 | D60: 118.546 | E60: 123 | F60: 124.5 | G60: 126 | H60: 112.997 | I60: 114 | J60: 113.5 | K60: 114 | L60: 114.711 | M60: 120 | N60: 113.926 | O60: 117 | P60: 105.838 | Q60: 114 | R60: 103.35 | S60: 110 | T60: 101.464 | U60: 107 | V60: 102.9 | W60: 107 | X60: 79.712 | Y60: 89 | Z60: 84.75 | AA60: 88 | AB60: 67.31 | AC60: 74 | AD60: 69.504 | AE60: 76 | AF60: 53.29 | AG60: 61 | AH60: 57.3 | AI60: 63 | AJ60: 31.04 | AK60: 33 | AL60: 33.04 | AM60: 35 | AN60: 30.2 | AO60: 32 | AP60: 30.2 | AQ60: 32 | AR60: 27.5 | AS60: 28 | AT60: 27 | AU60: 27 | AV60: 24.5 | AW60: 25 | AX60: 24.5 | AY60: 25 | AZ60: 23.24 | BA60: 26
A61: 04700000 | B61: Mystic Valley Regional Charter (District) | C61: 470 | D61: 99.835 | E61: 104 | F61: 99.621 | G61: 101 | H61: 94.693 | I61: 97 | J61: 103.748 | K61: 104 | L61: 102.16 | M61: 105 | N61: 105.485 | O61: 108 | P61: 97.968 | Q61: 98 | R61: 100.89 | S61: 103 | T61: 95.797 | U61: 101 | V61: 100.5 | W61: 102 | X61: 100.373 | Y61: 107 | Z61: 103.09 | AA61: 111 | AB61: 106.74 | AC61: 113 | AD61: 102.677 | AE61: 110 | AF61: 104.606 | AG61: 111 | AH61: 106.903 | AI61: 113 | AJ61: 103.615 | AK61: 110 | AL61: 104.815 | AM61: 112 | AN61: 103.853 | AO61: 108 | AP61: 102.387 | AQ61: 108 | AR61: 98.055 | AS61: 100 | AT61: 93.347 | AU61: 99 | AV61: 89.115 | AW61: 91 | AX61: 88.368 | AY61: 92 | AZ61: 94.99 | BA61: 95
A62: 04710000 | B62: New Leadership Charter (District) | C62: 471 | D62: Closed | E62: Closed | F62: Closed | G62: Closed | H62: Closed | I62: Closed | J62: Closed | K62: Closed | L62: Closed | M62: Closed | N62: Closed | O62: Closed | P62: Closed | Q62: Closed | R62: Closed | S62: Closed | T62: Closed | U62: Closed | V62: Closed | W62: Closed | X62: Closed | Y62: Closed | Z62: Closed | AA62: Closed | AB62: Closed | AC62: Closed | AD62: Closed | AE62: Closed | AF62: Closed | AG62: Closed | AH62: Closed | AI62: Closed | AJ62: Closed | AK62: Closed | AL62: Closed | AM62: Closed | AN62: 32.416 | AO62: 46 | AP62: 31.516 | AQ62: 46 | AR62: 30.961 | AS62: 46 | AT62: 30.683 | AU62: 48 | AV62: 15.279 | AW62: 38 | AX62: 21.872 | AY62: 51 | AZ62: 42.907 | BA62: 47
A63: 04740000 | B63: Sizer School: A North Central Charter Essential (District) | C63: 474 | D63: 36.582 | E63: 41 | F63: 40.48 | G63: 43 | H63: 38.665 | I63: 43 | J63: 38.738 | K63: 42 | L63: 39.687 | M63: 42 | N63: 39.97 | O63: 44 | P63: 39.04 | Q63: 42 | R63: 40.22 | S63: 44 | T63: 37.707 | U63: 46 | V63: 34.765 | W63: 42 | X63: 34.607 | Y63: 39 | Z63: 35.07 | AA63: 40 | AB63: 37.54 | AC63: 48 | AD63: 35.821 | AE63: 44 | AF63: 36.35 | AG63: 44 | AH63: 39.029 | AI63: 47 | AJ63: 34.101 | AK63: 43 | AL63: 35.389 | AM63: 43 | AN63: 34.836 | AO63: 42 | AP63: 35.142 | AQ63: 40 | AR63: 35.077 | AS63: 45 | AT63: 34.589 | AU63: 43 | AV63: 34.325 | AW63: 41 | AX63: 33.917 | AY63: 39 | AZ63: 34.125 | BA63: 37
A64: 04750000 | B64: Dorchester Collegiate Academy Charter (District) | C64: 475 | D64: Closed | E64: Closed | F64: Closed | G64: Closed | H64: Closed | I64: Closed | J64: Closed | K64: Closed | L64: Closed | M64: Closed | N64: Closed | O64: Closed | P64: Closed | Q64: Closed | R64: Closed | S64: Closed | T64: Closed | U64: Closed | V64: Closed | W64: Closed | X64: Closed | Y64: Closed | Z64: Closed | AA64: Closed | AB64: 21.68 | AC64: 27 | AD64: 20.82 | AE64: 25 | AF64: 17.2 | AG64: 17 | AH64: 16 | AI64: 16 | AJ64: 17.502 | AK64: 18 | AL64: 6.89 | AM64: 17 | AN64: 13 | AO64: 13 | AP64: 13 | AQ64: 13 | AR64: 9.75 | AS64: 10 | AT64: 9.75 | AU64: 10 | AV64: 5.775 | AW64: 6 | AX64: 5.4 | AY64: 6 | AZ64: 2.2 | BA64: 3
A65: 04760000 | B65: Spirit of Knowledge Charter School (District) | C65: 476 | D65: Closed | E65: Closed | F65: Closed | G65: Closed | H65: Closed | I65: Closed | J65: Closed | K65: Closed | L65: Closed | M65: Closed | N65: Closed | O65: Closed | P65: Closed | Q65: Closed | R65: Closed | S65: Closed | T65: Closed | U65: Closed | V65: Closed | W65: Closed | X65: Closed | Y65: Closed | Z65: Closed | AA65: Closed | AB65: Closed | AC65: Closed | AD65: Closed | AE65: Closed | AF65: Closed | AG65: Closed | AH65: Closed | AI65: Closed | AJ65: Closed | AK65: Closed | AL65: Closed | AM65: Closed | AN65: 14.186 | AO65: 17 | AP65: 14.713 | AQ65: 17 | AR65: 13.577 | AS65: 15 | AT65: 13.82 | AU65: 17 | AV65: 12.682 | AW65: 18 | AX65: 9.339 | AY65: 15 | AZ65: NE | BA65: NE
A66: 04770000 | B66: Silver Hill Horace Mann Charter (District) | C66: 477 | D66: Closed | E66: Closed | F66: Closed | G66: Closed | H66: Closed | I66: Closed | J66: Closed | K66: Closed | L66: Closed | M66: Closed | N66: Closed | O66: Closed | P66: Closed | Q66: Closed | R66: Closed | S66: Closed | T66: 36.2 | U66: 38 | V66: 35.2 | W66: 37 | X66: 35.8 | Y66: 36 | Z66: 34.8 | AA66: 35 | AB66: 36.44 | AC66: 37 | AD66: 35.938 | AE66: 37 | AF66: 36.943 | AG66: 37 | AH66: 36.993 | AI66: 37 | AJ66: 38.513 | AK66: 38 | AL66: 38.057 | AM66: 38 | AN66: 35.735 | AO66: 36 | AP66: 35.921 | AQ66: 36 | AR66: 32.193 | AS66: 35 | AT66: 35.966 | AU66: 36 | AV66: 34.966 | AW66: 35 | AX66: 34.966 | AY66: 35 | AZ66: 38.75 | BA66: 39
A67: 04780000 | B67: Francis W. Parker Charter Essential (District) | C67: 478 | D67: 45.781 | E67: 49 | F67: 45.528 | G67: 49 | H67: 46.412 | I67: 51 | J67: 45.962 | K67: 50 | L67: 45.748 | M67: 49 | N67: 44.95 | O67: 48 | P67: 45.704 | Q67: 50 | R67: 46.41 | S67: 51 | T67: 46.25 | U67: 49 | V67: 46.25 | W67: 49 | X67: 36.99 | Y67: 40 | Z67: 45.69 | AA67: 49 | AB67: 37.56 | AC67: 42 | AD67: 44.81 | AE67: 49 | AF67: 33.95 | AG67: 38 | AH67: 45.75 | AI67: 50 | AJ67: 47.411 | AK67: 51 | AL67: 47.242 | AM67: 52 | AN67: 45.197 | AO67: 50 | AP67: 45.096 | AQ67: 49 | AR67: 45.46 | AS67: 50 | AT67: 45.45 | AU67: 50 | AV67: 44.775 | AW67: 48 | AX67: 44.775 | AY67: 48 | AZ67: 45.025 | BA67: 51
A68: 04790000 | B68: Pioneer Valley Performing Arts Charter Public (District) | C68: 479 | D68: 37.631 | E68: 42 | F68: 42.997 | G68: 43 | H68: 40.84 | I68: 44 | J68: 41.287 | K68: 42 | L68: 43.694 | M68: 48 | N68: 44.868 | O68: 46 | P68: 44.753 | Q68: 50 | R68: 47.3 | S68: 49 | T68: 39.826 | U68: 47 | V68: 44.1 | W68: 47 | X68: 41.89 | Y68: 48 | Z68: 40.59 | AA68: 46 | AB68: 37.28 | AC68: 43 | AD68: 39.2 | AE68: 45 | AF68: 35.696 | AG68: 45 | AH68: 39.52 | AI68: 50 | AJ68: 35.396 | AK68: 43 | AL68: 40.83 | AM68: 54 | AN68: 42.37 | AO68: 56 | AP68: 41.86 | AQ68: 59 | AR68: 43.44 | AS68: 55 | AT68: 39.829 | AU68: 54 | AV68: 39.74 | AW68: 60 | AX68: 39 | AY68: 59 | AZ68: 35.85 | BA68: 59
A69: 04800000 | B69: UP Academy Charter School of Boston (District) | C69: 480 | D69: 32 | E69: 34 | F69: 31.5 | G69: 33 | H69: 30.808 | I69: 32 | J69: 35.25 | K69: 36 | L69: 40.877 | M69: 41 | N69: 40.471 | O69: 41 | P69: 40.5 | Q69: 41 | R69: 44.5 | S69: 45 | T69: 28.5 | U69: 29 | V69: 42.5 | W69: 43 | X69: 26.44 | Y69: 27 | Z69: 38.62 | AA69: 39 | AB69: 38.37 | AC69: 40 | AD69: 41.4 | AE69: 42 | AF69: 42.98 | AG69: 44 | AH69: 45.5 | AI69: 47 | AJ69: 27.01 | AK69: 29 | AL69: 45.1 | AM69: 46 | AN69: 45.78 | AO69: 48 | AP69: 47.37 | AQ69: 48 | AR69: 41.16 | AS69: 43 | AT69: 42.5 | AU69: 43 | AV69: NE | AW69: NE | AX69: NE | AY69: NE | AZ69: NE | BA69: NE
A70: 04810000 | B70: Boston Renaissance Charter Public (District) | C70: 481 | D70: 77.219 | E70: 80 | F70: 80.767 | G70: 83 | H70: 83.003 | I70: 83 | J70: 83.999 | K70: 84 | L70: 82.3 | M70: 83 | N70: 81.5 | O70: 82 | P70: 80.002 | Q70: 80 | R70: 82 | S70: 82 | T70: 84.4 | U70: 85 | V70: 82 | W70: 82 | X70: 79 | Y70: 79 | Z70: 75.57 | AA70: 78 | AB70: 77 | AC70: 77 | AD70: 74.02 | AE70: 76 | AF70: 77 | AG70: 77 | AH70: 76 | AI70: 76 | AJ70: 73 | AK70: 73 | AL70: 72.67 | AM70: 74 | AN70: 70.05 | AO70: 70 | AP70: 70.82 | AQ70: 71 | AR70: 78.77 | AS70: 79 | AT70: 76.86 | AU70: 77 | AV70: 93.68 | AW70: 94 | AX70: 93.8 | AY70: 94 | AZ70: 95 | BA70: 96
A71: 04820000 | B71: River Valley Charter (District) | C71: 482 | D71: 20.32 | E71: 21 | F71: 22.32 | G71: 23 | H71: 24.71 | I71: 26 | J71: 24.715 | K71: 26 | L71: 21.88 | M71: 23 | N71: 21.88 | O71: 23 | P71: 20.75 | Q71: 22 | R71: 20.75 | S71: 22 | T71: 20.751 | U71: 22 | V71: 20.75 | W71: 22 | X71: 18.076 | Y71: 21 | Z71: 18.44 | AA71: 22 | AB71: 19.44 | AC71: 22 | AD71: 19.94 | AE71: 22 | AF71: 19.405 | AG71: 20 | AH71: 18.405 | AI71: 20 | AJ71: 19.468 | AK71: 20 | AL71: 18.464 | AM71: 19 | AN71: 14.151 | AO71: 18 | AP71: 17.436 | AQ71: 18 | AR71: 17.492 | AS71: 18 | AT71: 16.492 | AU71: 17 | AV71: 17.124 | AW71: 19 | AX71: 17.124 | AY71: 19 | AZ71: 21 | BA71: 21
A72: 04830000 | B72: Rising Tide Charter Public (District) | C72: 483 | D72: 54.893 | E72: 61 | F72: 55.692 | G72: 58 | H72: 59.088 | I72: 63 | J72: 60.2 | K72: 61 | L72: 46.199 | M72: 48 | N72: 44.398 | O72: 46 | P72: 44.6 | Q72: 46 | R72: 48.7 | S72: 51 | T72: 58.25 | U72: 59 | V72: 60.95 | W72: 62 | X72: 49.025 | Y72: 60 | Z72: 52.15 | AA72: 58 | AB72: 41.47 | AC72: 47 | AD72: 56.27 | AE72: 58 | AF72: 49.133 | AG72: 54 | AH72: 46.718 | AI72: 53 | AJ72: 39.508 | AK72: 45 | AL72: 43.485 | AM72: 47 | AN72: 31.5 | AO72: 41 | AP72: 34.539 | AQ72: 41 | AR72: 32.24 | AS72: 34 | AT72: 32.41 | AU72: 35 | AV72: 23.57 | AW72: 25 | AX72: 24.82 | AY72: 26 | AZ72: 24.36 | BA72: 26
A73: 04840000 | B73: Roxbury Preparatory Charter (District) | C73: 484 | D73: 106.475 | E73: 116 | F73: 102.529 | G73: 108 | H73: 120.072 | I73: 125 | J73: 86.341 | K73: 90 | L73: 124.483 | M73: 129 | N73: 128 | O73: 132 | P73: 120.494 | Q73: 126 | R73: 122.23 | S73: 126 | T73: 114.436 | U73: 120 | V73: 117.86 | W73: 123 | X73: 106.35 | Y73: 107 | Z73: 111.18 | AA73: 112 | AB73: 95.14 | AC73: 99 | AD73: 97.98 | AE73: 100 | AF73: 78.14 | AG73: 79 | AH73: 77.56 | AI73: 79 | AJ73: 64.57 | AK73: 67 | AL73: 65.07 | AM73: 67 | AN73: 53.51 | AO73: 56 | AP73: 55.31 | AQ73: 56 | AR73: 23.05 | AS73: 27 | AT73: 23.05 | AU73: 27 | AV73: 25.83 | AW73: 32 | AX73: 27.83 | AY73: 34 | AZ73: 26.259 | BA73: 30
A74: 04850000 | B74: Salem Academy Charter (District) | C74: 485 | D74: 47.298 | E74: 50 | F74: 48.6 | G74: 50 | H74: 43.789 | I74: 49 | J74: 44.4 | K74: 49 | L74: 46.572 | M74: 50 | N74: 45.84 | O74: 50 | P74: 44.851 | Q74: 49 | R74: 46.014 | S74: 51 | T74: 46.102 | U74: 50 | V74: 46.1 | W74: 50 | X74: 41.45 | Y74: 44 | Z74: 43.12 | AA74: 46 | AB74: 42.96 | AC74: 44 | AD74: 43.894 | AE74: 46 | AF74: 37.64 | AG74: 40 | AH74: 42.8 | AI74: 43 | AJ74: 38.65 | AK74: 43 | AL74: 39.03 | AM74: 43 | AN74: 34.146 | AO74: 37 | AP74: 36.04 | AQ74: 37 | AR74: 31.505 | AS74: 37 | AT74: 30.41 | AU74: 37 | AV74: 33.957 | AW74: 40 | AX74: 35.59 | AY74: 41 | AZ74: 36.7 | BA74: 41
A75: 04860000 | B75: Seven Hills Charter Public (District) | C75: 486 | D75: 34.329 | E75: 34 | F75: 39.661 | G75: 39 | H75: 37.5 | I75: 38 | J75: 38.995 | K75: 39 | L75: 35.75 | M75: 36 | N75: 35.75 | O75: 36 | P75: 33.004 | Q75: 33 | R75: 34 | S75: 34 | T75: 34.75 | U75: 35 | V75: 37.44 | W75: 38 | X75: 46.613 | Y75: 49 | Z75: 49.61 | AA75: 52 | AB75: 52.39 | AC75: 53 | AD75: 53.37 | AE75: 54 | AF75: 55.3 | AG75: 56 | AH75: 56.3 | AI75: 57 | AJ75: 53.74 | AK75: 54 | AL75: 53.175 | AM75: 54 | AN75: 50.102 | AO75: 52 | AP75: 51.474 | AQ75: 53 | AR75: 49.277 | AS75: 51 | AT75: 50.176 | AU75: 52 | AV75: 48.203 | AW75: 51 | AX75: 48.665 | AY75: 50 | AZ75: 41.5 | BA75: 42
